Workbook

Sheet DATA (hidden)
H1: All Returning Applicant | J1: New Applicant Only
A2: Entitlement | B2: 2024 Allocations | C2: 2025 Allocations | D2: 2026 Allocations | E2: 2027 Allocations | F2: 2028 Allocations | H2: Entitlement_Returning | I2: NonEntitlement_Returning | J2: Entitlement_New | K2: Non_Entitlement_New | N2: Plan Activity 1 Dropdowns | O2: Plan Activity 2 Dropdowns | P2: Plan Activity 3 Dropdowns | Q2: Column1 | R2: Column2 | S2: Column3 | T2: Column4 | U2: Column5 | V2: Column6 | W2: Column7 | Y2: Allocation % | Z2: Allocation % | AA2: County
A3: Alameda | B3: =VLOOKUP(Table2[[#This Row],[Entitlement]],'Formula 2024'!$C$14:$M$363,11,FALSE) -> 392215 | C3: =VLOOKUP(Table2[[#This Row],[Entitlement]],'Formula 2025'!$C$14:$M$363,11,FALSE) -> 420120 | D3: n/a | E3: n/a | F3: n/a | J3: Alameda | K3: Alpine County | N3: Predevelopment of Affordable Multifamily Rental Housing | O3: Predevelopment of Affordable Ownership Housing | P3: Capitalized Reserves for Services connected to the preservation and creation of Permanent Supportive Housing | Y3: n/a | Z3: n/a | AA3: Alameda
A4: Alameda County | B4: =VLOOKUP(Table2[[#This Row],[Entitlement]],'Formula 2024'!$C$14:$M$363,11,FALSE) -> 655510 | C4: =VLOOKUP(Table2[[#This Row],[Entitlement]],'Formula 2025'!$C$14:$M$363,11,FALSE) -> 702148 | D4: n/a | E4: n/a | F4: n/a | J4: Alameda County | K4: Alturas | N4: Development of Affordable Multifamily Rental Housing | O4: Development of Affordable Ownership Housing | P4: Rapid Rehousing | Y4: 0.01 | Z4: 1e-05 | AA4: Alpine
A5: Alhambra | B5: =VLOOKUP(Table2[[#This Row],[Entitlement]],'Formula 2024'!$C$14:$M$363,11,FALSE) -> 326839 | C5: =VLOOKUP(Table2[[#This Row],[Entitlement]],'Formula 2025'!$C$14:$M$363,11,FALSE) -> 350093 | D5: n/a | E5: n/a | F5: n/a | J5: Alhambra | K5: Amador City | N5: Acquisition of Affordable Multifamily Rental Housing | O5: Acquisition of Affordable Ownership Housing | P5: Rental Assistance | Y5: 0.02 | Z5: 0.01 | AA5: Amador
A6: Aliso Viejo | B6: =VLOOKUP(Table2[[#This Row],[Entitlement]],'Formula 2024'!$C$14:$M$363,11,FALSE) -> 83654 | C6: =VLOOKUP(Table2[[#This Row],[Entitlement]],'Formula 2025'!$C$14:$M$363,11,FALSE) -> 89606 | D6: n/a | E6: n/a | F6: n/a | J6: Aliso Viejo | K6: Amador County | N6: Rehabilitation of Affordable Multifamily Rental Housing | O6: Rehabilitation of Affordable Ownership Housing | P6: Supportive/Case Management Services | Y6: 0.03 | Z6: 0.02 | AA6: Butte
A7: Anaheim | B7: =VLOOKUP(Table2[[#This Row],[Entitlement]],'Formula 2024'!$C$14:$M$363,11,FALSE) -> 1512864 | C7: =VLOOKUP(Table2[[#This Row],[Entitlement]],'Formula 2025'!$C$14:$M$363,11,FALSE) -> 1620500 | D7: n/a | E7: n/a | F7: n/a | J7: Anaheim | K7: American Canyon | N7: Preservation of Affordable Multifamily Rental Housing | O7: Preservation of Affordable Ownership Housing | P7: Care Act Petitioning | Y7: 0.04 | Z7: 0.03 | AA7: Calaveras
A8: Antioch | B8: =VLOOKUP(Table2[[#This Row],[Entitlement]],'Formula 2024'!$C$14:$M$363,11,FALSE) -> 276726 | C8: =VLOOKUP(Table2[[#This Row],[Entitlement]],'Formula 2025'!$C$14:$M$363,11,FALSE) -> 296415 | D8: n/a | E8: n/a | F8: n/a | J8: Antioch | K8: Anderson | N8: Operating Subsidies for Affordable Multifamily Rental Housing | O8: Predevelopment of Accessory Dwelling Units | P8: Operating and Capital Costs for Navigation Centers | Y8: 0.05 | Z8: 0.04 | AA8: Colusa
A9: Apple Valley | B9: =VLOOKUP(Table2[[#This Row],[Entitlement]],'Formula 2024'!$C$14:$M$363,11,FALSE) -> 201848 | C9: =VLOOKUP(Table2[[#This Row],[Entitlement]],'Formula 2025'!$C$14:$M$363,11,FALSE) -> 216209 | D9: n/a | E9: n/a | F9: n/a | J9: Apple Valley | K9: Angels | N9: Predevelopment of Affordable Single Famil Rental Housing | O9: Development of Accessory Dwelling Units | P9: Operating and Capital Costs for Emergency Shelters | Y9: 0.06 | Z9: 0.05 | AA9: Contra Costa
A10: Bakersfield | B10: =VLOOKUP(Table2[[#This Row],[Entitlement]],'Formula 2024'!$C$14:$M$363,11,FALSE) -> 1214976 | C10: =VLOOKUP(Table2[[#This Row],[Entitlement]],'Formula 2025'!$C$14:$M$363,11,FALSE) -> 1301418 | D10: n/a | E10: n/a | F10: n/a | J10: Bakersfield | K10: Arcata | N10: Development of Affordable Single Family Rental Housing | O10: Acquisition of Accessory Dwelling Units | P10: Vouchers for Temporary Hotel/Motel Stays | Y10: 0.07 | Z10: 0.06 | AA10: Del Norte
A11: Baldwin Park | B11: =VLOOKUP(Table2[[#This Row],[Entitlement]],'Formula 2024'!$C$14:$M$363,11,FALSE) -> 342668 | C11: =VLOOKUP(Table2[[#This Row],[Entitlement]],'Formula 2025'!$C$14:$M$363,11,FALSE) -> 367048 | D11: n/a | E11: n/a | F11: n/a | J11: Baldwin Park | K11: Artesia | N11: Acquisition of Affordable Single Family Rental Housing | O11: Rehabilitation of Accessory Dwelling Units | P11: New Construction of Permanent Supportive Housing | Y11: 0.08 | Z11: 0.07 | AA11: El Dorado
A12: Bellflower | B12: =VLOOKUP(Table2[[#This Row],[Entitlement]],'Formula 2024'!$C$14:$M$363,11,FALSE) -> 360529 | C12: =VLOOKUP(Table2[[#This Row],[Entitlement]],'Formula 2025'!$C$14:$M$363,11,FALSE) -> 386180 | D12: n/a | E12: n/a | F12: n/a | J12: Bellflower | K12: Arvin | N12: Rehabilitation of Affordable Single Family Rental Housing | O12: Preservation of Accessory Dwelling Units | P12: Rehabilitation of Permanent Supportive Housing | Y12: 0.09 | Z12: 0.08 | AA12: Fresno
A13: Berkeley | B13: =VLOOKUP(Table2[[#This Row],[Entitlement]],'Formula 2024'!$C$14:$M$363,11,FALSE) -> 908008 | C13: =VLOOKUP(Table2[[#This Row],[Entitlement]],'Formula 2025'!$C$14:$M$363,11,FALSE) -> 972611 | D13: n/a | E13: n/a | F13: n/a | J13: Berkeley | K13: Atwater | N13: Preservation of Affordable Single Family Rental Housing | O13: Matching Portions of Funds placed into Local or Regional Housing Trust Funds for homeownership activities | P13: Preservation of Permanent Supportive Housing | Y13: 0.1 | Z13: 0.09 | AA13: Glenn
A14: Buena Park | B14: =VLOOKUP(Table2[[#This Row],[Entitlement]],'Formula 2024'!$C$14:$M$363,11,FALSE) -> 259183 | C14: =VLOOKUP(Table2[[#This Row],[Entitlement]],'Formula 2025'!$C$14:$M$363,11,FALSE) -> 277623 | D14: n/a | E14: n/a | F14: n/a | J14: Buena Park | K14: Auburn | N14: Matching Portions of Funds placed into Local or Regional Housing Trust Funds for rental activities | O14: Matching portions of funds available through the LMIH Asset Fund for homeownership activities | P14: New Construction of Transitional Housing | Y14: 0.11 | Z14: 0.1 | AA14: Humboldt
A15: Burbank | B15: =VLOOKUP(Table2[[#This Row],[Entitlement]],'Formula 2024'!$C$14:$M$363,11,FALSE) -> 334949 | C15: =VLOOKUP(Table2[[#This Row],[Entitlement]],'Formula 2025'!$C$14:$M$363,11,FALSE) -> 358780 | D15: n/a | E15: n/a | F15: n/a | J15: Burbank | K15: Avenal | N15: Matching portions of funds available through the LMIH Asset Fund for rental activities | O15: Efforts to acquire and rehabilitate foreclosed or vacant homes to be sold as affordable ownership housing | P15: Rehabilitation of Transitional Housing | Y15: 0.12 | Z15: 0.11 | AA15: Imperial
A16: Camarillo | B16: =VLOOKUP(Table2[[#This Row],[Entitlement]],'Formula 2024'!$C$14:$M$363,11,FALSE) -> 95009 | C16: =VLOOKUP(Table2[[#This Row],[Entitlement]],'Formula 2025'!$C$14:$M$363,11,FALSE) -> 101769 | D16: n/a | E16: n/a | F16: n/a | J16: Camarillo | K16: Benicia | N16: Efforts to acquire and rehabilitate foreclosed or vacant homes and apartments for use as affordable rental housing | O16: Accessibility modifications in Lower-income Owner-Occupied Housing | P16: Preservation of Transitional Housing | Y16: 0.13 | Z16: 0.12 | AA16: Inyo
A17: Carlsbad | B17: =VLOOKUP(Table2[[#This Row],[Entitlement]],'Formula 2024'!$C$14:$M$363,11,FALSE) -> 191334 | C17: =VLOOKUP(Table2[[#This Row],[Entitlement]],'Formula 2025'!$C$14:$M$363,11,FALSE) -> 204947 | D17: n/a | E17: n/a | F17: n/a | J17: Carlsbad | K17: Biggs | N17: Fiscal Incentives for Rental Housing | O17: Down Payment Assistance | Y17: 0.14 | Z17: 0.13 | AA17: Kern
A18: Carson | B18: =VLOOKUP(Table2[[#This Row],[Entitlement]],'Formula 2024'!$C$14:$M$363,11,FALSE) -> 291112 | C18: =VLOOKUP(Table2[[#This Row],[Entitlement]],'Formula 2025'!$C$14:$M$363,11,FALSE) -> 311824 | D18: n/a | E18: n/a | F18: n/a | J18: Carson | K18: Bishop | Y18: 0.15 | Z18: 0.14 | AA18: Kings
A19: Cathedral City | B19: =VLOOKUP(Table2[[#This Row],[Entitlement]],'Formula 2024'!$C$14:$M$363,11,FALSE) -> 198803 | C19: =VLOOKUP(Table2[[#This Row],[Entitlement]],'Formula 2025'!$C$14:$M$363,11,FALSE) -> 212948 | D19: n/a | E19: n/a | F19: n/a | J19: Cathedral City | K19: Blue Lake | Y19: 0.16 | Z19: 0.15 | AA19: Lake
A20: Cerritos | B20: =VLOOKUP(Table2[[#This Row],[Entitlement]],'Formula 2024'!$C$14:$M$363,11,FALSE) -> 76660 | C20: =VLOOKUP(Table2[[#This Row],[Entitlement]],'Formula 2025'!$C$14:$M$363,11,FALSE) -> 82114 | D20: n/a | E20: n/a | F20: n/a | J20: Cerritos | K20: Brawley | Y20: 0.17 | Z20: 0.16 | AA20: Lassen
A21: Chico | B21: =VLOOKUP(Table2[[#This Row],[Entitlement]],'Formula 2024'!$C$14:$M$363,11,FALSE) -> 273997 | C21: =VLOOKUP(Table2[[#This Row],[Entitlement]],'Formula 2025'!$C$14:$M$363,11,FALSE) -> 293492 | D21: n/a | E21: n/a | F21: n/a | J21: Chico | K21: Butte County | Y21: 0.18 | Z21: 0.17 | AA21: Los Angeles
A22: Chino | B22: =VLOOKUP(Table2[[#This Row],[Entitlement]],'Formula 2024'!$C$14:$M$363,11,FALSE) -> 175037 | C22: =VLOOKUP(Table2[[#This Row],[Entitlement]],'Formula 2025'!$C$14:$M$363,11,FALSE) -> 187490 | D22: n/a | E22: n/a | F22: n/a | J22: Chino | K22: Calaveras County | N22: New subactivities | Y22: 0.19 | Z22: 0.18 | AA22: Madera
A23: Chino Hills | B23: =VLOOKUP(Table2[[#This Row],[Entitlement]],'Formula 2024'!$C$14:$M$363,11,FALSE) -> 124442 | C23: =VLOOKUP(Table2[[#This Row],[Entitlement]],'Formula 2025'!$C$14:$M$363,11,FALSE) -> 133296 | D23: n/a | E23: n/a | F23: n/a | J23: Chino Hills | K23: Calexico | N23: ADUS as ownership since the homeowner is ultimately the one benefitting | Y23: 0.2 | Z23: 0.19 | AA23: Marin
A24: Chula Vista | B24: =VLOOKUP(Table2[[#This Row],[Entitlement]],'Formula 2024'!$C$14:$M$363,11,FALSE) -> 743685 | C24: =VLOOKUP(Table2[[#This Row],[Entitlement]],'Formula 2025'!$C$14:$M$363,11,FALSE) -> 796596 | D24: n/a | E24: n/a | F24: n/a | J24: Chula Vista | K24: Calimesa | Y24: 0.21 | AA24: Mariposa
A25: Citrus Heights | B25: =VLOOKUP(Table2[[#This Row],[Entitlement]],'Formula 2024'!$C$14:$M$363,11,FALSE) -> 219536 | C25: =VLOOKUP(Table2[[#This Row],[Entitlement]],'Formula 2025'!$C$14:$M$363,11,FALSE) -> 235155 | D25: n/a | E25: n/a | F25: n/a | J25: Citrus Heights | K25: Calipatria | Y25: 0.22 | AA25: Mendocino
A26: Clovis City | B26: =VLOOKUP(Table2[[#This Row],[Entitlement]],'Formula 2024'!$C$14:$M$363,11,FALSE) -> 256633 | C26: =VLOOKUP(Table2[[#This Row],[Entitlement]],'Formula 2025'!$C$14:$M$363,11,FALSE) -> 274892 | D26: n/a | E26: n/a | F26: n/a | J26: Clovis City | K26: Calistoga | Y26: 0.23 | AA26: Merced
A27: Compton | B27: =VLOOKUP(Table2[[#This Row],[Entitlement]],'Formula 2024'!$C$14:$M$363,11,FALSE) -> 540291 | C27: =VLOOKUP(Table2[[#This Row],[Entitlement]],'Formula 2025'!$C$14:$M$363,11,FALSE) -> 578731 | D27: n/a | E27: n/a | F27: n/a | J27: Compton | K27: Capitola | Y27: 0.24 | AA27: Modoc
A28: Concord | B28: =VLOOKUP(Table2[[#This Row],[Entitlement]],'Formula 2024'!$C$14:$M$363,11,FALSE) -> 343094 | C28: =VLOOKUP(Table2[[#This Row],[Entitlement]],'Formula 2025'!$C$14:$M$363,11,FALSE) -> 367504 | D28: n/a | E28: n/a | F28: n/a | J28: Concord | K28: Carmel-by-the-Sea | Y28: 0.25 | AA28: Mono
A29: Contra Costa County | B29: =VLOOKUP(Table2[[#This Row],[Entitlement]],'Formula 2024'!$C$14:$M$363,11,FALSE) -> 1523318 | C29: =VLOOKUP(Table2[[#This Row],[Entitlement]],'Formula 2025'!$C$14:$M$363,11,FALSE) -> 1631698 | D29: n/a | E29: n/a | F29: n/a | J29: Contra Costa County | K29: Chowchilla | Y29: 0.26 | AA29: Monterey
A30: Corona | B30: =VLOOKUP(Table2[[#This Row],[Entitlement]],'Formula 2024'!$C$14:$M$363,11,FALSE) -> 408526 | C30: =VLOOKUP(Table2[[#This Row],[Entitlement]],'Formula 2025'!$C$14:$M$363,11,FALSE) -> 437592 | D30: n/a | E30: n/a | F30: n/a | J30: Corona | K30: Clearlake | Y30: 0.27 | AA30: Napa
A31: Costa Mesa | B31: =VLOOKUP(Table2[[#This Row],[Entitlement]],'Formula 2024'!$C$14:$M$363,11,FALSE) -> 371028 | C31: =VLOOKUP(Table2[[#This Row],[Entitlement]],'Formula 2025'!$C$14:$M$363,11,FALSE) -> 397425 | D31: n/a | E31: n/a | F31: n/a | J31: Costa Mesa | K31: Coalinga | Y31: 0.28 | AA31: Nevada
A32: Cupertino | B32: =VLOOKUP(Table2[[#This Row],[Entitlement]],'Formula 2024'!$C$14:$M$363,11,FALSE) -> 116177 | C32: =VLOOKUP(Table2[[#This Row],[Entitlement]],'Formula 2025'!$C$14:$M$363,11,FALSE) -> 124442 | D32: n/a | E32: n/a | F32: n/a | J32: Cupertino | K32: Colfax | Y32: 0.29 | AA32: Orange
A33: Daly City | B33: =VLOOKUP(Table2[[#This Row],[Entitlement]],'Formula 2024'!$C$14:$M$363,11,FALSE) -> 359264 | C33: =VLOOKUP(Table2[[#This Row],[Entitlement]],'Formula 2025'!$C$14:$M$363,11,FALSE) -> 384824 | D33: n/a | E33: n/a | F33: n/a | J33: Daly City | K33: Colusa | Y33: 0.3 | AA33: Placer
A34: Davis | B34: =VLOOKUP(Table2[[#This Row],[Entitlement]],'Formula 2024'!$C$14:$M$363,11,FALSE) -> 212632 | C34: =VLOOKUP(Table2[[#This Row],[Entitlement]],'Formula 2025'!$C$14:$M$363,11,FALSE) -> 227760 | D34: n/a | E34: n/a | F34: n/a | J34: Davis | K34: Colusa County | Y34: 0.31 | AA34: Plumas
A35: Delano | B35: =VLOOKUP(Table2[[#This Row],[Entitlement]],'Formula 2024'!$C$14:$M$363,11,FALSE) -> 228215 | C35: =VLOOKUP(Table2[[#This Row],[Entitlement]],'Formula 2025'!$C$14:$M$363,11,FALSE) -> 244452 | D35: n/a | E35: n/a | F35: n/a | J35: Delano | K35: Corcoran | Y35: 0.32 | AA35: Riverside
A36: Downey | B36: =VLOOKUP(Table2[[#This Row],[Entitlement]],'Formula 2024'!$C$14:$M$363,11,FALSE) -> 365201 | C36: =VLOOKUP(Table2[[#This Row],[Entitlement]],'Formula 2025'!$C$14:$M$363,11,FALSE) -> 391184 | D36: n/a | E36: n/a | F36: n/a | J36: Downey | K36: Corning | Y36: 0.33 | AA36: Sacramento
A37: El Cajon | B37: =VLOOKUP(Table2[[#This Row],[Entitlement]],'Formula 2024'!$C$14:$M$363,11,FALSE) -> 453014 | C37: =VLOOKUP(Table2[[#This Row],[Entitlement]],'Formula 2025'!$C$14:$M$363,11,FALSE) -> 485245 | D37: n/a | E37: n/a | F37: n/a | J37: El Cajon | K37: Crescent City | Y37: 0.34 | AA37: San Benito
A38: El Centro | B38: =VLOOKUP(Table2[[#This Row],[Entitlement]],'Formula 2024'!$C$14:$M$363,11,FALSE) -> 172674 | C38: =VLOOKUP(Table2[[#This Row],[Entitlement]],'Formula 2025'!$C$14:$M$363,11,FALSE) -> 184959 | D38: n/a | E38: n/a | F38: n/a | J38: El Centro | K38: Del Norte County | Y38: 0.35 | AA38: San Bernardino
A39: El Monte | B39: =VLOOKUP(Table2[[#This Row],[Entitlement]],'Formula 2024'!$C$14:$M$363,11,FALSE) -> 594741 | C39: =VLOOKUP(Table2[[#This Row],[Entitlement]],'Formula 2025'!$C$14:$M$363,11,FALSE) -> 637055 | D39: n/a | E39: n/a | F39: n/a | J39: El Monte | K39: Dinuba | Y39: 0.36 | AA39: San Diego
A40: Elk Grove | B40: =VLOOKUP(Table2[[#This Row],[Entitlement]],'Formula 2024'!$C$14:$M$363,11,FALSE) -> 308701 | C40: =VLOOKUP(Table2[[#This Row],[Entitlement]],'Formula 2025'!$C$14:$M$363,11,FALSE) -> 330664 | D40: n/a | E40: n/a | F40: n/a | J40: Elk Grove | K40: Dixon | Y40: 0.37 | AA40: San Francisco
A41: Encinitas | B41: =VLOOKUP(Table2[[#This Row],[Entitlement]],'Formula 2024'!$C$14:$M$363,11,FALSE) -> 109532 | C41: =VLOOKUP(Table2[[#This Row],[Entitlement]],'Formula 2025'!$C$14:$M$363,11,FALSE) -> 117325 | D41: n/a | E41: n/a | F41: n/a | J41: Encinitas | K41: Dorris | Y41: 0.38 | AA41: San Joaquin
A42: Escondido | B42: =VLOOKUP(Table2[[#This Row],[Entitlement]],'Formula 2024'!$C$14:$M$363,11,FALSE) -> 591667 | C42: =VLOOKUP(Table2[[#This Row],[Entitlement]],'Formula 2025'!$C$14:$M$363,11,FALSE) -> 633762 | D42: n/a | E42: n/a | F42: n/a | J42: Escondido | K42: Dos Palos | Y42: 0.39 | AA42: San Luis Obispo
A43: Fairfield | B43: =VLOOKUP(Table2[[#This Row],[Entitlement]],'Formula 2024'!$C$14:$M$363,11,FALSE) -> 274392 | C43: =VLOOKUP(Table2[[#This Row],[Entitlement]],'Formula 2025'!$C$14:$M$363,11,FALSE) -> 293914 | D43: n/a | E43: n/a | F43: n/a | J43: Fairfield | K43: Dunsmuir | Y43: 0.4 | AA43: San Mateo
A44: Fontana | B44: =VLOOKUP(Table2[[#This Row],[Entitlement]],'Formula 2024'!$C$14:$M$363,11,FALSE) -> 688681 | C44: =VLOOKUP(Table2[[#This Row],[Entitlement]],'Formula 2025'!$C$14:$M$363,11,FALSE) -> 737679 | D44: n/a | E44: n/a | F44: n/a | J44: Fontana | K44: El Centro (Colonia Only) | Y44: 0.41 | AA44: Santa Barbara
A45: Fountain Valley | B45: =VLOOKUP(Table2[[#This Row],[Entitlement]],'Formula 2024'!$C$14:$M$363,11,FALSE) -> 101505 | C45: =VLOOKUP(Table2[[#This Row],[Entitlement]],'Formula 2025'!$C$14:$M$363,11,FALSE) -> 108727 | D45: n/a | E45: n/a | F45: n/a | J45: Fountain Valley | K45: El Dorado County | Y45: 0.42 | AA45: Santa Clara
A46: Fremont | B46: =VLOOKUP(Table2[[#This Row],[Entitlement]],'Formula 2024'!$C$14:$M$363,11,FALSE) -> 450051 | C46: =VLOOKUP(Table2[[#This Row],[Entitlement]],'Formula 2025'!$C$14:$M$363,11,FALSE) -> 482070 | D46: n/a | E46: n/a | F46: n/a | J46: Fremont | K46: Etna | Y46: 0.43 | AA46: Santa Cruz
A47: Fresno | B47: =VLOOKUP(Table2[[#This Row],[Entitlement]],'Formula 2024'!$C$14:$M$363,11,FALSE) -> 2391906 | C47: =VLOOKUP(Table2[[#This Row],[Entitlement]],'Formula 2025'!$C$14:$M$363,11,FALSE) -> 2562083 | D47: n/a | E47: n/a | F47: n/a | J47: Fresno | K47: Eureka | Y47: 0.44 | AA47: Shasta
A48: Fresno County | B48: =VLOOKUP(Table2[[#This Row],[Entitlement]],'Formula 2024'!$C$14:$M$363,11,FALSE) -> 1153519 | C48: =VLOOKUP(Table2[[#This Row],[Entitlement]],'Formula 2025'!$C$14:$M$363,11,FALSE) -> 1235588 | D48: n/a | E48: n/a | F48: n/a | J48: Fresno County | K48: Exeter | Y48: 0.45 | AA48: Sierra
A49: Fullerton | B49: =VLOOKUP(Table2[[#This Row],[Entitlement]],'Formula 2024'!$C$14:$M$363,11,FALSE) -> 483247 | C49: =VLOOKUP(Table2[[#This Row],[Entitlement]],'Formula 2025'!$C$14:$M$363,11,FALSE) -> 517628 | D49: n/a | E49: n/a | F49: n/a | J49: Fullerton | K49: Farmersville | Y49: 0.46 | AA49: Siskiyou
A50: Garden Grove | B50: =VLOOKUP(Table2[[#This Row],[Entitlement]],'Formula 2024'!$C$14:$M$363,11,FALSE) -> 697961 | C50: =VLOOKUP(Table2[[#This Row],[Entitlement]],'Formula 2025'!$C$14:$M$363,11,FALSE) -> 747619 | D50: n/a | E50: n/a | F50: n/a | J50: Garden Grove | K50: Ferndale | Y50: 0.47 | AA50: Solano
A51: Gardena | B51: =VLOOKUP(Table2[[#This Row],[Entitlement]],'Formula 2024'!$C$14:$M$363,11,FALSE) -> 231552 | C51: =VLOOKUP(Table2[[#This Row],[Entitlement]],'Formula 2025'!$C$14:$M$363,11,FALSE) -> 248026 | D51: n/a | E51: n/a | F51: n/a | J51: Gardena | K51: Firebaugh | Y51: 0.48 | AA51: Sonoma
A52: Gilroy | B52: =VLOOKUP(Table2[[#This Row],[Entitlement]],'Formula 2024'!$C$14:$M$363,11,FALSE) -> 171453 | C52: =VLOOKUP(Table2[[#This Row],[Entitlement]],'Formula 2025'!$C$14:$M$363,11,FALSE) -> 183652 | D52: n/a | E52: n/a | F52: n/a | J52: Gilroy | K52: Fort Bragg | Y52: 0.49 | AA52: Stanislaus
A53: Glendale | B53: =VLOOKUP(Table2[[#This Row],[Entitlement]],'Formula 2024'!$C$14:$M$363,11,FALSE) -> 608593 | C53: =VLOOKUP(Table2[[#This Row],[Entitlement]],'Formula 2025'!$C$14:$M$363,11,FALSE) -> 651892 | D53: n/a | E53: n/a | F53: n/a | J53: Glendale | K53: Fort Jones | Y53: 0.5 | AA53: Sutter
A54: Glendora | B54: =VLOOKUP(Table2[[#This Row],[Entitlement]],'Formula 2024'!$C$14:$M$363,11,FALSE) -> 91432 | C54: =VLOOKUP(Table2[[#This Row],[Entitlement]],'Formula 2025'!$C$14:$M$363,11,FALSE) -> 97937 | D54: n/a | E54: n/a | F54: n/a | J54: Glendora | K54: Fortuna | Y54: 0.51 | AA54: Tehama
A55: Goleta | B55: =VLOOKUP(Table2[[#This Row],[Entitlement]],'Formula 2024'!$C$14:$M$363,11,FALSE) -> 65992 | C55: =VLOOKUP(Table2[[#This Row],[Entitlement]],'Formula 2025'!$C$14:$M$363,11,FALSE) -> 70687 | D55: n/a | E55: n/a | F55: n/a | J55: Goleta | K55: Glenn County | Y55: 0.52 | AA55: Trinity
A56: Hanford | B56: =VLOOKUP(Table2[[#This Row],[Entitlement]],'Formula 2024'!$C$14:$M$363,11,FALSE) -> 207398 | C56: =VLOOKUP(Table2[[#This Row],[Entitlement]],'Formula 2025'!$C$14:$M$363,11,FALSE) -> 222154 | D56: n/a | E56: n/a | F56: n/a | J56: Hanford | K56: Grass Valley | Y56: 0.53 | AA56: Tulare
A57: Hawthorne | B57: =VLOOKUP(Table2[[#This Row],[Entitlement]],'Formula 2024'!$C$14:$M$363,11,FALSE) -> 430157 | C57: =VLOOKUP(Table2[[#This Row],[Entitlement]],'Formula 2025'!$C$14:$M$363,11,FALSE) -> 460762 | D57: n/a | E57: n/a | F57: n/a | J57: Hawthorne | K57: Greenfield | Y57: 0.54 | AA57: Tuolumne
A58: Hayward | B58: =VLOOKUP(Table2[[#This Row],[Entitlement]],'Formula 2024'!$C$14:$M$363,11,FALSE) -> 457474 | C58: =VLOOKUP(Table2[[#This Row],[Entitlement]],'Formula 2025'!$C$14:$M$363,11,FALSE) -> 490021 | D58: n/a | E58: n/a | F58: n/a | J58: Hayward | K58: Gridley | Y58: 0.55 | AA58: Ventura
A59: Hemet | B59: =VLOOKUP(Table2[[#This Row],[Entitlement]],'Formula 2024'!$C$14:$M$363,11,FALSE) -> 282553 | C59: =VLOOKUP(Table2[[#This Row],[Entitlement]],'Formula 2025'!$C$14:$M$363,11,FALSE) -> 302655 | D59: n/a | E59: n/a | F59: n/a | J59: Hemet | K59: Grover Beach | Y59: 0.56 | AA59: Yolo
A60: Hesperia | B60: =VLOOKUP(Table2[[#This Row],[Entitlement]],'Formula 2024'!$C$14:$M$363,11,FALSE) -> 355021 | C60: =VLOOKUP(Table2[[#This Row],[Entitlement]],'Formula 2025'!$C$14:$M$363,11,FALSE) -> 380280 | D60: n/a | E60: n/a | F60: n/a | J60: Hesperia | K60: Guadalupe | Y60: 0.57 | AA60: Yuba
A61: Huntington Beach | B61: =VLOOKUP(Table2[[#This Row],[Entitlement]],'Formula 2024'!$C$14:$M$363,11,FALSE) -> 385006 | C61: =VLOOKUP(Table2[[#This Row],[Entitlement]],'Formula 2025'!$C$14:$M$363,11,FALSE) -> 412398 | D61: n/a | E61: n/a | F61: n/a | J61: Huntington Beach | K61: Gustine | Y61: 0.58
A62: Huntington Park | B62: =VLOOKUP(Table2[[#This Row],[Entitlement]],'Formula 2024'!$C$14:$M$363,11,FALSE) -> 457434 | C62: =VLOOKUP(Table2[[#This Row],[Entitlement]],'Formula 2025'!$C$14:$M$363,11,FALSE) -> 489979 | D62: n/a | E62: n/a | F62: n/a | J62: Huntington Park | K62: Hidden Hills | Y62: 0.59
A63: Indio | B63: =VLOOKUP(Table2[[#This Row],[Entitlement]],'Formula 2024'!$C$14:$M$363,11,FALSE) -> 320054 | C63: =VLOOKUP(Table2[[#This Row],[Entitlement]],'Formula 2025'!$C$14:$M$363,11,FALSE) -> 342825 | D63: n/a | E63: n/a | F63: n/a | J63: Indio | K63: Hollister | Y63: 0.6
A64: Inglewood | B64: =VLOOKUP(Table2[[#This Row],[Entitlement]],'Formula 2024'!$C$14:$M$363,11,FALSE) -> 516465 | C64: =VLOOKUP(Table2[[#This Row],[Entitlement]],'Formula 2025'!$C$14:$M$363,11,FALSE) -> 553210 | D64: n/a | E64: n/a | F64: n/a | J64: Inglewood | K64: Holtville | Y64: 0.61
A65: Irvine | B65: =VLOOKUP(Table2[[#This Row],[Entitlement]],'Formula 2024'!$C$14:$M$363,11,FALSE) -> 532048 | C65: =VLOOKUP(Table2[[#This Row],[Entitlement]],'Formula 2025'!$C$14:$M$363,11,FALSE) -> 569902 | D65: n/a | E65: n/a | F65: n/a | J65: Irvine | K65: Humboldt County | Y65: 0.62
A66: Kern County | B66: =VLOOKUP(Table2[[#This Row],[Entitlement]],'Formula 2024'!$C$14:$M$363,11,FALSE) -> 1516415 | C66: =VLOOKUP(Table2[[#This Row],[Entitlement]],'Formula 2025'!$C$14:$M$363,11,FALSE) -> 1624304 | D66: n/a | E66: n/a | F66: n/a | J66: Kern County | K66: Huron | Y66: 0.63
A67: La Habra | B67: =VLOOKUP(Table2[[#This Row],[Entitlement]],'Formula 2024'!$C$14:$M$363,11,FALSE) -> 272958 | C67: =VLOOKUP(Table2[[#This Row],[Entitlement]],'Formula 2025'!$C$14:$M$363,11,FALSE) -> 292378 | D67: n/a | E67: n/a | F67: n/a | J67: La Habra | K67: Imperial | Y67: 0.64
A68: La Mesa | B68: =VLOOKUP(Table2[[#This Row],[Entitlement]],'Formula 2024'!$C$14:$M$363,11,FALSE) -> 132531 | C68: =VLOOKUP(Table2[[#This Row],[Entitlement]],'Formula 2025'!$C$14:$M$363,11,FALSE) -> 141960 | D68: n/a | E68: n/a | F68: n/a | J68: La Mesa | K68: Imperial County | Y68: 0.65
A69: Laguna Niguel | B69: =VLOOKUP(Table2[[#This Row],[Entitlement]],'Formula 2024'!$C$14:$M$363,11,FALSE) -> 107686 | C69: =VLOOKUP(Table2[[#This Row],[Entitlement]],'Formula 2025'!$C$14:$M$363,11,FALSE) -> 115348 | D69: n/a | E69: n/a | F69: n/a | J69: Laguna Niguel | K69: Indian Wells | Y69: 0.66
A70: Lake Elsinore | B70: =VLOOKUP(Table2[[#This Row],[Entitlement]],'Formula 2024'!$C$14:$M$363,11,FALSE) -> 174449 | C70: =VLOOKUP(Table2[[#This Row],[Entitlement]],'Formula 2025'!$C$14:$M$363,11,FALSE) -> 186861 | D70: n/a | E70: n/a | F70: n/a | J70: Lake Elsinore | K70: Industry | Y70: 0.67
A71: Lake Forest | B71: =VLOOKUP(Table2[[#This Row],[Entitlement]],'Formula 2024'!$C$14:$M$363,11,FALSE) -> 155176 | C71: =VLOOKUP(Table2[[#This Row],[Entitlement]],'Formula 2025'!$C$14:$M$363,11,FALSE) -> 166216 | D71: n/a | E71: n/a | F71: n/a | J71: Lake Forest | K71: Inyo County | Y71: 0.68
A72: Lakewood | B72: =VLOOKUP(Table2[[#This Row],[Entitlement]],'Formula 2024'!$C$14:$M$363,11,FALSE) -> 190116 | C72: =VLOOKUP(Table2[[#This Row],[Entitlement]],'Formula 2025'!$C$14:$M$363,11,FALSE) -> 203643 | D72: n/a | E72: n/a | F72: n/a | J72: Lakewood | K72: Ione | Y72: 0.69
A73: Lancaster | B73: =VLOOKUP(Table2[[#This Row],[Entitlement]],'Formula 2024'!$C$14:$M$363,11,FALSE) -> 487741 | C73: =VLOOKUP(Table2[[#This Row],[Entitlement]],'Formula 2025'!$C$14:$M$363,11,FALSE) -> 522442 | D73: n/a | E73: n/a | F73: n/a | J73: Lancaster | K73: Jackson | Y73: 0.7
A74: Livermore | B74: =VLOOKUP(Table2[[#This Row],[Entitlement]],'Formula 2024'!$C$14:$M$363,11,FALSE) -> 146381 | C74: =VLOOKUP(Table2[[#This Row],[Entitlement]],'Formula 2025'!$C$14:$M$363,11,FALSE) -> 156796 | D74: n/a | E74: n/a | F74: n/a | J74: Livermore | K74: King City | Y74: 0.71
A75: Lodi | B75: =VLOOKUP(Table2[[#This Row],[Entitlement]],'Formula 2024'!$C$14:$M$363,11,FALSE) -> 236035 | C75: =VLOOKUP(Table2[[#This Row],[Entitlement]],'Formula 2025'!$C$14:$M$363,11,FALSE) -> 252828 | D75: n/a | E75: n/a | F75: n/a | J75: Lodi | K75: Kings County | Y75: 0.72
A76: Lompoc | B76: =VLOOKUP(Table2[[#This Row],[Entitlement]],'Formula 2024'!$C$14:$M$363,11,FALSE) -> 159358 | C76: =VLOOKUP(Table2[[#This Row],[Entitlement]],'Formula 2025'!$C$14:$M$363,11,FALSE) -> 170696 | D76: n/a | E76: n/a | F76: n/a | J76: Lompoc | K76: Lake County | Y76: 0.73
A77: Long Beach | B77: =VLOOKUP(Table2[[#This Row],[Entitlement]],'Formula 2024'!$C$14:$M$363,11,FALSE) -> 2054404 | C77: =VLOOKUP(Table2[[#This Row],[Entitlement]],'Formula 2025'!$C$14:$M$363,11,FALSE) -> 2200569 | D77: n/a | E77: n/a | F77: n/a | J77: Long Beach | K77: Lakeport | Y77: 0.74
A78: Los Angeles | B78: =VLOOKUP(Table2[[#This Row],[Entitlement]],'Formula 2024'!$C$14:$M$363,11,FALSE) -> 18404366 | C78: =VLOOKUP(Table2[[#This Row],[Entitlement]],'Formula 2025'!$C$14:$M$363,11,FALSE) -> 19713781 | D78: n/a | E78: n/a | F78: n/a | J78: Los Angeles | K78: Lassen County | Y78: 0.75
A79: Los Angeles County | B79: =VLOOKUP(Table2[[#This Row],[Entitlement]],'Formula 2024'!$C$14:$M$363,11,FALSE) -> 7738892 | C79: =VLOOKUP(Table2[[#This Row],[Entitlement]],'Formula 2025'!$C$14:$M$363,11,FALSE) -> 8289492 | D79: n/a | E79: n/a | F79: n/a | J79: Los Angeles County | K79: Lemoore | Y79: 0.76
A80: Lynwood | B80: =VLOOKUP(Table2[[#This Row],[Entitlement]],'Formula 2024'!$C$14:$M$363,11,FALSE) -> 443191 | C80: =VLOOKUP(Table2[[#This Row],[Entitlement]],'Formula 2025'!$C$14:$M$363,11,FALSE) -> 474723 | D80: n/a | E80: n/a | F80: n/a | J80: Lynwood | K80: Lincoln | Y80: 0.77
A81: Madera | B81: =VLOOKUP(Table2[[#This Row],[Entitlement]],'Formula 2024'!$C$14:$M$363,11,FALSE) -> 296439 | C81: =VLOOKUP(Table2[[#This Row],[Entitlement]],'Formula 2025'!$C$14:$M$363,11,FALSE) -> 317530 | D81: n/a | E81: n/a | F81: n/a | J81: Madera | K81: Lindsay | Y81: 0.78
A82: Marin County | B82: =VLOOKUP(Table2[[#This Row],[Entitlement]],'Formula 2024'!$C$14:$M$363,11,FALSE) -> 509302 | C82: =VLOOKUP(Table2[[#This Row],[Entitlement]],'Formula 2025'!$C$14:$M$363,11,FALSE) -> 545537 | D82: n/a | E82: n/a | F82: n/a | J82: Marin County | K82: Live Oak | Y82: 0.79
A83: Menifee | B83: =VLOOKUP(Table2[[#This Row],[Entitlement]],'Formula 2024'!$C$14:$M$363,11,FALSE) -> 176609 | C83: =VLOOKUP(Table2[[#This Row],[Entitlement]],'Formula 2025'!$C$14:$M$363,11,FALSE) -> 189174 | D83: n/a | E83: n/a | F83: n/a | J83: Menifee | K83: Livingston | Y83: 0.8
A84: Merced | B84: =VLOOKUP(Table2[[#This Row],[Entitlement]],'Formula 2024'!$C$14:$M$363,11,FALSE) -> 364106 | C84: =VLOOKUP(Table2[[#This Row],[Entitlement]],'Formula 2025'!$C$14:$M$363,11,FALSE) -> 390011 | D84: n/a | E84: n/a | F84: n/a | J84: Merced | K84: Loomis | Y84: 0.81
A85: Milpitas | B85: =VLOOKUP(Table2[[#This Row],[Entitlement]],'Formula 2024'!$C$14:$M$363,11,FALSE) -> 167477 | C85: =VLOOKUP(Table2[[#This Row],[Entitlement]],'Formula 2025'!$C$14:$M$363,11,FALSE) -> 179393 | D85: n/a | E85: n/a | F85: n/a | J85: Milpitas | K85: Los Banos | Y85: 0.82
A86: Mission Viejo | B86: =VLOOKUP(Table2[[#This Row],[Entitlement]],'Formula 2024'!$C$14:$M$363,11,FALSE) -> 145078 | C86: =VLOOKUP(Table2[[#This Row],[Entitlement]],'Formula 2025'!$C$14:$M$363,11,FALSE) -> 155399 | D86: n/a | E86: n/a | F86: n/a | J86: Mission Viejo | K86: Loyalton | Y86: 0.83
A87: Modesto | B87: =VLOOKUP(Table2[[#This Row],[Entitlement]],'Formula 2024'!$C$14:$M$363,11,FALSE) -> 680696 | C87: =VLOOKUP(Table2[[#This Row],[Entitlement]],'Formula 2025'!$C$14:$M$363,11,FALSE) -> 729126 | D87: n/a | E87: n/a | F87: n/a | J87: Modesto | K87: Madera County | Y87: 0.84
A88: Montebello | B88: =VLOOKUP(Table2[[#This Row],[Entitlement]],'Formula 2024'!$C$14:$M$363,11,FALSE) -> 222342 | C88: =VLOOKUP(Table2[[#This Row],[Entitlement]],'Formula 2025'!$C$14:$M$363,11,FALSE) -> 238161 | D88: n/a | E88: n/a | F88: n/a | J88: Montebello | K88: Mammoth Lakes | Y88: 0.85
A89: Monterey | B89: =VLOOKUP(Table2[[#This Row],[Entitlement]],'Formula 2024'!$C$14:$M$363,11,FALSE) -> 81718 | C89: =VLOOKUP(Table2[[#This Row],[Entitlement]],'Formula 2025'!$C$14:$M$363,11,FALSE) -> 87532 | D89: n/a | E89: n/a | F89: n/a | J89: Monterey | K89: Maricopa | Y89: 0.86
A90: Monterey County | B90: =VLOOKUP(Table2[[#This Row],[Entitlement]],'Formula 2024'!$C$14:$M$363,11,FALSE) -> 455119 | C90: =VLOOKUP(Table2[[#This Row],[Entitlement]],'Formula 2025'!$C$14:$M$363,11,FALSE) -> 487499 | D90: n/a | E90: n/a | F90: n/a | J90: Monterey County | K90: Marina | Y90: 0.87
A91: Monterey Park | B91: =VLOOKUP(Table2[[#This Row],[Entitlement]],'Formula 2024'!$C$14:$M$363,11,FALSE) -> 223826 | C91: =VLOOKUP(Table2[[#This Row],[Entitlement]],'Formula 2025'!$C$14:$M$363,11,FALSE) -> 239750 | D91: n/a | E91: n/a | F91: n/a | J91: Monterey Park | K91: Mariposa County | Y91: 0.88
A92: Moreno Valley | B92: =VLOOKUP(Table2[[#This Row],[Entitlement]],'Formula 2024'!$C$14:$M$363,11,FALSE) -> 722856 | C92: =VLOOKUP(Table2[[#This Row],[Entitlement]],'Formula 2025'!$C$14:$M$363,11,FALSE) -> 774285 | D92: n/a | E92: n/a | F92: n/a | J92: Moreno Valley | K92: Marysville | Y92: 0.89
A93: Mountain View | B93: =VLOOKUP(Table2[[#This Row],[Entitlement]],'Formula 2024'!$C$14:$M$363,11,FALSE) -> 180082 | C93: =VLOOKUP(Table2[[#This Row],[Entitlement]],'Formula 2025'!$C$14:$M$363,11,FALSE) -> 192894 | D93: n/a | E93: n/a | F93: n/a | J93: Mountain View | K93: McFarland | Y93: 0.9
A94: Napa | B94: =VLOOKUP(Table2[[#This Row],[Entitlement]],'Formula 2024'!$C$14:$M$363,11,FALSE) -> 223362 | C94: =VLOOKUP(Table2[[#This Row],[Entitlement]],'Formula 2025'!$C$14:$M$363,11,FALSE) -> 239253 | D94: n/a | E94: n/a | F94: n/a | J94: Napa | K94: Mendocino County | Y94: 0.91
A95: National City | B95: =VLOOKUP(Table2[[#This Row],[Entitlement]],'Formula 2024'!$C$14:$M$363,11,FALSE) -> 275993 | C95: =VLOOKUP(Table2[[#This Row],[Entitlement]],'Formula 2025'!$C$14:$M$363,11,FALSE) -> 295629 | D95: n/a | E95: n/a | F95: n/a | J95: National City | K95: Merced County | Y95: 0.92
A96: Newport Beach | B96: =VLOOKUP(Table2[[#This Row],[Entitlement]],'Formula 2024'!$C$14:$M$363,11,FALSE) -> 119057 | C96: =VLOOKUP(Table2[[#This Row],[Entitlement]],'Formula 2025'!$C$14:$M$363,11,FALSE) -> 127527 | D96: n/a | E96: n/a | F96: n/a | J96: Newport Beach | K96: Modoc County | Y96: 0.93
A97: Norwalk | B97: =VLOOKUP(Table2[[#This Row],[Entitlement]],'Formula 2024'!$C$14:$M$363,11,FALSE) -> 416079 | C97: =VLOOKUP(Table2[[#This Row],[Entitlement]],'Formula 2025'!$C$14:$M$363,11,FALSE) -> 445681 | D97: n/a | E97: n/a | F97: n/a | J97: Norwalk | K97: Mono County | Y97: 0.94
A98: Oakland | B98: =VLOOKUP(Table2[[#This Row],[Entitlement]],'Formula 2024'!$C$14:$M$363,11,FALSE) -> 2600291 | C98: =VLOOKUP(Table2[[#This Row],[Entitlement]],'Formula 2025'!$C$14:$M$363,11,FALSE) -> 2785294 | D98: n/a | E98: n/a | F98: n/a | J98: Oakland | K98: Montague | Y98: 0.95
A99: Oceanside | B99: =VLOOKUP(Table2[[#This Row],[Entitlement]],'Formula 2024'!$C$14:$M$363,11,FALSE) -> 455660 | C99: =VLOOKUP(Table2[[#This Row],[Entitlement]],'Formula 2025'!$C$14:$M$363,11,FALSE) -> 488079 | D99: n/a | E99: n/a | F99: n/a | J99: Oceanside | K99: Mount Shasta | Y99: 0.96
A100: Ontario | B100: =VLOOKUP(Table2[[#This Row],[Entitlement]],'Formula 2024'!$C$14:$M$363,11,FALSE) -> 645790 | C100: =VLOOKUP(Table2[[#This Row],[Entitlement]],'Formula 2025'!$C$14:$M$363,11,FALSE) -> 691737 | D100: n/a | E100: n/a | F100: n/a | J100: Ontario | K100: Napa County | Y100: 0.97
A101: Orange | B101: =VLOOKUP(Table2[[#This Row],[Entitlement]],'Formula 2024'!$C$14:$M$363,11,FALSE) -> 426412 | C101: =VLOOKUP(Table2[[#This Row],[Entitlement]],'Formula 2025'!$C$14:$M$363,11,FALSE) -> 456750 | D101: n/a | E101: n/a | F101: n/a | J101: Orange | K101: Nevada City | Y101: 0.98
A102: Orange County | B102: =VLOOKUP(Table2[[#This Row],[Entitlement]],'Formula 2024'!$C$14:$M$363,11,FALSE) -> 892973 | C102: =VLOOKUP(Table2[[#This Row],[Entitlement]],'Formula 2025'!$C$14:$M$363,11,FALSE) -> 956505 | D102: n/a | E102: n/a | F102: n/a | J102: Orange County | K102: Nevada County | Y102: 0.99
A103: Oxnard | B103: =VLOOKUP(Table2[[#This Row],[Entitlement]],'Formula 2024'!$C$14:$M$363,11,FALSE) -> 813138 | C103: =VLOOKUP(Table2[[#This Row],[Entitlement]],'Formula 2025'!$C$14:$M$363,11,FALSE) -> 870991 | D103: n/a | E103: n/a | F103: n/a | J103: Oxnard | K103: Orange Cove | Y103: 1
A104: Palm Desert | B104: =VLOOKUP(Table2[[#This Row],[Entitlement]],'Formula 2024'!$C$14:$M$363,11,FALSE) -> 120245 | C104: =VLOOKUP(Table2[[#This Row],[Entitlement]],'Formula 2025'!$C$14:$M$363,11,FALSE) -> 128800 | D104: n/a | E104: n/a | F104: n/a | J104: Palm Desert | K104: Orland
A105: Palm Springs | B105: =VLOOKUP(Table2[[#This Row],[Entitlement]],'Formula 2024'!$C$14:$M$363,11,FALSE) -> 134937 | C105: =VLOOKUP(Table2[[#This Row],[Entitlement]],'Formula 2025'!$C$14:$M$363,11,FALSE) -> 144537 | D105: n/a | E105: n/a | F105: n/a | J105: Palm Springs | K105: Oroville
A106: Palmdale | B106: =VLOOKUP(Table2[[#This Row],[Entitlement]],'Formula 2024'!$C$14:$M$363,11,FALSE) -> 546850 | C106: =VLOOKUP(Table2[[#This Row],[Entitlement]],'Formula 2025'!$C$14:$M$363,11,FALSE) -> 585757 | D106: n/a | E106: n/a | F106: n/a | J106: Palmdale | K106: Pacific Grove
A107: Palo Alto | B107: =VLOOKUP(Table2[[#This Row],[Entitlement]],'Formula 2024'!$C$14:$M$363,11,FALSE) -> 162494 | C107: =VLOOKUP(Table2[[#This Row],[Entitlement]],'Formula 2025'!$C$14:$M$363,11,FALSE) -> 174055 | D107: n/a | E107: n/a | F107: n/a | J107: Palo Alto | K107: Palos Verdes Estates
A108: Paradise | B108: =VLOOKUP(Table2[[#This Row],[Entitlement]],'Formula 2024'!$C$14:$M$363,11,FALSE) -> 65698 | C108: =VLOOKUP(Table2[[#This Row],[Entitlement]],'Formula 2025'!$C$14:$M$363,11,FALSE) -> 70372 | D108: n/a | E108: n/a | F108: n/a | J108: Paradise | K108: Parlier
A109: Paramount | B109: =VLOOKUP(Table2[[#This Row],[Entitlement]],'Formula 2024'!$C$14:$M$363,11,FALSE) -> 307584 | C109: =VLOOKUP(Table2[[#This Row],[Entitlement]],'Formula 2025'!$C$14:$M$363,11,FALSE) -> 329468 | D109: n/a | E109: n/a | F109: n/a | J109: Paramount | K109: Placer County
A110: Pasadena | B110: =VLOOKUP(Table2[[#This Row],[Entitlement]],'Formula 2024'!$C$14:$M$363,11,FALSE) -> 657062 | C110: =VLOOKUP(Table2[[#This Row],[Entitlement]],'Formula 2025'!$C$14:$M$363,11,FALSE) -> 703810 | D110: n/a | E110: n/a | F110: n/a | J110: Pasadena | K110: Placerville
A111: Perris | B111: =VLOOKUP(Table2[[#This Row],[Entitlement]],'Formula 2024'!$C$14:$M$363,11,FALSE) -> 327474 | C111: =VLOOKUP(Table2[[#This Row],[Entitlement]],'Formula 2025'!$C$14:$M$363,11,FALSE) -> 350773 | D111: n/a | E111: n/a | F111: n/a | J111: Perris | K111: Plumas County
A112: Petaluma | B112: =VLOOKUP(Table2[[#This Row],[Entitlement]],'Formula 2024'!$C$14:$M$363,11,FALSE) -> 129406 | C112: =VLOOKUP(Table2[[#This Row],[Entitlement]],'Formula 2025'!$C$14:$M$363,11,FALSE) -> 138613 | D112: n/a | E112: n/a | F112: n/a | J112: Petaluma | K112: Plymouth
A113: Pico Rivera | B113: =VLOOKUP(Table2[[#This Row],[Entitlement]],'Formula 2024'!$C$14:$M$363,11,FALSE) -> 237936 | C113: =VLOOKUP(Table2[[#This Row],[Entitlement]],'Formula 2025'!$C$14:$M$363,11,FALSE) -> 254865 | D113: n/a | E113: n/a | F113: n/a | J113: Pico Rivera | K113: Point Arena
A114: Pittsburg | B114: =VLOOKUP(Table2[[#This Row],[Entitlement]],'Formula 2024'!$C$14:$M$363,11,FALSE) -> 222992 | C114: =VLOOKUP(Table2[[#This Row],[Entitlement]],'Formula 2025'!$C$14:$M$363,11,FALSE) -> 238857 | D114: n/a | E114: n/a | F114: n/a | J114: Pittsburg | K114: Portola
A115: Placentia | B115: =VLOOKUP(Table2[[#This Row],[Entitlement]],'Formula 2024'!$C$14:$M$363,11,FALSE) -> 150756 | C115: =VLOOKUP(Table2[[#This Row],[Entitlement]],'Formula 2025'!$C$14:$M$363,11,FALSE) -> 161482 | D115: n/a | E115: n/a | F115: n/a | J115: Placentia | K115: Rancho Mirage
A116: Pleasanton | B116: =VLOOKUP(Table2[[#This Row],[Entitlement]],'Formula 2024'!$C$14:$M$363,11,FALSE) -> 106054 | C116: =VLOOKUP(Table2[[#This Row],[Entitlement]],'Formula 2025'!$C$14:$M$363,11,FALSE) -> 113599 | D116: n/a | E116: n/a | F116: n/a | J116: Pleasanton | K116: Red Bluff
A117: Pomona | B117: =VLOOKUP(Table2[[#This Row],[Entitlement]],'Formula 2024'!$C$14:$M$363,11,FALSE) -> 749976 | C117: =VLOOKUP(Table2[[#This Row],[Entitlement]],'Formula 2025'!$C$14:$M$363,11,FALSE) -> 803335 | D117: n/a | E117: n/a | F117: n/a | J117: Pomona | K117: Rio Dell
A118: Porterville | B118: =VLOOKUP(Table2[[#This Row],[Entitlement]],'Formula 2024'!$C$14:$M$363,11,FALSE) -> 240590 | C118: =VLOOKUP(Table2[[#This Row],[Entitlement]],'Formula 2025'!$C$14:$M$363,11,FALSE) -> 257707 | D118: n/a | E118: n/a | F118: n/a | J118: Porterville | K118: Rio Vista
A119: Rancho Cordova | B119: =VLOOKUP(Table2[[#This Row],[Entitlement]],'Formula 2024'!$C$14:$M$363,11,FALSE) -> 200308 | C119: =VLOOKUP(Table2[[#This Row],[Entitlement]],'Formula 2025'!$C$14:$M$363,11,FALSE) -> 214559 | D119: n/a | E119: n/a | F119: n/a | J119: Rancho Cordova | K119: Riverbank
A120: Rancho Cucamonga | B120: =VLOOKUP(Table2[[#This Row],[Entitlement]],'Formula 2024'!$C$14:$M$363,11,FALSE) -> 316204 | C120: =VLOOKUP(Table2[[#This Row],[Entitlement]],'Formula 2025'!$C$14:$M$363,11,FALSE) -> 338700 | D120: n/a | E120: n/a | F120: n/a | J120: Rancho Cucamonga | K120: San Benito County
A121: Rancho Santa Margarita | B121: =VLOOKUP(Table2[[#This Row],[Entitlement]],'Formula 2024'!$C$14:$M$363,11,FALSE) -> 71173 | C121: =VLOOKUP(Table2[[#This Row],[Entitlement]],'Formula 2025'!$C$14:$M$363,11,FALSE) -> 76237 | D121: n/a | E121: n/a | F121: n/a | J121: Rancho Santa Margarita | K121: San Joaquin
A122: Redding | B122: =VLOOKUP(Table2[[#This Row],[Entitlement]],'Formula 2024'!$C$14:$M$363,11,FALSE) -> 236420 | C122: =VLOOKUP(Table2[[#This Row],[Entitlement]],'Formula 2025'!$C$14:$M$363,11,FALSE) -> 253241 | D122: n/a | E122: n/a | F122: n/a | J122: Redding | K122: San Juan Bautista
A123: Redondo Beach | B123: =VLOOKUP(Table2[[#This Row],[Entitlement]],'Formula 2024'!$C$14:$M$363,11,FALSE) -> 91834 | C123: =VLOOKUP(Table2[[#This Row],[Entitlement]],'Formula 2025'!$C$14:$M$363,11,FALSE) -> 98368 | D123: n/a | E123: n/a | F123: n/a | J123: Redondo Beach | K123: San Juan Capistrano
A124: Redwood City | B124: =VLOOKUP(Table2[[#This Row],[Entitlement]],'Formula 2024'!$C$14:$M$363,11,FALSE) -> 244075 | C124: =VLOOKUP(Table2[[#This Row],[Entitlement]],'Formula 2025'!$C$14:$M$363,11,FALSE) -> 261440 | D124: n/a | E124: n/a | F124: n/a | J124: Redwood City | K124: Sand City
A125: Rialto | B125: =VLOOKUP(Table2[[#This Row],[Entitlement]],'Formula 2024'!$C$14:$M$363,11,FALSE) -> 419605 | C125: =VLOOKUP(Table2[[#This Row],[Entitlement]],'Formula 2025'!$C$14:$M$363,11,FALSE) -> 449459 | D125: n/a | E125: n/a | F125: n/a | J125: Rialto | K125: Santa Cruz County
A126: Riverside | B126: =VLOOKUP(Table2[[#This Row],[Entitlement]],'Formula 2024'!$C$14:$M$363,11,FALSE) -> 1138622 | C126: =VLOOKUP(Table2[[#This Row],[Entitlement]],'Formula 2025'!$C$14:$M$363,11,FALSE) -> 1219631 | D126: n/a | E126: n/a | F126: n/a | J126: Riverside | K126: Scotts Valley
A127: Riverside County | B127: =VLOOKUP(Table2[[#This Row],[Entitlement]],'Formula 2024'!$C$14:$M$363,11,FALSE) -> 2805041 | C127: =VLOOKUP(Table2[[#This Row],[Entitlement]],'Formula 2025'!$C$14:$M$363,11,FALSE) -> 3004612 | D127: n/a | E127: n/a | F127: n/a | J127: Riverside County | K127: Shasta County
A128: Rocklin | B128: =VLOOKUP(Table2[[#This Row],[Entitlement]],'Formula 2024'!$C$14:$M$363,11,FALSE) -> 94507 | C128: =VLOOKUP(Table2[[#This Row],[Entitlement]],'Formula 2025'!$C$14:$M$363,11,FALSE) -> 101231 | D128: n/a | E128: n/a | F128: n/a | J128: Rocklin | K128: Shasta Lake
A129: Rosemead | B129: =VLOOKUP(Table2[[#This Row],[Entitlement]],'Formula 2024'!$C$14:$M$363,11,FALSE) -> 240930 | C129: =VLOOKUP(Table2[[#This Row],[Entitlement]],'Formula 2025'!$C$14:$M$363,11,FALSE) -> 258071 | D129: n/a | E129: n/a | F129: n/a | J129: Rosemead | K129: Sierra County
A130: Roseville | B130: =VLOOKUP(Table2[[#This Row],[Entitlement]],'Formula 2024'!$C$14:$M$363,11,FALSE) -> 219962 | C130: =VLOOKUP(Table2[[#This Row],[Entitlement]],'Formula 2025'!$C$14:$M$363,11,FALSE) -> 235612 | D130: n/a | E130: n/a | F130: n/a | J130: Roseville | K130: Siskiyou County
A131: Sacramento | B131: =VLOOKUP(Table2[[#This Row],[Entitlement]],'Formula 2024'!$C$14:$M$363,11,FALSE) -> 1654501 | C131: =VLOOKUP(Table2[[#This Row],[Entitlement]],'Formula 2025'!$C$14:$M$363,11,FALSE) -> 1772214 | D131: n/a | E131: n/a | F131: n/a | J131: Sacramento | K131: Solano County
A132: Sacramento County | B132: =VLOOKUP(Table2[[#This Row],[Entitlement]],'Formula 2024'!$C$14:$M$363,11,FALSE) -> 1909835 | C132: =VLOOKUP(Table2[[#This Row],[Entitlement]],'Formula 2025'!$C$14:$M$363,11,FALSE) -> 2045715 | D132: n/a | E132: n/a | F132: n/a | J132: Sacramento County | K132: Soledad
A133: Salinas | B133: =VLOOKUP(Table2[[#This Row],[Entitlement]],'Formula 2024'!$C$14:$M$363,11,FALSE) -> 706738 | C133: =VLOOKUP(Table2[[#This Row],[Entitlement]],'Formula 2025'!$C$14:$M$363,11,FALSE) -> 757021 | D133: n/a | E133: n/a | F133: n/a | J133: Salinas | K133: Sonora
A134: San Bernardino | B134: =VLOOKUP(Table2[[#This Row],[Entitlement]],'Formula 2024'!$C$14:$M$363,11,FALSE) -> 1138553 | C134: =VLOOKUP(Table2[[#This Row],[Entitlement]],'Formula 2025'!$C$14:$M$363,11,FALSE) -> 1219558 | D134: n/a | E134: n/a | F134: n/a | J134: San Bernardino | K134: South Lake Tahoe
A135: San Bernardino County | B135: =VLOOKUP(Table2[[#This Row],[Entitlement]],'Formula 2024'!$C$14:$M$363,11,FALSE) -> 2428083 | C135: =VLOOKUP(Table2[[#This Row],[Entitlement]],'Formula 2025'!$C$14:$M$363,11,FALSE) -> 2600834 | D135: n/a | E135: n/a | F135: n/a | J135: San Bernardino County | K135: St. Helena
A136: San Buenaventura | B136: =VLOOKUP(Table2[[#This Row],[Entitlement]],'Formula 2024'!$C$14:$M$363,11,FALSE) -> 250898 | C136: =VLOOKUP(Table2[[#This Row],[Entitlement]],'Formula 2025'!$C$14:$M$363,11,FALSE) -> 268748 | D136: n/a | E136: n/a | F136: n/a | J136: San Buenaventura | K136: Suisun City
A137: San Clemente | B137: =VLOOKUP(Table2[[#This Row],[Entitlement]],'Formula 2024'!$C$14:$M$363,11,FALSE) -> 132693 | C137: =VLOOKUP(Table2[[#This Row],[Entitlement]],'Formula 2025'!$C$14:$M$363,11,FALSE) -> 142134 | D137: n/a | E137: n/a | F137: n/a | J137: San Clemente | K137: Susanville
A138: San Diego | B138: =VLOOKUP(Table2[[#This Row],[Entitlement]],'Formula 2024'!$C$14:$M$363,11,FALSE) -> 4064317 | C138: =VLOOKUP(Table2[[#This Row],[Entitlement]],'Formula 2025'!$C$14:$M$363,11,FALSE) -> 4353481 | D138: n/a | E138: n/a | F138: n/a | J138: San Diego | K138: Sutter Creek
A139: San Diego County | B139: =VLOOKUP(Table2[[#This Row],[Entitlement]],'Formula 2024'!$C$14:$M$363,11,FALSE) -> 1389802 | C139: =VLOOKUP(Table2[[#This Row],[Entitlement]],'Formula 2025'!$C$14:$M$363,11,FALSE) -> 1488682 | D139: n/a | E139: n/a | F139: n/a | J139: San Diego County | K139: Sutter Creek
A140: San Francisco | B140: =VLOOKUP(Table2[[#This Row],[Entitlement]],'Formula 2024'!$C$14:$M$363,11,FALSE) -> 6119471 | C140: =VLOOKUP(Table2[[#This Row],[Entitlement]],'Formula 2025'!$C$14:$M$363,11,FALSE) -> 6554853 | D140: n/a | E140: n/a | F140: n/a | J140: San Francisco | K140: Taft
A141: San Joaquin County | B141: =VLOOKUP(Table2[[#This Row],[Entitlement]],'Formula 2024'!$C$14:$M$363,11,FALSE) -> 919667 | C141: =VLOOKUP(Table2[[#This Row],[Entitlement]],'Formula 2025'!$C$14:$M$363,11,FALSE) -> 985099 | D141: n/a | E141: n/a | F141: n/a | J141: San Joaquin County | K141: Tehama
A142: San Jose | B142: =VLOOKUP(Table2[[#This Row],[Entitlement]],'Formula 2024'!$C$14:$M$363,11,FALSE) -> 3052455 | C142: =VLOOKUP(Table2[[#This Row],[Entitlement]],'Formula 2025'!$C$14:$M$363,11,FALSE) -> 3269628 | D142: n/a | E142: n/a | F142: n/a | J142: San Jose | K142: Tehama County
A143: San Leandro | B143: =VLOOKUP(Table2[[#This Row],[Entitlement]],'Formula 2024'!$C$14:$M$363,11,FALSE) -> 245648 | C143: =VLOOKUP(Table2[[#This Row],[Entitlement]],'Formula 2025'!$C$14:$M$363,11,FALSE) -> 263125 | D143: n/a | E143: n/a | F143: n/a | J143: San Leandro | K143: Trinidad
A144: San Luis Obispo County | B144: =VLOOKUP(Table2[[#This Row],[Entitlement]],'Formula 2024'!$C$14:$M$363,11,FALSE) -> 612437 | C144: =VLOOKUP(Table2[[#This Row],[Entitlement]],'Formula 2025'!$C$14:$M$363,11,FALSE) -> 656010 | D144: n/a | E144: n/a | F144: n/a | J144: San Luis Obispo County | K144: Trinity County
A145: San Marcos | B145: =VLOOKUP(Table2[[#This Row],[Entitlement]],'Formula 2024'!$C$14:$M$363,11,FALSE) -> 224041 | C145: =VLOOKUP(Table2[[#This Row],[Entitlement]],'Formula 2025'!$C$14:$M$363,11,FALSE) -> 239981 | D145: n/a | E145: n/a | F145: n/a | J145: San Marcos | K145: Truckee
A146: San Mateo | B146: =VLOOKUP(Table2[[#This Row],[Entitlement]],'Formula 2024'!$C$14:$M$363,11,FALSE) -> 239986 | C146: =VLOOKUP(Table2[[#This Row],[Entitlement]],'Formula 2025'!$C$14:$M$363,11,FALSE) -> 257061 | D146: n/a | E146: n/a | F146: n/a | J146: San Mateo | K146: Tulare County
A147: San Mateo County | B147: =VLOOKUP(Table2[[#This Row],[Entitlement]],'Formula 2024'!$C$14:$M$363,11,FALSE) -> 849022 | C147: =VLOOKUP(Table2[[#This Row],[Entitlement]],'Formula 2025'!$C$14:$M$363,11,FALSE) -> 909428 | D147: n/a | E147: n/a | F147: n/a | J147: San Mateo County | K147: Tulelake
A148: Santa Ana | B148: =VLOOKUP(Table2[[#This Row],[Entitlement]],'Formula 2024'!$C$14:$M$363,11,FALSE) -> 1968012 | C148: =VLOOKUP(Table2[[#This Row],[Entitlement]],'Formula 2025'!$C$14:$M$363,11,FALSE) -> 2108030 | D148: n/a | E148: n/a | F148: n/a | J148: Santa Ana | K148: Tuolumne County
A149: Santa Barbara | B149: =VLOOKUP(Table2[[#This Row],[Entitlement]],'Formula 2024'!$C$14:$M$363,11,FALSE) -> 318052 | C149: =VLOOKUP(Table2[[#This Row],[Entitlement]],'Formula 2025'!$C$14:$M$363,11,FALSE) -> 340680 | D149: n/a | E149: n/a | F149: n/a | J149: Santa Barbara | K149: Ukiah
A150: Santa Barbara County | B150: =VLOOKUP(Table2[[#This Row],[Entitlement]],'Formula 2024'!$C$14:$M$363,11,FALSE) -> 399952 | C150: =VLOOKUP(Table2[[#This Row],[Entitlement]],'Formula 2025'!$C$14:$M$363,11,FALSE) -> 428407 | D150: n/a | E150: n/a | F150: n/a | J150: Santa Barbara County | K150: Vernon
A151: Santa Clara | B151: =VLOOKUP(Table2[[#This Row],[Entitlement]],'Formula 2024'!$C$14:$M$363,11,FALSE) -> 336570 | C151: =VLOOKUP(Table2[[#This Row],[Entitlement]],'Formula 2025'!$C$14:$M$363,11,FALSE) -> 360516 | D151: n/a | E151: n/a | F151: n/a | J151: Santa Clara | K151: Wasco
A152: Santa Clara County | B152: =VLOOKUP(Table2[[#This Row],[Entitlement]],'Formula 2024'!$C$14:$M$363,11,FALSE) -> 517137 | C152: =VLOOKUP(Table2[[#This Row],[Entitlement]],'Formula 2025'!$C$14:$M$363,11,FALSE) -> 553929 | D152: n/a | E152: n/a | F152: n/a | J152: Santa Clara County | K152: Weed
A153: Santa Clarita | B153: =VLOOKUP(Table2[[#This Row],[Entitlement]],'Formula 2024'!$C$14:$M$363,11,FALSE) -> 412918 | C153: =VLOOKUP(Table2[[#This Row],[Entitlement]],'Formula 2025'!$C$14:$M$363,11,FALSE) -> 442296 | D153: n/a | E153: n/a | F153: n/a | J153: Santa Clarita | K153: Westmorland
A154: Santa Cruz | B154: =VLOOKUP(Table2[[#This Row],[Entitlement]],'Formula 2024'!$C$14:$M$363,11,FALSE) -> 185832 | C154: =VLOOKUP(Table2[[#This Row],[Entitlement]],'Formula 2025'!$C$14:$M$363,11,FALSE) -> 199054 | D154: n/a | E154: n/a | F154: n/a | J154: Santa Cruz | K154: Wheatland
A155: Santa Maria | B155: =VLOOKUP(Table2[[#This Row],[Entitlement]],'Formula 2024'!$C$14:$M$363,11,FALSE) -> 514847 | C155: =VLOOKUP(Table2[[#This Row],[Entitlement]],'Formula 2025'!$C$14:$M$363,11,FALSE) -> 551477 | D155: n/a | E155: n/a | F155: n/a | J155: Santa Maria | K155: Williams
A156: Santa Monica | B156: =VLOOKUP(Table2[[#This Row],[Entitlement]],'Formula 2024'!$C$14:$M$363,11,FALSE) -> 384319 | C156: =VLOOKUP(Table2[[#This Row],[Entitlement]],'Formula 2025'!$C$14:$M$363,11,FALSE) -> 411662 | D156: n/a | E156: n/a | F156: n/a | J156: Santa Monica | K156: Willits
A157: Santa Rosa | B157: =VLOOKUP(Table2[[#This Row],[Entitlement]],'Formula 2024'!$C$14:$M$363,11,FALSE) -> 487369 | C157: =VLOOKUP(Table2[[#This Row],[Entitlement]],'Formula 2025'!$C$14:$M$363,11,FALSE) -> 522044 | D157: n/a | E157: n/a | F157: n/a | J157: Santa Rosa | K157: Willows
A158: Santee | B158: =VLOOKUP(Table2[[#This Row],[Entitlement]],'Formula 2024'!$C$14:$M$363,11,FALSE) -> 94321 | C158: =VLOOKUP(Table2[[#This Row],[Entitlement]],'Formula 2025'!$C$14:$M$363,11,FALSE) -> 101032 | D158: n/a | E158: n/a | F158: n/a | J158: Santee | K158: Winters
A159: Seaside | B159: =VLOOKUP(Table2[[#This Row],[Entitlement]],'Formula 2024'!$C$14:$M$363,11,FALSE) -> 135560 | C159: =VLOOKUP(Table2[[#This Row],[Entitlement]],'Formula 2025'!$C$14:$M$363,11,FALSE) -> 145205 | D159: n/a | E159: n/a | F159: n/a | J159: Seaside | K159: Woodlake
A160: Simi Valley | B160: =VLOOKUP(Table2[[#This Row],[Entitlement]],'Formula 2024'!$C$14:$M$363,11,FALSE) -> 203811 | C160: =VLOOKUP(Table2[[#This Row],[Entitlement]],'Formula 2025'!$C$14:$M$363,11,FALSE) -> 218311 | D160: n/a | E160: n/a | F160: n/a | J160: Simi Valley | K160: Yolo County
A161: Sonoma County | B161: =VLOOKUP(Table2[[#This Row],[Entitlement]],'Formula 2024'!$C$14:$M$363,11,FALSE) -> 631313 | C161: =VLOOKUP(Table2[[#This Row],[Entitlement]],'Formula 2025'!$C$14:$M$363,11,FALSE) -> 676229 | D161: n/a | E161: n/a | F161: n/a | J161: Sonoma County | K161: Yountville
A162: South Gate | B162: =VLOOKUP(Table2[[#This Row],[Entitlement]],'Formula 2024'!$C$14:$M$363,11,FALSE) -> 506317 | C162: =VLOOKUP(Table2[[#This Row],[Entitlement]],'Formula 2025'!$C$14:$M$363,11,FALSE) -> 542340 | D162: n/a | E162: n/a | F162: n/a | J162: South Gate | K162: Yreka
A163: South San Francisco | B163: =VLOOKUP(Table2[[#This Row],[Entitlement]],'Formula 2024'!$C$14:$M$363,11,FALSE) -> 153007 | C163: =VLOOKUP(Table2[[#This Row],[Entitlement]],'Formula 2025'!$C$14:$M$363,11,FALSE) -> 163893 | D163: n/a | E163: n/a | F163: n/a | J163: South San Francisco | K163: Yuba County
A164: Stanislaus County | B164: =VLOOKUP(Table2[[#This Row],[Entitlement]],'Formula 2024'!$C$14:$M$363,11,FALSE) -> 810719 | C164: =VLOOKUP(Table2[[#This Row],[Entitlement]],'Formula 2025'!$C$14:$M$363,11,FALSE) -> 868399 | D164: n/a | E164: n/a | F164: n/a | J164: Stanislaus County
A165: Stockton | B165: =VLOOKUP(Table2[[#This Row],[Entitlement]],'Formula 2024'!$C$14:$M$363,11,FALSE) -> 1201308 | C165: =VLOOKUP(Table2[[#This Row],[Entitlement]],'Formula 2025'!$C$14:$M$363,11,FALSE) -> 1286777 | D165: n/a | E165: n/a | F165: n/a | J165: Stockton
A166: Sunnyvale | B166: =VLOOKUP(Table2[[#This Row],[Entitlement]],'Formula 2024'!$C$14:$M$363,11,FALSE) -> 374146 | C166: =VLOOKUP(Table2[[#This Row],[Entitlement]],'Formula 2025'!$C$14:$M$363,11,FALSE) -> 400765 | D166: n/a | E166: n/a | F166: n/a | J166: Sunnyvale
A167: Temecula | B167: =VLOOKUP(Table2[[#This Row],[Entitlement]],'Formula 2024'!$C$14:$M$363,11,FALSE) -> 191903 | C167: =VLOOKUP(Table2[[#This Row],[Entitlement]],'Formula 2025'!$C$14:$M$363,11,FALSE) -> 205557 | D167: n/a | E167: n/a | F167: n/a | J167: Temecula
A168: Thousand Oaks | B168: =VLOOKUP(Table2[[#This Row],[Entitlement]],'Formula 2024'!$C$14:$M$363,11,FALSE) -> 207800 | C168: =VLOOKUP(Table2[[#This Row],[Entitlement]],'Formula 2025'!$C$14:$M$363,11,FALSE) -> 222585 | D168: n/a | E168: n/a | F168: n/a | J168: Thousand Oaks
A169: Torrance | B169: =VLOOKUP(Table2[[#This Row],[Entitlement]],'Formula 2024'!$C$14:$M$363,11,FALSE) -> 311921 | C169: =VLOOKUP(Table2[[#This Row],[Entitlement]],'Formula 2025'!$C$14:$M$363,11,FALSE) -> 334113 | D169: n/a | E169: n/a | F169: n/a | J169: Torrance
A170: Tulare | B170: =VLOOKUP(Table2[[#This Row],[Entitlement]],'Formula 2024'!$C$14:$M$363,11,FALSE) -> 223519 | C170: =VLOOKUP(Table2[[#This Row],[Entitlement]],'Formula 2025'!$C$14:$M$363,11,FALSE) -> 239421 | D170: n/a | E170: n/a | F170: n/a | J170: Tulare
A171: Turlock | B171: =VLOOKUP(Table2[[#This Row],[Entitlement]],'Formula 2024'!$C$14:$M$363,11,FALSE) -> 217497 | C171: =VLOOKUP(Table2[[#This Row],[Entitlement]],'Formula 2025'!$C$14:$M$363,11,FALSE) -> 232971 | D171: n/a | E171: n/a | F171: n/a | J171: Turlock
A172: Tustin | B172: =VLOOKUP(Table2[[#This Row],[Entitlement]],'Formula 2024'!$C$14:$M$363,11,FALSE) -> 270627 | C172: =VLOOKUP(Table2[[#This Row],[Entitlement]],'Formula 2025'!$C$14:$M$363,11,FALSE) -> 289881 | D172: n/a | E172: n/a | F172: n/a | J172: Tustin
A173: Union City | B173: =VLOOKUP(Table2[[#This Row],[Entitlement]],'Formula 2024'!$C$14:$M$363,11,FALSE) -> 178245 | C173: =VLOOKUP(Table2[[#This Row],[Entitlement]],'Formula 2025'!$C$14:$M$363,11,FALSE) -> 190927 | D173: n/a | E173: n/a | F173: n/a | J173: Union City
A174: Upland | B174: =VLOOKUP(Table2[[#This Row],[Entitlement]],'Formula 2024'!$C$14:$M$363,11,FALSE) -> 195022 | C174: =VLOOKUP(Table2[[#This Row],[Entitlement]],'Formula 2025'!$C$14:$M$363,11,FALSE) -> 208898 | D174: n/a | E174: n/a | F174: n/a | J174: Upland
A175: Vacaville | B175: =VLOOKUP(Table2[[#This Row],[Entitlement]],'Formula 2024'!$C$14:$M$363,11,FALSE) -> 168814 | C175: =VLOOKUP(Table2[[#This Row],[Entitlement]],'Formula 2025'!$C$14:$M$363,11,FALSE) -> 180825 | D175: n/a | E175: n/a | F175: n/a | J175: Vacaville
A176: Vallejo | B176: =VLOOKUP(Table2[[#This Row],[Entitlement]],'Formula 2024'!$C$14:$M$363,11,FALSE) -> 354734 | C176: =VLOOKUP(Table2[[#This Row],[Entitlement]],'Formula 2025'!$C$14:$M$363,11,FALSE) -> 379973 | D176: n/a | E176: n/a | F176: n/a | J176: Vallejo
A177: Ventura County | B177: =VLOOKUP(Table2[[#This Row],[Entitlement]],'Formula 2024'!$C$14:$M$363,11,FALSE) -> 603486 | C177: =VLOOKUP(Table2[[#This Row],[Entitlement]],'Formula 2025'!$C$14:$M$363,11,FALSE) -> 646422 | D177: n/a | E177: n/a | F177: n/a | J177: Ventura County
A178: Victorville | B178: =VLOOKUP(Table2[[#This Row],[Entitlement]],'Formula 2024'!$C$14:$M$363,11,FALSE) -> 444161 | C178: =VLOOKUP(Table2[[#This Row],[Entitlement]],'Formula 2025'!$C$14:$M$363,11,FALSE) -> 475762 | D178: n/a | E178: n/a | F178: n/a | J178: Victorville
A179: Visalia | B179: =VLOOKUP(Table2[[#This Row],[Entitlement]],'Formula 2024'!$C$14:$M$363,11,FALSE) -> 442789 | C179: =VLOOKUP(Table2[[#This Row],[Entitlement]],'Formula 2025'!$C$14:$M$363,11,FALSE) -> 474292 | D179: n/a | E179: n/a | F179: n/a | J179: Visalia
A180: Vista | B180: =VLOOKUP(Table2[[#This Row],[Entitlement]],'Formula 2024'!$C$14:$M$363,11,FALSE) -> 287008 | C180: =VLOOKUP(Table2[[#This Row],[Entitlement]],'Formula 2025'!$C$14:$M$363,11,FALSE) -> 307427 | D180: n/a | E180: n/a | F180: n/a | J180: Vista
A181: Walnut Creek | B181: =VLOOKUP(Table2[[#This Row],[Entitlement]],'Formula 2024'!$C$14:$M$363,11,FALSE) -> 97182 | C181: =VLOOKUP(Table2[[#This Row],[Entitlement]],'Formula 2025'!$C$14:$M$363,11,FALSE) -> 104096 | D181: n/a | E181: n/a | F181: n/a | J181: Walnut Creek
A182: Watsonville | B182: =VLOOKUP(Table2[[#This Row],[Entitlement]],'Formula 2024'!$C$14:$M$363,11,FALSE) -> 254461 | C182: =VLOOKUP(Table2[[#This Row],[Entitlement]],'Formula 2025'!$C$14:$M$363,11,FALSE) -> 272565 | D182: n/a | E182: n/a | F182: n/a | J182: Watsonville
A183: West Covina | B183: =VLOOKUP(Table2[[#This Row],[Entitlement]],'Formula 2024'!$C$14:$M$363,11,FALSE) -> 272885 | C183: =VLOOKUP(Table2[[#This Row],[Entitlement]],'Formula 2025'!$C$14:$M$363,11,FALSE) -> 292300 | D183: n/a | E183: n/a | F183: n/a | J183: West Covina
A184: West Sacramento | B184: =VLOOKUP(Table2[[#This Row],[Entitlement]],'Formula 2024'!$C$14:$M$363,11,FALSE) -> 166132 | C184: =VLOOKUP(Table2[[#This Row],[Entitlement]],'Formula 2025'!$C$14:$M$363,11,FALSE) -> 177952 | D184: n/a | E184: n/a | F184: n/a | J184: West Sacramento
A185: Westminster | B185: =VLOOKUP(Table2[[#This Row],[Entitlement]],'Formula 2024'!$C$14:$M$363,11,FALSE) -> 358391 | C185: =VLOOKUP(Table2[[#This Row],[Entitlement]],'Formula 2025'!$C$14:$M$363,11,FALSE) -> 383889 | D185: n/a | E185: n/a | F185: n/a | J185: Westminster
A186: Whittier | B186: =VLOOKUP(Table2[[#This Row],[Entitlement]],'Formula 2024'!$C$14:$M$363,11,FALSE) -> 268973 | C186: =VLOOKUP(Table2[[#This Row],[Entitlement]],'Formula 2025'!$C$14:$M$363,11,FALSE) -> 288110 | D186: n/a | E186: n/a | F186: n/a | J186: Whittier
A187: Woodland | B187: =VLOOKUP(Table2[[#This Row],[Entitlement]],'Formula 2024'!$C$14:$M$363,11,FALSE) -> 174773 | C187: =VLOOKUP(Table2[[#This Row],[Entitlement]],'Formula 2025'!$C$14:$M$363,11,FALSE) -> 187208 | D187: n/a | E187: n/a | F187: n/a | J187: Woodland
A188: Yorba Linda | B188: =VLOOKUP(Table2[[#This Row],[Entitlement]],'Formula 2024'!$C$14:$M$363,11,FALSE) -> 74776 | C188: =VLOOKUP(Table2[[#This Row],[Entitlement]],'Formula 2025'!$C$14:$M$363,11,FALSE) -> 80096 | D188: n/a | E188: n/a | F188: n/a | J188: Yorba Linda
A189: Yuba City | B189: =VLOOKUP(Table2[[#This Row],[Entitlement]],'Formula 2024'!$C$14:$M$363,11,FALSE) -> 218399 | C189: =VLOOKUP(Table2[[#This Row],[Entitlement]],'Formula 2025'!$C$14:$M$363,11,FALSE) -> 233937 | D189: n/a | E189: n/a | F189: n/a | J189: Yuba City
A190: Entitlement Total | B190: =SUBTOTAL(109,B3:B189) -> 122678180 | C190: =SUBTOTAL(109,C3:C189) -> 131406374 | D190: 0 | E190: 0 | F190: 0
A191: Non-Entitlement | B191: 2024 Allocations | C191: 2025 Allocations | D191: 2026 Allocations | E191: 2027 Allocations | F191: 2028 Allocations
A192: Alpine County | B192: =VLOOKUP(Table5[[#This Row],[Non-Entitlement]],'Formula 2024'!$C$14:$M$363,11,FALSE) -> 46809 | C192: =VLOOKUP(Table5[[#This Row],[Non-Entitlement]],'Formula 2025'!$C$14:$M$363,11,FALSE) -> 49993 | D192: n/a | E192: n/a | F192: n/a
A193: Alturas | B193: =VLOOKUP(Table5[[#This Row],[Non-Entitlement]],'Formula 2024'!$C$14:$M$363,11,FALSE) -> 48649 | C193: =VLOOKUP(Table5[[#This Row],[Non-Entitlement]],'Formula 2025'!$C$14:$M$363,11,FALSE) -> 51930 | D193: n/a | E193: n/a | F193: n/a
A194: Amador City | B194: =VLOOKUP(Table5[[#This Row],[Non-Entitlement]],'Formula 2024'!$C$14:$M$363,11,FALSE) -> 46349 | C194: =VLOOKUP(Table5[[#This Row],[Non-Entitlement]],'Formula 2025'!$C$14:$M$363,11,FALSE) -> 49764 | D194: n/a | E194: n/a | F194: n/a
A195: Amador County | B195: =VLOOKUP(Table5[[#This Row],[Non-Entitlement]],'Formula 2024'!$C$14:$M$363,11,FALSE) -> 112937 | C195: =VLOOKUP(Table5[[#This Row],[Non-Entitlement]],'Formula 2025'!$C$14:$M$363,11,FALSE) -> 118545 | D195: n/a | E195: n/a | F195: n/a
A196: American Canyon | B196: =VLOOKUP(Table5[[#This Row],[Non-Entitlement]],'Formula 2024'!$C$14:$M$363,11,FALSE) -> 65235 | C196: =VLOOKUP(Table5[[#This Row],[Non-Entitlement]],'Formula 2025'!$C$14:$M$363,11,FALSE) -> 72054 | D196: n/a | E196: n/a | F196: n/a
A197: Anderson | B197: =VLOOKUP(Table5[[#This Row],[Non-Entitlement]],'Formula 2024'!$C$14:$M$363,11,FALSE) -> 62935 | C197: =VLOOKUP(Table5[[#This Row],[Non-Entitlement]],'Formula 2025'!$C$14:$M$363,11,FALSE) -> 66577 | D197: n/a | E197: n/a | F197: n/a
A198: Angels | B198: =VLOOKUP(Table5[[#This Row],[Non-Entitlement]],'Formula 2024'!$C$14:$M$363,11,FALSE) -> 56518 | C198: =VLOOKUP(Table5[[#This Row],[Non-Entitlement]],'Formula 2025'!$C$14:$M$363,11,FALSE) -> 61992 | D198: n/a | E198: n/a | F198: n/a
A199: Arcata | B199: =VLOOKUP(Table5[[#This Row],[Non-Entitlement]],'Formula 2024'!$C$14:$M$363,11,FALSE) -> 68504 | C199: =VLOOKUP(Table5[[#This Row],[Non-Entitlement]],'Formula 2025'!$C$14:$M$363,11,FALSE) -> 76894 | D199: n/a | E199: n/a | F199: n/a
A200: Artesia | B200: =VLOOKUP(Table5[[#This Row],[Non-Entitlement]],'Formula 2024'!$C$14:$M$363,11,FALSE) -> 70805 | C200: =VLOOKUP(Table5[[#This Row],[Non-Entitlement]],'Formula 2025'!$C$14:$M$363,11,FALSE) -> 73583 | D200: n/a | E200: n/a | F200: n/a
... 859 more rows

Sheet CoverPage
A2: When opening this file, a yellow banner at the top may appear with a button that says "Enable Content". It is essential that you click this box so that the macros are enabled. Enabling macros is necessary for full worksheet functionality. Macros do not work with Microsoft's Excel version for Apple Mac.
B4: Permanent Local Housing Allocation (PLHA) Formula Application
B6: Notice of Funding Availability (NOFA) July 16, 2026
B8: Cycle 2 (2024-2028)
B10: Please select ONLY one of the following application form for submittal: (Currently, only "New Applicant" is allowed)
B11: Yes | C11: New Applicant
B12: N/A | C12: Returning Applicant - Streamlined
B13: N/A | C13: Returning Applicant - Streamlined + Amendment
B14: N/A | C14: Returning Applicant - Amendment Only
B26: State of California
B27: Gavin Newsom, Governor
B29: California Housing and Homelessness Agency
B30: Tomiquia Moss, Secretary
B32: Department of Housing and Community Development
B33: Gustavo Velasquez, Director
B35: Housing and Homeless Program Implementation and Management, PLHA Program
B36: 651 Bannon Street, Sacramento, CA 95811
B38: Email: PLHA@hcd.ca.gov
B39: Website: Permanent Local Housing Allocation Program (PLHA)
B41: Allocation Years | D41: New & Streamlined Submission Deadline | E41: 5-Year Plan Amendment Submission Deadline
B42: Year 1 (2024) | D42: 2028-02-28 | E42: 2028-06-30
B43: Year 2 (2025) | D43: 2029-02-28 | E43: 2029-06-30
B44: Year 3 (2026) | D44: 2030-02-28 | E44: 2030-06-30
B45: Year 4 (2027) | D45: 2031-02-28 | E45: 2031-06-30
B46: Year 5 (2028) | D46: 2032-02-28 | E46: 2032-06-30
D48: Application Version: | E48: 2026-07-16
A50: End of Document

Sheet Instructions & Checklist
A1: Instructions | AJ1: =CoverPage!E48 -> 2026-07-16
A2: When opening this file, a yellow banner at the top may appear with a button that says "Enable Content". It is essential that you click this box so that the macros are enabled. Enabling macros is necessary for full worksheet functionality. Macros do not work with Microsoft's Excel version for Apple Mac.
A3: Applications must be submitted electronically to the Department’s HCD Portal Sign In website. To receive an award of CY 2024 funds, applicants are required to submit an application and demonstrate a fully compliant Housing Element and submittal of the applicable Annual Progress Report(s) no later than February 28, 2028. All CY 2024 funds must be awarded by June 30, 2028 or they will revert to the Housing Rehabilitation Loan Fund per statute.
A4: This NOFA will remain open to eligible applicants through June 30, 2032.
A5: Applications must be on the Department’s forms and cannot be altered or modified by the Applicant. Excel forms must be in Excel format and 'save as' .xls or .xlsx. Do not 'save as' .xlsm or .pdf format. If you encounter problems with the application, please fill out the Application Support worksheet and email the entire workbook to Application Support at PLHA@hcd.ca.gov.
A6: General Instructions Additional instructions and guidance are given throughout the Formula Allocation Application in "red" text and in cell comments.
A7: Guideline references are made with "§" and the corresponding guideline section number.
A8: "Yellow" cells are for Applicant input. Failure to provide the required attachments and documentation will disqualify your application from consideration.
A9: Required attachments are indicated in "orange" throughout the New Applicant Application. Failure to provide the required attachments and documentation may disqualify your application from consideration. Electronically attached files must use the naming convention in the PLHA Application. For Example: "Gov't Tin" or "Reuse Plan".
A10: Threshold items are indicated in "blue" cells.
A11: "Red" shaded cells indicate the Sponsor has failed to meet a requirement of the program. Cells in the worksheet shaded in "red" indicate that the Applicant has failed to meet the minimum required.
A12: Applicant must complete the following worksheets in the PLHA Formula Allocation Application.
A13: Formula Allocation Application - For All applications
A14: Urban County - For All applications
A15: 302(c)(4) Plan - For New Applicant, Returning Applicant (Streamlined + Amendment) and Returning Applicant (Amendment Only) applications
A16: Checklist
A17: Threshold Requirement | D17: Electronic File Name | L17: Document Description | AJ17: Included?
A18: X | D18: Application and Adopting the PLHA Plan (2024-2028 Allocations) Resolution | L18: Pursuant to section 302(c)(4) of the Guidelines, Applicant’s PLHA Plan for 2024-2028 allocations is attached to this resolution, and Applicant certifies compliance with all public notice, comment, and hearing requirements in accordance with the Guidelines.
A19: X | D19: Gov't TIN | L19: Provide a signed Gov't TIN Form.
A20: X | D20: Applicant Delegation Agreement | L20: Legally binding agreement between Delegating and Administering Local Governments.
A21: X | D21: Plan Adoption Resolution | L21: §302(c)(4)(D) Evidence that the Plan was authorized and adopted by resolution by the Local jurisdiction and that the public had an adequate opportunity to review and comment on its content. PLHA webpage for Plan Adoption Resolution Document, located under our Forms tab.
A22: X | D22: Reuse Plan | L22: Program Income Reuse Plan describing how repaid loans or accrued interest will be used for eligible activities in Section 301.
A23: X | D23: Executed Application | L23: Provide a copy of the signed application. Signature can be typed into the Excel workbook, PDF with Docusigned signature or PDF with wet ink signature in blue ink preferred.
A24: Disclosure of Application (California Public Records Act Statutes of 1968 Chapter 1473): Information provided in the application will become a public record available for review by the public, pursuant to the California Public Records Act Statutes of 1968 Chapter 1473. As such, any materials provided will be disclosable to any person making a request under this Act. The Department cautions Applicants to use discretion in providing information not specifically requested, including but not limited to, bank accounts, personal phone numbers and home addresses. By providing this information to the Department, the Applicant is waiving any claim of confidentiality and consents to the disclosure of submitted material upon request.
A26: End of Document

Sheet PLHA Application (New)
A1: Local Government Formula Allocation for New Applicants | O1: =CoverPage!E48 -> 2026-07-16
A2: This streamlined application form is limited to Applicants who applied for and received an award under one or more of the previous Formula Allocation NOFA's (2024, 2025, 2026, or 2027).
A3: Instructions: If the Local Government Recipient of the PLHA Formula Allocation delegated its PLHA formula allocation to a Local Housing Trust Fund or to another Local Government, the Applicant (for which information is required below) is the Local Housing Trust Fund or administering Local Government. The PLHA award will be made to the Applicant (upon meeting threshold requirements) and the Applicant is responsible for meeting all program requirements throughout the term of the Standard Agreement. The 302(c)(4) Plan template worksheet requires first choosing one or more of the Eligible Activities listed below. If "Yes" is clicked, the 302(c)(4) Plan worksheet opens a series of questions about what precise activities are planned. If the PLHA funds are used for the same Activity but for different Area Median Income (AMI) level, select the highest AMI level the Activity will serve (you can always go lower than what is listed but you may not serve higher than what is listed without completing a plan amendment in the future). For City Applicants, Government Code § 40602 requires that the Mayor be the Authorized Representative listed on this application and resolution unless the jurisdiction can provide an adopted ordinance authorizing an officer other than the Mayor to sign. For each remaining year (2024-2028), the percentages allocated to activities must add to 100% annually including the allowable administrative costs of up to 5%.
A4: Did Applicant receive an award under one or more of the previous NOFA's? (2024, 2025, 2026 or 2027)
A5: Which Allocation(s) are you applying for with this application?
A6: Eligible Applicant Type:
A7: Local Government Recipient of PLHA Formula Allocation:
A11: 2024 PLHA Formula Allocation Amount: | E11: =IFERROR(VLOOKUP($G$7,DATA!$A$3:$F$353,2,FALSE),"") ->  | G11: 2024 Allowable Local Admin (5%): | K11: =IFERROR($E$11*0.05,"n/a") -> n/a | M11: Admin requested?
A12: 2025 PLHA Formula Allocation Amount: | E12: =IFERROR(VLOOKUP($G$7,DATA!$A$3:$F$353,3,FALSE),"") ->  | G12: 2025 Allowable Local Admin (5%): | K12: =IFERROR($E$12*0.05,"n/a") -> n/a | M12: Admin requested?
A13: 2026 PLHA Formula Allocation Amount: | E13: =IFERROR(VLOOKUP($G$7,DATA!$A$3:$F$353,4,FALSE),"") ->  | G13: 2026 Allowable Local Admin (5%): | K13: =IFERROR($E$13*0.05,"n/a") -> n/a | M13: Admin requested?
A14: 2027 PLHA Formula Allocation Amount: | E14: =IFERROR(VLOOKUP($G$7,DATA!$A$3:$F$353,5,FALSE),"") ->  | G14: 2027 Allowable Local Admin (5%): | K14: =IFERROR($E$14*0.05,"n/a") -> n/a | M14: Admin requested?
A15: 2028 PLHA Formula Allocation Amount: | E15: =IFERROR(VLOOKUP($G$7,DATA!$A$3:$F$353,6,FALSE),"") ->  | G15: 2028 Allowable Local Admin (5%): | K15: =IFERROR($E$15*0.05,"n/a") -> n/a | M15: Admin requested?
A16: Instructions: If the Local Government Recipient of the PLHA Formula Allocation delegated its PLHA formula allocation to a Local Housing Trust Fund or to another Local Government, the Applicant (for which information is required below) is the Local Housing Trust Fund or administering Local Government. The PLHA award will be made to the Applicant (upon meeting threshold requirements) and the Applicant is responsible for meeting all program requirements throughout the term of the Standard Agreement.
A17: §300 Eligible Applicants
A18: §300(a) and (b) Eligible Applicants for the Entitlement and Non-Entitlement formula component described in Section §100(b)(1) and (2) are limited to the metropolitan cities and urban counties allocated a grant for the federal fiscal year 2017 pursuant to the federal CDBG formula specified in 42 USC, Section §5306 and Non-entitlement local governments.
A19: Applicant: | J19: Address:
A20: City: | E20: State: | J20: Zip Code: | N20: County:
A21: Authorized Rep Name: | E21: Authorized Rep Title: | J21: Authorized Rep Email: | N21: Authorized Rep Phone:
A22: Address: | E22: City: | J22: State: | N22: Zip Code:
A23: Contact Name: | E23: Contact Title: | J23: Contact Email: | N23: Contact Phone:
A24: Address: | E24: City: | J24: State: | N24: Zip Code:
A25: §300(d) Is Applicant delegated by another Local government to administer on its behalf its formula allocation of program funds?
A26: §300(d) If Applicant answered "Yes" above, has the Applicant attached the legally binding agreement required by §300(c) and (d)?
A27: §301 Eligible Activities
A28: §301(a) Eligible activities are limited to the following: | P28: Select below:
A29: §301(a)(1) PLHA Formula Rental Activities (Up to 120% AMI or 150% AMI in High-Cost Areas).
A30: §301(a)(2) PLHA Formula Affordable Owner-Occupied Workforce Housing Activities (Up to 120% AMI or 150% AMI in High-Cost Areas).
A31: §301(a)(3) PLHA Formula Homelessness Assistance Activities (Up to 30% AMI).
A32: §302 Threshold Requirements
A33: §302(a) The Applicant's Housing Element and Delegating Local Government's Housing Element (if applicable) was/were adopted by the Local Government’s governing body by the application submittal date subsequently determined to be in substantial compliance with state Housing Element Law pursuant to Government Code Section 65585.
A34: §302(b) Applicant or Delegating Local Government has submitted the Annual Progress Report(s) to the Department of Housing and Community Development pursuant to Government Code Section 65400 for the allocations being requested.
A35: §302(c)(2) Applicant certified in the Resolution submitted with this application that submission of the application was authorized by the governing board of the Applicant.
A36: §302(c)(3) Applicant certified in the Resolution submitted with this application that, if the Local Government proposes allocation of funds for any activity to another entity, the Local government’s selection process had no conflicts of interest and was accessible to the public.
A37: §302(c)(4) Applicant certified in the Resolution submitted with this application that the application include a Plan in accordance with §302(c)(4)?
A38: §302(c)(4)(D) Applicant certified in the Resolution submitted with this application that the Plan was authorized and adopted by resolution by the Local Government and that the public had an adequate opportunity to review and comment on its content.
A39: §302(c)(5) Applicant certified in the Resolution submitted with this application that the Plan submitted is for a term of five years (2024-2028). Local Governments agree to inform the Department of changes made to the Plan in each succeeding year of the term of the Plan.
A40: §302(c)(5) Is the applicant submitting a plan amendment with this application? (If you wish to reallocate more than 10 percent of funds among Activities from the previously approved 5-Year Plan included in the PLHA program Standard Agreement, Exhibit E you must submit an updated plan and resolution approving the new plan)
A41: §302(c)(5) Applicant certified in the Resolution submitted with this application that it will ensure compliance with §302(c)(5) if funds are used for the acquisition, construction, or rehabilitation of for-sale housing projects or units within for-sale housing projects.
A42: §302(c)(6) Applicant certified in the Resolution submitted with this application that it will ensure that the PLHA assistance is in the form of a low-interest, deferred loan to the Sponsor of the Project, if funds are used for the development of an Affordable Rental Housing Development. The loan shall be evidenced through a Promissory Note secured by a Deed of Trust and a Regulatory Agreement shall restrict occupancy and rents in accordance with the Local government-approved underwriting of the Project for a term of at least 55 years.
A43: §302(c)(7) Has Applicant attached a program income reuse plan describing how repaid loans or accrued interest will be reused for eligible activities specified in Section 301?
A44: If a reallocation of more than 10 percent of funds was made (and Applicant is amending their plan with this application). Applicant has attached an amended Plan and resolution that has been discussed and approved at a publicly-noticed meeting of the governing body.
A45: §401(b)(1) Applicant certifies that they are in compliance with the State Grants Management Section and are current with any required PLHA Annual Reporting Requirements.
A46: Administration
A47: Applicant agrees to adhere to §400, Accounting Records.
A48: Applicant agrees to adhere to §401, Reporting Requirements, Monitoring, and Audits.
A49: Applicant agrees to adhere to §402, Cancellation/Termination.
A50: Documents Uploaded to HCD
A51: File Name: | B51: ='Instructions & Checklist'!$D$18 -> Application and Adopting the PLHA Plan (2024-2028 Allocations) Resolution | E51: ='Instructions & Checklist'!$L$18 -> Pursuant to section 302(c)(4) of the Guidelines, Applicant’s PLHA Plan for 2024-2028 allocations is attached to this resolution, and Applicant certifies compliance with all public notice, comment, and hearing requirements in accordance with the Guidelines. | N51: Uploaded to HCD?
A52: File Name: | B52: ='Instructions & Checklist'!$D$19 -> Gov't TIN | E52: ='Instructions & Checklist'!$L$19 -> Provide a signed Gov't TIN Form. | N52: Uploaded to HCD?
A53: File Name: | B53: ='Instructions & Checklist'!$D$20 -> Applicant Delegation Agreement | E53: ='Instructions & Checklist'!$L$20 -> Legally binding agreement between Delegating and Administering Local Governments. | N53: Uploaded to HCD?
A54: File Name: | B54: Reuse Plan | E54: ='Instructions & Checklist'!L22 -> Program Income Reuse Plan describing how repaid loans or accrued interest will be used for eligible activities in Section 301. | N54: Uploaded to HCD?
A55: File Name: | B55: Executed Application | E55: ='Instructions & Checklist'!L23 -> Provide a copy of the signed application. Signature can be typed into the Excel workbook, PDF with Docusigned signature or PDF with wet ink signature in blue ink preferred. | N55: Uploaded to HCD?
A56: Certifications
A57: On behalf of the entity identified below, I certify that: The information, statements and attachments included in this application are, to the best of my knowledge and belief, true and correct and I possess the legal authority to submit this application on behalf of the entity identified in the signature block.
A59: Authorized Representative Printed Name | E59: Title | I59: Signature | P59: Date
A61: End of Document

Sheet PLHA Application (Streamlined) (hidden)
A1: Local Government Formula Allocation for Returning Applicants - Streamlined Only | O1: =CoverPage!E48 -> 46219
A2: This streamlined application form is limited to Applicants who applied for and received an award under one or more of the previous Formula Allocation NOFA's (2020, 2021, 2022, or 2023).
A3: ***Please note the following change was made in the Amended NOFA*** All Applicants requesting an amendment to the 5-Year Plan with this application must redirect 40% of each allocation year being changed towards a homeownership Activity. Ownership activities are 2,3,4,7,8,9 (activities 2,3,4, & 8 will only count as ownership if the funds will go towards ownership sub activities as opposed to rental housing sub activities including ADU's)
A4: Did Applicant receive an award under one or more of the previous NOFA's? (2020, 2021, 2022 or 2023)
A5: Which Allocation(s) are you applying for with this application?
A6: Eligible Applicant Type:
A7: Local Government Recipient of PLHA Formula Allocation:
A8: 2019 PLHA Formula Allocation Amount: | E8: =IFERROR(VLOOKUP($H$7,DATA!$A$3:$F$351,2,FALSE),"") ->  | G8: 2019 Allowable Local Admin (5%): | K8: =IFERROR($E$8*0.05,"n/a") -> n/a | M8: Admin requested?
A9: 2020 PLHA Formula Allocation Amount: | E9: =IFERROR(VLOOKUP($H$7,DATA!$A$3:$F$351,3,FALSE),"") ->  | G9: 2020 Allowable Local Admin (5%): | K9: =IFERROR($E$9*0.05,"n/a") -> n/a | M9: Admin requested?
A10: 2021 PLHA Formula Allocation Amount: | E10: =IFERROR(VLOOKUP($H$7,DATA!$A$3:$F$351,4,FALSE),"") ->  | G10: 2021 Allowable Local Admin (5%): | K10: =IFERROR($E$10*0.05,"n/a") -> n/a | M10: Admin requested?
A11: 2022 PLHA Formula Allocation Amount: | E11: =IFERROR(VLOOKUP($H$7,DATA!$A$3:$F$351,5,FALSE),"") ->  | G11: 2022 Allowable Local Admin (5%): | K11: =IFERROR($E$11*0.05,"n/a") -> n/a | M11: Admin requested?
A12: 2023 PLHA Formula Allocation Amount: | E12: =IFERROR(VLOOKUP($H$7,DATA!$A$3:$F$351,6,FALSE),"") ->  | G12: 2023 Allowable Local Admin (5%): | K12: =IFERROR($E$12*0.05,"n/a") -> n/a | M12: Admin requested?
A13: Instructions: If the Local Government Recipient of the PLHA Formula Allocation delegated its PLHA formula allocation to a Local Housing Trust Fund or to another Local Government, the Applicant (for which information is required below) is the Local Housing Trust Fund or administering Local Government. The PLHA award will be made to the Applicant (upon meeting threshold requirements) and the Applicant is responsible for meeting all program requirements throughout the term of the Standard Agreement.
A14: Instructions: If the Local Government Recipient of the PLHA Formula Allocation delegated its PLHA formula allocation to a Local Housing Trust Fund or to another Local Government, the Applicant (for which information is required below) is the Local Housing Trust Fund or administering Local Government. The PLHA award will be made to the Applicant (upon meeting threshold requirements) and the Applicant is responsible for meeting all program requirements throughout the term of the Standard Agreement. The 302(c)(4) Plan template worksheet requires first choosing one or more of the Eligible Activities listed below. If "Yes" is clicked, the 302(c)(4) Plan worksheet opens a series of questions about what precise activities are planned. Some specific activities, such as providing downpayment assistance to lower-income households for acquisition of an affordable home, could be included under either Activity 2 or 9. Please only choose one of those Activities; don't list the downpayment assistance under both Activities. ***Please note that 40% of each allocation being requested with this application MUST be allocated to an activity that supports Homeownership in accordance with the NOFA*** Ownership activities are 2,3,4,7,8,9 (activities 2,3,4, & 8 will only count as ownership if the funds will go towards ownership sub activities as opposed to rental housing sub activities including ADU's) If the PLHA funds are used for the same Activity but for different Area Median Income (AMI) level, select the highest AMI level the Activity will serve (you can always go lower than what is listed but you may not serve higher than what is listed without completing a plan amendment in the future). For each remaining year (2022-2023), the percentages allocated to activities must add to 100% annually including the allowable administrative costs of up to 5%.
A15: §300 Eligible Applicants
A16: §300(a) and (b) Eligible Applicants for the Entitlement and Non-Entitlement formula component described in Section §100(b)(1) and (2) are limited to the metropolitan cities and urban counties allocated a grant for the federal fiscal year 2017 pursuant to the federal CDBG formula specified in 42 USC, Section §5306 and Non-entitlement local governments.
A17: Applicant:
A18: Address:
A19: City: | E19: State: | I19: Zip Code: | N19: County:
A20: Authorized Rep Name: | E20: Authorized Rep Title: | I20: Authorized Rep Email: | N20: Authorized Rep Phone:
A21: Address: | E21: City: | I21: State: | N21: Zip Code:
A22: Contact Name: | E22: Contact Title: | I22: Contact Email: | N22: Contact Phone:
A23: Address: | E23: City: | I23: State: | N23: Zip Code:
A24: §300(d) Is Applicant delegated by another Local government to administer on its behalf its formula allocation of program funds?
A25: §300(d) If Applicant answered "Yes" above, has the Applicant attached the legally binding agreement required by §300(c) and (d)? | I25: A sample agreement can be found by double clicking on the icon to the right.
A26: File Name: | B26: ='Instructions & Checklist'!$D$18 -> Application and Adopting the PLHA Plan (2024-2028 Allocations) Resolution | E26: ='Instructions & Checklist'!$L$18 -> Pursuant to section 302(c)(4) of the Guidelines, Applicant’s PLHA Plan for 2024-2028 allocations is attached to this resolution, and Applicant certifies compliance with all public notice, comment, and hearing requirements in accordance with the Guidelines. | N26: Uploaded to HCD?
A27: File Name: | B27: ='Instructions & Checklist'!$D$19 -> Gov't TIN | E27: ='Instructions & Checklist'!$L$19 -> Provide a signed Gov't TIN Form. | N27: Uploaded to HCD?
A28: File Name: | B28: ='Instructions & Checklist'!$D$20 -> Applicant Delegation Agreement | E28: ='Instructions & Checklist'!$L$20 -> Legally binding agreement between Delegating and Administering Local Governments. | N28: Uploaded to HCD?
A29: §301 Eligible Activities
A30: §301(a) Eligible activities are limited to the following: | P30: Select below:
A31: §301(a)(1) The predevelopment, development, acquisition, rehabilitation, and preservation of multifamily, residential live-work, rental housing that is affordable to Extremely low-,Very low-, Low-, or Moderate-income households, including necessary operating subsidies.
A32: §301(a)(2) The predevelopment, development, acquisition, rehabilitation, and preservation of affordable rental and ownership housing, including Accessory Dwelling Units (ADUs), that meets the needs of a growing workforce earning up to 120 percent of AMI, or 150 percent of AMI in high-cost areas. ADUs shall be available for occupancy for a term of no less than 30 days.
A33: §301(a)(3) Matching portions of funds placed into Local or Regional Housing Trust Funds.
A34: §301(a)(4) Matching portions of funds available through the Low- and Moderate-Income Housing Asset Fund pursuant to subdivision (d) of HSC Section 34176.
A35: §301(a)(5) Capitalized Reserves for services connected to the preservation and creation of new permanent supportive housing.
A36: §301(a)(6) Assisting persons who are experiencing or At-risk of homelessness, including, but not limited to, providing rapid re-housing, rental assistance, supportive/case management services that allow people to obtain and retain housing, operating and capital costs for navigation centers and emergency shelters, and the new construction, rehabilitation, and preservation of permanent and transitional housing.
A37: §301(a)(7) Accessibility modifications in Lower-income Owner-occupied housing.
A38: §301(a)(8) Efforts to acquire and rehabilitate foreclosed or vacant homes and apartments.
A39: §301(a)(9) Homeownership opportunities, including, but not limited to, down payment assistance.
A40: §301(a)(10) Fiscal incentives made by a county to a city within the county to incentivize approval of one or more affordable housing Projects, or matching funds invested by a county in an affordable housing development Project in a city within the county, provided that the city has made an equal or greater investment in the Project. The county fiscal incentives shall be in the form of a grant or low-interest loan to an affordable housing Project. Matching funds investments by both the county and the city also shall be a grant or low-interest deferred loan to the affordable housing Project.
A41: §302 Threshold Requirements
A42: §302(a) The Applicant's Housing Element and Delegating Local Government's Housing Element (if applicable) was/were adopted by the Local Government’s governing body by the application submittal date subsequently determined to be in substantial compliance with state Housing Element Law pursuant to Government Code Section 65585.
A43: §302(b) Applicant or Delegating Local Government has submitted the Annual Progress Report(s) to the Department of Housing and Community Development pursuant to Government Code Section 65400 for the allocations being requested.
A44: §302(c)(2) Applicant certified in the Resolution submitted with this application that submission of the application was authorized by the governing board of the Applicant.
A45: §302(c)(3) Applicant certified in the Resolution submitted with this application that, if the Local Government proposes allocation of funds for any activity to another entity, the Local government’s selection process had no conflicts of interest and was accessible to the public.
A46: §302(c)(4) Applicant certified in the Resolution submitted with this application that the application include a Plan in accordance with §302(c)(4)?
A47: §302(c)(4)(D) Applicant certified in the Resolution submitted with this application that the Plan was authorized and adopted by resolution by the Local Government and that the public had an adequate opportunity to review and comment on its content.
A48: §302(c)(5) Applicant certified in the Resolution submitted with this application that the Plan submitted is for a term of five years (2019-2023). Local Governments agree to inform the Department of changes made to the Plan in each succeeding year of the term of the Plan.
A49: §302(c)(5) Is the applicant submitting a plan amendment with this application? (If you wish to reallocate more than 10 percent of funds among Activities from the previously approved 5-Year Plan included in the PLHA program Standard Agreement, Exhibit E you must submit an updated plan and resolution approving the new plan) 40% of each allocation being changed must go towards an ownership activity.
A50: If a reallocation of more than 10 percent of funds was made (and Applicant is amending their plan with this application). Applicant has attached an amended Plan and resolution that has been discussed and approved at a publicly-noticed meeting of the governing body.
A51: File Name: | B51: ='Instructions & Checklist'!$D$18 -> Application and Adopting the PLHA Plan (2024-2028 Allocations) Resolution | E51: §302(c)(4)(D) Evidence that the Plan was authorized and adopted by resolution by the Local jurisdiction and that the public had an adequate opportunity to review and comment on its content. PLHA webpage for Application and Plan Adoption Resolution Document | N51: Uploaded to HCD?
A52: §503(b) Applicant certifies that they are in compliance with the State Grants Management Section and are current with any required PLHA Annual Reporting Requirements.
A53: §302(c)(6) Applicant certified in the Resolution submitted with this application that it will ensure compliance with §302(c)(6) if funds are used for the acquisition, construction, or rehabilitation of for-sale housing projects or units within for-sale housing projects.
A54: §302(c)(7) Applicant certified in the Resolution submitted with this application that it will ensure that the PLHA assistance is in the form of a low-interest, deferred loan to the Sponsor of the Project, if funds are used for the development of an Affordable Rental Housing Development. The loan shall be evidenced through a Promissory Note secured by a Deed of Trust and a Regulatory Agreement shall restrict occupancy and rents in accordance with the Local government-approved underwriting of the Project for a term of at least 55 years.
A55: §302(c)(8) Has Applicant attached a program income reuse plan describing how repaid loans or accrued interest will be reused for eligible activities specified in Section 301?
A56: File Name: | B56: Reuse Plan | D56: Provide Program Income Reuse Plan describing how repaid loans or accrued interest will be used for eligible activities in Section 301. | N56: Uploaded to HCD?
A57: Administration
A58: Applicant agrees to adhere to §500, Accounting Records.
A59: Applicant agrees to adhere to §501, Audits/Monitoring of Project Files.
A60: Applicant agrees to adhere to §502, Cancellation/Termination.
A61: Applicant agrees to adhere to §503, Reporting.
A62: Certifications
A63: On behalf of the entity identified below, I certify that: The information, statements and attachments included in this application are, to the best of my knowledge and belief, true and correct and I possess the legal authority to submit this application on behalf of the entity identified in the signature block.
A65: Authorized Representative Printed Name | E65: Title | I65: Signature | P65: Date
A67: End of Document

Sheet PLHA Application (Amendment) (hidden)
A1: Local Government Formula Allocation for Returning Applicants - Amendment Only (2022-2023) | O1: =CoverPage!E48 -> 46219
A2: This streamlined application form is limited to Applicants who applied for and received an award under one or more of the previous Formula Allocation NOFA's (2020, 2021, 2022, or 2023).
A3: ***Please note the following change was made in the Amended NOFA*** All Applicants requesting an amendment to the 5-Year Plan with this application must redirect 40% of each allocation year being changed towards a homeownership Activity. Ownership activities are 2,3,4,7,8,9 (activities 2,3,4, & 8 will only count as ownership if the funds will go towards ownership sub activities as opposed to rental housing sub activities including ADU's)
A4: Did Applicant receive an award under one or more of the previous NOFA's? (2020, 2021, 2022 or 2023)
A5: Which Allocation(s) are you applying for with this application?
A6: Eligible Applicant Type: | F6: NonEntitlement_Returning
A7: Local Government Recipient of PLHA Formula Allocation:
A8: 2019 PLHA Formula Allocation Amount: | E8: =IFERROR(VLOOKUP($H$7,DATA!$A$3:$F$351,2,FALSE),"") ->  | G8: 2019 Allowable Local Admin (5%): | K8: =IFERROR($E$8*0.05,"n/a") -> n/a | M8: Admin requested?
A9: 2020 PLHA Formula Allocation Amount: | E9: =IFERROR(VLOOKUP($H$7,DATA!$A$3:$F$351,3,FALSE),"") ->  | G9: 2020 Allowable Local Admin (5%): | K9: =IFERROR($E$9*0.05,"n/a") -> n/a | M9: Admin requested?
A10: 2021 PLHA Formula Allocation Amount: | E10: =IFERROR(VLOOKUP($H$7,DATA!$A$3:$F$351,4,FALSE),"") ->  | G10: 2021 Allowable Local Admin (5%): | K10: =IFERROR($E$10*0.05,"n/a") -> n/a | M10: Admin requested?
A11: 2022 PLHA Formula Allocation Amount: | E11: =IFERROR(VLOOKUP($H$7,DATA!$A$3:$F$351,5,FALSE),"") ->  | G11: 2022 Allowable Local Admin (5%): | K11: =IFERROR($E$11*0.05,"n/a") -> n/a | M11: Admin requested?
A12: 2023 PLHA Formula Allocation Amount: | E12: =IFERROR(VLOOKUP($H$7,DATA!$A$3:$F$351,6,FALSE),"") ->  | G12: 2023 Allowable Local Admin (5%): | K12: =IFERROR($E$12*0.05,"n/a") -> n/a | M12: Admin requested?
A13: Instructions: If the Local Government Recipient of the PLHA Formula Allocation delegated its PLHA formula allocation to a Local Housing Trust Fund or to another Local Government, the Applicant (for which information is required below) is the Local Housing Trust Fund or administering Local Government. The PLHA award will be made to the Applicant (upon meeting threshold requirements) and the Applicant is responsible for meeting all program requirements throughout the term of the Standard Agreement.
A14: Instructions: If the Local Government Recipient of the PLHA Formula Allocation delegated its PLHA formula allocation to a Local Housing Trust Fund or to another Local Government, the Applicant (for which information is required below) is the Local Housing Trust Fund or administering Local Government. The PLHA award will be made to the Applicant (upon meeting threshold requirements) and the Applicant is responsible for meeting all program requirements throughout the term of the Standard Agreement. The 302(c)(4) Plan template worksheet requires first choosing one or more of the Eligible Activities listed below. If "Yes" is clicked, the 302(c)(4) Plan worksheet opens a series of questions about what precise activities are planned. Some specific activities, such as providing downpayment assistance to lower-income households for acquisition of an affordable home, could be included under either Activity 2 or 9. Please only choose one of those Activities; don't list the downpayment assistance under both Activities. ***Please note that 40% of each allocation being requested with this application MUST be allocated to an activity that supports Homeownership in accordance with the NOFA*** Ownership activities are 2,3,4,7,8,9 (activities 2,3,4, & 8 will only count as ownership if the funds will go towards ownership sub activities as opposed to rental housing sub activities including ADU's) If the PLHA funds are used for the same Activity but for different Area Median Income (AMI) level, select the highest AMI level the Activity will serve (you can always go lower than what is listed but you may not serve higher than what is listed without completing a plan amendment in the future). For each remaining year (2022-2023), the percentages allocated to activities must add to 100% annually including the allowable administrative costs of up to 5%.
A15: §300 Eligible Applicants
A16: §300(a) and (b) Eligible Applicants for the Entitlement and Non-Entitlement formula component described in Section §100(b)(1) and (2) are limited to the metropolitan cities and urban counties allocated a grant for the federal fiscal year 2017 pursuant to the federal CDBG formula specified in 42 USC, Section §5306 and Non-entitlement local governments.
A17: Applicant:
A18: Address:
A19: City: | E19: State: | I19: Zip Code: | N19: County:
A20: Authorized Rep Name: | E20: Authorized Rep Title: | I20: Authorized Rep Email: | N20: Authorized Rep Phone:
A21: Address: | E21: City: | I21: State: | N21: Zip Code:
A22: Contact Name: | E22: Contact Title: | I22: Contact Email: | N22: Contact Phone:
A23: Address: | E23: City: | I23: State: | N23: Zip Code:
A24: §300(d) Is Applicant delegated by another Local government to administer on its behalf its formula allocation of program funds?
A25: §300(d) If Applicant answered "Yes" above, has the Applicant attached the legally binding agreement required by §300(c) and (d)? | I25: A sample agreement can be found by double clicking on the icon to the right.
A26: File Name: | B26: ='Instructions & Checklist'!$D$18 -> Application and Adopting the PLHA Plan (2024-2028 Allocations) Resolution | E26: ='Instructions & Checklist'!$L$18 -> Pursuant to section 302(c)(4) of the Guidelines, Applicant’s PLHA Plan for 2024-2028 allocations is attached to this resolution, and Applicant certifies compliance with all public notice, comment, and hearing requirements in accordance with the Guidelines. | N26: Uploaded to HCD?
A27: File Name: | B27: ='Instructions & Checklist'!$D$19 -> Gov't TIN | E27: ='Instructions & Checklist'!$L$19 -> Provide a signed Gov't TIN Form. | N27: Uploaded to HCD?
A28: File Name: | B28: ='Instructions & Checklist'!$D$20 -> Applicant Delegation Agreement | E28: ='Instructions & Checklist'!$L$20 -> Legally binding agreement between Delegating and Administering Local Governments. | N28: Uploaded to HCD?
A29: §301 Eligible Activities
A30: §301(a) Eligible activities are limited to the following: | P30: Select below:
A31: §301(a)(1) The predevelopment, development, acquisition, rehabilitation, and preservation of multifamily, residential live-work, rental housing that is affordable to Extremely low-,Very low-, Low-, or Moderate-income households, including necessary operating subsidies.
A32: §301(a)(2) The predevelopment, development, acquisition, rehabilitation, and preservation of affordable rental and ownership housing, including Accessory Dwelling Units (ADUs), that meets the needs of a growing workforce earning up to 120 percent of AMI, or 150 percent of AMI in high-cost areas. ADUs shall be available for occupancy for a term of no less than 30 days.
A33: §301(a)(3) Matching portions of funds placed into Local or Regional Housing Trust Funds.
A34: §301(a)(4) Matching portions of funds available through the Low- and Moderate-Income Housing Asset Fund pursuant to subdivision (d) of HSC Section 34176.
A35: §301(a)(5) Capitalized Reserves for services connected to the preservation and creation of new permanent supportive housing.
A36: §301(a)(6) Assisting persons who are experiencing or At-risk of homelessness, including, but not limited to, providing rapid re-housing, rental assistance, supportive/case management services that allow people to obtain and retain housing, operating and capital costs for navigation centers and emergency shelters, and the new construction, rehabilitation, and preservation of permanent and transitional housing.
A37: §301(a)(7) Accessibility modifications in Lower-income Owner-occupied housing.
A38: §301(a)(8) Efforts to acquire and rehabilitate foreclosed or vacant homes and apartments.
A39: §301(a)(9) Homeownership opportunities, including, but not limited to, down payment assistance.
A40: §301(a)(10) Fiscal incentives made by a county to a city within the county to incentivize approval of one or more affordable housing Projects, or matching funds invested by a county in an affordable housing development Project in a city within the county, provided that the city has made an equal or greater investment in the Project. The county fiscal incentives shall be in the form of a grant or low-interest loan to an affordable housing Project. Matching funds investments by both the county and the city also shall be a grant or low-interest deferred loan to the affordable housing Project.
A41: §302 Threshold Requirements
A42: §302(a) The Applicant's Housing Element and Delegating Local Government's Housing Element (if applicable) was/were adopted by the Local Government’s governing body by the application submittal date subsequently determined to be in substantial compliance with state Housing Element Law pursuant to Government Code Section 65585.
A43: §302(b) Applicant or Delegating Local Government has submitted the Annual Progress Report(s) to the Department of Housing and Community Development pursuant to Government Code Section 65400 for the allocations being requested.
A44: §302(c)(2) Applicant certified in the Resolution submitted with this application that submission of the application was authorized by the governing board of the Applicant.
A45: §302(c)(3) Applicant certified in the Resolution submitted with this application that, if the Local Government proposes allocation of funds for any activity to another entity, the Local government’s selection process had no conflicts of interest and was accessible to the public.
A46: §302(c)(4) Applicant certified in the Resolution submitted with this application that the application include a Plan in accordance with §302(c)(4)?
A47: §302(c)(4)(D) Applicant certified in the Resolution submitted with this application that the Plan was authorized and adopted by resolution by the Local Government and that the public had an adequate opportunity to review and comment on its content.
A48: §302(c)(5) Applicant certified in the Resolution submitted with this application that the Plan submitted is for a term of five years (2019-2023). Local Governments agree to inform the Department of changes made to the Plan in each succeeding year of the term of the Plan.
A49: §302(c)(5) Is the applicant submitting a plan amendment with this application? (If you wish to reallocate more than 10 percent of funds among Activities from the previously approved 5-Year Plan included in the PLHA program Standard Agreement, Exhibit E you must submit an updated plan and resolution approving the new plan) 40% of each allocation being changed must go towards an ownership activity.
A50: If a reallocation of more than 10 percent of funds was made (and Applicant is amending their plan with this application). Applicant has attached an amended Plan and resolution that has been discussed and approved at a publicly-noticed meeting of the governing body.
A51: File Name: | B51: Application and Adopting the PLHA Plan (2022-2023 Allocations) Resolution - Amendment | E51: §302(c)(4)(D) Evidence that the Plan was authorized and adopted by resolution by the Local jurisdiction and that the public had an adequate opportunity to review and comment on its content. PLHA webpage for Application and Plan Adoption Resolution Document | N51: Uploaded to HCD?
A52: §503(b) Applicant certifies that they are in compliance with the State Grants Management Section and are current with any required PLHA Annual Reporting Requirements.
A53: §302(c)(6) Applicant certified in the Resolution submitted with this application that it will ensure compliance with §302(c)(6) if funds are used for the acquisition, construction, or rehabilitation of for-sale housing projects or units within for-sale housing projects.
A54: §302(c)(7) Applicant certified in the Resolution submitted with this application that it will ensure that the PLHA assistance is in the form of a low-interest, deferred loan to the Sponsor of the Project, if funds are used for the development of an Affordable Rental Housing Development. The loan shall be evidenced through a Promissory Note secured by a Deed of Trust and a Regulatory Agreement shall restrict occupancy and rents in accordance with the Local government-approved underwriting of the Project for a term of at least 55 years.
A55: §302(c)(8) Has Applicant attached a program income reuse plan describing how repaid loans or accrued interest will be reused for eligible activities specified in Section 301?
A56: File Name: | B56: Reuse Plan | D56: Provide Program Income Reuse Plan describing how repaid loans or accrued interest will be used for eligible activities in Section 301. | N56: Uploaded to HCD?
A57: Administration
A58: Applicant agrees to adhere to §500, Accounting Records.
A59: Applicant agrees to adhere to §501, Audits/Monitoring of Project Files.
A60: Applicant agrees to adhere to §502, Cancellation/Termination.
A61: Applicant agrees to adhere to §503, Reporting.
A62: Certifications
A63: On behalf of the entity identified below, I certify that: The information, statements and attachments included in this application are, to the best of my knowledge and belief, true and correct and I possess the legal authority to submit this application on behalf of the entity identified in the signature block.
A65: Authorized Representative Printed Name | E65: Title | I65: Signature | P65: Date
A67: End of Document

Sheet PLHA Application (Stream+Amend) (hidden)
A1: Local Government Formula Allocation for Returning Applicants - Streamlined + Amendment | O1: =CoverPage!E48 -> 46219
A2: This streamlined application form is limited to Applicants who applied for and received an award under one or more of the previous Formula Allocation NOFA's (2020, 2021, 2022, or 2023).
A3: ***Please note the following change was made in the Amended NOFA*** All Applicants requesting an amendment to the 5-Year Plan with this application must redirect 40% of each allocation year being changed towards a homeownership Activity. Ownership activities are 2,3,4,7,8,9 (activities 2,3,4, & 8 will only count as ownership if the funds will go towards ownership sub activities as opposed to rental housing sub activities including ADU's)
A4: Did Applicant receive an award under one or more of the previous NOFA's? (2020, 2021, 2022 or 2023)
A5: Which Allocation(s) are you applying for with this application?
A6: Eligible Applicant Type: | F6: NonEntitlement_Returning
A7: Local Government Recipient of PLHA Formula Allocation:
A8: 2019 PLHA Formula Allocation Amount: | E8: =IFERROR(VLOOKUP($H$7,DATA!$A$3:$F$351,2,FALSE),"") ->  | G8: 2019 Allowable Local Admin (5%): | K8: =IFERROR($E$8*0.05,"n/a") -> n/a | M8: Admin requested?
A9: 2020 PLHA Formula Allocation Amount: | E9: =IFERROR(VLOOKUP($H$7,DATA!$A$3:$F$351,3,FALSE),"") ->  | G9: 2020 Allowable Local Admin (5%): | K9: =IFERROR($E$9*0.05,"n/a") -> n/a | M9: Admin requested?
A10: 2021 PLHA Formula Allocation Amount: | E10: =IFERROR(VLOOKUP($H$7,DATA!$A$3:$F$351,4,FALSE),"") ->  | G10: 2021 Allowable Local Admin (5%): | K10: =IFERROR($E$10*0.05,"n/a") -> n/a | M10: Admin requested?
A11: 2022 PLHA Formula Allocation Amount: | E11: =IFERROR(VLOOKUP($H$7,DATA!$A$3:$F$351,5,FALSE),"") ->  | G11: 2022 Allowable Local Admin (5%): | K11: =IFERROR($E$11*0.05,"n/a") -> n/a | M11: Admin requested?
A12: 2023 PLHA Formula Allocation Amount: | E12: =IFERROR(VLOOKUP($H$7,DATA!$A$3:$F$351,6,FALSE),"") ->  | G12: 2023 Allowable Local Admin (5%): | K12: =IFERROR($E$12*0.05,"n/a") -> n/a | M12: Admin requested?
A13: Instructions: If the Local Government Recipient of the PLHA Formula Allocation delegated its PLHA formula allocation to a Local Housing Trust Fund or to another Local Government, the Applicant (for which information is required below) is the Local Housing Trust Fund or administering Local Government. The PLHA award will be made to the Applicant (upon meeting threshold requirements) and the Applicant is responsible for meeting all program requirements throughout the term of the Standard Agreement.
A14: Instructions: If the Local Government Recipient of the PLHA Formula Allocation delegated its PLHA formula allocation to a Local Housing Trust Fund or to another Local Government, the Applicant (for which information is required below) is the Local Housing Trust Fund or administering Local Government. The PLHA award will be made to the Applicant (upon meeting threshold requirements) and the Applicant is responsible for meeting all program requirements throughout the term of the Standard Agreement. The 302(c)(4) Plan template worksheet requires first choosing one or more of the Eligible Activities listed below. If "Yes" is clicked, the 302(c)(4) Plan worksheet opens a series of questions about what precise activities are planned. Some specific activities, such as providing downpayment assistance to lower-income households for acquisition of an affordable home, could be included under either Activity 2 or 9. Please only choose one of those Activities; don't list the downpayment assistance under both Activities. ***Please note that 40% of each allocation being requested with this application MUST be allocated to an activity that supports Homeownership in accordance with the NOFA*** Ownership activities are 2,3,4,7,8,9 (activities 2,3,4, & 8 will only count as ownership if the funds will go towards ownership sub activities as opposed to rental housing sub activities including ADU's) If the PLHA funds are used for the same Activity but for different Area Median Income (AMI) level, select the highest AMI level the Activity will serve (you can always go lower than what is listed but you may not serve higher than what is listed without completing a plan amendment in the future). For each remaining year (2022-2023), the percentages allocated to activities must add to 100% annually including the allowable administrative costs of up to 5%.
A15: §300 Eligible Applicants
A16: §300(a) and (b) Eligible Applicants for the Entitlement and Non-Entitlement formula component described in Section §100(b)(1) and (2) are limited to the metropolitan cities and urban counties allocated a grant for the federal fiscal year 2017 pursuant to the federal CDBG formula specified in 42 USC, Section §5306 and Non-entitlement local governments.
A17: Applicant:
A18: Address:
A19: City: | E19: State: | I19: Zip Code: | N19: County:
A20: Authorized Rep Name: | E20: Authorized Rep Title: | I20: Authorized Rep Email: | N20: Authorized Rep Phone:
A21: Address: | E21: City: | I21: State: | N21: Zip Code:
A22: Contact Name: | E22: Contact Title: | I22: Contact Email: | N22: Contact Phone:
A23: Address: | E23: City: | I23: State: | N23: Zip Code:
A24: §300(d) Is Applicant delegated by another Local government to administer on its behalf its formula allocation of program funds?
A25: §300(d) If Applicant answered "Yes" above, has the Applicant attached the legally binding agreement required by §300(c) and (d)? | I25: A sample agreement can be found by double clicking on the icon to the right.
A26: File Name: | B26: ='Instructions & Checklist'!$D$18 -> Application and Adopting the PLHA Plan (2024-2028 Allocations) Resolution | E26: ='Instructions & Checklist'!$L$18 -> Pursuant to section 302(c)(4) of the Guidelines, Applicant’s PLHA Plan for 2024-2028 allocations is attached to this resolution, and Applicant certifies compliance with all public notice, comment, and hearing requirements in accordance with the Guidelines. | N26: Uploaded to HCD?
A27: File Name: | B27: ='Instructions & Checklist'!$D$19 -> Gov't TIN | E27: ='Instructions & Checklist'!$L$19 -> Provide a signed Gov't TIN Form. | N27: Uploaded to HCD?
A28: File Name: | B28: ='Instructions & Checklist'!$D$20 -> Applicant Delegation Agreement | E28: ='Instructions & Checklist'!$L$20 -> Legally binding agreement between Delegating and Administering Local Governments. | N28: Uploaded to HCD?
A29: §301 Eligible Activities
A30: §301(a) Eligible activities are limited to the following: | P30: Select below:
A31: §301(a)(1) The predevelopment, development, acquisition, rehabilitation, and preservation of multifamily, residential live-work, rental housing that is affordable to Extremely low-,Very low-, Low-, or Moderate-income households, including necessary operating subsidies.
A32: §301(a)(2) The predevelopment, development, acquisition, rehabilitation, and preservation of affordable rental and ownership housing, including Accessory Dwelling Units (ADUs), that meets the needs of a growing workforce earning up to 120 percent of AMI, or 150 percent of AMI in high-cost areas. ADUs shall be available for occupancy for a term of no less than 30 days.
A33: §301(a)(3) Matching portions of funds placed into Local or Regional Housing Trust Funds.
A34: §301(a)(4) Matching portions of funds available through the Low- and Moderate-Income Housing Asset Fund pursuant to subdivision (d) of HSC Section 34176.
A35: §301(a)(5) Capitalized Reserves for services connected to the preservation and creation of new permanent supportive housing.
A36: §301(a)(6) Assisting persons who are experiencing or At-risk of homelessness, including, but not limited to, providing rapid re-housing, rental assistance, supportive/case management services that allow people to obtain and retain housing, operating and capital costs for navigation centers and emergency shelters, and the new construction, rehabilitation, and preservation of permanent and transitional housing.
A37: §301(a)(7) Accessibility modifications in Lower-income Owner-occupied housing.
A38: §301(a)(8) Efforts to acquire and rehabilitate foreclosed or vacant homes and apartments.
A39: §301(a)(9) Homeownership opportunities, including, but not limited to, down payment assistance.
A40: §301(a)(10) Fiscal incentives made by a county to a city within the county to incentivize approval of one or more affordable housing Projects, or matching funds invested by a county in an affordable housing development Project in a city within the county, provided that the city has made an equal or greater investment in the Project. The county fiscal incentives shall be in the form of a grant or low-interest loan to an affordable housing Project. Matching funds investments by both the county and the city also shall be a grant or low-interest deferred loan to the affordable housing Project.
A41: §302 Threshold Requirements
A42: §302(a) The Applicant's Housing Element and Delegating Local Government's Housing Element (if applicable) was/were adopted by the Local Government’s governing body by the application submittal date subsequently determined to be in substantial compliance with state Housing Element Law pursuant to Government Code Section 65585.
A43: §302(b) Applicant or Delegating Local Government has submitted the Annual Progress Report(s) to the Department of Housing and Community Development pursuant to Government Code Section 65400 for the allocations being requested.
A44: §302(c)(2) Applicant certified in the Resolution submitted with this application that submission of the application was authorized by the governing board of the Applicant.
A45: §302(c)(3) Applicant certified in the Resolution submitted with this application that, if the Local Government proposes allocation of funds for any activity to another entity, the Local government’s selection process had no conflicts of interest and was accessible to the public.
A46: §302(c)(4) Applicant certified in the Resolution submitted with this application that the application include a Plan in accordance with §302(c)(4)?
A47: §302(c)(4)(D) Applicant certified in the Resolution submitted with this application that the Plan was authorized and adopted by resolution by the Local Government and that the public had an adequate opportunity to review and comment on its content.
A48: §302(c)(5) Applicant certified in the Resolution submitted with this application that the Plan submitted is for a term of five years (2019-2023). Local Governments agree to inform the Department of changes made to the Plan in each succeeding year of the term of the Plan.
A49: §302(c)(5) Is the applicant submitting a plan amendment with this application? (If you wish to reallocate more than 10 percent of funds among Activities from the previously approved 5-Year Plan included in the PLHA program Standard Agreement, Exhibit E you must submit an updated plan and resolution approving the new plan) 40% of each allocation being changed must go towards an ownership activity.
A50: If a reallocation of more than 10 percent of funds was made (and Applicant is amending their plan with this application). Applicant has attached an amended Plan and resolution that has been discussed and approved at a publicly-noticed meeting of the governing body.
A51: File Name: | B51: ='Instructions & Checklist'!$D$18 -> Application and Adopting the PLHA Plan (2024-2028 Allocations) Resolution | E51: §302(c)(4)(D) Evidence that the Plan was authorized and adopted by resolution by the Local jurisdiction and that the public had an adequate opportunity to review and comment on its content. PLHA webpage for Application and Plan Adoption Resolution Document | N51: Uploaded to HCD?
A52: §503(b) Applicant certifies that they are in compliance with the State Grants Management Section and are current with any required PLHA Annual Reporting Requirements.
A53: §302(c)(6) Applicant certified in the Resolution submitted with this application that it will ensure compliance with §302(c)(6) if funds are used for the acquisition, construction, or rehabilitation of for-sale housing projects or units within for-sale housing projects.
A54: §302(c)(7) Applicant certified in the Resolution submitted with this application that it will ensure that the PLHA assistance is in the form of a low-interest, deferred loan to the Sponsor of the Project, if funds are used for the development of an Affordable Rental Housing Development. The loan shall be evidenced through a Promissory Note secured by a Deed of Trust and a Regulatory Agreement shall restrict occupancy and rents in accordance with the Local government-approved underwriting of the Project for a term of at least 55 years.
A55: §302(c)(8) Has Applicant attached a program income reuse plan describing how repaid loans or accrued interest will be reused for eligible activities specified in Section 301?
A56: File Name: | B56: Reuse Plan | D56: Provide Program Income Reuse Plan describing how repaid loans or accrued interest will be used for eligible activities in Section 301. | N56: Uploaded to HCD?
A57: Administration
A58: Applicant agrees to adhere to §500, Accounting Records.
A59: Applicant agrees to adhere to §501, Audits/Monitoring of Project Files.
A60: Applicant agrees to adhere to §502, Cancellation/Termination.
A61: Applicant agrees to adhere to §503, Reporting.
A62: Certifications
A63: On behalf of the entity identified below, I certify that: The information, statements and attachments included in this application are, to the best of my knowledge and belief, true and correct and I possess the legal authority to submit this application on behalf of the entity identified in the signature block.
A65: Authorized Representative Printed Name | E65: Title | I65: Signature | P65: Date
A67: End of Document

Sheet 302(c)(4) Plan
A1: §302(c)(4) Plan | T1: ='Instructions & Checklist'!AJ1 -> 2026-07-16
A2: §302(c)(4)(A) Describe the manner in which allocated funds will be used for eligible activities.
A4: §302(c)(4)(B) Provide a description of the way the Local government will prioritize investments that increase the supply of housing for households with incomes at or below 60 percent of Area Median Income (AMI).
A6: §302(c)(4)(C) Provide a description of how the Plan is consistent with the programs set forth in the Local Government’s Housing Element.
A8: Activities Detail (Activities Detail (Must make a selection on Formula Allocation Application worksheet under Eligible Activities, §301))
A9: §301(a)(1) PLHA Formula Rental Activities (Up to 120% AMI or 150% AMI in High-Cost Areas).
A10: §302(c)(4)(E)(i) Provide a detailed and complete description of how allocated funds will be used for each proposed Affordable Rental Housing Activity.
A12: Complete the table below for each proposed Affordable Rental Housing Activity to be funded with 2024-2028 PLHA allocations. If a single Activity will be assisting households at more than one level of Area Median Income, please list the highest AMI to be served.
A13: Funding Allocation Year
A14: Type of Rental Activity
A15: §302(c)(4)(E)(i) Percentage of Funds Allocated for the Proposed Affordable Rental Housing Activity
A16: §302(c)(4)(E)(ii) Area Median Income Level Served Note: Enter the maximum AMI % allowed | U16: TOTAL
A17: §302(c)(4)(E)(ii) Unmet share of the RHNA at the AMI Level Note: Complete for years 2024 through 2028 | U17: =SUM(E17:T17) -> 0
A18: §302(c)(4)(E)(ii) Projected Number of Households Served | U18: =SUM(E18:T18) -> 0
A19: §302(c)(4)(E)(iv) Period of Affordability for the Proposed Affordable Rental Housing Activity (55 years mandatory for Multifamily Rental Housing Projects)
A20: §302(c)(4)(E)(iii) A description of major steps/actions and a proposed schedule for the implementation and completion of the Activity.
A22: §301(a)(2) PLHA Formula Affordable Owner-Occupied Workforce Housing Activities (Up to 120% AMI or 150% AMI in High-Cost Areas).
A23: §302(c)(4)(E)(i) Provide a detailed and complete description of how allocated funds will be used for each proposed Homeownership Housing Activity.
A25: Complete the table below for each proposed Homeownership Housing Activity to be funded with 2024-2028 PLHA allocations. If a single Activity will be assisting households at more than one level of Area Median Income, please list the highest AMI to be served.
A26: Funding Allocation Year
A27: Type of Homeownership Activity
A28: §302(c)(4)(E)(i) Percentage of Funds Allocated for Each Affordable Housing Activity
A29: §302(c)(4)(E)(ii) Area Median Income Level Served Note: Enter the maximum AMI % allowed | U29: TOTAL
A30: §302(c)(4)(E)(ii) Unmet share of the RHNA at the AMI Level Note: Complete for years 2024 through 2028 | U30: =SUM(E30:T30) -> 0
A31: §302(c)(4)(E)(ii) Projected Number of Households Served | U31: =SUM(E31:T31) -> 0
A32: §302(c)(4)(E)(iv) Period of Affordability for the Proposed Activity
A33: §302(c)(4)(E)(iii) A description of major steps/actions and a proposed schedule for the implementation and completion of each Homeownership Housing project.
A35: §301(a)(3) PLHA Formula Homelessness Assistance Activities (Up to 30% AMI).
A36: §302(c)(4)(E)(i) Provide a detailed and complete description of how allocated funds will be used for each proposed Homeless Assistance Activity.
A38: Complete the table below for each proposed Activity to be funded with 2024-2028 PLHA allocations. If a single Activity will be assisting households at more than one level of Area Median Income, please list the highest AMI to be served.
A39: Funding Allocation Year
A40: Type of Homeless Assistance Activity
A41: §302(c)(4)(E)(i) Percentage of Funds Allocated for Each Affordable Housing Activity
A42: §302(c)(4)(E)(ii) Area Median Income Level Served Note: Enter the maximum AMI % allowed | U42: TOTAL
A43: §302(c)(4)(E)(ii) Unmet share of the RHNA at the AMI Level Note: Complete for years 2024 through 2028 | U43: =SUM(E43:T43) -> 0
A44: §302(c)(4)(E)(ii) Projected Number of Households Served | U44: =SUM(E44:T44) -> 0
A45: §302(c)(4)(E)(iv) Period of Affordability for the Proposed Activity
A46: §302(c)(4)(E)(iii) A description of major steps/actions and a proposed schedule for the implementation and completion of the Activity.
A48: File Name: | C48: ='Instructions & Checklist'!$D$18 -> Application and Adopting the PLHA Plan (2024-2028 Allocations) Resolution | H48: §302(c)(4)(D) Evidence that the Plan was authorized and adopted by resolution by the Local jurisdiction and that the public had an adequate opportunity to review and comment on its content. | S48: Uploaded to HCD?
A50: Total Percentage of Funds Allocated Calculator (2024 - 2028)
B52: 2024 Allocation - Year 1 | F52: 2025 Allocation - Year 2 | J52: 2026 Allocation - Year 3 | N52: 2027 Allocation - Year 4 | R52: 2028 Allocation - Year 5
B53: Admin Requested | D53: =_xlfn.IFS('PLHA Application (New)'!$P$11="yes",0.05,'PLHA Application (Stream+Amend)'!$P$8="yes",0.05,'PLHA Application (Amendment)'!$P$8="yes",0.05,'PLHA Application (New)'!$P$11="no",0,'PLHA Application (Stream+Amend)'!$P$8="no",0,'PLHA Application (Amendment)'!$P$8="no",0,TRUE,"n/a") -> n/a | F53: Admin Requested | H53: =_xlfn.IFS('PLHA Application (New)'!$P$12="yes",0.05,'PLHA Application (Stream+Amend)'!$P$9="yes",0.05,'PLHA Application (Amendment)'!$P$9="yes",0.05,'PLHA Application (New)'!$P$12="no",0,'PLHA Application (Stream+Amend)'!$P$9="no",0,'PLHA Application (Amendment)'!$P$9="no",0,TRUE,"n/a") -> n/a | J53: Admin Requested | L53: =_xlfn.IFS('PLHA Application (New)'!$P$13="yes",0.05,'PLHA Application (Stream+Amend)'!$P$10="yes",0.05,'PLHA Application (Amendment)'!$P$10="yes",0.05,'PLHA Application (New)'!$P$13="no",0,'PLHA Application (Stream+Amend)'!$P$10="no",0,'PLHA Application (Amendment)'!$P$10="no",0,TRUE,"n/a") -> n/a | N53: Admin Requested | P53: =_xlfn.IFS('PLHA Application (New)'!$P$14="yes",0.05,'PLHA Application (Stream+Amend)'!$P$11="yes",0.05,'PLHA Application (Amendment)'!$P$11="yes",0.05,'PLHA Application (New)'!$P$14="no",0,'PLHA Application (Stream+Amend)'!$P$11="no",0,'PLHA Application (Amendment)'!$P$11="no",0,TRUE,"n/a") -> n/a | R53: Admin Requested | T53: =_xlfn.IFS('PLHA Application (New)'!$P$15="yes",0.05,'PLHA Application (Stream+Amend)'!$P$12="yes",0.05,'PLHA Application (Amendment)'!$P$12="yes",0.05,'PLHA Application (New)'!$P$15="no",0,'PLHA Application (Stream+Amend)'!$P$12="no",0,'PLHA Application (Amendment)'!$P$12="no",0,TRUE,"n/a") -> n/a
B54: Funds Allocated | D54: =IF(D53="n/a","n/a",SUM(SUMIF($E$13:$T$13,2024,$E$15:$T$15),SUMIF($E$26:$T$26,2024,$E$28:$T$28),SUMIF($E$39:$T$39,2024,$E$41:$T$41))) -> n/a | F54: Funds Allocated | H54: =IF(H53="n/a","n/a",SUM(SUMIF($E$13:$T$13,2025,$E$15:$T$15),SUMIF($E$26:$T$26,2025,$E$28:$T$28),SUMIF($E$39:$T$39,2025,$E$41:$T$41))) -> n/a | J54: Funds Allocated | L54: =IF(L53="n/a","n/a",SUM(SUMIF($E$13:$T$13,2026,$E$15:$T$15),SUMIF($E$26:$T$26,2026,$E$28:$T$28),SUMIF($E$39:$T$39,2026,$E$41:$T$41))) -> n/a | N54: Funds Allocated | P54: =IF(P53="n/a","n/a",SUM(SUMIF($E$13:$T$13,2027,$E$15:$T$15),SUMIF($E$26:$T$26,2027,$E$28:$T$28),SUMIF($E$39:$T$39,2027,$E$41:$T$41))) -> n/a | R54: Funds Allocated | T54: =IF(T53="n/a","n/a",SUM(SUMIF($E$13:$T$13,2028,$E$15:$T$15),SUMIF($E$26:$T$26,2028,$E$28:$T$28),SUMIF($E$39:$T$39,2028,$E$41:$T$41))) -> n/a
B55: Total Percentage of Funds Allocated (2024) | D55: =IF(D54<>"n/a",SUM(D53:D54),"n/a") -> n/a | F55: Total Percentage of Funds Allocated (2025) | H55: =IF(H54<>"n/a",SUM(H53:H54),"n/a") -> n/a | J55: Total Percentage of Funds Allocated (2026) | L55: =IF(L54<>"n/a",SUM(L53:L54),"n/a") -> n/a | N55: Total Percentage of Funds Allocated (2027) | P55: =IF(P54<>"n/a",SUM(P53:P54),"n/a") -> n/a | R55: Total Percentage of Funds Allocated (2028) | T55: =IF(T54<>"n/a",SUM(T53:T54),"n/a") -> n/a
A57: Please note: In order for Allocated Calculator to calculate correctly, "Admin Requested" must be answered "Yes" or "No" in the PLHA Application tab.
A59: End of Document

Sheet Urban County
A1: URBAN COUNTY | C1: =CoverPage!E48 -> 2026-07-16
A2: If you are an Urban County, please complete the following table if you are planning on sharing your allocation with cities within your jurisdiction who do not have their own PLHA allocation:
A3: List the cities that are part of your Urban County. | B3: Are they opting in to receive a portion of the PLHA award? | C3: List the amount of the allocation being applied for that will be shared with this City.
A4: EXAMPLE: City of Trees | B4: Yes | C4: 20000
A17: End of Document

Sheet Application Support
A1: Application Development Team (ADT) Support Form | H1: =CoverPage!E48 -> 2026-07-16
A2: Please complete the "yellow" cells in the form below and email a copy to: PLHA@hcd.ca.gov. A member of the Application Development Team will respond to your request as soon as possible.
A3: Full Name: | F3: Date Requested:
A4: Organization: | D4: Email: | F4: Contact Phone:
A6: Issue # | B6: Program Name | C6: Worksheet Tab | D6: Cell Location | E6: Comment/Update | F6: Urgency | G6: ADT Status | H6: Status Date
A7: 1 | B7: PLHA
A8: 2 | B8: PLHA
A9: 3 | B9: PLHA
A10: 4 | B10: PLHA
A11: 5 | B11: PLHA
A12: 6 | B12: PLHA
A13: 7 | B13: PLHA
A14: 8 | B14: PLHA
A15: 9 | B15: PLHA
A16: 10 | B16: PLHA
A18: End of Document

Sheet Formula 2024 (hidden)
C1: Appendix A - Preliminary PLHA Allocations - CA
C2: Estimated Building Homes and Jobs Trust Fund (BHJTF) Subject to Change Based on 2019-20 Budget Act | L2: =L4/7*10 -> 221526663.4
K3: 30 % for Special Programs | L3: =L2*0.3 -> 66457999.02
K4: PLHA | L4: =L6+L5 -> 155068664.4
C5: 5% State Admin. | L5: =L6*0.05 -> 7384222.114
C6: PLHA NOFA Amount | L6: 147684442.3 | M6: =L6-K10 -> 137446716.1 | N6: Formula amount minus competitive
C7: PHLA Program Subcomponents | M7: =L6-M6 -> 10237726.22 | N7: Competitive NOFA
C8: Subcomponent | K8: Estimated Funding Amount | L8: Estimated % of PHLA Funds
C9: 90% for Formula Allocation to Entitlement Jurisdictions and Competitive Non-Entitlement | K9: =L6*0.9 -> 132915998 | L9: 0.9
C10: Competitive Non-Entitlement Allocation | K10: 10237726.22 | L10: =K10/$K$9 -> 0.077024033
C11: Formula Entitlement Allocation | J11: Entitlement Subtotal | K11: =K9-K10 -> 122678271.8 | L11: =K11/$K$9 -> 0.922975967
C12: 10% for Formula Allocation to Non-Entitlement Jurisdictions | K12: =L6*0.1 -> 14768444.23 | L12: =K12/$L$6 -> 0.1
C13: LOCAL GOVERNMENT | D13: STATE | E13: 2017 CDBG Allocation | J13: Percentage of Total 2017 CA CDBG Allocations | K13: Estimated Allocation From SB 2 Formula Allocation | L13: Allowable Local Admin (5%)
C14: Alameda | D14: CA | E14: 1053123 | J14: =E14/SUM($E$14:$E$201) -> 0.002950850377 | K14: =J14*$K$9 -> 392215.2229 | L14: =K14*0.05 -> 19610.76115 | M14: =ROUNDDOWN(K14,0) -> 392215
C15: Alameda County | D15: CA | E15: 1760088 | J15: 0.004931766127 | K15: 655510.6168 | L15: 32775.53084 | M15: 655510
C16: Alhambra | D16: CA | E16: 877586 | J16: 0.002458995748 | K16: 326839.874 | L16: 16341.9937 | M16: 326839
C17: Aliso Viejo | D17: CA | E17: 224618 | J17: 0.0006293795786 | K17: 83654.61484 | L17: 4182.730742 | M17: 83654
C18: Anaheim | D18: CA | E18: 4062139 | J18: 0.01138211244 | K18: 1512864.835 | L18: 75643.24175 | M18: 1512864
C19: Antioch | D19: CA | E19: 743029 | J19: 0.002081967068 | K19: 276726.7308 | L19: 13836.33654 | M19: 276726
C20: Apple Valley | D20: CA | E20: 541977 | J20: 0.001518619416 | K20: 201848.8153 | L20: 10092.44076 | M20: 201848
C21: Bakersfield | D21: CA | E21: 3262290 | J21: 0.009140935747 | K21: 1214976.598 | L21: 60748.82989 | M21: 1214976
C22: Baldwin Park | D22: CA | E22: 920087 | J22: 0.002578083539 | K22: 342668.5466 | L22: 17133.42733 | M22: 342668
C23: Bellflower | D23: CA | E23: 968046 | J23: 0.002712464645 | K23: 360529.9454 | L23: 18026.49727 | M23: 360529
C24: Berkeley | D24: CA | E24: 2438062 | J24: 0.006831449101 | K24: 908008.8754 | L24: 45400.44377 | M24: 908008
C25: Buena Park | D25: CA | E25: 695924 | J25: 0.00194997887 | K25: 259183.3877 | L25: 12959.16939 | M25: 259183
C26: Burbank | D26: CA | E26: 899361 | J26: 0.002520009292 | K26: 334949.5502 | L26: 16747.47751 | M26: 334949
C27: Camarillo | D27: CA | E27: 255107 | J27: 0.0007148097489 | K27: 95009.65118 | L27: 4750.482559 | M27: 95009
C28: Carlsbad | D28: CA | E28: 513746 | J28: 0.001439516161 | K28: 191334.7272 | L28: 9566.736361 | M28: 191334
C29: Carson | D29: CA | E29: 781656 | J29: 0.002190199912 | K29: 291112.6073 | L29: 14555.63036 | M29: 291112
C30: Cathedral City | D30: CA | E30: 533801 | J30: 0.001495710266 | K30: 198803.8227 | L30: 9940.191137 | M30: 198803
C31: Cerritos | D31: CA | E31: 205838 | J31: 0.0005767580234 | K31: 76660.36832 | L31: 3833.018416 | M31: 76660
C32: Chico | D32: CA | E32: 735702 | J32: 0.002061436816 | K32: 273997.9318 | L32: 13699.89659 | M32: 273997
C33: Chino | D33: CA | E33: 469987 | J33: 0.001316903454 | K33: 175037.5369 | L33: 8751.876846 | M33: 175037
C34: Chino Hills | D34: CA | E34: 334136 | J34: 0.0009362489867 | K34: 124442.4685 | L34: 6222.123424 | M34: 124442
C35: Chula Vista | D35: CA | E35: 1996844 | J35: 0.005595156378 | K35: 743685.7942 | L35: 37184.28971 | M35: 743685
C36: Citrus Heights | D36: CA | E36: 589469 | J36: 0.001651691987 | K36: 219536.289 | L36: 10976.81445 | M36: 219536
C37: Clovis City | D37: CA | E37: 689077 | J37: 0.001930793578 | K37: 256633.3554 | L37: 12831.66777 | M37: 256633
C38: Compton | D38: CA | E38: 1450717 | J38: 0.004064908664 | K38: 540291.392 | L38: 27014.5696 | M38: 540291
C39: Concord | D39: CA | E39: 921231 | J39: 0.002581289027 | K39: 343094.6072 | L39: 17154.73036 | M39: 343094
C40: Contra Costa County | D40: CA | E40: 4090208 | J40: 0.01146076177 | K40: 1523318.589 | L40: 76165.92946 | M40: 1523318
C41: Corona | D41: CA | E41: 1096921 | J41: 0.003073572362 | K41: 408526.938 | L41: 20426.3469 | M41: 408526
C42: Costa Mesa | D42: CA | E42: 996235 | J42: 0.002791450216 | K42: 371028.3914 | L42: 18551.41957 | M42: 371028
C43: Cupertino | D43: CA | E43: 311943 | J43: 0.0008740642063 | K43: 116177.1163 | L43: 5808.855817 | M43: 116177
C44: Daly City | D44: CA | E44: 964647 | J44: 0.002702940648 | K44: 359264.0538 | L44: 17963.20269 | M44: 359264
C45: Davis | D45: CA | E45: 570931 | J45: 0.001599748516 | K45: 212632.1707 | L45: 10631.60853 | M45: 212632
C46: Delano | D46: CA | E46: 612773 | J46: =E46/SUM($E$14:$E$201) -> 0.00171698979 | K46: 228215.4115 | L46: 11410.77058 | M46: 228215
C47: Downey | D47: CA | E47: 980589 | J47: 0.002747610128 | K47: 365201.3423 | L47: 18260.06712 | M47: 365201
C48: El Cajon | D48: CA | E48: 1216373 | J48: 0.003408276835 | K48: 453014.5172 | L48: 22650.72586 | M48: 453014
C49: El Centro | D49: CA | E49: 463642 | J49: 0.001299124766 | K49: 172674.4648 | L49: 8633.72324 | M49: 172674
C50: El Monte | D50: CA | E50: 1596920 | J50: 0.004474569432 | K50: 594741.8619 | L50: 29737.09309 | M50: 594741
C51: Elk Grove | D51: CA | E51: 828882 | J51: 0.002322527152 | K51: 308701.0144 | L51: 15435.05072 | M51: 308701
C52: Encinitas | D52: CA | E52: 294102 | J52: 0.0008240737289 | K52: 109532.5821 | L52: 5476.629107 | M52: 109532
C53: Escondido | D53: CA | E53: 1588664 | J53: 0.004451436122 | K53: 591667.0749 | L53: 29583.35375 | M53: 591667
C54: Fairfield | D54: CA | E54: 736762 | J54: 0.002064406936 | K54: 274392.7082 | L54: 13719.63541 | M54: 274392
C55: Fontana | D55: CA | E55: 1849155 | J55: 0.005181331838 | K55: 688681.8924 | L55: 34434.09462 | M55: 688681
C56: Fountain Valley | D56: CA | E56: 272549 | J56: 0.0007636822284 | K56: 101505.5856 | L56: 5075.279279 | M56: 101505
C57: Fremont | D57: CA | E57: 1208416 | J57: 0.003385981323 | K57: 450051.087 | L57: 22502.55435 | M57: 450051
C58: Fresno | D58: CA | E58: 6422423 | J58: 0.01799562761 | K58: 2391906.804 | L58: 119595.3402 | M58: 2391906
C59: Fresno County | D59: CA | E59: 3097273 | J59: 0.008678558155 | K59: 1153519.219 | L59: 57675.96094 | M59: 1153519
C60: Fullerton | D60: CA | E60: 1297550 | J60: 0.003635734769 | K60: 483247.3154 | L60: 24162.36577 | M60: 483247
C61: Garden Grove | D61: CA | E61: 1874072 | J61: 0.005251149265 | K61: 697961.7455 | L61: 34898.08727 | M61: 697961
C62: Gardena | D62: CA | E62: 621732 | J62: 0.001742092905 | K62: 231552.0172 | L62: 11577.60086 | M62: 231552
C63: Gilroy | D63: CA | E63: 460364 | J63: 0.00128993981 | K63: 171453.6373 | L63: 8572.681866 | M63: 171453
C64: Glendale | D64: CA | E64: 1634112 | J64: 0.004578781407 | K64: 608593.3005 | L64: 30429.66502 | M64: 608593
C65: Glendora | D65: CA | E65: 245502 | J65: 0.0006878965413 | K65: 91432.45534 | L65: 4571.622767 | M65: 91432
C66: Goleta | D66: CA | E66: 177194 | J66: 0.0004964975428 | K66: 65992.46642 | L66: 3299.623321 | M66: 65992
C67: Hanford | D67: CA | E67: 556879 | J67: 0.001560374816 | K67: 207398.776 | L67: 10369.9388 | M67: 207398
C68: Hawthorne | D68: CA | E68: 1155001 | J68: 0.003236312507 | K68: 430157.7069 | L68: 21507.88534 | M68: 430157
C69: Hayward | D69: CA | E69: 1228347 | J69: 0.00344182798 | K69: 457474.0011 | L69: 22873.70006 | M69: 457474
C70: Hemet | D70: CA | E70: 758673 | J70: 0.002125801552 | K70: 282553.035 | L70: 14127.65175 | M70: 282553
C71: Hesperia | D71: CA | E71: 953256 | J71: 0.002671023069 | K71: 355021.697 | L71: 17751.08485 | M71: 355021
C72: Huntington Beach | D72: CA | E72: 1033767 | J72: 0.00289661487 | K72: 385006.4564 | L72: 19250.32282 | M72: 385006
C73: Huntington Park | D73: CA | E73: 1228240 | J73: 0.003441528166 | K73: 457434.151 | L73: 22871.70755 | M73: 457434
C74: Indio | D74: CA | E74: 859367 | J74: 0.002407946115 | K74: 320054.5611 | L74: 16002.72805 | M74: 320054
C75: Inglewood | D75: CA | E75: 1386743 | J75: 0.003885653532 | K75: 516465.5172 | L75: 25823.27586 | M75: 516465
C76: Irvine | D76: CA | E76: 1428585 | J76: 0.004002894805 | K76: 532048.7581 | L76: 26602.4379 | M76: 532048
C77: Kern County | D77: CA | E77: 4071674 | J77: 0.01140882951 | K77: 1516415.961 | L77: 75820.79803 | M77: 1516415
C78: La Habra | D78: CA | E78: 732911 | J78: =E78/SUM($E$14:$E$201) -> 0.002053616435 | K78: =J78*$K$9 -> 272958.478 | L78: =K78*0.05 -> 13647.9239 | M78: =ROUNDDOWN(K78,0) -> 272958
C79: La Mesa | D79: CA | E79: 355856 | J79: 0.0009971084211 | K79: 132531.661 | L79: 6626.583048 | M79: 132531
C80: Laguna Niguel | D80: CA | E80: 289146 | J80: 0.0008101870182 | K80: 107686.8161 | L80: 5384.340806 | M80: 107686
C81: Lake Elsinore | D81: CA | E81: 468408 | J81: 0.001312479096 | K81: 174449.469 | L81: 8722.47345 | M81: 174449
C82: Lake Forest | D82: CA | E82: 416658 | J82: 0.00116747561 | K82: 155176.1858 | L82: 7758.809292 | M82: 155176
C83: Lakewood | D83: CA | E83: 510476 | J83: 0.001430353622 | K83: 190116.8792 | L83: 9505.843959 | M83: 190116
C84: Lancaster | D84: CA | E84: 1309617 | J84: 0.0036695465 | K84: 487741.4354 | L84: 24387.07177 | M84: 487741
C85: Livermore | D85: CA | E85: 393044 | J85: 0.001101309188 | K85: 146381.6098 | L85: 7319.080491 | M85: 146381
C86: Lodi | D86: CA | E86: 633771 | J86: 0.00177582618 | K86: 236035.7091 | L86: 11801.78545 | M86: 236035
C87: Lompoc | D87: CA | E87: 427887 | J87: 0.001198939265 | K87: 159358.209 | L87: 7967.910448 | M87: 159358
C88: Long Beach | D88: CA | E88: 5516208 | J88: 0.01545641341 | K88: 2054404.614 | L88: 102720.2307 | M88: 2054404
C89: Los Angeles | D89: CA | E89: 49416902 | J89: 0.1384661468 | K89: 18404366.1 | L89: 920218.3048 | M89: 18404366
C90: Los Angeles County | D90: CA | E90: 20779423 | J90: 0.05822393794 | K90: 7738892.821 | L90: 386944.6411 | M90: 7738892
C91: Lynwood | D91: CA | E91: 1189997 | J91: 0.00333437129 | K91: 443191.2879 | L91: 22159.56439 | M91: 443191
C92: Madera | D92: CA | E92: 795959 | J92: 0.002230276915 | K92: 296439.482 | L92: 14821.9741 | M92: 296439
C93: Marin County | D93: CA | E93: 1367509 | J93: 0.003831759869 | K93: 509302.1872 | L93: 25465.10936 | M93: 509302
C94: Menifee | D94: CA | E94: 474207 | J94: 0.001328727893 | K94: 176609.194 | L94: 8830.459701 | M94: 176609
C95: Merced | D95: CA | E95: 977648 | J95: 0.002739369446 | K95: 364106.024 | L95: 18205.3012 | M95: 364106
C96: Milpitas | D96: CA | E96: 449688 | J96: 0.001260025661 | K96: 167477.5683 | L96: 8373.878416 | M96: 167477
C97: Mission Viejo | D97: CA | E97: 389544 | J97: 0.001091502189 | K97: 145078.1028 | L97: 7253.905138 | M97: 145078
C98: Modesto | D98: CA | E98: 1827715 | J98: 0.005121256963 | K98: 680696.9805 | L98: 34034.84903 | M98: 680696
C99: Montebello | D99: CA | E99: 597005 | J99: 0.001672807858 | K99: 222342.9259 | L99: 11117.1463 | M99: 222342
C100: Monterey | D100: CA | E100: 219420 | J100: 0.000614814784 | K100: 81718.72062 | L100: 4085.936031 | M100: 81718
C101: Monterey County | D101: CA | E101: 1222025 | J101: 0.003424113738 | K101: 455119.4949 | L101: 22755.97474 | M101: 455119
C102: Monterey Park | D102: CA | E102: 600988 | J102: 0.001683968223 | K102: 223826.317 | L102: 11191.31585 | M102: 223826
C103: Moreno Valley | D103: CA | E103: 1940916 | J103: 0.005438446136 | K103: 722856.496 | L103: 36142.8248 | M103: 722856
C104: Mountain View | D104: CA | E104: 483532 | J104: 0.001354856541 | K104: 180082.1093 | L104: 9004.105465 | M104: 180082
C105: Napa | D105: CA | E105: 599742 | J105: 0.001680476931 | K105: 223362.2685 | L105: 11168.11342 | M105: 223362
C106: National City | D106: CA | E106: 741061 | J106: 0.002076452733 | K106: 275993.7874 | L106: 13799.68937 | M106: 275993
C107: Newport Beach | D107: CA | E107: 319676 | J107: 0.0008957320704 | K107: 119057.1221 | L107: 5952.856106 | M107: 119057
C108: Norwalk | D108: CA | E108: 1117199 | J108: 0.003130391313 | K108: 416079.0856 | L108: 20803.95428 | M108: 416079
C109: Oakland | D109: CA | E109: 6981948 | J109: 0.01956341651 | K109: 2600291.031 | L109: 130014.5515 | M109: 2600291
C110: Oceanside | D110: CA | E110: 1223477 | J110: 0.003428182242 | K110: 455660.2641 | L110: 22783.01321 | M110: 455660
C111: Ontario | D111: CA | E111: 1733990 | J111: 0.004858639537 | K111: 645790.9232 | L111: 32289.54616 | M111: 645790
C112: Orange | D112: CA | E112: 1144944 | J112: 0.003208132796 | K112: 426412.1724 | L112: 21320.60862 | M112: 426412
C113: Orange County | D113: CA | E113: 2397690 | J113: 0.006718326768 | K113: 892973.1075 | L113: 44648.65538 | M113: 892973
C114: Oxnard | D114: CA | E114: 2183330 | J114: 0.006117690103 | K114: 813138.8857 | L114: 40656.94428 | M114: 813138
C115: Palm Desert | D115: CA | E115: 322867 | J115: 0.0009046732516 | K115: 120245.5481 | L115: 6012.277407 | M115: 120245
C116: Palm Springs | D116: CA | E116: 362316 | J116: 0.001015209339 | K116: 134937.5626 | L116: 6746.878129 | M116: 134937
C117: Palmdale | D117: CA | E117: 1468328 | J117: 0.004114254681 | K117: 546850.2671 | L117: 27342.51336 | M117: 546850
C118: Palo Alto | D118: CA | E118: 436309 | J118: 0.001222537707 | K118: 162494.8194 | L118: 8124.740971 | M118: 162494
C119: Paradise | D119: CA | E119: 176404 | J119: 0.000494283963 | K119: 65698.24625 | L119: 3284.912313 | M119: 65698
C120: Paramount | D120: CA | E120: 825885 | J120: 0.002314129559 | K120: 307584.84 | L120: 15379.242 | M120: 307584
C121: Pasadena | D121: CA | E121: 1764254 | J121: 0.004943439258 | K121: 657062.1627 | L121: 32853.10813 | M121: 657062
C122: Perris | D122: CA | E122: 879290 | J122: 0.002463770355 | K122: 327474.4957 | L122: 16373.72479 | M122: 327474
C123: Petaluma | D123: CA | E123: 347465 | J123: 0.0009735968413 | K123: 129406.5959 | L123: 6470.329793 | M123: 129406
C124: Pico Rivera | D124: CA | E124: 638875 | J124: 0.001790127587 | K124: 237936.5948 | L124: 11896.82974 | M124: 237936
C125: Pittsburg | D125: CA | E125: 598748 | J125: 0.001677691743 | K125: 222992.0724 | L125: 11149.60362 | M125: 222992
C126: Placentia | D126: CA | E126: 404792 | J126: 0.001134227081 | K126: 150756.9244 | L126: 7537.846222 | M126: 150756
C127: Pleasanton | D127: CA | E127: 284763 | J127: 0.0007979058533 | K127: 106054.4528 | L127: 5302.722642 | M127: 106054
C128: Pomona | D128: CA | E128: 2013735 | J128: 0.005642484956 | K128: 749976.5193 | L128: 37498.82597 | M128: 749976
C129: Porterville | D129: CA | E129: 646000 | J129: 0.001810091835 | K129: 240590.1628 | L129: 12029.50814 | M129: 240590
C130: Rancho Cordova | D130: CA | E130: 537840 | J130: 0.001507027543 | K130: 200308.0699 | L130: 10015.4035 | M130: 200308
C131: Rancho Cucamonga | D131: CA | E131: 849028 | J131: 0.002378976239 | K131: 316204.0012 | L131: 15810.20006 | M131: 316204
C132: Rancho Santa Margarita | D132: CA | E132: 191106 | J132: 0.0005354789632 | K132: 71173.72083 | L132: 3558.686041 | M132: 71173
C133: Redding | D133: CA | E133: 634805 | J133: 0.001778723448 | K133: 236420.8023 | L133: 11821.04012 | M133: 236420
C134: Redondo Beach | D134: CA | E134: 246581 | J134: 0.000690919899 | K134: 91834.30795 | L134: 4591.715397 | M134: 91834
C135: Redwood City | D135: CA | E135: 655358 | J135: 0.001836312949 | K135: 244075.3683 | L135: 12203.76841 | M135: 244075
C136: Rialto | D136: CA | E136: 1126668 | J136: 0.003156923448 | K136: 419605.6309 | L136: 20980.28154 | M136: 419605
C137: Riverside | D137: CA | E137: 3057274 | J137: 0.008566480967 | K137: 1138622.367 | L137: 56931.11837 | M137: 1138622
C138: Riverside County | D138: CA | E138: 7531717 | J138: 0.02110386911 | K138: 2805041.825 | L138: 140252.0913 | M138: 2805041
C139: Rocklin | D139: CA | E139: 253758 | J139: 0.0007110298512 | K139: 94507.24231 | L139: 4725.362116 | M139: 94507
C140: Rosemead | D140: CA | E140: 646913 | J140: 0.001812650061 | K140: 240930.1919 | L140: 12046.5096 | M140: 240930
C141: Roseville | D141: CA | E141: 590613 | J141: 0.001654897475 | K141: 219962.3496 | L141: 10998.11748 | M141: 219962
C142: Sacramento | D142: CA | E142: 4442443 | J142: =E142/SUM($E$14:$E$201) -> 0.01244772415 | K142: =J142*$K$9 -> 1654501.679 | L142: =K142*0.05 -> 82725.08395 | M142: =ROUNDDOWN(K142,0) -> 1654501
C143: Sacramento County | D143: CA | E143: 5128032 | J143: 0.01436874435 | K143: 1909835.997 | L143: 95491.79983 | M143: 1909835
C144: Salinas | D144: CA | E144: 1897639 | J144: 0.005317183993 | K144: 706738.8173 | L144: 35336.94086 | M144: 706738
C145: San Bernardino | D145: CA | E145: 3057089 | J145: 0.008565962597 | K145: 1138553.468 | L145: 56927.67339 | M145: 1138553
C146: San Bernardino County | D146: CA | E146: 6519559 | J146: 0.01826780265 | K146: 2428083.222 | L146: 121404.1611 | M146: 2428083
C147: San Buenaventura | D147: CA | E147: 673678 | J147: 0.001887645584 | K147: 250898.2967 | L147: 12544.91484 | M147: 250898
C148: San Clemente | D148: CA | E148: 356291 | J148: 0.000998327291 | K148: 132693.6683 | L148: 6634.683413 | M148: 132693
C149: San Diego | D149: CA | E149: 10912952 | J149: 0.03057808872 | K149: 4064317.18 | L149: 203215.859 | M149: 4064317
C150: San Diego County | D150: CA | E150: 3731709 | J150: 0.01045624767 | K150: 1389802.594 | L150: 69490.12971 | M150: 1389802
C151: San Francisco | D151: CA | E151: 16431172 | J151: 0.04604013975 | K151: 6119471.125 | L151: 305973.5562 | M151: 6119471
C152: San Joaquin County | D152: CA | E152: 2469366 | J152: 0.006919162901 | K152: 919667.4427 | L152: 45983.37213 | M152: 919667
C153: San Jose | D153: CA | E153: 8196038 | J153: 0.02296529638 | K153: 3052455.289 | L153: 152622.7645 | M153: 3052455
C154: San Leandro | D154: CA | E154: 659582 | J154: 0.001848148596 | K154: 245648.5151 | L154: 12282.42576 | M154: 245648
C155: San Luis Obispo County | D155: CA | E155: 1644434 | J155: 0.004607703648 | K155: 612437.5291 | L155: 30621.87645 | M155: 612437
C156: San Marcos | D156: CA | E156: 601567 | J156: 0.00168559058 | K156: 224041.9543 | L156: 11202.09771 | M156: 224041
C157: San Mateo | D157: CA | E157: 644380 | J157: 0.001805552595 | K157: 239986.8252 | L157: 11999.34126 | M157: 239986
C158: San Mateo County | D158: CA | E158: 2279680 | J158: 0.006387662778 | K158: 849022.5733 | L158: 42451.12866 | M158: 849022
C159: Santa Ana | D159: CA | E159: 5284239 | J159: 0.01480643633 | K159: 1968012.262 | L159: 98400.6131 | M159: 1968012
C160: Santa Barbara | D160: CA | E160: 853991 | J160: 0.002392882564 | K160: 318052.3742 | L160: 15902.61871 | M160: 318052
C161: Santa Barbara County | D161: CA | E161: 1073897 | J161: 0.00300905912 | K161: 399952.0961 | L161: 19997.6048 | M161: 399952
C162: Santa Clara | D162: CA | E162: 903714 | J162: 0.002532206397 | K162: 336570.7405 | L162: 16828.53703 | M162: 336570
C163: Santa Clara County | D163: CA | E163: 1388546 | J163: 0.003890705537 | K163: 517137.0096 | L163: 25856.85048 | M163: 517137
C164: Santa Clarita | D164: CA | E164: 1108713 | J164: 0.003106613543 | K164: 412918.6396 | L164: 20645.93198 | M164: 412918
C165: Santa Cruz | D165: CA | E165: 498973 | J165: 0.001398122219 | K165: 185832.8101 | L165: 9291.640504 | M165: 185832
C166: Santa Maria | D166: CA | E166: 1382399 | J166: 0.003873481645 | K166: 514847.6787 | L166: 25742.38394 | M166: 514847
C167: Santa Monica | D167: CA | E167: 1031923 | J167: 0.002891447983 | K167: 384319.6944 | L167: 19215.98472 | M167: 384319
C168: Santa Rosa | D168: CA | E168: 1308618 | J168: 0.003666747302 | K168: 487369.3772 | L168: 24368.46886 | M168: 487369
C169: Santee | D169: CA | E169: 253260 | J169: 0.0007096344553 | K169: 94321.77188 | L169: 4716.088594 | M169: 94321
C170: Seaside | D170: CA | E170: 363989 | J170: 0.001019897085 | K170: 135560.639 | L170: 6778.031948 | M170: 135560
C171: Simi Valley | D171: CA | E171: 547246 | J171: 0.001533383152 | K171: 203811.1521 | L171: 10190.5576 | M171: 203811
C172: Sonoma County | D172: CA | E172: 1695117 | J172: 0.004749717401 | K172: 631313.4288 | L172: 31565.67144 | M172: 631313
C173: South Gate | D173: CA | E173: 1359496 | J173: 0.003809307445 | K173: 506317.9009 | L173: 25315.89504 | M173: 506317
C174: South San Francisco | D174: CA | E174: 410836 | J174: 0.001151162367 | K174: 153007.8949 | L174: 7650.394747 | M174: 153007
C175: Stanislaus County | D175: CA | E175: 2176833 | J175: 0.00609948551 | K175: 810719.2041 | L175: 40535.96021 | M175: 810719
C176: Stockton | D176: CA | E176: 3225590 | J176: 0.009038102356 | K176: 1201308.395 | L176: 60065.41976 | M176: 1201308
C177: Sunnyvale | D177: CA | E177: 1004607 | J177: 0.002814908557 | K177: 374146.3803 | L177: 18707.31902 | M177: 374146
C178: Temecula | D178: CA | E178: 515274 | J178: 0.001443797616 | K178: 191903.8012 | L178: 9595.190058 | M178: 191903
C179: Thousand Oaks | D179: CA | E179: 557958 | J179: 0.001563398174 | K179: 207800.6286 | L179: 10390.03143 | M179: 207800
C180: Torrance | D180: CA | E180: 837528 | J180: 0.002346753242 | K180: 311921.0493 | L180: 15596.05247 | M180: 311921
C181: Tulare | D181: CA | E181: 600163 | J181: 0.001681656573 | K181: 223519.0617 | L181: 11175.95309 | M181: 223519
C182: Turlock | D182: CA | E182: 583994 | J182: 0.001636351039 | K182: 217497.2315 | L182: 10874.86157 | M182: 217497
C183: Tustin | D183: CA | E183: 726651 | J183: 0.002036075916 | K183: 270627.0625 | L183: 13531.35313 | M183: 270627
C184: Union City | D184: CA | E184: 478601 | J184: 0.00134103988 | K184: 178245.654 | L184: 8912.282702 | M184: 178245
C185: Upland | D185: CA | E185: 523649 | J185: 0.001467264364 | K185: 195022.9074 | L185: 9751.145369 | M185: 195022
C186: Vacaville | D186: CA | E186: 453279 | J186: 0.001270087642 | K186: 168814.9666 | L186: 8440.748329 | M186: 168814
C187: Vallejo | D187: CA | E187: 952486 | J187: 0.002668865529 | K187: 354734.9254 | L187: 17736.74627 | M187: 354734
C188: Ventura County | D188: CA | E188: 1620399 | J188: 0.004540357584 | K188: 603486.1598 | L188: 30174.30799 | M188: 603486
C189: Victorville | D189: CA | E189: 1192603 | J189: 0.003341673301 | K189: 444161.842 | L189: 22208.0921 | M189: 444161
C190: Visalia | D190: CA | E190: 1188919 | J190: 0.003331350734 | K190: 442789.8077 | L190: 22139.49038 | M190: 442789
C191: Vista | D191: CA | E191: 770635 | J191: 0.002159319073 | K191: 287008.0497 | L191: 14350.40249 | M191: 287008
C192: Walnut Creek | D192: CA | E192: 260940 | J192: 0.0007311538134 | K192: 97182.03883 | L192: 4859.101941 | M192: 97182
C193: Watsonville | D193: CA | E193: 683245 | J193: 0.001914452316 | K193: 254461.3402 | L193: 12723.06701 | M193: 254461
C194: West Covina | D194: CA | E194: 732715 | J194: 0.002053067243 | K194: 272885.4816 | L194: 13644.27408 | M194: 272885
C195: West Sacramento | D195: CA | E195: 446077 | J195: 0.00124990764 | K195: 166132.7214 | L195: 8306.636072 | M195: 166132
C196: Westminster | D196: CA | E196: 962303 | J196: 0.00269637276 | K196: 358391.0765 | L196: 17919.55383 | M196: 358391
C197: Whittier | D197: CA | E197: 722211 | J197: 0.002023635038 | K197: 268973.4707 | L197: 13448.67353 | M197: 268973
C198: Woodland | D198: CA | E198: 469279 | J198: 0.001314919638 | K198: 174773.8561 | L198: 8738.692803 | M198: 174773
C199: Yorba Linda | D199: CA | E199: 200780 | J199: 0.0005625855087 | K199: 74776.61438 | L199: 3738.830719 | M199: 74776 | N199: Entitlement
C200: Yuba City | D200: CA | E200: 586416 | J200: 0.001643137482 | K200: 218399.2584 | L200: 10919.96292 | M200: 218399 | N200: =SUM(K14:K200) -> 122678271.8
... 164 more rows

Sheet Severe_housing_need_CHAS_17_21 (hidden)
A1: source | B1: sumlevel | C1: geoid | D1: name | E1: Total most severe housing need household | F1: st | G1: place | H1: T2_est1 | I1: T2_est2 | J1: T2_est3 | K1: T2_est4 | L1: T2_est5 | M1: T2_est6 | N1: T2_est7 | O1: T2_est8 | P1: T2_est9 | Q1: T2_est10 | R1: T2_est11 | S1: T2_est12 | T1: T2_est13 | U1: T2_est14 | V1: T2_est15 | W1: T2_est16 | X1: T2_est17 | Y1: T2_est18 | Z1: T2_est19 | AA1: T2_est20 | AB1: T2_est21 | AC1: T2_est22 | AD1: T2_est23 | AE1: T2_est24 | AF1: T2_est25 | AG1: T2_est26 | AH1: T2_est27 | AI1: T2_est28 | AJ1: T2_est29 | AK1: T2_est30 | AL1: T2_est31 | AM1: T2_est32 | AN1: T2_est33 | AO1: T2_est34 | AP1: T2_est35 | AQ1: T2_est36 | AR1: T2_est37 | AS1: T2_est38 | AT1: T2_est39 | AU1: T2_est40 | AV1: T2_est41 | AW1: T2_est42 | AX1: T2_est43 | AY1: T2_est44 | AZ1: T2_est45 | BA1: T2_est46 | BB1: T2_est47 | BC1: T2_est48 | BD1: T2_est49 | BE1: T2_est50 | BF1: T2_est51 | BG1: T2_est52 | BH1: T2_est53 | BI1: T2_est54 | BJ1: T2_est55 | BK1: T2_est56 | BL1: T2_est57 | BM1: T2_est58 | BN1: T2_est59 | BO1: T2_est60 | BP1: T2_est61 | BQ1: T2_est62 | BR1: T2_est63 | BS1: T2_est64 | BT1: T2_est65 | BU1: T2_est66 | BV1: T2_est67 | BW1: T2_est68 | BX1: T2_est69 | BY1: T2_est70 | BZ1: T2_est71 | CA1: T2_est72 | CB1: T2_est73 | CC1: T2_est74 | CD1: T2_est75 | CE1: T2_est76 | CF1: T2_est77 | CG1: T2_est78 | CH1: T2_est79 | CI1: T2_est80 | CJ1: T2_est81 | CK1: T2_est82 | CL1: T2_est83 | CM1: T2_est84 | CN1: T2_est85 | CO1: T2_est86 | CP1: T2_est87 | CQ1: T2_est88 | CR1: T2_est89 | CS1: T2_est90 | CT1: T2_est91 | CU1: T2_est92 | CV1: T2_est93 | CW1: T2_est94 | CX1: T2_est95 | CY1: T2_est96 | CZ1: T2_est97 | DA1: T2_est98 | DB1: T2_est99 | DC1: T2_est100 | DD1: T2_est101 | DE1: T2_est102 | DF1: T2_est103 | DG1: T2_est104 | DH1: T2_est105 | DI1: T2_est106 | DJ1: T2_est107 | DK1: T2_est108 | DL1: T2_est109 | DM1: T2_est110 | DN1: T2_est111 | DO1: T2_est112 | DP1: T2_est113 | DQ1: T2_est114 | DR1: T2_est115 | DS1: T2_est116 | DT1: T2_est117 | DU1: T2_est118 | DV1: T2_est119 | DW1: T2_est120 | DX1: T2_est121 | DY1: T2_est122 | DZ1: T2_est123 | EA1: T2_est124 | EB1: T2_est125 | EC1: T2_est126 | ED1: T2_est127 | EE1: T2_est128 | EF1: T2_est129 | EG1: T2_est130 | EH1: T2_est131 | EI1: T2_est132 | EJ1: T2_est133 | EK1: T2_est134 | EL1: T2_est135 | EM1: T2_est136 | EN1: T2_est137 | EO1: T2_est138 | EP1: T2_est139 | EQ1: T2_est140 | ER1: T2_est141 | ES1: T2_est142 | ET1: T2_est143 | EU1: T2_est144 | EV1: T2_est145 | EW1: T2_est146 | EX1: T2_est147 | EY1: T2_moe1 | EZ1: T2_moe2 | FA1: T2_moe3 | FB1: T2_moe4 | FC1: T2_moe5 | FD1: T2_moe6 | FE1: T2_moe7 | FF1: T2_moe8 | FG1: T2_moe9 | FH1: T2_moe10 | FI1: T2_moe11 | FJ1: T2_moe12 | FK1: T2_moe13 | FL1: T2_moe14 | FM1: T2_moe15 | FN1: T2_moe16 | FO1: T2_moe17 | FP1: T2_moe18 | FQ1: T2_moe19 | FR1: T2_moe20 | FS1: T2_moe21 | FT1: T2_moe22 | FU1: T2_moe23 | FV1: T2_moe24 | FW1: T2_moe25 | FX1: T2_moe26 | FY1: T2_moe27 | FZ1: T2_moe28 | GA1: T2_moe29 | GB1: T2_moe30 | GC1: T2_moe31 | GD1: T2_moe32 | GE1: T2_moe33 | GF1: T2_moe34 | GG1: T2_moe35 | GH1: T2_moe36 | GI1: T2_moe37 | GJ1: T2_moe38 | GK1: T2_moe39 | GL1: T2_moe40 | GM1: T2_moe41 | GN1: T2_moe42 | GO1: T2_moe43 | GP1: T2_moe44 | GQ1: T2_moe45 | GR1: T2_moe46 | GS1: T2_moe47 | GT1: T2_moe48 | GU1: T2_moe49 | GV1: T2_moe50 | GW1: T2_moe51 | GX1: T2_moe52 | GY1: T2_moe53 | GZ1: T2_moe54 | HA1: T2_moe55 | HB1: T2_moe56 | HC1: T2_moe57 | HD1: T2_moe58 | HE1: T2_moe59 | HF1: T2_moe60 | HG1: T2_moe61 | HH1: T2_moe62 | HI1: T2_moe63 | HJ1: T2_moe64 | HK1: T2_moe65 | HL1: T2_moe66 | HM1: T2_moe67 | HN1: T2_moe68 | HO1: T2_moe69 | HP1: T2_moe70 | HQ1: T2_moe71 | HR1: T2_moe72 | HS1: T2_moe73 | HT1: T2_moe74 | HU1: T2_moe75 | HV1: T2_moe76 | HW1: T2_moe77 | HX1: T2_moe78 | HY1: T2_moe79 | HZ1: T2_moe80 | IA1: T2_moe81 | IB1: T2_moe82 | IC1: T2_moe83 | ID1: T2_moe84 | IE1: T2_moe85 | IF1: T2_moe86 | IG1: T2_moe87 | IH1: T2_moe88 | II1: T2_moe89 | IJ1: T2_moe90 | IK1: T2_moe91 | IL1: T2_moe92 | IM1: T2_moe93 | IN1: T2_moe94 | IO1: T2_moe95 | IP1: T2_moe96 | IQ1: T2_moe97 | IR1: T2_moe98 | IS1: T2_moe99 | IT1: T2_moe100 | IU1: T2_moe101 | IV1: T2_moe102 | IW1: T2_moe103 | IX1: T2_moe104 | IY1: T2_moe105 | IZ1: T2_moe106 | JA1: T2_moe107 | JB1: T2_moe108 | JC1: T2_moe109 | JD1: T2_moe110 | JE1: T2_moe111 | JF1: T2_moe112 | JG1: T2_moe113 | JH1: T2_moe114 | JI1: T2_moe115 | JJ1: T2_moe116 | JK1: T2_moe117 | JL1: T2_moe118 | JM1: T2_moe119 | JN1: T2_moe120 | JO1: T2_moe121 | JP1: T2_moe122 | JQ1: T2_moe123 | JR1: T2_moe124 | JS1: T2_moe125 | JT1: T2_moe126 | JU1: T2_moe127 | JV1: T2_moe128 | JW1: T2_moe129 | JX1: T2_moe130 | JY1: T2_moe131 | JZ1: T2_moe132 | KA1: T2_moe133 | KB1: T2_moe134 | KC1: T2_moe135 | KD1: T2_moe136 | KE1: T2_moe137 | KF1: T2_moe138 | KG1: T2_moe139 | KH1: T2_moe140 | KI1: T2_moe141 | KJ1: T2_moe142 | KK1: T2_moe143 | KL1: T2_moe144 | KM1: T2_moe145 | KN1: T2_moe146 | KO1: T2_moe147
A2: 2017thru2021 | B2: 160 | C2: 1600000US0600135 | D2: Acalanes Ridge CDP | E2: =J2+ED2 -> 95 | F2: 06 | G2: 00135 | H2: 430 | I2: 320 | J2: 95 | K2: 20 | L2: 20 | M2: 0 | N2: 0 | O2: 0 | P2: 0 | Q2: 0 | R2: 30 | S2: 30 | T2: 0 | U2: 0 | V2: 0 | W2: 0 | X2: 0 | Y2: 45 | Z2: 45 | AA2: 0 | AB2: 0 | AC2: 0 | AD2: 0 | AE2: 0 | AF2: 0 | AG2: 0 | AH2: 0 | AI2: 0 | AJ2: 0 | AK2: 0 | AL2: 0 | AM2: 0 | AN2: 0 | AO2: 0 | AP2: 0 | AQ2: 0 | AR2: 0 | AS2: 0 | AT2: 230 | AU2: 0 | AV2: 0 | AW2: 0 | AX2: 0 | AY2: 0 | AZ2: 0 | BA2: 0 | BB2: 20 | BC2: 20 | BD2: 0 | BE2: 0 | BF2: 0 | BG2: 0 | BH2: 0 | BI2: 15 | BJ2: 15 | BK2: 0 | BL2: 0 | BM2: 0 | BN2: 0 | BO2: 0 | BP2: 0 | BQ2: 0 | BR2: 0 | BS2: 0 | BT2: 0 | BU2: 0 | BV2: 0 | BW2: 190 | BX2: 155 | BY2: 0 | BZ2: 20 | CA2: 0 | CB2: 0 | CC2: 0 | CD2: 110 | CE2: 0 | CF2: 0 | CG2: 0 | CH2: 0 | CI2: 0 | CJ2: 0 | CK2: 0 | CL2: 0 | CM2: 0 | CN2: 0 | CO2: 0 | CP2: 0 | CQ2: 0 | CR2: 0 | CS2: 0 | CT2: 0 | CU2: 0 | CV2: 0 | CW2: 0 | CX2: 0 | CY2: 0 | CZ2: 0 | DA2: 0 | DB2: 0 | DC2: 0 | DD2: 0 | DE2: 0 | DF2: 0 | DG2: 0 | DH2: 0 | DI2: 0 | DJ2: 0 | DK2: 0 | DL2: 0 | DM2: 0 | DN2: 0 | DO2: 110 | DP2: 0 | DQ2: 0 | DR2: 0 | DS2: 0 | DT2: 0 | DU2: 0 | DV2: 0 | DW2: 0 | DX2: 0 | DY2: 0 | DZ2: 0 | EA2: 0 | EB2: 0 | EC2: 0 | ED2: 0 | EE2: 0 | EF2: 0 | EG2: 0 | EH2: 0 | EI2: 0 | EJ2: 0 | EK2: 25 | EL2: 0 | EM2: 0 | EN2: 25 | EO2: 0 | EP2: 0 | EQ2: 0 | ER2: 85 | ES2: 85 | ET2: 0 | EU2: 0 | EV2: 0 | EW2: 0 | EX2: 0 | EY2: 125 | EZ2: 111 | FA2: 78 | FB2: 26 | FC2: 26 | FD2: 13 | FE2: 13 | FF2: 13 | FG2: 13 | FH2: 13 | FI2: 34 | FJ2: 34 | FK2: 13 | FL2: 13 | FM2: 13 | FN2: 13 | FO2: 13 | FP2: 67 | FQ2: 67 | FR2: 13 | FS2: 13 | FT2: 13 | FU2: 13 | FV2: 13 | FW2: 13 | FX2: 13 | FY2: 13 | FZ2: 13 | GA2: 13 | GB2: 13 | GC2: 13 | GD2: 13 | GE2: 13 | GF2: 13 | GG2: 13 | GH2: 13 | GI2: 13 | GJ2: 13 | GK2: 103 | GL2: 13 | GM2: 13 | GN2: 13 | GO2: 13 | GP2: 13 | GQ2: 13 | GR2: 13 | GS2: 33 | GT2: 33 | GU2: 13 | GV2: 13 | GW2: 13 | GX2: 13 | GY2: 13 | GZ2: 33 | HA2: 33 | HB2: 13 | HC2: 13 | HD2: 13 | HE2: 13 | HF2: 13 | HG2: 13 | HH2: 13 | HI2: 13 | HJ2: 13 | HK2: 13 | HL2: 13 | HM2: 13 | HN2: 95 | HO2: 92 | HP2: 13 | HQ2: 33 | HR2: 13 | HS2: 13 | HT2: 13 | HU2: 95 | HV2: 13 | HW2: 13 | HX2: 13 | HY2: 13 | HZ2: 13 | IA2: 13 | IB2: 13 | IC2: 13 | ID2: 13 | IE2: 13 | IF2: 13 | IG2: 13 | IH2: 13 | II2: 13 | IJ2: 13 | IK2: 13 | IL2: 13 | IM2: 13 | IN2: 13 | IO2: 13 | IP2: 13 | IQ2: 13 | IR2: 13 | IS2: 13 | IT2: 13 | IU2: 13 | IV2: 13 | IW2: 13 | IX2: 13 | IY2: 13 | IZ2: 13 | JA2: 13 | JB2: 13 | JC2: 13 | JD2: 13 | JE2: 13 | JF2: 95 | JG2: 13 | JH2: 13 | JI2: 13 | JJ2: 13 | JK2: 13 | JL2: 13 | JM2: 13 | JN2: 13 | JO2: 13 | JP2: 13 | JQ2: 13 | JR2: 13 | JS2: 13 | JT2: 13 | JU2: 13 | JV2: 13 | JW2: 13 | JX2: 13 | JY2: 13 | JZ2: 13 | KA2: 13 | KB2: 42 | KC2: 13 | KD2: 13 | KE2: 42 | KF2: 13 | KG2: 13 | KH2: 13 | KI2: 83 | KJ2: 83 | KK2: 13 | KL2: 13 | KM2: 13 | KN2: 13 | KO2: 13
A3: 2017thru2021 | B3: 160 | C3: 1600000US0600156 | D3: Acampo CDP | E3: =J3+ED3 -> 40 | F3: 06 | G3: 00156 | H3: 110 | I3: 20 | J3: 20 | K3: 0 | L3: 0 | M3: 0 | N3: 0 | O3: 0 | P3: 0 | Q3: 0 | R3: 0 | S3: 0 | T3: 0 | U3: 0 | V3: 0 | W3: 0 | X3: 0 | Y3: 0 | Z3: 0 | AA3: 0 | AB3: 0 | AC3: 0 | AD3: 0 | AE3: 0 | AF3: 0 | AG3: 0 | AH3: 0 | AI3: 0 | AJ3: 0 | AK3: 0 | AL3: 0 | AM3: 20 | AN3: 20 | AO3: 0 | AP3: 0 | AQ3: 0 | AR3: 0 | AS3: 0 | AT3: 0 | AU3: 0 | AV3: 0 | AW3: 0 | AX3: 0 | AY3: 0 | AZ3: 0 | BA3: 0 | BB3: 0 | BC3: 0 | BD3: 0 | BE3: 0 | BF3: 0 | BG3: 0 | BH3: 0 | BI3: 0 | BJ3: 0 | BK3: 0 | BL3: 0 | BM3: 0 | BN3: 0 | BO3: 0 | BP3: 0 | BQ3: 0 | BR3: 0 | BS3: 0 | BT3: 0 | BU3: 0 | BV3: 0 | BW3: 0 | BX3: 0 | BY3: 0 | BZ3: 0 | CA3: 0 | CB3: 0 | CC3: 0 | CD3: 90 | CE3: 0 | CF3: 0 | CG3: 0 | CH3: 0 | CI3: 0 | CJ3: 0 | CK3: 0 | CL3: 0 | CM3: 0 | CN3: 0 | CO3: 0 | CP3: 0 | CQ3: 0 | CR3: 0 | CS3: 0 | CT3: 0 | CU3: 0 | CV3: 0 | CW3: 0 | CX3: 0 | CY3: 0 | CZ3: 0 | DA3: 0 | DB3: 0 | DC3: 0 | DD3: 0 | DE3: 0 | DF3: 0 | DG3: 0 | DH3: 0 | DI3: 0 | DJ3: 0 | DK3: 0 | DL3: 0 | DM3: 0 | DN3: 0 | DO3: 90 | DP3: 0 | DQ3: 0 | DR3: 0 | DS3: 0 | DT3: 0 | DU3: 0 | DV3: 0 | DW3: 70 | DX3: 70 | DY3: 0 | DZ3: 0 | EA3: 0 | EB3: 0 | EC3: 0 | ED3: 20 | EE3: 20 | EF3: 0 | EG3: 0 | EH3: 0 | EI3: 0 | EJ3: 0 | EK3: 0 | EL3: 0 | EM3: 0 | EN3: 0 | EO3: 0 | EP3: 0 | EQ3: 0 | ER3: 0 | ES3: 0 | ET3: 0 | EU3: 0 | EV3: 0 | EW3: 0 | EX3: 0 | EY3: 108 | EZ3: 30 | FA3: 30 | FB3: 13 | FC3: 13 | FD3: 13 | FE3: 13 | FF3: 13 | FG3: 13 | FH3: 13 | FI3: 13 | FJ3: 13 | FK3: 13 | FL3: 13 | FM3: 13 | FN3: 13 | FO3: 13 | FP3: 13 | FQ3: 13 | FR3: 13 | FS3: 13 | FT3: 13 | FU3: 13 | FV3: 13 | FW3: 13 | FX3: 13 | FY3: 13 | FZ3: 13 | GA3: 13 | GB3: 13 | GC3: 13 | GD3: 30 | GE3: 30 | GF3: 13 | GG3: 13 | GH3: 13 | GI3: 13 | GJ3: 13 | GK3: 13 | GL3: 13 | GM3: 13 | GN3: 13 | GO3: 13 | GP3: 13 | GQ3: 13 | GR3: 13 | GS3: 13 | GT3: 13 | GU3: 13 | GV3: 13 | GW3: 13 | GX3: 13 | GY3: 13 | GZ3: 13 | HA3: 13 | HB3: 13 | HC3: 13 | HD3: 13 | HE3: 13 | HF3: 13 | HG3: 13 | HH3: 13 | HI3: 13 | HJ3: 13 | HK3: 13 | HL3: 13 | HM3: 13 | HN3: 13 | HO3: 13 | HP3: 13 | HQ3: 13 | HR3: 13 | HS3: 13 | HT3: 13 | HU3: 101 | HV3: 13 | HW3: 13 | HX3: 13 | HY3: 13 | HZ3: 13 | IA3: 13 | IB3: 13 | IC3: 13 | ID3: 13 | IE3: 13 | IF3: 13 | IG3: 13 | IH3: 13 | II3: 13 | IJ3: 13 | IK3: 13 | IL3: 13 | IM3: 13 | IN3: 13 | IO3: 13 | IP3: 13 | IQ3: 13 | IR3: 13 | IS3: 13 | IT3: 13 | IU3: 13 | IV3: 13 | IW3: 13 | IX3: 13 | IY3: 13 | IZ3: 13 | JA3: 13 | JB3: 13 | JC3: 13 | JD3: 13 | JE3: 13 | JF3: 101 | JG3: 13 | JH3: 13 | JI3: 13 | JJ3: 13 | JK3: 13 | JL3: 13 | JM3: 13 | JN3: 106 | JO3: 106 | JP3: 13 | JQ3: 13 | JR3: 13 | JS3: 13 | JT3: 13 | JU3: 32 | JV3: 32 | JW3: 13 | JX3: 13 | JY3: 13 | JZ3: 13 | KA3: 13 | KB3: 13 | KC3: 13 | KD3: 13 | KE3: 13 | KF3: 13 | KG3: 13 | KH3: 13 | KI3: 13 | KJ3: 13 | KK3: 13 | KL3: 13 | KM3: 13 | KN3: 13 | KO3: 13
A4: 2017thru2021 | B4: 160 | C4: 1600000US0600212 | D4: Acton CDP | E4: 505 | F4: 06 | G4: 00212 | H4: 2520 | I4: 2295 | J4: 470 | K4: 170 | L4: 115 | M4: 0 | N4: 0 | O4: 0 | P4: 0 | Q4: 55 | R4: 50 | S4: 30 | T4: 0 | U4: 0 | V4: 0 | W4: 0 | X4: 20 | Y4: 145 | Z4: 130 | AA4: 0 | AB4: 15 | AC4: 0 | AD4: 0 | AE4: 0 | AF4: 70 | AG4: 50 | AH4: 0 | AI4: 0 | AJ4: 0 | AK4: 0 | AL4: 20 | AM4: 40 | AN4: 40 | AO4: 0 | AP4: 0 | AQ4: 0 | AR4: 0 | AS4: 0 | AT4: 1825 | AU4: 85 | AV4: 65 | AW4: 0 | AX4: 0 | AY4: 0 | AZ4: 0 | BA4: 20 | BB4: 120 | BC4: 85 | BD4: 0 | BE4: 10 | BF4: 0 | BG4: 0 | BH4: 25 | BI4: 185 | BJ4: 135 | BK4: 0 | BL4: 0 | BM4: 0 | BN4: 0 | BO4: 50 | BP4: 205 | BQ4: 105 | BR4: 0 | BS4: 0 | BT4: 0 | BU4: 0 | BV4: 90 | BW4: 1225 | BX4: 965 | BY4: 4 | BZ4: 50 | CA4: 0 | CB4: 0 | CC4: 210 | CD4: 220 | CE4: 50 | CF4: 40 | CG4: 20 | CH4: 0 | CI4: 0 | CJ4: 0 | CK4: 0 | CL4: 25 | CM4: 0 | CN4: 0 | CO4: 0 | CP4: 0 | CQ4: 0 | CR4: 0 | CS4: 0 | CT4: 0 | CU4: 0 | CV4: 0 | CW4: 0 | CX4: 0 | CY4: 0 | CZ4: 0 | DA4: 0 | DB4: 0 | DC4: 0 | DD4: 0 | DE4: 0 | DF4: 0 | DG4: 0 | DH4: 10 | DI4: 0 | DJ4: 0 | DK4: 0 | DL4: 0 | DM4: 0 | DN4: 10 | DO4: 170 | DP4: 10 | DQ4: 10 | DR4: 0 | DS4: 0 | DT4: 0 | DU4: 0 | DV4: 0 | DW4: 75 | DX4: 10 | DY4: 0 | DZ4: 0 | EA4: 0 | EB4: 0 | EC4: 70 | ED4: 35 | EE4: 35 | EF4: 0 | EG4: 0 | EH4: 0 | EI4: 0 | EJ4: 0 | EK4: 20 | EL4: 20 | EM4: 0 | EN4: 0 | EO4: 0 | EP4: 0 | EQ4: 0 | ER4: 35 | ES4: 35 | ET4: 0 | EU4: 0 | EV4: 0 | EW4: 0 | EX4: 0 | EY4: 217 | EZ4: 210 | FA4: 133 | FB4: 92 | FC4: 82 | FD4: 19 | FE4: 19 | FF4: 19 | FG4: 19 | FH4: 58 | FI4: 41 | FJ4: 33 | FK4: 19 | FL4: 19 | FM4: 19 | FN4: 19 | FO4: 25 | FP4: 78 | FQ4: 76 | FR4: 19 | FS4: 22 | FT4: 19 | FU4: 19 | FV4: 19 | FW4: 44 | FX4: 40 | FY4: 19 | FZ4: 19 | GA4: 19 | GB4: 19 | GC4: 24 | GD4: 32 | GE4: 32 | GF4: 19 | GG4: 19 | GH4: 19 | GI4: 19 | GJ4: 19 | GK4: 231 | GL4: 74 | GM4: 67 | GN4: 19 | GO4: 19 | GP4: 19 | GQ4: 19 | GR4: 23 | GS4: 80 | GT4: 66 | GU4: 19 | GV4: 13 | GW4: 19 | GX4: 19 | GY4: 40 | GZ4: 74 | HA4: 70 | HB4: 19 | HC4: 19 | HD4: 19 | HE4: 19 | HF4: 48 | HG4: 107 | HH4: 62 | HI4: 19 | HJ4: 19 | HK4: 19 | HL4: 19 | HM4: 82 | HN4: 194 | HO4: 185 | HP4: 10 | HQ4: 40 | HR4: 19 | HS4: 19 | HT4: 96 | HU4: 117 | HV4: 40 | HW4: 35 | HX4: 22 | HY4: 19 | HZ4: 19 | IA4: 19 | IB4: 19 | IC4: 36 | ID4: 19 | IE4: 19 | IF4: 19 | IG4: 19 | IH4: 19 | II4: 19 | IJ4: 19 | IK4: 19 | IL4: 19 | IM4: 19 | IN4: 19 | IO4: 19 | IP4: 19 | IQ4: 19 | IR4: 19 | IS4: 19 | IT4: 19 | IU4: 19 | IV4: 19 | IW4: 19 | IX4: 19 | IY4: 13 | IZ4: 19 | JA4: 19 | JB4: 19 | JC4: 19 | JD4: 19 | JE4: 13 | JF4: 110 | JG4: 15 | JH4: 15 | JI4: 19 | JJ4: 19 | JK4: 19 | JL4: 19 | JM4: 19 | JN4: 78 | JO4: 15 | JP4: 19 | JQ4: 19 | JR4: 19 | JS4: 19 | JT4: 76 | JU4: 54 | JV4: 54 | JW4: 19 | JX4: 19 | JY4: 19 | JZ4: 19 | KA4: 19 | KB4: 31 | KC4: 31 | KD4: 19 | KE4: 19 | KF4: 19 | KG4: 19 | KH4: 19 | KI4: 26 | KJ4: 26 | KK4: 19 | KL4: 19 | KM4: 19 | KN4: 19 | KO4: 19
A5: 2017thru2021 | B5: 160 | C5: 1600000US0600296 | D5: Adelanto | E5: 1415 | F5: 06 | G5: 00296 | H5: 8450 | I5: 5000 | J5: 1005 | K5: 210 | L5: 55 | M5: 0 | N5: 0 | O5: 0 | P5: 0 | Q5: 160 | R5: 265 | S5: 40 | T5: 90 | U5: 0 | V5: 0 | W5: 0 | X5: 135 | Y5: 315 | Z5: 20 | AA5: 10 | AB5: 0 | AC5: 0 | AD5: 0 | AE5: 275 | AF5: 185 | AG5: 0 | AH5: 0 | AI5: 0 | AJ5: 0 | AK5: 0 | AL5: 185 | AM5: 25 | AN5: 0 | AO5: 0 | AP5: 0 | AQ5: 0 | AR5: 0 | AS5: 25 | AT5: 3995 | AU5: 200 | AV5: 45 | AW5: 10 | AX5: 0 | AY5: 0 | AZ5: 0 | BA5: 150 | BB5: 535 | BC5: 55 | BD5: 65 | BE5: 0 | BF5: 0 | BG5: 0 | BH5: 415 | BI5: 950 | BJ5: 120 | BK5: 65 | BL5: 55 | BM5: 0 | BN5: 0 | BO5: 685 | BP5: 780 | BQ5: 65 | BR5: 185 | BS5: 0 | BT5: 0 | BU5: 0 | BV5: 525 | BW5: 1530 | BX5: 230 | BY5: 175 | BZ5: 75 | CA5: 0 | CB5: 0 | CC5: 945 | CD5: 3450 | CE5: 1740 | CF5: 645 | CG5: 85 | CH5: 295 | CI5: 4 | CJ5: 0 | CK5: 10 | CL5: 250 | CM5: 465 | CN5: 70 | CO5: 70 | CP5: 0 | CQ5: 0 | CR5: 0 | CS5: 320 | CT5: 380 | CU5: 50 | CV5: 110 | CW5: 20 | CX5: 0 | CY5: 0 | CZ5: 200 | DA5: 90 | DB5: 0 | DC5: 0 | DD5: 0 | DE5: 0 | DF5: 0 | DG5: 90 | DH5: 165 | DI5: 0 | DJ5: 130 | DK5: 0 | DL5: 0 | DM5: 0 | DN5: 35 | DO5: 1710 | DP5: 250 | DQ5: 4 | DR5: 40 | DS5: 4 | DT5: 0 | DU5: 0 | DV5: 200 | DW5: 205 | DX5: 85 | DY5: 15 | DZ5: 4 | EA5: 0 | EB5: 0 | EC5: 85 | ED5: 410 | EE5: 10 | EF5: 115 | EG5: 15 | EH5: 0 | EI5: 0 | EJ5: 265 | EK5: 190 | EL5: 45 | EM5: 30 | EN5: 0 | EO5: 0 | EP5: 0 | EQ5: 115 | ER5: 655 | ES5: 70 | ET5: 260 | EU5: 0 | EV5: 0 | EW5: 0 | EX5: 315 | EY5: 373 | EZ5: 466 | FA5: 309 | FB5: 108 | FC5: 47 | FD5: 28 | FE5: 28 | FF5: 28 | FG5: 28 | FH5: 95 | FI5: 169 | FJ5: 42 | FK5: 108 | FL5: 28 | FM5: 28 | FN5: 28 | FO5: 90 | FP5: 229 | FQ5: 30 | FR5: 24 | FS5: 28 | FT5: 28 | FU5: 28 | FV5: 228 | FW5: 106 | FX5: 28 | FY5: 28 | FZ5: 28 | GA5: 28 | GB5: 28 | GC5: 106 | GD5: 31 | GE5: 28 | GF5: 28 | GG5: 28 | GH5: 28 | GI5: 28 | GJ5: 31 | GK5: 490 | GL5: 119 | GM5: 45 | GN5: 13 | GO5: 28 | GP5: 28 | GQ5: 28 | GR5: 108 | GS5: 206 | GT5: 45 | GU5: 71 | GV5: 28 | GW5: 28 | GX5: 28 | GY5: 183 | GZ5: 321 | HA5: 81 | HB5: 73 | HC5: 61 | HD5: 28 | HE5: 28 | HF5: 283 | HG5: 264 | HH5: 51 | HI5: 147 | HJ5: 28 | HK5: 28 | HL5: 28 | HM5: 217 | HN5: 314 | HO5: 101 | HP5: 113 | HQ5: 75 | HR5: 28 | HS5: 28 | HT5: 241 | HU5: 388 | HV5: 330 | HW5: 204 | HX5: 75 | HY5: 166 | HZ5: 15 | IA5: 28 | IB5: 15 | IC5: 132 | ID5: 174 | IE5: 67 | IF5: 58 | IG5: 28 | IH5: 28 | II5: 28 | IJ5: 136 | IK5: 165 | IL5: 49 | IM5: 61 | IN5: 34 | IO5: 28 | IP5: 28 | IQ5: 132 | IR5: 68 | IS5: 28 | IT5: 28 | IU5: 28 | IV5: 28 | IW5: 28 | IX5: 68 | IY5: 121 | IZ5: 28 | JA5: 115 | JB5: 28 | JC5: 28 | JD5: 28 | JE5: 37 | JF5: 365 | JG5: 208 | JH5: 11 | JI5: 52 | JJ5: 15 | JK5: 28 | JL5: 28 | JM5: 204 | JN5: 134 | JO5: 65 | JP5: 30 | JQ5: 16 | JR5: 28 | JS5: 28 | JT5: 99 | JU5: 171 | JV5: 14 | JW5: 80 | JX5: 25 | JY5: 28 | JZ5: 28 | KA5: 141 | KB5: 121 | KC5: 44 | KD5: 36 | KE5: 28 | KF5: 28 | KG5: 28 | KH5: 104 | KI5: 245 | KJ5: 62 | KK5: 177 | KL5: 28 | KM5: 28 | KN5: 28 | KO5: 155
A6: 2017thru2021 | B6: 160 | C6: 1600000US0600310 | D6: Adin CDP | E6: 0 | F6: 06 | G6: 00310 | H6: 80 | I6: 75 | J6: 0 | K6: 0 | L6: 0 | M6: 0 | N6: 0 | O6: 0 | P6: 0 | Q6: 0 | R6: 0 | S6: 0 | T6: 0 | U6: 0 | V6: 0 | W6: 0 | X6: 0 | Y6: 0 | Z6: 0 | AA6: 0 | AB6: 0 | AC6: 0 | AD6: 0 | AE6: 0 | AF6: 0 | AG6: 0 | AH6: 0 | AI6: 0 | AJ6: 0 | AK6: 0 | AL6: 0 | AM6: 0 | AN6: 0 | AO6: 0 | AP6: 0 | AQ6: 0 | AR6: 0 | AS6: 0 | AT6: 75 | AU6: 0 | AV6: 0 | AW6: 0 | AX6: 0 | AY6: 0 | AZ6: 0 | BA6: 0 | BB6: 25 | BC6: 25 | BD6: 0 | BE6: 0 | BF6: 0 | BG6: 0 | BH6: 0 | BI6: 45 | BJ6: 45 | BK6: 0 | BL6: 0 | BM6: 0 | BN6: 0 | BO6: 0 | BP6: 0 | BQ6: 0 | BR6: 0 | BS6: 0 | BT6: 0 | BU6: 0 | BV6: 0 | BW6: 4 | BX6: 4 | BY6: 0 | BZ6: 0 | CA6: 0 | CB6: 0 | CC6: 0 | CD6: 10 | CE6: 10 | CF6: 10 | CG6: 10 | CH6: 0 | CI6: 0 | CJ6: 0 | CK6: 0 | CL6: 0 | CM6: 0 | CN6: 0 | CO6: 0 | CP6: 0 | CQ6: 0 | CR6: 0 | CS6: 0 | CT6: 0 | CU6: 0 | CV6: 0 | CW6: 0 | CX6: 0 | CY6: 0 | CZ6: 0 | DA6: 0 | DB6: 0 | DC6: 0 | DD6: 0 | DE6: 0 | DF6: 0 | DG6: 0 | DH6: 0 | DI6: 0 | DJ6: 0 | DK6: 0 | DL6: 0 | DM6: 0 | DN6: 0 | DO6: 0 | DP6: 0 | DQ6: 0 | DR6: 0 | DS6: 0 | DT6: 0 | DU6: 0 | DV6: 0 | DW6: 0 | DX6: 0 | DY6: 0 | DZ6: 0 | EA6: 0 | EB6: 0 | EC6: 0 | ED6: 0 | EE6: 0 | EF6: 0 | EG6: 0 | EH6: 0 | EI6: 0 | EJ6: 0 | EK6: 0 | EL6: 0 | EM6: 0 | EN6: 0 | EO6: 0 | EP6: 0 | EQ6: 0 | ER6: 0 | ES6: 0 | ET6: 0 | EU6: 0 | EV6: 0 | EW6: 0 | EX6: 0 | EY6: 42 | EZ6: 40 | FA6: 13 | FB6: 13 | FC6: 13 | FD6: 13 | FE6: 13 | FF6: 13 | FG6: 13 | FH6: 13 | FI6: 13 | FJ6: 13 | FK6: 13 | FL6: 13 | FM6: 13 | FN6: 13 | FO6: 13 | FP6: 13 | FQ6: 13 | FR6: 13 | FS6: 13 | FT6: 13 | FU6: 13 | FV6: 13 | FW6: 13 | FX6: 13 | FY6: 13 | FZ6: 13 | GA6: 13 | GB6: 13 | GC6: 13 | GD6: 13 | GE6: 13 | GF6: 13 | GG6: 13 | GH6: 13 | GI6: 13 | GJ6: 13 | GK6: 40 | GL6: 13 | GM6: 13 | GN6: 13 | GO6: 13 | GP6: 13 | GQ6: 13 | GR6: 13 | GS6: 26 | GT6: 26 | GU6: 13 | GV6: 13 | GW6: 13 | GX6: 13 | GY6: 13 | GZ6: 31 | HA6: 31 | HB6: 13 | HC6: 13 | HD6: 13 | HE6: 13 | HF6: 13 | HG6: 13 | HH6: 13 | HI6: 13 | HJ6: 13 | HK6: 13 | HL6: 13 | HM6: 13 | HN6: 12 | HO6: 12 | HP6: 13 | HQ6: 13 | HR6: 13 | HS6: 13 | HT6: 13 | HU6: 15 | HV6: 15 | HW6: 15 | HX6: 15 | HY6: 13 | HZ6: 13 | IA6: 13 | IB6: 13 | IC6: 13 | ID6: 13 | IE6: 13 | IF6: 13 | IG6: 13 | IH6: 13 | II6: 13 | IJ6: 13 | IK6: 13 | IL6: 13 | IM6: 13 | IN6: 13 | IO6: 13 | IP6: 13 | IQ6: 13 | IR6: 13 | IS6: 13 | IT6: 13 | IU6: 13 | IV6: 13 | IW6: 13 | IX6: 13 | IY6: 13 | IZ6: 13 | JA6: 13 | JB6: 13 | JC6: 13 | JD6: 13 | JE6: 13 | JF6: 13 | JG6: 13 | JH6: 13 | JI6: 13 | JJ6: 13 | JK6: 13 | JL6: 13 | JM6: 13 | JN6: 13 | JO6: 13 | JP6: 13 | JQ6: 13 | JR6: 13 | JS6: 13 | JT6: 13 | JU6: 13 | JV6: 13 | JW6: 13 | JX6: 13 | JY6: 13 | JZ6: 13 | KA6: 13 | KB6: 13 | KC6: 13 | KD6: 13 | KE6: 13 | KF6: 13 | KG6: 13 | KH6: 13 | KI6: 13 | KJ6: 13 | KK6: 13 | KL6: 13 | KM6: 13 | KN6: 13 | KO6: 13
A7: 2017thru2021 | B7: 160 | C7: 1600000US0600394 | D7: Agoura Hills | E7: 825 | F7: 06 | G7: 00394 | H7: 7315 | I7: 5860 | J7: 780 | K7: 230 | L7: 155 | M7: 0 | N7: 30 | O7: 0 | P7: 0 | Q7: 35 | R7: 260 | S7: 115 | T7: 0 | U7: 0 | V7: 0 | W7: 0 | X7: 120 | Y7: 110 | Z7: 55 | AA7: 0 | AB7: 55 | AC7: 0 | AD7: 0 | AE7: 0 | AF7: 50 | AG7: 50 | AH7: 0 | AI7: 0 | AJ7: 0 | AK7: 0 | AL7: 0 | AM7: 125 | AN7: 105 | AO7: 0 | AP7: 0 | AQ7: 0 | AR7: 0 | AS7: 10 | AT7: 5080 | AU7: 95 | AV7: 95 | AW7: 0 | AX7: 0 | AY7: 0 | AZ7: 0 | BA7: 0 | BB7: 50 | BC7: 50 | BD7: 0 | BE7: 0 | BF7: 0 | BG7: 0 | BH7: 0 | BI7: 510 | BJ7: 435 | BK7: 10 | BL7: 30 | BM7: 0 | BN7: 0 | BO7: 35 | BP7: 365 | BQ7: 355 | BR7: 0 | BS7: 0 | BT7: 0 | BU7: 0 | BV7: 0 | BW7: 4055 | BX7: 3225 | BY7: 0 | BZ7: 330 | CA7: 0 | CB7: 0 | CC7: 275 | CD7: 1455 | CE7: 455 | CF7: 110 | CG7: 85 | CH7: 10 | CI7: 0 | CJ7: 0 | CK7: 0 | CL7: 10 | CM7: 15 | CN7: 15 | CO7: 0 | CP7: 0 | CQ7: 0 | CR7: 0 | CS7: 0 | CT7: 100 | CU7: 70 | CV7: 0 | CW7: 0 | CX7: 0 | CY7: 0 | CZ7: 25 | DA7: 165 | DB7: 165 | DC7: 0 | DD7: 0 | DE7: 0 | DF7: 0 | DG7: 0 | DH7: 65 | DI7: 65 | DJ7: 0 | DK7: 0 | DL7: 0 | DM7: 0 | DN7: 0 | DO7: 1000 | DP7: 65 | DQ7: 50 | DR7: 15 | DS7: 0 | DT7: 0 | DU7: 0 | DV7: 0 | DW7: 45 | DX7: 20 | DY7: 0 | DZ7: 25 | EA7: 0 | EB7: 0 | EC7: 0 | ED7: 45 | EE7: 10 | EF7: 0 | EG7: 0 | EH7: 0 | EI7: 0 | EJ7: 35 | EK7: 45 | EL7: 35 | EM7: 0 | EN7: 10 | EO7: 0 | EP7: 0 | EQ7: 0 | ER7: 800 | ES7: 590 | ET7: 0 | EU7: 45 | EV7: 0 | EW7: 0 | EX7: 85 | EY7: 383 | EZ7: 422 | FA7: 213 | FB7: 115 | FC7: 95 | FD7: 25 | FE7: 35 | FF7: 25 | FG7: 25 | FH7: 51 | FI7: 149 | FJ7: 94 | FK7: 25 | FL7: 25 | FM7: 25 | FN7: 25 | FO7: 98 | FP7: 86 | FQ7: 68 | FR7: 25 | FS7: 59 | FT7: 25 | FU7: 25 | FV7: 25 | FW7: 48 | FX7: 48 | FY7: 25 | FZ7: 25 | GA7: 25 | GB7: 25 | GC7: 25 | GD7: 91 | GE7: 87 | GF7: 25 | GG7: 25 | GH7: 25 | GI7: 25 | GJ7: 21 | GK7: 426 | GL7: 79 | GM7: 79 | GN7: 25 | GO7: 25 | GP7: 25 | GQ7: 25 | GR7: 25 | GS7: 48 | GT7: 48 | GU7: 25 | GV7: 25 | GW7: 25 | GX7: 25 | GY7: 25 | GZ7: 238 | HA7: 240 | HB7: 18 | HC7: 30 | HD7: 25 | HE7: 25 | HF7: 32 | HG7: 130 | HH7: 137 | HI7: 25 | HJ7: 25 | HK7: 25 | HL7: 25 | HM7: 25 | HN7: 376 | HO7: 397 | HP7: 25 | HQ7: 133 | HR7: 25 | HS7: 25 | HT7: 149 | HU7: 301 | HV7: 190 | HW7: 73 | HX7: 75 | HY7: 26 | HZ7: 25 | IA7: 25 | IB7: 25 | IC7: 15 | ID7: 28 | IE7: 28 | IF7: 25 | IG7: 25 | IH7: 25 | II7: 25 | IJ7: 25 | IK7: 105 | IL7: 91 | IM7: 25 | IN7: 25 | IO7: 25 | IP7: 25 | IQ7: 47 | IR7: 122 | IS7: 122 | IT7: 25 | IU7: 25 | IV7: 25 | IW7: 25 | IX7: 25 | IY7: 66 | IZ7: 66 | JA7: 25 | JB7: 25 | JC7: 25 | JD7: 25 | JE7: 25 | JF7: 231 | JG7: 59 | JH7: 51 | JI7: 25 | JJ7: 25 | JK7: 25 | JL7: 25 | JM7: 25 | JN7: 48 | JO7: 32 | JP7: 25 | JQ7: 38 | JR7: 25 | JS7: 25 | JT7: 25 | JU7: 68 | JV7: 15 | JW7: 25 | JX7: 25 | JY7: 25 | JZ7: 25 | KA7: 61 | KB7: 43 | KC7: 41 | KD7: 25 | KE7: 13 | KF7: 25 | KG7: 25 | KH7: 25 | KI7: 212 | KJ7: 190 | KK7: 25 | KL7: 47 | KM7: 25 | KN7: 25 | KO7: 99
A8: 2017thru2021 | B8: 160 | C8: 1600000US0600450 | D8: Agua Dulce CDP | E8: 230 | F8: 06 | G8: 00450 | H8: 1090 | I8: 970 | J8: 185 | K8: 40 | L8: 35 | M8: 0 | N8: 0 | O8: 0 | P8: 0 | Q8: 4 | R8: 4 | S8: 4 | T8: 0 | U8: 0 | V8: 0 | W8: 0 | X8: 0 | Y8: 75 | Z8: 70 | AA8: 0 | AB8: 0 | AC8: 0 | AD8: 0 | AE8: 4 | AF8: 30 | AG8: 0 | AH8: 0 | AI8: 0 | AJ8: 0 | AK8: 0 | AL8: 30 | AM8: 40 | AN8: 30 | AO8: 0 | AP8: 0 | AQ8: 0 | AR8: 0 | AS8: 10 | AT8: 785 | AU8: 45 | AV8: 20 | AW8: 0 | AX8: 0 | AY8: 0 | AZ8: 0 | BA8: 25 | BB8: 60 | BC8: 60 | BD8: 0 | BE8: 0 | BF8: 0 | BG8: 0 | BH8: 0 | BI8: 90 | BJ8: 40 | BK8: 0 | BL8: 15 | BM8: 0 | BN8: 0 | BO8: 15 | BP8: 110 | BQ8: 90 | BR8: 0 | BS8: 0 | BT8: 0 | BU8: 0 | BV8: 20 | BW8: 480 | BX8: 375 | BY8: 0 | BZ8: 25 | CA8: 0 | CB8: 0 | CC8: 75 | CD8: 120 | CE8: 50 | CF8: 4 | CG8: 0 | CH8: 0 | CI8: 0 | CJ8: 0 | CK8: 0 | CL8: 0 | CM8: 40 | CN8: 35 | CO8: 0 | CP8: 10 | CQ8: 0 | CR8: 0 | CS8: 0 | CT8: 0 | CU8: 0 | CV8: 0 | CW8: 0 | CX8: 0 | CY8: 0 | CZ8: 0 | DA8: 0 | DB8: 0 | DC8: 0 | DD8: 0 | DE8: 0 | DF8: 0 | DG8: 0 | DH8: 0 | DI8: 0 | DJ8: 0 | DK8: 0 | DL8: 0 | DM8: 0 | DN8: 0 | DO8: 75 | DP8: 15 | DQ8: 4 | DR8: 0 | DS8: 0 | DT8: 0 | DU8: 0 | DV8: 10 | DW8: 0 | DX8: 0 | DY8: 0 | DZ8: 0 | EA8: 0 | EB8: 0 | EC8: 0 | ED8: 45 | EE8: 25 | EF8: 0 | EG8: 0 | EH8: 20 | EI8: 0 | EJ8: 0 | EK8: 0 | EL8: 0 | EM8: 0 | EN8: 0 | EO8: 0 | EP8: 0 | EQ8: 0 | ER8: 15 | ES8: 15 | ET8: 0 | EU8: 0 | EV8: 0 | EW8: 0 | EX8: 0 | EY8: 148 | EZ8: 144 | FA8: 84 | FB8: 36 | FC8: 33 | FD8: 13 | FE8: 13 | FF8: 13 | FG8: 13 | FH8: 9 | FI8: 13 | FJ8: 13 | FK8: 13 | FL8: 13 | FM8: 13 | FN8: 13 | FO8: 13 | FP8: 47 | FQ8: 43 | FR8: 13 | FS8: 13 | FT8: 13 | FU8: 13 | FV8: 8 | FW8: 43 | FX8: 13 | FY8: 13 | FZ8: 13 | GA8: 13 | GB8: 13 | GC8: 43 | GD8: 38 | GE8: 37 | GF8: 13 | GG8: 13 | GH8: 13 | GI8: 13 | GJ8: 15 | GK8: 137 | GL8: 42 | GM8: 22 | GN8: 13 | GO8: 13 | GP8: 13 | GQ8: 13 | GR8: 40 | GS8: 73 | GT8: 73 | GU8: 13 | GV8: 13 | GW8: 13 | GX8: 13 | GY8: 13 | GZ8: 58 | HA8: 38 | HB8: 13 | HC8: 19 | HD8: 13 | HE8: 13 | HF8: 21 | HG8: 54 | HH8: 54 | HI8: 13 | HJ8: 13 | HK8: 13 | HL8: 13 | HM8: 28 | HN8: 98 | HO8: 98 | HP8: 13 | HQ8: 21 | HR8: 13 | HS8: 13 | HT8: 60 | HU8: 72 | HV8: 53 | HW8: 14 | HX8: 13 | HY8: 13 | HZ8: 13 | IA8: 13 | IB8: 13 | IC8: 13 | ID8: 52 | IE8: 50 | IF8: 13 | IG8: 13 | IH8: 13 | II8: 13 | IJ8: 13 | IK8: 13 | IL8: 13 | IM8: 13 | IN8: 13 | IO8: 13 | IP8: 13 | IQ8: 13 | IR8: 13 | IS8: 13 | IT8: 13 | IU8: 13 | IV8: 13 | IW8: 13 | IX8: 13 | IY8: 13 | IZ8: 13 | JA8: 13 | JB8: 13 | JC8: 13 | JD8: 13 | JE8: 13 | JF8: 60 | JG8: 18 | JH8: 13 | JI8: 13 | JJ8: 13 | JK8: 13 | JL8: 13 | JM8: 14 | JN8: 13 | JO8: 13 | JP8: 13 | JQ8: 13 | JR8: 13 | JS8: 13 | JT8: 13 | JU8: 50 | JV8: 41 | JW8: 13 | JX8: 13 | JY8: 33 | JZ8: 13 | KA8: 13 | KB8: 13 | KC8: 13 | KD8: 13 | KE8: 13 | KF8: 13 | KG8: 13 | KH8: 13 | KI8: 28 | KJ8: 28 | KK8: 13 | KL8: 13 | KM8: 13 | KN8: 13 | KO8: 13
A9: 2017thru2021 | B9: 160 | C9: 1600000US0600464 | D9: Aguanga CDP | E9: 25 | F9: 06 | G9: 00464 | H9: 275 | I9: 230 | J9: 15 | K9: 0 | L9: 0 | M9: 0 | N9: 0 | O9: 0 | P9: 0 | Q9: 0 | R9: 0 | S9: 0 | T9: 0 | U9: 0 | V9: 0 | W9: 0 | X9: 0 | Y9: 0 | Z9: 0 | AA9: 0 | AB9: 0 | AC9: 0 | AD9: 0 | AE9: 0 | AF9: 15 | AG9: 0 | AH9: 15 | AI9: 0 | AJ9: 0 | AK9: 0 | AL9: 0 | AM9: 0 | AN9: 0 | AO9: 0 | AP9: 0 | AQ9: 0 | AR9: 0 | AS9: 0 | AT9: 220 | AU9: 15 | AV9: 0 | AW9: 15 | AX9: 0 | AY9: 0 | AZ9: 0 | BA9: 0 | BB9: 0 | BC9: 0 | BD9: 0 | BE9: 0 | BF9: 0 | BG9: 0 | BH9: 0 | BI9: 20 | BJ9: 20 | BK9: 0 | BL9: 0 | BM9: 0 | BN9: 0 | BO9: 0 | BP9: 0 | BQ9: 0 | BR9: 0 | BS9: 0 | BT9: 0 | BU9: 0 | BV9: 0 | BW9: 185 | BX9: 160 | BY9: 0 | BZ9: 0 | CA9: 0 | CB9: 0 | CC9: 10 | CD9: 45 | CE9: 30 | CF9: 30 | CG9: 30 | CH9: 0 | CI9: 0 | CJ9: 0 | CK9: 0 | CL9: 0 | CM9: 0 | CN9: 0 | CO9: 0 | CP9: 0 | CQ9: 0 | CR9: 0 | CS9: 0 | CT9: 0 | CU9: 0 | CV9: 0 | CW9: 0 | CX9: 0 | CY9: 0 | CZ9: 0 | DA9: 0 | DB9: 0 | DC9: 0 | DD9: 0 | DE9: 0 | DF9: 0 | DG9: 0 | DH9: 0 | DI9: 0 | DJ9: 0 | DK9: 0 | DL9: 0 | DM9: 0 | DN9: 0 | DO9: 10 | DP9: 0 | DQ9: 0 | DR9: 0 | DS9: 0 | DT9: 0 | DU9: 0 | DV9: 0 | DW9: 0 | DX9: 0 | DY9: 0 | DZ9: 0 | EA9: 0 | EB9: 0 | EC9: 0 | ED9: 10 | EE9: 10 | EF9: 0 | EG9: 0 | EH9: 0 | EI9: 0 | EJ9: 0 | EK9: 0 | EL9: 0 | EM9: 0 | EN9: 0 | EO9: 0 | EP9: 0 | EQ9: 0 | ER9: 0 | ES9: 0 | ET9: 0 | EU9: 0 | EV9: 0 | EW9: 0 | EX9: 0 | EY9: 145 | EZ9: 134 | FA9: 22 | FB9: 13 | FC9: 13 | FD9: 13 | FE9: 13 | FF9: 13 | FG9: 13 | FH9: 13 | FI9: 13 | FJ9: 13 | FK9: 13 | FL9: 13 | FM9: 13 | FN9: 13 | FO9: 13 | FP9: 13 | FQ9: 13 | FR9: 13 | FS9: 13 | FT9: 13 | FU9: 13 | FV9: 13 | FW9: 22 | FX9: 13 | FY9: 22 | FZ9: 13 | GA9: 13 | GB9: 13 | GC9: 13 | GD9: 13 | GE9: 13 | GF9: 13 | GG9: 13 | GH9: 13 | GI9: 13 | GJ9: 13 | GK9: 135 | GL9: 24 | GM9: 13 | GN9: 24 | GO9: 13 | GP9: 13 | GQ9: 13 | GR9: 13 | GS9: 13 | GT9: 13 | GU9: 13 | GV9: 13 | GW9: 13 | GX9: 13 | GY9: 13 | GZ9: 33 | HA9: 33 | HB9: 13 | HC9: 13 | HD9: 13 | HE9: 13 | HF9: 13 | HG9: 13 | HH9: 13 | HI9: 13 | HJ9: 13 | HK9: 13 | HL9: 13 | HM9: 13 | HN9: 129 | HO9: 130 | HP9: 13 | HQ9: 13 | HR9: 13 | HS9: 13 | HT9: 24 | HU9: 54 | HV9: 50 | HW9: 50 | HX9: 50 | HY9: 13 | HZ9: 13 | IA9: 13 | IB9: 13 | IC9: 13 | ID9: 13 | IE9: 13 | IF9: 13 | IG9: 13 | IH9: 13 | II9: 13 | IJ9: 13 | IK9: 13 | IL9: 13 | IM9: 13 | IN9: 13 | IO9: 13 | IP9: 13 | IQ9: 13 | IR9: 13 | IS9: 13 | IT9: 13 | IU9: 13 | IV9: 13 | IW9: 13 | IX9: 13 | IY9: 13 | IZ9: 13 | JA9: 13 | JB9: 13 | JC9: 13 | JD9: 13 | JE9: 13 | JF9: 22 | JG9: 13 | JH9: 13 | JI9: 13 | JJ9: 13 | JK9: 13 | JL9: 13 | JM9: 13 | JN9: 13 | JO9: 13 | JP9: 13 | JQ9: 13 | JR9: 13 | JS9: 13 | JT9: 13 | JU9: 22 | JV9: 22 | JW9: 13 | JX9: 13 | JY9: 13 | JZ9: 13 | KA9: 13 | KB9: 13 | KC9: 13 | KD9: 13 | KE9: 13 | KF9: 13 | KG9: 13 | KH9: 13 | KI9: 13 | KJ9: 13 | KK9: 13 | KL9: 13 | KM9: 13 | KN9: 13 | KO9: 13
A10: 2017thru2021 | B10: 160 | C10: 1600000US0600478 | D10: Ahwahnee CDP | E10: 50 | F10: 06 | G10: 00478 | H10: 850 | I10: 590 | J10: 35 | K10: 0 | L10: 0 | M10: 0 | N10: 0 | O10: 0 | P10: 0 | Q10: 0 | R10: 20 | S10: 4 | T10: 0 | U10: 0 | V10: 0 | W10: 0 | X10: 0 | Y10: 0 | Z10: 0 | AA10: 0 | AB10: 0 | AC10: 0 | AD10: 0 | AE10: 0 | AF10: 15 | AG10: 15 | AH10: 0 | AI10: 0 | AJ10: 0 | AK10: 0 | AL10: 0 | AM10: 0 | AN10: 0 | AO10: 0 | AP10: 0 | AQ10: 0 | AR10: 0 | AS10: 0 | AT10: 555 | AU10: 15 | AV10: 0 | AW10: 0 | AX10: 0 | AY10: 0 | AZ10: 0 | BA10: 0 | BB10: 75 | BC10: 75 | BD10: 0 | BE10: 0 | BF10: 0 | BG10: 0 | BH10: 0 | BI10: 55 | BJ10: 55 | BK10: 0 | BL10: 0 | BM10: 0 | BN10: 0 | BO10: 0 | BP10: 25 | BQ10: 25 | BR10: 0 | BS10: 0 | BT10: 0 | BU10: 0 | BV10: 0 | BW10: 390 | BX10: 365 | BY10: 0 | BZ10: 4 | CA10: 0 | CB10: 0 | CC10: 15 | CD10: 255 | CE10: 50 | CF10: 0 | CG10: 0 | CH10: 0 | CI10: 0 | CJ10: 0 | CK10: 0 | CL10: 0 | CM10: 0 | CN10: 0 | CO10: 0 | CP10: 0 | CQ10: 0 | CR10: 0 | CS10: 0 | CT10: 0 | CU10: 0 | CV10: 0 | CW10: 0 | CX10: 0 | CY10: 0 | CZ10: 0 | DA10: 50 | DB10: 50 | DC10: 0 | DD10: 0 | DE10: 0 | DF10: 0 | DG10: 0 | DH10: 0 | DI10: 0 | DJ10: 0 | DK10: 0 | DL10: 0 | DM10: 0 | DN10: 0 | DO10: 205 | DP10: 0 | DQ10: 0 | DR10: 0 | DS10: 0 | DT10: 0 | DU10: 0 | DV10: 0 | DW10: 40 | DX10: 0 | DY10: 0 | DZ10: 0 | EA10: 0 | EB10: 0 | EC10: 40 | ED10: 15 | EE10: 0 | EF10: 0 | EG10: 0 | EH10: 0 | EI10: 0 | EJ10: 15 | EK10: 30 | EL10: 30 | EM10: 0 | EN10: 0 | EO10: 0 | EP10: 0 | EQ10: 0 | ER10: 130 | ES10: 130 | ET10: 0 | EU10: 0 | EV10: 0 | EW10: 0 | EX10: 0 | EY10: 177 | EZ10: 179 | FA10: 33 | FB10: 13 | FC10: 13 | FD10: 13 | FE10: 13 | FF10: 13 | FG10: 13 | FH10: 13 | FI10: 27 | FJ10: 7 | FK10: 13 | FL10: 13 | FM10: 13 | FN10: 13 | FO10: 13 | FP10: 13 | FQ10: 13 | FR10: 13 | FS10: 13 | FT10: 13 | FU10: 13 | FV10: 13 | FW10: 23 | FX10: 23 | FY10: 13 | FZ10: 13 | GA10: 13 | GB10: 13 | GC10: 13 | GD10: 13 | GE10: 13 | GF10: 13 | GG10: 13 | GH10: 13 | GI10: 13 | GJ10: 13 | GK10: 180 | GL10: 24 | GM10: 13 | GN10: 13 | GO10: 13 | GP10: 13 | GQ10: 13 | GR10: 13 | GS10: 75 | GT10: 75 | GU10: 13 | GV10: 13 | GW10: 13 | GX10: 13 | GY10: 13 | GZ10: 66 | HA10: 66 | HB10: 13 | HC10: 13 | HD10: 13 | HE10: 13 | HF10: 13 | HG10: 30 | HH10: 30 | HI10: 13 | HJ10: 13 | HK10: 13 | HL10: 13 | HM10: 13 | HN10: 146 | HO10: 145 | HP10: 13 | HQ10: 15 | HR10: 13 | HS10: 13 | HT10: 20 | HU10: 134 | HV10: 71 | HW10: 13 | HX10: 13 | HY10: 13 | HZ10: 13 | IA10: 13 | IB10: 13 | IC10: 13 | ID10: 13 | IE10: 13 | IF10: 13 | IG10: 13 | IH10: 13 | II10: 13 | IJ10: 13 | IK10: 13 | IL10: 13 | IM10: 13 | IN10: 13 | IO10: 13 | IP10: 13 | IQ10: 13 | IR10: 71 | IS10: 71 | IT10: 13 | IU10: 13 | IV10: 13 | IW10: 13 | IX10: 13 | IY10: 13 | IZ10: 13 | JA10: 13 | JB10: 13 | JC10: 13 | JD10: 13 | JE10: 13 | JF10: 112 | JG10: 13 | JH10: 13 | JI10: 13 | JJ10: 13 | JK10: 13 | JL10: 13 | JM10: 13 | JN10: 63 | JO10: 13 | JP10: 13 | JQ10: 13 | JR10: 13 | JS10: 13 | JT10: 63 | JU10: 22 | JV10: 13 | JW10: 13 | JX10: 13 | JY10: 13 | JZ10: 13 | KA10: 22 | KB10: 29 | KC10: 29 | KD10: 13 | KE10: 13 | KF10: 13 | KG10: 13 | KH10: 13 | KI10: 93 | KJ10: 93 | KK10: 13 | KL10: 13 | KM10: 13 | KN10: 13 | KO10: 13
A11: 2017thru2021 | B11: 160 | C11: 1600000US0600535 | D11: Airport CDP | E11: 75 | F11: 06 | G11: 00535 | H11: 360 | I11: 45 | J11: 20 | K11: 0 | L11: 0 | M11: 0 | N11: 0 | O11: 0 | P11: 0 | Q11: 0 | R11: 20 | S11: 10 | T11: 0 | U11: 0 | V11: 0 | W11: 0 | X11: 15 | Y11: 0 | Z11: 0 | AA11: 0 | AB11: 0 | AC11: 0 | AD11: 0 | AE11: 0 | AF11: 0 | AG11: 0 | AH11: 0 | AI11: 0 | AJ11: 0 | AK11: 0 | AL11: 0 | AM11: 0 | AN11: 0 | AO11: 0 | AP11: 0 | AQ11: 0 | AR11: 0 | AS11: 0 | AT11: 25 | AU11: 0 | AV11: 0 | AW11: 0 | AX11: 0 | AY11: 0 | AZ11: 0 | BA11: 0 | BB11: 0 | BC11: 0 | BD11: 0 | BE11: 0 | BF11: 0 | BG11: 0 | BH11: 0 | BI11: 0 | BJ11: 0 | BK11: 0 | BL11: 0 | BM11: 0 | BN11: 0 | BO11: 0 | BP11: 0 | BQ11: 0 | BR11: 0 | BS11: 0 | BT11: 0 | BU11: 0 | BV11: 0 | BW11: 25 | BX11: 10 | BY11: 0 | BZ11: 0 | CA11: 0 | CB11: 0 | CC11: 15 | CD11: 315 | CE11: 145 | CF11: 125 | CG11: 55 | CH11: 20 | CI11: 0 | CJ11: 0 | CK11: 0 | CL11: 40 | CM11: 20 | CN11: 0 | CO11: 0 | CP11: 0 | CQ11: 0 | CR11: 0 | CS11: 10 | CT11: 0 | CU11: 0 | CV11: 0 | CW11: 0 | CX11: 0 | CY11: 0 | CZ11: 0 | DA11: 0 | DB11: 0 | DC11: 0 | DD11: 0 | DE11: 0 | DF11: 0 | DG11: 0 | DH11: 0 | DI11: 0 | DJ11: 0 | DK11: 0 | DL11: 0 | DM11: 0 | DN11: 0 | DO11: 170 | DP11: 30 | DQ11: 30 | DR11: 0 | DS11: 0 | DT11: 0 | DU11: 0 | DV11: 0 | DW11: 40 | DX11: 0 | DY11: 0 | DZ11: 0 | EA11: 0 | EB11: 0 | EC11: 40 | ED11: 55 | EE11: 30 | EF11: 0 | EG11: 0 | EH11: 0 | EI11: 0 | EJ11: 25 | EK11: 0 | EL11: 0 | EM11: 0 | EN11: 0 | EO11: 0 | EP11: 0 | EQ11: 0 | ER11: 45 | ES11: 10 | ET11: 0 | EU11: 0 | EV11: 0 | EW11: 0 | EX11: 30 | EY11: 83 | EZ11: 41 | FA11: 24 | FB11: 13 | FC11: 13 | FD11: 13 | FE11: 13 | FF11: 13 | FG11: 13 | FH11: 13 | FI11: 24 | FJ11: 15 | FK11: 13 | FL11: 13 | FM11: 13 | FN11: 13 | FO11: 22 | FP11: 13 | FQ11: 13 | FR11: 13 | FS11: 13 | FT11: 13 | FU11: 13 | FV11: 13 | FW11: 13 | FX11: 13 | FY11: 13 | FZ11: 13 | GA11: 13 | GB11: 13 | GC11: 13 | GD11: 13 | GE11: 13 | GF11: 13 | GG11: 13 | GH11: 13 | GI11: 13 | GJ11: 13 | GK11: 31 | GL11: 13 | GM11: 13 | GN11: 13 | GO11: 13 | GP11: 13 | GQ11: 13 | GR11: 13 | GS11: 13 | GT11: 13 | GU11: 13 | GV11: 13 | GW11: 13 | GX11: 13 | GY11: 13 | GZ11: 13 | HA11: 13 | HB11: 13 | HC11: 13 | HD11: 13 | HE11: 13 | HF11: 13 | HG11: 13 | HH11: 13 | HI11: 13 | HJ11: 13 | HK11: 13 | HL11: 13 | HM11: 13 | HN11: 31 | HO11: 14 | HP11: 13 | HQ11: 13 | HR11: 13 | HS11: 13 | HT11: 30 | HU11: 89 | HV11: 80 | HW11: 79 | HX11: 48 | HY11: 31 | HZ11: 13 | IA11: 13 | IB11: 13 | IC11: 50 | ID11: 26 | IE11: 13 | IF11: 13 | IG11: 13 | IH11: 13 | II11: 13 | IJ11: 19 | IK11: 13 | IL11: 13 | IM11: 13 | IN11: 13 | IO11: 13 | IP11: 13 | IQ11: 13 | IR11: 13 | IS11: 13 | IT11: 13 | IU11: 13 | IV11: 13 | IW11: 13 | IX11: 13 | IY11: 13 | IZ11: 13 | JA11: 13 | JB11: 13 | JC11: 13 | JD11: 13 | JE11: 13 | JF11: 77 | JG11: 37 | JH11: 37 | JI11: 13 | JJ11: 13 | JK11: 13 | JL11: 13 | JM11: 13 | JN11: 49 | JO11: 13 | JP11: 13 | JQ11: 13 | JR11: 13 | JS11: 13 | JT11: 49 | JU11: 42 | JV11: 33 | JW11: 13 | JX11: 13 | JY11: 13 | JZ11: 13 | KA11: 26 | KB11: 13 | KC11: 13 | KD11: 13 | KE11: 13 | KF11: 13 | KG11: 13 | KH11: 13 | KI11: 50 | KJ11: 15 | KK11: 13 | KL11: 13 | KM11: 13 | KN11: 13 | KO11: 47
A12: 2017thru2021 | B12: 160 | C12: 1600000US0600562 | D12: Alameda | E12: 3925 | F12: 06 | G12: 00562 | H12: 30500 | I12: 14475 | J12: 2045 | K12: 675 | L12: 365 | M12: 25 | N12: 200 | O12: 0 | P12: 0 | Q12: 75 | R12: 435 | S12: 280 | T12: 0 | U12: 95 | V12: 15 | W12: 0 | X12: 15 | Y12: 375 | Z12: 150 | AA12: 0 | AB12: 75 | AC12: 0 | AD12: 0 | AE12: 30 | AF12: 110 | AG12: 70 | AH12: 10 | AI12: 15 | AJ12: 0 | AK12: 0 | AL12: 20 | AM12: 440 | AN12: 220 | AO12: 0 | AP12: 140 | AQ12: 0 | AR12: 0 | AS12: 25 | AT12: 12435 | AU12: 635 | AV12: 490 | AW12: 0 | AX12: 125 | AY12: 0 | AZ12: 0 | BA12: 15 | BB12: 580 | BC12: 265 | BD12: 0 | BE12: 230 | BF12: 20 | BG12: 0 | BH12: 25 | BI12: 1055 | BJ12: 430 | BK12: 120 | BL12: 355 | BM12: 4 | BN12: 0 | BO12: 105 | BP12: 760 | BQ12: 370 | BR12: 20 | BS12: 275 | BT12: 0 | BU12: 0 | BV12: 65 | BW12: 9410 | BX12: 5410 | BY12: 120 | BZ12: 2950 | CA12: 10 | CB12: 0 | CC12: 635 | CD12: 16025 | CE12: 4035 | CF12: 1940 | CG12: 865 | CH12: 310 | CI12: 415 | CJ12: 20 | CK12: 15 | CL12: 220 | CM12: 925 | CN12: 485 | CO12: 90 | CP12: 215 | CQ12: 0 | CR12: 10 | CS12: 120 | CT12: 710 | CU12: 205 | CV12: 75 | CW12: 300 | CX12: 0 | CY12: 10 | CZ12: 95 | DA12: 170 | DB12: 130 | DC12: 0 | DD12: 15 | DE12: 0 | DF12: 0 | DG12: 4 | DH12: 285 | DI12: 45 | DJ12: 0 | DK12: 150 | DL12: 0 | DM12: 0 | DN12: 80 | DO12: 11990 | DP12: 1065 | DQ12: 230 | DR12: 295 | DS12: 365 | DT12: 0 | DU12: 0 | DV12: 160 | DW12: 930 | DX12: 305 | DY12: 135 | DZ12: 260 | EA12: 10 | EB12: 0 | EC12: 210 | ED12: 1880 | EE12: 770 | EF12: 135 | EG12: 390 | EH12: 4 | EI12: 4 | EJ12: 290 | EK12: 1750 | EL12: 810 | EM12: 230 | EN12: 290 | EO12: 30 | EP12: 25 | EQ12: 280 | ER12: 6360 | ES12: 3385 | ET12: 475 | EU12: 1480 | EV12: 15 | EW12: 45 | EX12: 625 | EY12: 686 | EZ12: 677 | FA12: 375 | FB12: 182 | FC12: 122 | FD12: 27 | FE12: 97 | FF12: 31 | FG12: 31 | FH12: 99 | FI12: 117 | FJ12: 91 | FK12: 31 | FL12: 51 | FM12: 22 | FN12: 31 | FO12: 25 | FP12: 218 | FQ12: 74 | FR12: 31 | FS12: 47 | FT12: 31 | FU12: 31 | FV12: 37 | FW12: 84 | FX12: 69 | FY12: 16 | FZ12: 17 | GA12: 31 | GB12: 31 | GC12: 31 | GD12: 177 | GE12: 164 | GF12: 31 | GG12: 80 | GH12: 31 | GI12: 31 | GJ12: 25 | GK12: 674 | GL12: 320 | GM12: 319 | GN12: 31 | GO12: 77 | GP12: 31 | GQ12: 31 | GR12: 18 | GS12: 153 | GT12: 109 | GU12: 31 | GV12: 89 | GW12: 21 | GX12: 31 | GY12: 30 | GZ12: 249 | HA12: 134 | HB12: 168 | HC12: 113 | HD12: 3 | HE12: 31 | HF12: 64 | HG12: 177 | HH12: 112 | HI12: 23 | HJ12: 109 | HK12: 31 | HL12: 31 | HM12: 51 | HN12: 551 | HO12: 492 | HP12: 71 | HQ12: 326 | HR12: 14 | HS12: 31 | HT12: 216 | HU12: 703 | HV12: 436 | HW12: 306 | HX12: 209 | HY12: 106 | HZ12: 203 | IA12: 18 | IB12: 24 | IC12: 123 | ID12: 253 | IE12: 201 | IF12: 71 | IG12: 109 | IH12: 31 | II12: 17 | IJ12: 71 | IK12: 226 | IL12: 89 | IM12: 65 | IN12: 190 | IO12: 31 | IP12: 14 | IQ12: 81 | IR12: 128 | IS12: 122 | IT12: 31 | IU12: 27 | IV12: 31 | IW12: 31 | IX12: 11 | IY12: 118 | IZ12: 36 | JA12: 31 | JB12: 83 | JC12: 31 | JD12: 31 | JE12: 61 | JF12: 617 | JG12: 217 | JH12: 87 | JI12: 117 | JJ12: 159 | JK12: 31 | JL12: 31 | JM12: 114 | JN12: 195 | JO12: 125 | JP12: 96 | JQ12: 103 | JR12: 14 | JS12: 31 | JT12: 86 | JU12: 286 | JV12: 208 | JW12: 88 | JX12: 177 | JY12: 5 | JZ12: 15 | KA12: 122 | KB12: 299 | KC12: 209 | KD12: 117 | KE12: 135 | KF12: 40 | KG12: 32 | KH12: 123 | KI12: 479 | KJ12: 414 | KK12: 174 | KL12: 294 | KM12: 23 | KN12: 60 | KO12: 157
A13: 2017thru2021 | B13: 160 | C13: 1600000US0600618 | D13: Alamo CDP | E13: 495 | F13: 06 | G13: 00618 | H13: 4975 | I13: 4640 | J13: 480 | K13: 130 | L13: 130 | M13: 0 | N13: 0 | O13: 0 | P13: 0 | Q13: 0 | R13: 85 | S13: 85 | T13: 0 | U13: 0 | V13: 0 | W13: 0 | X13: 0 | Y13: 95 | Z13: 95 | AA13: 0 | AB13: 0 | AC13: 0 | AD13: 0 | AE13: 0 | AF13: 65 | AG13: 45 | AH13: 0 | AI13: 20 | AJ13: 0 | AK13: 0 | AL13: 0 | AM13: 110 | AN13: 95 | AO13: 0 | AP13: 0 | AQ13: 0 | AR13: 0 | AS13: 15 | AT13: 4160 | AU13: 85 | AV13: 75 | AW13: 0 | AX13: 15 | AY13: 0 | AZ13: 0 | BA13: 0 | BB13: 55 | BC13: 55 | BD13: 0 | BE13: 0 | BF13: 0 | BG13: 0 | BH13: 0 | BI13: 135 | BJ13: 65 | BK13: 0 | BL13: 70 | BM13: 0 | BN13: 0 | BO13: 0 | BP13: 180 | BQ13: 140 | BR13: 0 | BS13: 40 | BT13: 0 | BU13: 0 | BV13: 0 | BW13: 3710 | BX13: 3285 | BY13: 15 | BZ13: 285 | CA13: 0 | CB13: 0 | CC13: 60 | CD13: 335 | CE13: 155 | CF13: 10 | CG13: 0 | CH13: 0 | CI13: 10 | CJ13: 0 | CK13: 0 | CL13: 0 | CM13: 20 | CN13: 20 | CO13: 0 | CP13: 0 | CQ13: 0 | CR13: 0 | CS13: 0 | CT13: 120 | CU13: 90 | CV13: 0 | CW13: 0 | CX13: 0 | CY13: 0 | CZ13: 30 | DA13: 0 | DB13: 0 | DC13: 0 | DD13: 0 | DE13: 0 | DF13: 0 | DG13: 0 | DH13: 0 | DI13: 0 | DJ13: 0 | DK13: 0 | DL13: 0 | DM13: 0 | DN13: 0 | DO13: 180 | DP13: 15 | DQ13: 0 | DR13: 0 | DS13: 0 | DT13: 0 | DU13: 0 | DV13: 15 | DW13: 10 | DX13: 10 | DY13: 0 | DZ13: 0 | EA13: 0 | EB13: 0 | EC13: 0 | ED13: 15 | EE13: 10 | EF13: 0 | EG13: 0 | EH13: 0 | EI13: 0 | EJ13: 0 | EK13: 0 | EL13: 0 | EM13: 0 | EN13: 0 | EO13: 0 | EP13: 0 | EQ13: 0 | ER13: 145 | ES13: 60 | ET13: 0 | EU13: 25 | EV13: 0 | EW13: 0 | EX13: 55 | EY13: 294 | EZ13: 265 | FA13: 122 | FB13: 68 | FC13: 68 | FD13: 21 | FE13: 21 | FF13: 21 | FG13: 21 | FH13: 21 | FI13: 62 | FJ13: 62 | FK13: 21 | FL13: 21 | FM13: 21 | FN13: 21 | FO13: 21 | FP13: 68 | FQ13: 68 | FR13: 21 | FS13: 21 | FT13: 21 | FU13: 21 | FV13: 21 | FW13: 51 | FX13: 38 | FY13: 21 | FZ13: 36 | GA13: 21 | GB13: 21 | GC13: 21 | GD13: 67 | GE13: 62 | GF13: 21 | GG13: 21 | GH13: 21 | GI13: 21 | GJ13: 25 | GK13: 281 | GL13: 65 | GM13: 59 | GN13: 21 | GO13: 23 | GP13: 21 | GQ13: 21 | GR13: 21 | GS13: 41 | GT13: 41 | GU13: 21 | GV13: 21 | GW13: 21 | GX13: 21 | GY13: 21 | GZ13: 94 | HA13: 54 | HB13: 21 | HC13: 74 | HD13: 21 | HE13: 21 | HF13: 21 | HG13: 89 | HH13: 74 | HI13: 21 | HJ13: 49 | HK13: 21 | HL13: 21 | HM13: 21 | HN13: 290 | HO13: 294 | HP13: 26 | HQ13: 90 | HR13: 21 | HS13: 21 | HT13: 49 | HU13: 153 | HV13: 106 | HW13: 24 | HX13: 21 | HY13: 21 | HZ13: 24 | IA13: 21 | IB13: 21 | IC13: 21 | ID13: 35 | IE13: 35 | IF13: 21 | IG13: 21 | IH13: 21 | II13: 21 | IJ13: 21 | IK13: 117 | IL13: 123 | IM13: 21 | IN13: 21 | IO13: 21 | IP13: 21 | IQ13: 35 | IR13: 21 | IS13: 21 | IT13: 21 | IU13: 21 | IV13: 21 | IW13: 21 | IX13: 21 | IY13: 21 | IZ13: 21 | JA13: 21 | JB13: 21 | JC13: 21 | JD13: 21 | JE13: 21 | JF13: 104 | JG13: 25 | JH13: 21 | JI13: 21 | JJ13: 21 | JK13: 21 | JL13: 21 | JM13: 25 | JN13: 14 | JO13: 14 | JP13: 21 | JQ13: 21 | JR13: 21 | JS13: 21 | JT13: 21 | JU13: 17 | JV13: 14 | JW13: 21 | JX13: 21 | JY13: 21 | JZ13: 21 | KA13: 21 | KB13: 21 | KC13: 21 | KD13: 21 | KE13: 21 | KF13: 21 | KG13: 21 | KH13: 21 | KI13: 98 | KJ13: 61 | KK13: 21 | KL13: 36 | KM13: 21 | KN13: 21 | KO13: 64
A14: 2017thru2021 | B14: 160 | C14: 1600000US0600674 | D14: Albany | E14: 1005 | F14: 06 | G14: 00674 | H14: 7585 | I14: 3740 | J14: 440 | K14: 130 | L14: 75 | M14: 0 | N14: 45 | O14: 0 | P14: 0 | Q14: 10 | R14: 60 | S14: 25 | T14: 0 | U14: 35 | V14: 0 | W14: 0 | X14: 0 | Y14: 120 | Z14: 45 | AA14: 0 | AB14: 30 | AC14: 0 | AD14: 0 | AE14: 50 | AF14: 20 | AG14: 4 | AH14: 0 | AI14: 10 | AJ14: 0 | AK14: 0 | AL14: 0 | AM14: 110 | AN14: 10 | AO14: 0 | AP14: 90 | AQ14: 0 | AR14: 0 | AS14: 0 | AT14: 3300 | AU14: 75 | AV14: 30 | AW14: 0 | AX14: 40 | AY14: 0 | AZ14: 0 | BA14: 4 | BB14: 180 | BC14: 155 | BD14: 15 | BE14: 4 | BF14: 4 | BG14: 0 | BH14: 0 | BI14: 325 | BJ14: 190 | BK14: 20 | BL14: 100 | BM14: 0 | BN14: 0 | BO14: 15 | BP14: 290 | BQ14: 210 | BR14: 0 | BS14: 40 | BT14: 4 | BU14: 0 | BV14: 0 | BW14: 2430 | BX14: 1455 | BY14: 100 | BZ14: 585 | CA14: 4 | CB14: 0 | CC14: 175 | CD14: 3845 | CE14: 1085 | CF14: 560 | CG14: 160 | CH14: 4 | CI14: 200 | CJ14: 0 | CK14: 4 | CL14: 115 | CM14: 310 | CN14: 100 | CO14: 10 | CP14: 140 | CQ14: 0 | CR14: 0 | CS14: 20 | CT14: 80 | CU14: 80 | CV14: 0 | CW14: 0 | CX14: 0 | CY14: 0 | CZ14: 0 | DA14: 20 | DB14: 4 | DC14: 0 | DD14: 10 | DE14: 0 | DF14: 4 | DG14: 0 | DH14: 115 | DI14: 80 | DJ14: 0 | DK14: 20 | DL14: 0 | DM14: 0 | DN14: 20 | DO14: 2760 | DP14: 120 | DQ14: 35 | DR14: 0 | DS14: 50 | DT14: 4 | DU14: 10 | DV14: 10 | DW14: 215 | DX14: 40 | DY14: 40 | DZ14: 90 | EA14: 0 | EB14: 0 | EC14: 45 | ED14: 565 | EE14: 250 | EF14: 15 | EG14: 220 | EH14: 4 | EI14: 0 | EJ14: 15 | EK14: 330 | EL14: 210 | EM14: 0 | EN14: 35 | EO14: 0 | EP14: 0 | EQ14: 65 | ER14: 1530 | ES14: 700 | ET14: 95 | EU14: 430 | EV14: 10 | EW14: 0 | EX14: 185 | EY14: 223 | EZ14: 300 | FA14: 137 | FB14: 86 | FC14: 78 | FD14: 21 | FE14: 29 | FF14: 21 | FG14: 21 | FH14: 16 | FI14: 36 | FJ14: 25 | FK14: 21 | FL14: 29 | FM14: 21 | FN14: 21 | FO14: 21 | FP14: 80 | FQ14: 33 | FR14: 21 | FS14: 27 | FT14: 21 | FU14: 21 | FV14: 60 | FW14: 23 | FX14: 17 | FY14: 21 | FZ14: 20 | GA14: 21 | GB14: 21 | GC14: 21 | GD14: 53 | GE14: 13 | GF14: 21 | GG14: 49 | GH14: 21 | GI14: 21 | GJ14: 21 | GK14: 274 | GL14: 47 | GM14: 27 | GN14: 21 | GO14: 38 | GP14: 21 | GQ14: 21 | GR14: 8 | GS14: 87 | GT14: 85 | GU14: 21 | GV14: 6 | GW14: 7 | GX14: 21 | GY14: 21 | GZ14: 83 | HA14: 67 | HB14: 32 | HC14: 54 | HD14: 21 | HE14: 21 | HF14: 18 | HG14: 106 | HH14: 86 | HI14: 21 | HJ14: 32 | HK14: 21 | HL14: 21 | HM14: 21 | HN14: 264 | HO14: 173 | HP14: 66 | HQ14: 131 | HR14: 5 | HS14: 21 | HT14: 136 | HU14: 224 | HV14: 177 | HW14: 139 | HX14: 67 | HY14: 19 | HZ14: 91 | IA14: 21 | IB14: 9 | IC14: 48 | ID14: 96 | IE14: 41 | IF14: 16 | IG14: 81 | IH14: 21 | II14: 21 | IJ14: 29 | IK14: 45 | IL14: 45 | IM14: 21 | IN14: 21 | IO14: 21 | IP14: 21 | IQ14: 21 | IR14: 22 | IS14: 8 | IT14: 21 | IU14: 16 | IV14: 21 | IW14: 15 | IX14: 21 | IY14: 64 | IZ14: 53 | JA14: 21 | JB14: 22 | JC14: 21 | JD14: 21 | JE14: 33 | JF14: 215 | JG14: 50 | JH14: 27 | JI14: 21 | JJ14: 36 | JK14: 13 | JL14: 15 | JM14: 17 | JN14: 100 | JO14: 26 | JP14: 46 | JQ14: 60 | JR14: 21 | JS14: 21 | JT14: 51 | JU14: 143 | JV14: 86 | JW14: 21 | JX14: 111 | JY14: 1 | JZ14: 21 | KA14: 16 | KB14: 127 | KC14: 94 | KD14: 21 | KE14: 26 | KF14: 21 | KG14: 21 | KH14: 58 | KI14: 188 | KJ14: 127 | KK14: 90 | KL14: 130 | KM14: 16 | KN14: 21 | KO14: 69
A15: 2017thru2021 | B15: 160 | C15: 1600000US0600716 | D15: Albion CDP | E15: 25 | F15: 06 | G15: 00716 | H15: 70 | I15: 70 | J15: 25 | K15: 0 | L15: 0 | M15: 0 | N15: 0 | O15: 0 | P15: 0 | Q15: 0 | R15: 0 | S15: 0 | T15: 0 | U15: 0 | V15: 0 | W15: 0 | X15: 0 | Y15: 25 | Z15: 25 | AA15: 0 | AB15: 0 | AC15: 0 | AD15: 0 | AE15: 0 | AF15: 0 | AG15: 0 | AH15: 0 | AI15: 0 | AJ15: 0 | AK15: 0 | AL15: 0 | AM15: 0 | AN15: 0 | AO15: 0 | AP15: 0 | AQ15: 0 | AR15: 0 | AS15: 0 | AT15: 45 | AU15: 20 | AV15: 20 | AW15: 0 | AX15: 0 | AY15: 0 | AZ15: 0 | BA15: 0 | BB15: 0 | BC15: 0 | BD15: 0 | BE15: 0 | BF15: 0 | BG15: 0 | BH15: 0 | BI15: 0 | BJ15: 0 | BK15: 0 | BL15: 0 | BM15: 0 | BN15: 0 | BO15: 0 | BP15: 0 | BQ15: 0 | BR15: 0 | BS15: 0 | BT15: 0 | BU15: 0 | BV15: 0 | BW15: 30 | BX15: 30 | BY15: 0 | BZ15: 0 | CA15: 0 | CB15: 0 | CC15: 0 | CD15: 0 | CE15: 0 | CF15: 0 | CG15: 0 | CH15: 0 | CI15: 0 | CJ15: 0 | CK15: 0 | CL15: 0 | CM15: 0 | CN15: 0 | CO15: 0 | CP15: 0 | CQ15: 0 | CR15: 0 | CS15: 0 | CT15: 0 | CU15: 0 | CV15: 0 | CW15: 0 | CX15: 0 | CY15: 0 | CZ15: 0 | DA15: 0 | DB15: 0 | DC15: 0 | DD15: 0 | DE15: 0 | DF15: 0 | DG15: 0 | DH15: 0 | DI15: 0 | DJ15: 0 | DK15: 0 | DL15: 0 | DM15: 0 | DN15: 0 | DO15: 0 | DP15: 0 | DQ15: 0 | DR15: 0 | DS15: 0 | DT15: 0 | DU15: 0 | DV15: 0 | DW15: 0 | DX15: 0 | DY15: 0 | DZ15: 0 | EA15: 0 | EB15: 0 | EC15: 0 | ED15: 0 | EE15: 0 | EF15: 0 | EG15: 0 | EH15: 0 | EI15: 0 | EJ15: 0 | EK15: 0 | EL15: 0 | EM15: 0 | EN15: 0 | EO15: 0 | EP15: 0 | EQ15: 0 | ER15: 0 | ES15: 0 | ET15: 0 | EU15: 0 | EV15: 0 | EW15: 0 | EX15: 0 | EY15: 70 | EZ15: 70 | FA15: 37 | FB15: 13 | FC15: 13 | FD15: 13 | FE15: 13 | FF15: 13 | FG15: 13 | FH15: 13 | FI15: 13 | FJ15: 13 | FK15: 13 | FL15: 13 | FM15: 13 | FN15: 13 | FO15: 13 | FP15: 37 | FQ15: 37 | FR15: 13 | FS15: 13 | FT15: 13 | FU15: 13 | FV15: 13 | FW15: 13 | FX15: 13 | FY15: 13 | FZ15: 13 | GA15: 13 | GB15: 13 | GC15: 13 | GD15: 13 | GE15: 13 | GF15: 13 | GG15: 13 | GH15: 13 | GI15: 13 | GJ15: 13 | GK15: 58 | GL15: 33 | GM15: 33 | GN15: 13 | GO15: 13 | GP15: 13 | GQ15: 13 | GR15: 13 | GS15: 13 | GT15: 13 | GU15: 13 | GV15: 13 | GW15: 13 | GX15: 13 | GY15: 13 | GZ15: 13 | HA15: 13 | HB15: 13 | HC15: 13 | HD15: 13 | HE15: 13 | HF15: 13 | HG15: 13 | HH15: 13 | HI15: 13 | HJ15: 13 | HK15: 13 | HL15: 13 | HM15: 13 | HN15: 47 | HO15: 47 | HP15: 13 | HQ15: 13 | HR15: 13 | HS15: 13 | HT15: 13 | HU15: 13 | HV15: 13 | HW15: 13 | HX15: 13 | HY15: 13 | HZ15: 13 | IA15: 13 | IB15: 13 | IC15: 13 | ID15: 13 | IE15: 13 | IF15: 13 | IG15: 13 | IH15: 13 | II15: 13 | IJ15: 13 | IK15: 13 | IL15: 13 | IM15: 13 | IN15: 13 | IO15: 13 | IP15: 13 | IQ15: 13 | IR15: 13 | IS15: 13 | IT15: 13 | IU15: 13 | IV15: 13 | IW15: 13 | IX15: 13 | IY15: 13 | IZ15: 13 | JA15: 13 | JB15: 13 | JC15: 13 | JD15: 13 | JE15: 13 | JF15: 13 | JG15: 13 | JH15: 13 | JI15: 13 | JJ15: 13 | JK15: 13 | JL15: 13 | JM15: 13 | JN15: 13 | JO15: 13 | JP15: 13 | JQ15: 13 | JR15: 13 | JS15: 13 | JT15: 13 | JU15: 13 | JV15: 13 | JW15: 13 | JX15: 13 | JY15: 13 | JZ15: 13 | KA15: 13 | KB15: 13 | KC15: 13 | KD15: 13 | KE15: 13 | KF15: 13 | KG15: 13 | KH15: 13 | KI15: 13 | KJ15: 13 | KK15: 13 | KL15: 13 | KM15: 13 | KN15: 13 | KO15: 13
A16: 2017thru2021 | B16: 160 | C16: 1600000US0600786 | D16: Alderpoint CDP | E16: 0 | F16: 06 | G16: 00786 | H16: 0 | I16: 0 | J16: 0 | K16: 0 | L16: 0 | M16: 0 | N16: 0 | O16: 0 | P16: 0 | Q16: 0 | R16: 0 | S16: 0 | T16: 0 | U16: 0 | V16: 0 | W16: 0 | X16: 0 | Y16: 0 | Z16: 0 | AA16: 0 | AB16: 0 | AC16: 0 | AD16: 0 | AE16: 0 | AF16: 0 | AG16: 0 | AH16: 0 | AI16: 0 | AJ16: 0 | AK16: 0 | AL16: 0 | AM16: 0 | AN16: 0 | AO16: 0 | AP16: 0 | AQ16: 0 | AR16: 0 | AS16: 0 | AT16: 0 | AU16: 0 | AV16: 0 | AW16: 0 | AX16: 0 | AY16: 0 | AZ16: 0 | BA16: 0 | BB16: 0 | BC16: 0 | BD16: 0 | BE16: 0 | BF16: 0 | BG16: 0 | BH16: 0 | BI16: 0 | BJ16: 0 | BK16: 0 | BL16: 0 | BM16: 0 | BN16: 0 | BO16: 0 | BP16: 0 | BQ16: 0 | BR16: 0 | BS16: 0 | BT16: 0 | BU16: 0 | BV16: 0 | BW16: 0 | BX16: 0 | BY16: 0 | BZ16: 0 | CA16: 0 | CB16: 0 | CC16: 0 | CD16: 0 | CE16: 0 | CF16: 0 | CG16: 0 | CH16: 0 | CI16: 0 | CJ16: 0 | CK16: 0 | CL16: 0 | CM16: 0 | CN16: 0 | CO16: 0 | CP16: 0 | CQ16: 0 | CR16: 0 | CS16: 0 | CT16: 0 | CU16: 0 | CV16: 0 | CW16: 0 | CX16: 0 | CY16: 0 | CZ16: 0 | DA16: 0 | DB16: 0 | DC16: 0 | DD16: 0 | DE16: 0 | DF16: 0 | DG16: 0 | DH16: 0 | DI16: 0 | DJ16: 0 | DK16: 0 | DL16: 0 | DM16: 0 | DN16: 0 | DO16: 0 | DP16: 0 | DQ16: 0 | DR16: 0 | DS16: 0 | DT16: 0 | DU16: 0 | DV16: 0 | DW16: 0 | DX16: 0 | DY16: 0 | DZ16: 0 | EA16: 0 | EB16: 0 | EC16: 0 | ED16: 0 | EE16: 0 | EF16: 0 | EG16: 0 | EH16: 0 | EI16: 0 | EJ16: 0 | EK16: 0 | EL16: 0 | EM16: 0 | EN16: 0 | EO16: 0 | EP16: 0 | EQ16: 0 | ER16: 0 | ES16: 0 | ET16: 0 | EU16: 0 | EV16: 0 | EW16: 0 | EX16: 0 | EY16: 0 | EZ16: 0 | FA16: 13 | FB16: 13 | FC16: 13 | FD16: 13 | FE16: 13 | FF16: 13 | FG16: 13 | FH16: 13 | FI16: 13 | FJ16: 13 | FK16: 13 | FL16: 13 | FM16: 13 | FN16: 13 | FO16: 13 | FP16: 13 | FQ16: 13 | FR16: 13 | FS16: 13 | FT16: 13 | FU16: 13 | FV16: 13 | FW16: 13 | FX16: 13 | FY16: 13 | FZ16: 13 | GA16: 13 | GB16: 13 | GC16: 13 | GD16: 13 | GE16: 13 | GF16: 13 | GG16: 13 | GH16: 13 | GI16: 13 | GJ16: 13 | GK16: 0 | GL16: 0 | GM16: 0 | GN16: 13 | GO16: 13 | GP16: 13 | GQ16: 13 | GR16: 13 | GS16: 13 | GT16: 13 | GU16: 13 | GV16: 13 | GW16: 13 | GX16: 13 | GY16: 13 | GZ16: 13 | HA16: 13 | HB16: 13 | HC16: 13 | HD16: 13 | HE16: 13 | HF16: 13 | HG16: 13 | HH16: 13 | HI16: 13 | HJ16: 13 | HK16: 13 | HL16: 13 | HM16: 13 | HN16: 0 | HO16: 0 | HP16: 13 | HQ16: 13 | HR16: 13 | HS16: 13 | HT16: 13 | HU16: 13 | HV16: 13 | HW16: 13 | HX16: 13 | HY16: 13 | HZ16: 13 | IA16: 13 | IB16: 13 | IC16: 13 | ID16: 13 | IE16: 13 | IF16: 13 | IG16: 13 | IH16: 13 | II16: 13 | IJ16: 13 | IK16: 13 | IL16: 13 | IM16: 13 | IN16: 13 | IO16: 13 | IP16: 13 | IQ16: 13 | IR16: 13 | IS16: 13 | IT16: 13 | IU16: 13 | IV16: 13 | IW16: 13 | IX16: 13 | IY16: 13 | IZ16: 13 | JA16: 13 | JB16: 13 | JC16: 13 | JD16: 13 | JE16: 13 | JF16: 13 | JG16: 13 | JH16: 13 | JI16: 13 | JJ16: 13 | JK16: 13 | JL16: 13 | JM16: 13 | JN16: 13 | JO16: 13 | JP16: 13 | JQ16: 13 | JR16: 13 | JS16: 13 | JT16: 13 | JU16: 13 | JV16: 13 | JW16: 13 | JX16: 13 | JY16: 13 | JZ16: 13 | KA16: 13 | KB16: 13 | KC16: 13 | KD16: 13 | KE16: 13 | KF16: 13 | KG16: 13 | KH16: 13 | KI16: 13 | KJ16: 13 | KK16: 13 | KL16: 13 | KM16: 13 | KN16: 13 | KO16: 13
A17: 2017thru2021 | B17: 160 | C17: 1600000US0600884 | D17: Alhambra | E17: 5150 | F17: 06 | G17: 00884 | H17: 30055 | I17: 11850 | J17: 2380 | K17: 880 | L17: 95 | M17: 0 | N17: 505 | O17: 0 | P17: 0 | Q17: 215 | R17: 430 | S17: 60 | T17: 0 | U17: 280 | V17: 0 | W17: 0 | X17: 95 | Y17: 510 | Z17: 60 | AA17: 0 | AB17: 300 | AC17: 0 | AD17: 0 | AE17: 150 | AF17: 210 | AG17: 0 | AH17: 0 | AI17: 85 | AJ17: 0 | AK17: 0 | AL17: 90 | AM17: 350 | AN17: 4 | AO17: 4 | AP17: 235 | AQ17: 0 | AR17: 0 | AS17: 100 | AT17: 9470 | AU17: 720 | AV17: 80 | AW17: 0 | AX17: 490 | AY17: 0 | AZ17: 0 | BA17: 150 | BB17: 650 | BC17: 145 | BD17: 0 | BE17: 330 | BF17: 0 | BG17: 0 | BH17: 155 | BI17: 1390 | BJ17: 160 | BK17: 0 | BL17: 905 | BM17: 0 | BN17: 0 | BO17: 325 | BP17: 995 | BQ17: 115 | BR17: 0 | BS17: 610 | BT17: 0 | BU17: 0 | BV17: 270 | BW17: 5715 | BX17: 835 | BY17: 35 | BZ17: 3080 | CA17: 75 | CB17: 0 | CC17: 1600 | CD17: 18205 | CE17: 6915 | CF17: 3490 | CG17: 345 | CH17: 30 | CI17: 2125 | CJ17: 15 | CK17: 0 | CL17: 950 | CM17: 1715 | CN17: 70 | CO17: 4 | CP17: 800 | CQ17: 0 | CR17: 25 | CS17: 720 | CT17: 780 | CU17: 80 | CV17: 50 | CW17: 475 | CX17: 0 | CY17: 0 | CZ17: 170 | DA17: 310 | DB17: 15 | DC17: 0 | DD17: 120 | DE17: 0 | DF17: 0 | DG17: 180 | DH17: 620 | DI17: 55 | DJ17: 0 | DK17: 300 | DL17: 0 | DM17: 0 | DN17: 265 | DO17: 11290 | DP17: 940 | DQ17: 50 | DR17: 0 | DS17: 535 | DT17: 15 | DU17: 0 | DV17: 340 | DW17: 1275 | DX17: 100 | DY17: 40 | DZ17: 605 | EA17: 0 | EB17: 35 | EC17: 465 | ED17: 2770 | EE17: 405 | EF17: 65 | EG17: 965 | EH17: 4 | EI17: 15 | EJ17: 1270 | EK17: 1980 | EL17: 230 | EM17: 50 | EN17: 600 | EO17: 0 | EP17: 0 | EQ17: 1020 | ER17: 4325 | ES17: 920 | ET17: 110 | EU17: 1560 | EV17: 100 | EW17: 0 | EX17: 1560 | EY17: 533 | EZ17: 693 | FA17: 270 | FB17: 184 | FC17: 57 | FD17: 31 | FE17: 145 | FF17: 31 | FG17: 31 | FH17: 84 | FI17: 120 | FJ17: 44 | FK17: 31 | FL17: 91 | FM17: 31 | FN17: 31 | FO17: 61 | FP17: 131 | FQ17: 50 | FR17: 31 | FS17: 106 | FT17: 31 | FU17: 31 | FV17: 91 | FW17: 94 | FX17: 31 | FY17: 31 | FZ17: 54 | GA17: 31 | GB17: 31 | GC17: 73 | GD17: 120 | GE17: 12 | GF17: 14 | GG17: 106 | GH17: 31 | GI17: 31 | GJ17: 51 | GK17: 647 | GL17: 171 | GM17: 59 | GN17: 31 | GO17: 115 | GP17: 31 | GQ17: 31 | GR17: 106 | GS17: 132 | GT17: 61 | GU17: 31 | GV17: 100 | GW17: 31 | GX17: 31 | GY17: 84 | GZ17: 294 | HA17: 79 | HB17: 31 | HC17: 261 | HD17: 31 | HE17: 31 | HF17: 107 | HG17: 192 | HH17: 51 | HI17: 31 | HJ17: 172 | HK17: 31 | HL17: 31 | HM17: 95 | HN17: 497 | HO17: 162 | HP17: 41 | HQ17: 337 | HR17: 66 | HS17: 31 | HT17: 264 | HU17: 648 | HV17: 527 | HW17: 411 | HX17: 104 | HY17: 34 | HZ17: 337 | IA17: 28 | IB17: 31 | IC17: 212 | ID17: 362 | IE17: 42 | IF17: 8 | IG17: 226 | IH17: 31 | II17: 36 | IJ17: 238 | IK17: 184 | IL17: 68 | IM17: 50 | IN17: 142 | IO17: 31 | IP17: 31 | IQ17: 93 | IR17: 135 | IS17: 18 | IT17: 31 | IU17: 69 | IV17: 31 | IW17: 31 | IX17: 105 | IY17: 186 | IZ17: 56 | JA17: 31 | JB17: 128 | JC17: 31 | JD17: 31 | JE17: 111 | JF17: 597 | JG17: 248 | JH17: 32 | JI17: 31 | JJ17: 135 | JK17: 22 | JL17: 31 | JM17: 175 | JN17: 259 | JO17: 63 | JP17: 42 | JQ17: 180 | JR17: 31 | JS17: 44 | JT17: 166 | JU17: 313 | JV17: 136 | JW17: 54 | JX17: 237 | JY17: 4 | JZ17: 25 | KA17: 233 | KB17: 337 | KC17: 121 | KD17: 35 | KE17: 194 | KF17: 31 | KG17: 31 | KH17: 243 | KI17: 472 | KJ17: 273 | KK17: 81 | KL17: 235 | KM17: 102 | KN17: 31 | KO17: 292
A18: 2017thru2021 | B18: 160 | C18: 1600000US0600898 | D18: Alhambra Valley CDP | E18: 70 | F18: 06 | G18: 00898 | H18: 310 | I18: 280 | J18: 60 | K18: 50 | L18: 50 | M18: 0 | N18: 0 | O18: 0 | P18: 0 | Q18: 0 | R18: 0 | S18: 0 | T18: 0 | U18: 0 | V18: 0 | W18: 0 | X18: 0 | Y18: 0 | Z18: 0 | AA18: 0 | AB18: 0 | AC18: 0 | AD18: 0 | AE18: 0 | AF18: 0 | AG18: 0 | AH18: 0 | AI18: 0 | AJ18: 0 | AK18: 0 | AL18: 0 | AM18: 10 | AN18: 10 | AO18: 0 | AP18: 0 | AQ18: 0 | AR18: 0 | AS18: 0 | AT18: 220 | AU18: 0 | AV18: 0 | AW18: 0 | AX18: 0 | AY18: 0 | AZ18: 0 | BA18: 0 | BB18: 0 | BC18: 0 | BD18: 0 | BE18: 0 | BF18: 0 | BG18: 0 | BH18: 0 | BI18: 30 | BJ18: 30 | BK18: 0 | BL18: 0 | BM18: 0 | BN18: 0 | BO18: 0 | BP18: 20 | BQ18: 10 | BR18: 0 | BS18: 0 | BT18: 0 | BU18: 0 | BV18: 10 | BW18: 170 | BX18: 125 | BY18: 35 | BZ18: 0 | CA18: 0 | CB18: 0 | CC18: 15 | CD18: 30 | CE18: 10 | CF18: 0 | CG18: 0 | CH18: 0 | CI18: 0 | CJ18: 0 | CK18: 0 | CL18: 0 | CM18: 0 | CN18: 0 | CO18: 0 | CP18: 0 | CQ18: 0 | CR18: 0 | CS18: 0 | CT18: 0 | CU18: 0 | CV18: 0 | CW18: 0 | CX18: 0 | CY18: 0 | CZ18: 0 | DA18: 0 | DB18: 0 | DC18: 0 | DD18: 0 | DE18: 0 | DF18: 0 | DG18: 0 | DH18: 10 | DI18: 10 | DJ18: 0 | DK18: 0 | DL18: 0 | DM18: 0 | DN18: 0 | DO18: 20 | DP18: 10 | DQ18: 10 | DR18: 0 | DS18: 0 | DT18: 0 | DU18: 0 | DV18: 0 | DW18: 0 | DX18: 0 | DY18: 0 | DZ18: 0 | EA18: 0 | EB18: 0 | EC18: 0 | ED18: 10 | EE18: 10 | EF18: 0 | EG18: 0 | EH18: 0 | EI18: 0 | EJ18: 0 | EK18: 0 | EL18: 0 | EM18: 0 | EN18: 0 | EO18: 0 | EP18: 0 | EQ18: 0 | ER18: 0 | ES18: 0 | ET18: 0 | EU18: 0 | EV18: 0 | EW18: 0 | EX18: 0 | EY18: 96 | EZ18: 105 | FA18: 80 | FB18: 78 | FC18: 78 | FD18: 13 | FE18: 13 | FF18: 13 | FG18: 13 | FH18: 13 | FI18: 13 | FJ18: 13 | FK18: 13 | FL18: 13 | FM18: 13 | FN18: 13 | FO18: 13 | FP18: 13 | FQ18: 13 | FR18: 13 | FS18: 13 | FT18: 13 | FU18: 13 | FV18: 13 | FW18: 13 | FX18: 13 | FY18: 13 | FZ18: 13 | GA18: 13 | GB18: 13 | GC18: 13 | GD18: 18 | GE18: 18 | GF18: 13 | GG18: 13 | GH18: 13 | GI18: 13 | GJ18: 13 | GK18: 78 | GL18: 13 | GM18: 13 | GN18: 13 | GO18: 13 | GP18: 13 | GQ18: 13 | GR18: 13 | GS18: 13 | GT18: 13 | GU18: 13 | GV18: 13 | GW18: 13 | GX18: 13 | GY18: 13 | GZ18: 27 | HA18: 27 | HB18: 13 | HC18: 13 | HD18: 13 | HE18: 13 | HF18: 13 | HG18: 24 | HH18: 16 | HI18: 13 | HJ18: 13 | HK18: 13 | HL18: 13 | HM18: 16 | HN18: 71 | HO18: 60 | HP18: 52 | HQ18: 13 | HR18: 13 | HS18: 13 | HT18: 20 | HU18: 27 | HV18: 15 | HW18: 13 | HX18: 13 | HY18: 13 | HZ18: 13 | IA18: 13 | IB18: 13 | IC18: 13 | ID18: 13 | IE18: 13 | IF18: 13 | IG18: 13 | IH18: 13 | II18: 13 | IJ18: 13 | IK18: 13 | IL18: 13 | IM18: 13 | IN18: 13 | IO18: 13 | IP18: 13 | IQ18: 13 | IR18: 13 | IS18: 13 | IT18: 13 | IU18: 13 | IV18: 13 | IW18: 13 | IX18: 13 | IY18: 15 | IZ18: 15 | JA18: 13 | JB18: 13 | JC18: 13 | JD18: 13 | JE18: 13 | JF18: 23 | JG18: 16 | JH18: 16 | JI18: 13 | JJ18: 13 | JK18: 13 | JL18: 13 | JM18: 13 | JN18: 13 | JO18: 13 | JP18: 13 | JQ18: 13 | JR18: 13 | JS18: 13 | JT18: 13 | JU18: 13 | JV18: 13 | JW18: 13 | JX18: 13 | JY18: 13 | JZ18: 13 | KA18: 13 | KB18: 13 | KC18: 13 | KD18: 13 | KE18: 13 | KF18: 13 | KG18: 13 | KH18: 13 | KI18: 13 | KJ18: 13 | KK18: 13 | KL18: 13 | KM18: 13 | KN18: 13 | KO18: 13
A19: 2017thru2021 | B19: 160 | C19: 1600000US0600947 | D19: Aliso Viejo | E19: 2180 | F19: 06 | G19: 00947 | H19: 19000 | I19: 10815 | J19: 1200 | K19: 480 | L19: 305 | M19: 0 | N19: 120 | O19: 0 | P19: 0 | Q19: 50 | R19: 200 | S19: 150 | T19: 0 | U19: 30 | V19: 0 | W19: 0 | X19: 15 | Y19: 335 | Z19: 290 | AA19: 0 | AB19: 10 | AC19: 15 | AD19: 0 | AE19: 20 | AF19: 120 | AG19: 75 | AH19: 0 | AI19: 15 | AJ19: 0 | AK19: 0 | AL19: 30 | AM19: 65 | AN19: 50 | AO19: 0 | AP19: 4 | AQ19: 0 | AR19: 0 | AS19: 10 | AT19: 9610 | AU19: 185 | AV19: 130 | AW19: 0 | AX19: 15 | AY19: 0 | AZ19: 0 | BA19: 4 | BB19: 325 | BC19: 220 | BD19: 0 | BE19: 35 | BF19: 0 | BG19: 0 | BH19: 70 | BI19: 910 | BJ19: 540 | BK19: 45 | BL19: 150 | BM19: 0 | BN19: 0 | BO19: 165 | BP19: 830 | BQ19: 490 | BR19: 15 | BS19: 105 | BT19: 0 | BU19: 0 | BV19: 180 | BW19: 7360 | BX19: 4920 | BY19: 110 | BZ19: 1345 | CA19: 0 | CB19: 0 | CC19: 790 | CD19: 8185 | CE19: 2720 | CF19: 1185 | CG19: 760 | CH19: 0 | CI19: 110 | CJ19: 0 | CK19: 0 | CL19: 290 | CM19: 695 | CN19: 520 | CO19: 20 | CP19: 50 | CQ19: 0 | CR19: 0 | CS19: 100 | CT19: 465 | CU19: 255 | CV19: 0 | CW19: 45 | CX19: 0 | CY19: 0 | CZ19: 165 | DA19: 230 | DB19: 125 | DC19: 0 | DD19: 25 | DE19: 0 | DF19: 0 | DG19: 80 | DH19: 145 | DI19: 15 | DJ19: 15 | DK19: 60 | DL19: 0 | DM19: 0 | DN19: 0 | DO19: 5465 | DP19: 185 | DQ19: 115 | DR19: 30 | DS19: 25 | DT19: 0 | DU19: 0 | DV19: 20 | DW19: 230 | DX19: 125 | DY19: 0 | DZ19: 30 | EA19: 0 | EB19: 0 | EC19: 75 | ED19: 980 | EE19: 655 | EF19: 20 | EG19: 150 | EH19: 0 | EI19: 0 | EJ19: 160 | EK19: 1025 | EL19: 550 | EM19: 15 | EN19: 125 | EO19: 0 | EP19: 0 | EQ19: 315 | ER19: 3045 | ES19: 2135 | ET19: 130 | EU19: 100 | EV19: 0 | EW19: 0 | EX19: 475 | EY19: 500 | EZ19: 548 | FA19: 203 | FB19: 122 | FC19: 100 | FD19: 31 | FE19: 67 | FF19: 31 | FG19: 31 | FH19: 35 | FI19: 75 | FJ19: 69 | FK19: 31 | FL19: 27 | FM19: 31 | FN19: 31 | FO19: 27 | FP19: 135 | FQ19: 132 | FR19: 31 | FS19: 16 | FT19: 23 | FU19: 31 | FV19: 22 | FW19: 79 | FX19: 65 | FY19: 31 | FZ19: 25 | GA19: 31 | GB19: 31 | GC19: 28 | GD19: 49 | GE19: 46 | GF19: 31 | GG19: 12 | GH19: 31 | GI19: 31 | GJ19: 16 | GK19: 538 | GL19: 95 | GM19: 75 | GN19: 31 | GO19: 17 | GP19: 31 | GQ19: 31 | GR19: 4 | GS19: 131 | GT19: 103 | GU19: 31 | GV19: 38 | GW19: 31 | GX19: 31 | GY19: 63 | GZ19: 201 | HA19: 139 | HB19: 53 | HC19: 75 | HD19: 31 | HE19: 31 | HF19: 96 | HG19: 187 | HH19: 156 | HI19: 22 | HJ19: 53 | HK19: 31 | HL19: 31 | HM19: 100 | HN19: 498 | HO19: 447 | HP19: 60 | HQ19: 241 | HR19: 31 | HS19: 31 | HT19: 202 | HU19: 566 | HV19: 390 | HW19: 293 | HX19: 233 | HY19: 31 | HZ19: 85 | IA19: 31 | IB19: 31 | IC19: 134 | ID19: 214 | IE19: 195 | IF19: 32 | IG19: 46 | IH19: 31 | II19: 31 | IJ19: 76 | IK19: 186 | IL19: 125 | IM19: 31 | IN19: 39 | IO19: 31 | IP19: 31 | IQ19: 135 | IR19: 107 | IS19: 83 | IT19: 31 | IU19: 34 | IV19: 31 | IW19: 31 | IX19: 52 | IY19: 89 | IZ19: 23 | JA19: 29 | JB19: 41 | JC19: 31 | JD19: 31 | JE19: 31 | JF19: 505 | JG19: 97 | JH19: 82 | JI19: 34 | JJ19: 36 | JK19: 31 | JL19: 31 | JM19: 33 | JN19: 137 | JO19: 108 | JP19: 31 | JQ19: 47 | JR19: 31 | JS19: 31 | JT19: 86 | JU19: 219 | JV19: 166 | JW19: 35 | JX19: 78 | JY19: 31 | JZ19: 31 | KA19: 86 | KB19: 250 | KC19: 192 | KD19: 23 | KE19: 103 | KF19: 31 | KG19: 31 | KH19: 148 | KI19: 440 | KJ19: 384 | KK19: 103 | KL19: 55 | KM19: 31 | KN19: 31 | KO19: 202
A20: 2017thru2021 | B20: 160 | C20: 1600000US0600982 | D20: Alleghany CDP | E20: 0 | F20: 06 | G20: 00982 | H20: 0 | I20: 0 | J20: 0 | K20: 0 | L20: 0 | M20: 0 | N20: 0 | O20: 0 | P20: 0 | Q20: 0 | R20: 0 | S20: 0 | T20: 0 | U20: 0 | V20: 0 | W20: 0 | X20: 0 | Y20: 0 | Z20: 0 | AA20: 0 | AB20: 0 | AC20: 0 | AD20: 0 | AE20: 0 | AF20: 0 | AG20: 0 | AH20: 0 | AI20: 0 | AJ20: 0 | AK20: 0 | AL20: 0 | AM20: 0 | AN20: 0 | AO20: 0 | AP20: 0 | AQ20: 0 | AR20: 0 | AS20: 0 | AT20: 0 | AU20: 0 | AV20: 0 | AW20: 0 | AX20: 0 | AY20: 0 | AZ20: 0 | BA20: 0 | BB20: 0 | BC20: 0 | BD20: 0 | BE20: 0 | BF20: 0 | BG20: 0 | BH20: 0 | BI20: 0 | BJ20: 0 | BK20: 0 | BL20: 0 | BM20: 0 | BN20: 0 | BO20: 0 | BP20: 0 | BQ20: 0 | BR20: 0 | BS20: 0 | BT20: 0 | BU20: 0 | BV20: 0 | BW20: 0 | BX20: 0 | BY20: 0 | BZ20: 0 | CA20: 0 | CB20: 0 | CC20: 0 | CD20: 0 | CE20: 0 | CF20: 0 | CG20: 0 | CH20: 0 | CI20: 0 | CJ20: 0 | CK20: 0 | CL20: 0 | CM20: 0 | CN20: 0 | CO20: 0 | CP20: 0 | CQ20: 0 | CR20: 0 | CS20: 0 | CT20: 0 | CU20: 0 | CV20: 0 | CW20: 0 | CX20: 0 | CY20: 0 | CZ20: 0 | DA20: 0 | DB20: 0 | DC20: 0 | DD20: 0 | DE20: 0 | DF20: 0 | DG20: 0 | DH20: 0 | DI20: 0 | DJ20: 0 | DK20: 0 | DL20: 0 | DM20: 0 | DN20: 0 | DO20: 0 | DP20: 0 | DQ20: 0 | DR20: 0 | DS20: 0 | DT20: 0 | DU20: 0 | DV20: 0 | DW20: 0 | DX20: 0 | DY20: 0 | DZ20: 0 | EA20: 0 | EB20: 0 | EC20: 0 | ED20: 0 | EE20: 0 | EF20: 0 | EG20: 0 | EH20: 0 | EI20: 0 | EJ20: 0 | EK20: 0 | EL20: 0 | EM20: 0 | EN20: 0 | EO20: 0 | EP20: 0 | EQ20: 0 | ER20: 0 | ES20: 0 | ET20: 0 | EU20: 0 | EV20: 0 | EW20: 0 | EX20: 0 | EY20: 0 | EZ20: 0 | FA20: 0 | FB20: 0 | FC20: 0 | FD20: 13 | FE20: 13 | FF20: 13 | FG20: 13 | FH20: 13 | FI20: 13 | FJ20: 13 | FK20: 13 | FL20: 13 | FM20: 13 | FN20: 13 | FO20: 13 | FP20: 13 | FQ20: 13 | FR20: 13 | FS20: 13 | FT20: 13 | FU20: 13 | FV20: 13 | FW20: 13 | FX20: 13 | FY20: 13 | FZ20: 13 | GA20: 13 | GB20: 13 | GC20: 13 | GD20: 13 | GE20: 13 | GF20: 13 | GG20: 13 | GH20: 13 | GI20: 13 | GJ20: 13 | GK20: 0 | GL20: 13 | GM20: 13 | GN20: 13 | GO20: 13 | GP20: 13 | GQ20: 13 | GR20: 13 | GS20: 13 | GT20: 13 | GU20: 13 | GV20: 13 | GW20: 13 | GX20: 13 | GY20: 13 | GZ20: 13 | HA20: 13 | HB20: 13 | HC20: 13 | HD20: 13 | HE20: 13 | HF20: 13 | HG20: 0 | HH20: 0 | HI20: 13 | HJ20: 13 | HK20: 13 | HL20: 13 | HM20: 13 | HN20: 13 | HO20: 13 | HP20: 13 | HQ20: 13 | HR20: 13 | HS20: 13 | HT20: 13 | HU20: 13 | HV20: 13 | HW20: 13 | HX20: 13 | HY20: 13 | HZ20: 13 | IA20: 13 | IB20: 13 | IC20: 13 | ID20: 13 | IE20: 13 | IF20: 13 | IG20: 13 | IH20: 13 | II20: 13 | IJ20: 13 | IK20: 13 | IL20: 13 | IM20: 13 | IN20: 13 | IO20: 13 | IP20: 13 | IQ20: 13 | IR20: 13 | IS20: 13 | IT20: 13 | IU20: 13 | IV20: 13 | IW20: 13 | IX20: 13 | IY20: 13 | IZ20: 13 | JA20: 13 | JB20: 13 | JC20: 13 | JD20: 13 | JE20: 13 | JF20: 13 | JG20: 13 | JH20: 13 | JI20: 13 | JJ20: 13 | JK20: 13 | JL20: 13 | JM20: 13 | JN20: 13 | JO20: 13 | JP20: 13 | JQ20: 13 | JR20: 13 | JS20: 13 | JT20: 13 | JU20: 13 | JV20: 13 | JW20: 13 | JX20: 13 | JY20: 13 | JZ20: 13 | KA20: 13 | KB20: 13 | KC20: 13 | KD20: 13 | KE20: 13 | KF20: 13 | KG20: 13 | KH20: 13 | KI20: 13 | KJ20: 13 | KK20: 13 | KL20: 13 | KM20: 13 | KN20: 13 | KO20: 13
A21: 2017thru2021 | B21: 160 | C21: 1600000US0600996 | D21: Allendale CDP | E21: 65 | F21: 06 | G21: 00996 | H21: 600 | I21: 515 | J21: 65 | K21: 10 | L21: 10 | M21: 0 | N21: 0 | O21: 0 | P21: 0 | Q21: 0 | R21: 0 | S21: 0 | T21: 0 | U21: 0 | V21: 0 | W21: 0 | X21: 0 | Y21: 20 | Z21: 20 | AA21: 0 | AB21: 0 | AC21: 0 | AD21: 0 | AE21: 0 | AF21: 10 | AG21: 10 | AH21: 0 | AI21: 0 | AJ21: 0 | AK21: 0 | AL21: 0 | AM21: 30 | AN21: 15 | AO21: 0 | AP21: 0 | AQ21: 0 | AR21: 0 | AS21: 15 | AT21: 450 | AU21: 15 | AV21: 15 | AW21: 0 | AX21: 0 | AY21: 0 | AZ21: 0 | BA21: 0 | BB21: 10 | BC21: 10 | BD21: 0 | BE21: 0 | BF21: 0 | BG21: 0 | BH21: 0 | BI21: 110 | BJ21: 80 | BK21: 30 | BL21: 0 | BM21: 0 | BN21: 0 | BO21: 0 | BP21: 25 | BQ21: 25 | BR21: 0 | BS21: 0 | BT21: 0 | BU21: 0 | BV21: 0 | BW21: 285 | BX21: 205 | BY21: 20 | BZ21: 0 | CA21: 0 | CB21: 0 | CC21: 50 | CD21: 90 | CE21: 45 | CF21: 30 | CG21: 30 | CH21: 0 | CI21: 0 | CJ21: 0 | CK21: 0 | CL21: 0 | CM21: 15 | CN21: 15 | CO21: 0 | CP21: 0 | CQ21: 0 | CR21: 0 | CS21: 0 | CT21: 0 | CU21: 0 | CV21: 0 | CW21: 0 | CX21: 0 | CY21: 0 | CZ21: 0 | DA21: 0 | DB21: 0 | DC21: 0 | DD21: 0 | DE21: 0 | DF21: 0 | DG21: 0 | DH21: 0 | DI21: 0 | DJ21: 0 | DK21: 0 | DL21: 0 | DM21: 0 | DN21: 0 | DO21: 40 | DP21: 0 | DQ21: 0 | DR21: 0 | DS21: 0 | DT21: 0 | DU21: 0 | DV21: 0 | DW21: 0 | DX21: 0 | DY21: 0 | DZ21: 0 | EA21: 0 | EB21: 0 | EC21: 0 | ED21: 0 | EE21: 0 | EF21: 0 | EG21: 0 | EH21: 0 | EI21: 0 | EJ21: 0 | EK21: 0 | EL21: 0 | EM21: 0 | EN21: 0 | EO21: 0 | EP21: 0 | EQ21: 0 | ER21: 40 | ES21: 40 | ET21: 0 | EU21: 0 | EV21: 0 | EW21: 0 | EX21: 0 | EY21: 126 | EZ21: 112 | FA21: 40 | FB21: 16 | FC21: 16 | FD21: 13 | FE21: 13 | FF21: 13 | FG21: 13 | FH21: 13 | FI21: 13 | FJ21: 13 | FK21: 13 | FL21: 13 | FM21: 13 | FN21: 13 | FO21: 13 | FP21: 23 | FQ21: 23 | FR21: 13 | FS21: 13 | FT21: 13 | FU21: 13 | FV21: 13 | FW21: 14 | FX21: 14 | FY21: 13 | FZ21: 13 | GA21: 13 | GB21: 13 | GC21: 13 | GD21: 31 | GE21: 23 | GF21: 13 | GG21: 13 | GH21: 13 | GI21: 13 | GJ21: 24 | GK21: 112 | GL21: 31 | GM21: 31 | GN21: 13 | GO21: 13 | GP21: 13 | GQ21: 13 | GR21: 13 | GS21: 14 | GT21: 14 | GU21: 13 | GV21: 13 | GW21: 13 | GX21: 13 | GY21: 13 | GZ21: 99 | HA21: 86 | HB21: 53 | HC21: 13 | HD21: 13 | HE21: 13 | HF21: 13 | HG21: 43 | HH21: 43 | HI21: 13 | HJ21: 13 | HK21: 13 | HL21: 13 | HM21: 13 | HN21: 69 | HO21: 64 | HP21: 32 | HQ21: 13 | HR21: 13 | HS21: 13 | HT21: 33 | HU21: 75 | HV21: 55 | HW21: 48 | HX21: 48 | HY21: 13 | HZ21: 13 | IA21: 13 | IB21: 13 | IC21: 13 | ID21: 28 | IE21: 28 | IF21: 13 | IG21: 13 | IH21: 13 | II21: 13 | IJ21: 13 | IK21: 13 | IL21: 13 | IM21: 13 | IN21: 13 | IO21: 13 | IP21: 13 | IQ21: 13 | IR21: 13 | IS21: 13 | IT21: 13 | IU21: 13 | IV21: 13 | IW21: 13 | IX21: 13 | IY21: 13 | IZ21: 13 | JA21: 13 | JB21: 13 | JC21: 13 | JD21: 13 | JE21: 13 | JF21: 55 | JG21: 13 | JH21: 13 | JI21: 13 | JJ21: 13 | JK21: 13 | JL21: 13 | JM21: 13 | JN21: 13 | JO21: 13 | JP21: 13 | JQ21: 13 | JR21: 13 | JS21: 13 | JT21: 13 | JU21: 13 | JV21: 13 | JW21: 13 | JX21: 13 | JY21: 13 | JZ21: 13 | KA21: 13 | KB21: 13 | KC21: 13 | KD21: 13 | KE21: 13 | KF21: 13 | KG21: 13 | KH21: 13 | KI21: 55 | KJ21: 55 | KK21: 13 | KL21: 13 | KM21: 13 | KN21: 13 | KO21: 13
A22: 2017thru2021 | B22: 160 | C22: 1600000US0601010 | D22: Allensworth CDP | E22: 40 | F22: 06 | G22: 01010 | H22: 115 | I22: 40 | J22: 20 | K22: 10 | L22: 0 | M22: 0 | N22: 0 | O22: 0 | P22: 0 | Q22: 10 | R22: 0 | S22: 0 | T22: 0 | U22: 0 | V22: 0 | W22: 0 | X22: 0 | Y22: 4 | Z22: 0 | AA22: 0 | AB22: 0 | AC22: 0 | AD22: 0 | AE22: 4 | AF22: 4 | AG22: 0 | AH22: 0 | AI22: 0 | AJ22: 0 | AK22: 0 | AL22: 4 | AM22: 4 | AN22: 0 | AO22: 0 | AP22: 0 | AQ22: 0 | AR22: 0 | AS22: 4 | AT22: 20 | AU22: 0 | AV22: 0 | AW22: 0 | AX22: 0 | AY22: 0 | AZ22: 0 | BA22: 0 | BB22: 4 | BC22: 0 | BD22: 0 | BE22: 0 | BF22: 0 | BG22: 0 | BH22: 4 | BI22: 4 | BJ22: 0 | BK22: 4 | BL22: 0 | BM22: 0 | BN22: 0 | BO22: 0 | BP22: 10 | BQ22: 0 | BR22: 0 | BS22: 4 | BT22: 0 | BU22: 0 | BV22: 4 | BW22: 4 | BX22: 0 | BY22: 0 | BZ22: 0 | CA22: 0 | CB22: 0 | CC22: 4 | CD22: 75 | CE22: 30 | CF22: 10 | CG22: 0 | CH22: 0 | CI22: 0 | CJ22: 0 | CK22: 0 | CL22: 10 | CM22: 15 | CN22: 0 | CO22: 0 | CP22: 0 | CQ22: 0 | CR22: 0 | CS22: 15 | CT22: 4 | CU22: 0 | CV22: 0 | CW22: 0 | CX22: 0 | CY22: 0 | CZ22: 4 | DA22: 4 | DB22: 0 | DC22: 0 | DD22: 0 | DE22: 0 | DF22: 0 | DG22: 4 | DH22: 0 | DI22: 0 | DJ22: 0 | DK22: 0 | DL22: 0 | DM22: 0 | DN22: 0 | DO22: 45 | DP22: 4 | DQ22: 0 | DR22: 0 | DS22: 0 | DT22: 0 | DU22: 0 | DV22: 4 | DW22: 4 | DX22: 0 | DY22: 0 | DZ22: 0 | EA22: 0 | EB22: 0 | EC22: 4 | ED22: 20 | EE22: 0 | EF22: 0 | EG22: 0 | EH22: 0 | EI22: 0 | EJ22: 20 | EK22: 15 | EL22: 0 | EM22: 0 | EN22: 0 | EO22: 0 | EP22: 0 | EQ22: 15 | ER22: 4 | ES22: 0 | ET22: 0 | EU22: 0 | EV22: 0 | EW22: 0 | EX22: 4 | EY22: 34 | EZ22: 19 | FA22: 13 | FB22: 12 | FC22: 13 | FD22: 13 | FE22: 13 | FF22: 13 | FG22: 13 | FH22: 12 | FI22: 13 | FJ22: 13 | FK22: 13 | FL22: 13 | FM22: 13 | FN22: 13 | FO22: 13 | FP22: 2 | FQ22: 13 | FR22: 13 | FS22: 13 | FT22: 13 | FU22: 13 | FV22: 2 | FW22: 2 | FX22: 13 | FY22: 13 | FZ22: 13 | GA22: 13 | GB22: 13 | GC22: 2 | GD22: 13 | GE22: 13 | GF22: 13 | GG22: 13 | GH22: 13 | GI22: 13 | GJ22: 13 | GK22: 11 | GL22: 13 | GM22: 13 | GN22: 13 | GO22: 13 | GP22: 13 | GQ22: 13 | GR22: 13 | GS22: 2 | GT22: 13 | GU22: 13 | GV22: 13 | GW22: 13 | GX22: 13 | GY22: 2 | GZ22: 1 | HA22: 13 | HB22: 1 | HC22: 13 | HD22: 13 | HE22: 13 | HF22: 13 | HG22: 13 | HH22: 13 | HI22: 13 | HJ22: 13 | HK22: 13 | HL22: 13 | HM22: 9 | HN22: 4 | HO22: 13 | HP22: 13 | HQ22: 13 | HR22: 13 | HS22: 13 | HT22: 4 | HU22: 30 | HV22: 15 | HW22: 17 | HX22: 13 | HY22: 13 | HZ22: 13 | IA22: 13 | IB22: 13 | IC22: 17 | ID22: 11 | IE22: 13 | IF22: 13 | IG22: 13 | IH22: 13 | II22: 13 | IJ22: 11 | IK22: 1 | IL22: 13 | IM22: 13 | IN22: 13 | IO22: 13 | IP22: 13 | IQ22: 1 | IR22: 3 | IS22: 13 | IT22: 13 | IU22: 13 | IV22: 13 | IW22: 13 | IX22: 3 | IY22: 13 | IZ22: 13 | JA22: 13 | JB22: 13 | JC22: 13 | JD22: 13 | JE22: 13 | JF22: 27 | JG22: 13 | JH22: 13 | JI22: 13 | JJ22: 13 | JK22: 13 | JL22: 13 | JM22: 13 | JN22: 3 | JO22: 13 | JP22: 13 | JQ22: 13 | JR22: 13 | JS22: 13 | JT22: 3 | JU22: 14 | JV22: 13 | JW22: 13 | JX22: 13 | JY22: 13 | JZ22: 13 | KA22: 14 | KB22: 22 | KC22: 13 | KD22: 13 | KE22: 13 | KF22: 13 | KG22: 13 | KH22: 22 | KI22: 4 | KJ22: 13 | KK22: 13 | KL22: 13 | KM22: 13 | KN22: 13 | KO22: 4
A23: 2017thru2021 | B23: 160 | C23: 1600000US0601094 | D23: Almanor CDP | E23: 0 | F23: 06 | G23: 01094 | H23: 0 | I23: 0 | J23: 0 | K23: 0 | L23: 0 | M23: 0 | N23: 0 | O23: 0 | P23: 0 | Q23: 0 | R23: 0 | S23: 0 | T23: 0 | U23: 0 | V23: 0 | W23: 0 | X23: 0 | Y23: 0 | Z23: 0 | AA23: 0 | AB23: 0 | AC23: 0 | AD23: 0 | AE23: 0 | AF23: 0 | AG23: 0 | AH23: 0 | AI23: 0 | AJ23: 0 | AK23: 0 | AL23: 0 | AM23: 0 | AN23: 0 | AO23: 0 | AP23: 0 | AQ23: 0 | AR23: 0 | AS23: 0 | AT23: 0 | AU23: 0 | AV23: 0 | AW23: 0 | AX23: 0 | AY23: 0 | AZ23: 0 | BA23: 0 | BB23: 0 | BC23: 0 | BD23: 0 | BE23: 0 | BF23: 0 | BG23: 0 | BH23: 0 | BI23: 0 | BJ23: 0 | BK23: 0 | BL23: 0 | BM23: 0 | BN23: 0 | BO23: 0 | BP23: 0 | BQ23: 0 | BR23: 0 | BS23: 0 | BT23: 0 | BU23: 0 | BV23: 0 | BW23: 0 | BX23: 0 | BY23: 0 | BZ23: 0 | CA23: 0 | CB23: 0 | CC23: 0 | CD23: 0 | CE23: 0 | CF23: 0 | CG23: 0 | CH23: 0 | CI23: 0 | CJ23: 0 | CK23: 0 | CL23: 0 | CM23: 0 | CN23: 0 | CO23: 0 | CP23: 0 | CQ23: 0 | CR23: 0 | CS23: 0 | CT23: 0 | CU23: 0 | CV23: 0 | CW23: 0 | CX23: 0 | CY23: 0 | CZ23: 0 | DA23: 0 | DB23: 0 | DC23: 0 | DD23: 0 | DE23: 0 | DF23: 0 | DG23: 0 | DH23: 0 | DI23: 0 | DJ23: 0 | DK23: 0 | DL23: 0 | DM23: 0 | DN23: 0 | DO23: 0 | DP23: 0 | DQ23: 0 | DR23: 0 | DS23: 0 | DT23: 0 | DU23: 0 | DV23: 0 | DW23: 0 | DX23: 0 | DY23: 0 | DZ23: 0 | EA23: 0 | EB23: 0 | EC23: 0 | ED23: 0 | EE23: 0 | EF23: 0 | EG23: 0 | EH23: 0 | EI23: 0 | EJ23: 0 | EK23: 0 | EL23: 0 | EM23: 0 | EN23: 0 | EO23: 0 | EP23: 0 | EQ23: 0 | ER23: 0 | ES23: 0 | ET23: 0 | EU23: 0 | EV23: 0 | EW23: 0 | EX23: 0 | EY23: 13 | EZ23: 13 | FA23: 13 | FB23: 13 | FC23: 13 | FD23: 13 | FE23: 13 | FF23: 13 | FG23: 13 | FH23: 13 | FI23: 13 | FJ23: 13 | FK23: 13 | FL23: 13 | FM23: 13 | FN23: 13 | FO23: 13 | FP23: 13 | FQ23: 13 | FR23: 13 | FS23: 13 | FT23: 13 | FU23: 13 | FV23: 13 | FW23: 13 | FX23: 13 | FY23: 13 | FZ23: 13 | GA23: 13 | GB23: 13 | GC23: 13 | GD23: 13 | GE23: 13 | GF23: 13 | GG23: 13 | GH23: 13 | GI23: 13 | GJ23: 13 | GK23: 13 | GL23: 13 | GM23: 13 | GN23: 13 | GO23: 13 | GP23: 13 | GQ23: 13 | GR23: 13 | GS23: 13 | GT23: 13 | GU23: 13 | GV23: 13 | GW23: 13 | GX23: 13 | GY23: 13 | GZ23: 13 | HA23: 13 | HB23: 13 | HC23: 13 | HD23: 13 | HE23: 13 | HF23: 13 | HG23: 13 | HH23: 13 | HI23: 13 | HJ23: 13 | HK23: 13 | HL23: 13 | HM23: 13 | HN23: 13 | HO23: 13 | HP23: 13 | HQ23: 13 | HR23: 13 | HS23: 13 | HT23: 13 | HU23: 13 | HV23: 13 | HW23: 13 | HX23: 13 | HY23: 13 | HZ23: 13 | IA23: 13 | IB23: 13 | IC23: 13 | ID23: 13 | IE23: 13 | IF23: 13 | IG23: 13 | IH23: 13 | II23: 13 | IJ23: 13 | IK23: 13 | IL23: 13 | IM23: 13 | IN23: 13 | IO23: 13 | IP23: 13 | IQ23: 13 | IR23: 13 | IS23: 13 | IT23: 13 | IU23: 13 | IV23: 13 | IW23: 13 | IX23: 13 | IY23: 13 | IZ23: 13 | JA23: 13 | JB23: 13 | JC23: 13 | JD23: 13 | JE23: 13 | JF23: 13 | JG23: 13 | JH23: 13 | JI23: 13 | JJ23: 13 | JK23: 13 | JL23: 13 | JM23: 13 | JN23: 13 | JO23: 13 | JP23: 13 | JQ23: 13 | JR23: 13 | JS23: 13 | JT23: 13 | JU23: 13 | JV23: 13 | JW23: 13 | JX23: 13 | JY23: 13 | JZ23: 13 | KA23: 13 | KB23: 13 | KC23: 13 | KD23: 13 | KE23: 13 | KF23: 13 | KG23: 13 | KH23: 13 | KI23: 13 | KJ23: 13 | KK23: 13 | KL23: 13 | KM23: 13 | KN23: 13 | KO23: 13
A24: 2017thru2021 | B24: 160 | C24: 1600000US0601150 | D24: Alondra Park CDP | E24: 575 | F24: 06 | G24: 01150 | H24: 2715 | I24: 1470 | J24: 365 | K24: 50 | L24: 10 | M24: 0 | N24: 30 | O24: 0 | P24: 0 | Q24: 10 | R24: 155 | S24: 115 | T24: 0 | U24: 10 | V24: 0 | W24: 0 | X24: 30 | Y24: 80 | Z24: 45 | AA24: 0 | AB24: 30 | AC24: 0 | AD24: 0 | AE24: 10 | AF24: 55 | AG24: 0 | AH24: 0 | AI24: 20 | AJ24: 0 | AK24: 0 | AL24: 35 | AM24: 25 | AN24: 0 | AO24: 15 | AP24: 0 | AQ24: 0 | AR24: 0 | AS24: 15 | AT24: 1105 | AU24: 70 | AV24: 40 | AW24: 0 | AX24: 0 | AY24: 0 | AZ24: 0 | BA24: 30 | BB24: 30 | BC24: 25 | BD24: 0 | BE24: 0 | BF24: 0 | BG24: 0 | BH24: 4 | BI24: 95 | BJ24: 50 | BK24: 0 | BL24: 0 | BM24: 0 | BN24: 0 | BO24: 20 | BP24: 130 | BQ24: 55 | BR24: 0 | BS24: 20 | BT24: 0 | BU24: 0 | BV24: 55 | BW24: 775 | BX24: 445 | BY24: 0 | BZ24: 150 | CA24: 20 | CB24: 0 | CC24: 145 | CD24: 1245 | CE24: 630 | CF24: 150 | CG24: 10 | CH24: 60 | CI24: 20 | CJ24: 0 | CK24: 0 | CL24: 60 | CM24: 285 | CN24: 10 | CO24: 25 | CP24: 0 | CQ24: 0 | CR24: 0 | CS24: 250 | CT24: 120 | CU24: 15 | CV24: 0 | CW24: 4 | CX24: 0 | CY24: 0 | CZ24: 100 | DA24: 35 | DB24: 10 | DC24: 0 | DD24: 0 | DE24: 0 | DF24: 0 | DG24: 10 | DH24: 40 | DI24: 0 | DJ24: 0 | DK24: 0 | DL24: 0 | DM24: 0 | DN24: 40 | DO24: 615 | DP24: 105 | DQ24: 0 | DR24: 55 | DS24: 40 | DT24: 0 | DU24: 0 | DV24: 10 | DW24: 80 | DX24: 0 | DY24: 20 | DZ24: 20 | EA24: 0 | EB24: 0 | EC24: 35 | ED24: 210 | EE24: 0 | EF24: 90 | EG24: 0 | EH24: 0 | EI24: 0 | EJ24: 120 | EK24: 90 | EL24: 0 | EM24: 65 | EN24: 0 | EO24: 0 | EP24: 0 | EQ24: 30 | ER24: 130 | ES24: 45 | ET24: 0 | EU24: 55 | EV24: 0 | EW24: 0 | EX24: 30 | EY24: 230 | EZ24: 222 | FA24: 165 | FB24: 53 | FC24: 13 | FD24: 19 | FE24: 49 | FF24: 19 | FG24: 19 | FH24: 15 | FI24: 143 | FJ24: 137 | FK24: 19 | FL24: 16 | FM24: 19 | FN24: 19 | FO24: 38 | FP24: 66 | FQ24: 41 | FR24: 19 | FS24: 46 | FT24: 19 | FU24: 19 | FV24: 13 | FW24: 56 | FX24: 19 | FY24: 19 | FZ24: 32 | GA24: 19 | GB24: 19 | GC24: 38 | GD24: 28 | GE24: 19 | GF24: 22 | GG24: 19 | GH24: 19 | GI24: 19 | GJ24: 20 | GK24: 188 | GL24: 46 | GM24: 37 | GN24: 19 | GO24: 19 | GP24: 19 | GQ24: 19 | GR24: 35 | GS24: 27 | GT24: 27 | GU24: 19 | GV24: 19 | GW24: 19 | GX24: 19 | GY24: 7 | GZ24: 67 | HA24: 39 | HB24: 19 | HC24: 19 | HD24: 19 | HE24: 19 | HF24: 27 | HG24: 77 | HH24: 50 | HI24: 19 | HJ24: 24 | HK24: 19 | HL24: 19 | HM24: 47 | HN24: 169 | HO24: 145 | HP24: 19 | HQ24: 63 | HR24: 34 | HS24: 19 | HT24: 74 | HU24: 129 | HV24: 146 | HW24: 120 | HX24: 13 | HY24: 85 | HZ24: 37 | IA24: 19 | IB24: 19 | IC24: 76 | ID24: 112 | IE24: 17 | IF24: 40 | IG24: 19 | IH24: 19 | II24: 19 | IJ24: 99 | IK24: 83 | IL24: 28 | IM24: 19 | IN24: 12 | IO24: 19 | IP24: 19 | IQ24: 78 | IR24: 38 | IS24: 20 | IT24: 19 | IU24: 19 | IV24: 19 | IW24: 19 | IX24: 21 | IY24: 61 | IZ24: 19 | JA24: 19 | JB24: 19 | JC24: 19 | JD24: 19 | JE24: 61 | JF24: 143 | JG24: 86 | JH24: 19 | JI24: 79 | JJ24: 51 | JK24: 19 | JL24: 19 | JM24: 19 | JN24: 55 | JO24: 19 | JP24: 37 | JQ24: 26 | JR24: 19 | JS24: 19 | JT24: 41 | JU24: 111 | JV24: 19 | JW24: 78 | JX24: 19 | JY24: 19 | JZ24: 19 | KA24: 89 | KB24: 82 | KC24: 19 | KD24: 75 | KE24: 19 | KF24: 19 | KG24: 19 | KH24: 33 | KI24: 91 | KJ24: 65 | KK24: 19 | KL24: 42 | KM24: 19 | KN24: 19 | KO24: 44
A25: 2017thru2021 | B25: 160 | C25: 1600000US0601164 | D25: Alpaugh CDP | E25: 30 | F25: 06 | G25: 01164 | H25: 215 | I25: 70 | J25: 30 | K25: 15 | L25: 0 | M25: 0 | N25: 0 | O25: 0 | P25: 0 | Q25: 15 | R25: 10 | S25: 4 | T25: 0 | U25: 0 | V25: 0 | W25: 0 | X25: 4 | Y25: 0 | Z25: 0 | AA25: 0 | AB25: 0 | AC25: 0 | AD25: 0 | AE25: 0 | AF25: 0 | AG25: 0 | AH25: 0 | AI25: 0 | AJ25: 0 | AK25: 0 | AL25: 0 | AM25: 4 | AN25: 0 | AO25: 0 | AP25: 0 | AQ25: 0 | AR25: 0 | AS25: 4 | AT25: 40 | AU25: 0 | AV25: 0 | AW25: 0 | AX25: 0 | AY25: 0 | AZ25: 0 | BA25: 0 | BB25: 4 | BC25: 0 | BD25: 0 | BE25: 0 | BF25: 0 | BG25: 0 | BH25: 4 | BI25: 20 | BJ25: 4 | BK25: 0 | BL25: 4 | BM25: 0 | BN25: 0 | BO25: 15 | BP25: 4 | BQ25: 0 | BR25: 0 | BS25: 0 | BT25: 0 | BU25: 0 | BV25: 4 | BW25: 10 | BX25: 0 | BY25: 0 | BZ25: 0 | CA25: 0 | CB25: 0 | CC25: 10 | CD25: 145 | CE25: 65 | CF25: 45 | CG25: 4 | CH25: 0 | CI25: 0 | CJ25: 0 | CK25: 0 | CL25: 45 | CM25: 10 | CN25: 0 | CO25: 0 | CP25: 0 | CQ25: 0 | CR25: 0 | CS25: 10 | CT25: 10 | CU25: 0 | CV25: 0 | CW25: 0 | CX25: 0 | CY25: 0 | CZ25: 10 | DA25: 0 | DB25: 0 | DC25: 0 | DD25: 0 | DE25: 0 | DF25: 0 | DG25: 0 | DH25: 0 | DI25: 0 | DJ25: 0 | DK25: 0 | DL25: 0 | DM25: 0 | DN25: 0 | DO25: 75 | DP25: 40 | DQ25: 0 | DR25: 0 | DS25: 0 | DT25: 0 | DU25: 0 | DV25: 40 | DW25: 4 | DX25: 0 | DY25: 0 | DZ25: 0 | EA25: 0 | EB25: 0 | EC25: 4 | ED25: 0 | EE25: 0 | EF25: 0 | EG25: 0 | EH25: 0 | EI25: 0 | EJ25: 0 | EK25: 20 | EL25: 0 | EM25: 0 | EN25: 0 | EO25: 0 | EP25: 0 | EQ25: 20 | ER25: 10 | ES25: 0 | ET25: 0 | EU25: 0 | EV25: 0 | EW25: 0 | EX25: 10 | EY25: 78 | EZ25: 22 | FA25: 18 | FB25: 14 | FC25: 13 | FD25: 13 | FE25: 13 | FF25: 13 | FG25: 13 | FH25: 14 | FI25: 13 | FJ25: 9 | FK25: 13 | FL25: 13 | FM25: 13 | FN25: 13 | FO25: 7 | FP25: 13 | FQ25: 13 | FR25: 13 | FS25: 13 | FT25: 13 | FU25: 13 | FV25: 13 | FW25: 13 | FX25: 13 | FY25: 13 | FZ25: 13 | GA25: 13 | GB25: 13 | GC25: 13 | GD25: 9 | GE25: 13 | GF25: 13 | GG25: 13 | GH25: 13 | GI25: 13 | GJ25: 9 | GK25: 18 | GL25: 13 | GM25: 13 | GN25: 13 | GO25: 13 | GP25: 13 | GQ25: 13 | GR25: 13 | GS25: 7 | GT25: 13 | GU25: 13 | GV25: 13 | GW25: 13 | GX25: 13 | GY25: 7 | GZ25: 17 | HA25: 7 | HB25: 13 | HC25: 2 | HD25: 13 | HE25: 13 | HF25: 14 | HG25: 8 | HH25: 13 | HI25: 13 | HJ25: 13 | HK25: 13 | HL25: 13 | HM25: 8 | HN25: 13 | HO25: 13 | HP25: 13 | HQ25: 13 | HR25: 13 | HS25: 13 | HT25: 13 | HU25: 74 | HV25: 38 | HW25: 35 | HX25: 5 | HY25: 13 | HZ25: 13 | IA25: 13 | IB25: 13 | IC25: 35 | ID25: 13 | IE25: 13 | IF25: 13 | IG25: 13 | IH25: 13 | II25: 13 | IJ25: 13 | IK25: 13 | IL25: 13 | IM25: 13 | IN25: 13 | IO25: 13 | IP25: 13 | IQ25: 13 | IR25: 13 | IS25: 13 | IT25: 13 | IU25: 13 | IV25: 13 | IW25: 13 | IX25: 13 | IY25: 13 | IZ25: 13 | JA25: 13 | JB25: 13 | JC25: 13 | JD25: 13 | JE25: 13 | JF25: 68 | JG25: 64 | JH25: 13 | JI25: 13 | JJ25: 13 | JK25: 13 | JL25: 13 | JM25: 64 | JN25: 8 | JO25: 13 | JP25: 13 | JQ25: 13 | JR25: 13 | JS25: 13 | JT25: 8 | JU25: 13 | JV25: 13 | JW25: 13 | JX25: 13 | JY25: 13 | JZ25: 13 | KA25: 13 | KB25: 14 | KC25: 13 | KD25: 13 | KE25: 13 | KF25: 13 | KG25: 13 | KH25: 14 | KI25: 13 | KJ25: 13 | KK25: 13 | KL25: 13 | KM25: 13 | KN25: 13 | KO25: 13
A26: 2017thru2021 | B26: 160 | C26: 1600000US0601192 | D26: Alpine CDP | E26: 835 | F26: 06 | G26: 01192 | H26: 5420 | I26: 3850 | J26: 625 | K26: 240 | L26: 210 | M26: 0 | N26: 0 | O26: 10 | P26: 0 | Q26: 20 | R26: 135 | S26: 100 | T26: 0 | U26: 0 | V26: 0 | W26: 0 | X26: 35 | Y26: 40 | Z26: 25 | AA26: 0 | AB26: 0 | AC26: 0 | AD26: 0 | AE26: 15 | AF26: 50 | AG26: 50 | AH26: 0 | AI26: 0 | AJ26: 0 | AK26: 0 | AL26: 0 | AM26: 165 | AN26: 130 | AO26: 0 | AP26: 20 | AQ26: 0 | AR26: 0 | AS26: 10 | AT26: 3225 | AU26: 45 | AV26: 20 | AW26: 0 | AX26: 0 | AY26: 0 | AZ26: 0 | BA26: 25 | BB26: 130 | BC26: 130 | BD26: 0 | BE26: 0 | BF26: 0 | BG26: 0 | BH26: 0 | BI26: 325 | BJ26: 305 | BK26: 0 | BL26: 0 | BM26: 0 | BN26: 0 | BO26: 25 | BP26: 485 | BQ26: 460 | BR26: 0 | BS26: 15 | BT26: 0 | BU26: 0 | BV26: 10 | BW26: 2240 | BX26: 1935 | BY26: 10 | BZ26: 10 | CA26: 10 | CB26: 0 | CC26: 225 | CD26: 1570 | CE26: 590 | CF26: 225 | CG26: 0 | CH26: 30 | CI26: 10 | CJ26: 0 | CK26: 0 | CL26: 185 | CM26: 220 | CN26: 190 | CO26: 20 | CP26: 10 | CQ26: 0 | CR26: 0 | CS26: 0 | CT26: 70 | CU26: 55 | CV26: 0 | CW26: 0 | CX26: 0 | CY26: 0 | CZ26: 10 | DA26: 75 | DB26: 0 | DC26: 0 | DD26: 50 | DE26: 0 | DF26: 0 | DG26: 30 | DH26: 0 | DI26: 0 | DJ26: 0 | DK26: 0 | DL26: 0 | DM26: 0 | DN26: 0 | DO26: 980 | DP26: 20 | DQ26: 20 | DR26: 0 | DS26: 0 | DT26: 0 | DU26: 0 | DV26: 0 | DW26: 150 | DX26: 150 | DY26: 0 | DZ26: 0 | EA26: 0 | EB26: 0 | EC26: 0 | ED26: 210 | EE26: 170 | EF26: 20 | EG26: 15 | EH26: 0 | EI26: 0 | EJ26: 0 | EK26: 165 | EL26: 165 | EM26: 0 | EN26: 0 | EO26: 0 | EP26: 0 | EQ26: 0 | ER26: 440 | ES26: 350 | ET26: 0 | EU26: 0 | EV26: 0 | EW26: 0 | EX26: 85 | EY26: 366 | EZ26: 356 | FA26: 204 | FB26: 101 | FC26: 98 | FD26: 21 | FE26: 21 | FF26: 16 | FG26: 21 | FH26: 26 | FI26: 90 | FJ26: 81 | FK26: 21 | FL26: 21 | FM26: 21 | FN26: 21 | FO26: 41 | FP26: 33 | FQ26: 23 | FR26: 21 | FS26: 21 | FT26: 21 | FU26: 21 | FV26: 24 | FW26: 52 | FX26: 52 | FY26: 21 | FZ26: 21 | GA26: 21 | GB26: 21 | GC26: 21 | GD26: 127 | GE26: 121 | GF26: 21 | GG26: 24 | GH26: 21 | GI26: 21 | GJ26: 13 | GK26: 365 | GL26: 38 | GM26: 23 | GN26: 21 | GO26: 21 | GP26: 21 | GQ26: 21 | GR26: 31 | GS26: 81 | GT26: 81 | GU26: 21 | GV26: 21 | GW26: 21 | GX26: 21 | GY26: 21 | GZ26: 161 | HA26: 157 | HB26: 21 | HC26: 21 | HD26: 21 | HE26: 21 | HF26: 38 | HG26: 212 | HH26: 211 | HI26: 21 | HJ26: 30 | HK26: 21 | HL26: 21 | HM26: 15 | HN26: 298 | HO26: 279 | HP26: 14 | HQ26: 15 | HR26: 14 | HS26: 21 | HT26: 83 | HU26: 279 | HV26: 182 | HW26: 138 | HX26: 21 | HY26: 48 | HZ26: 22 | IA26: 21 | IB26: 21 | IC26: 134 | ID26: 124 | IE26: 122 | IF26: 33 | IG26: 16 | IH26: 21 | II26: 21 | IJ26: 21 | IK26: 68 | IL26: 59 | IM26: 21 | IN26: 21 | IO26: 21 | IP26: 21 | IQ26: 32 | IR26: 79 | IS26: 21 | IT26: 21 | IU26: 72 | IV26: 21 | IW26: 21 | IX26: 44 | IY26: 21 | IZ26: 21 | JA26: 21 | JB26: 21 | JC26: 21 | JD26: 21 | JE26: 21 | JF26: 217 | JG26: 34 | JH26: 34 | JI26: 21 | JJ26: 21 | JK26: 21 | JL26: 21 | JM26: 21 | JN26: 115 | JO26: 115 | JP26: 21 | JQ26: 21 | JR26: 21 | JS26: 21 | JT26: 21 | JU26: 99 | JV26: 90 | JW26: 34 | JX26: 24 | JY26: 21 | JZ26: 21 | KA26: 21 | KB26: 128 | KC26: 128 | KD26: 21 | KE26: 21 | KF26: 21 | KG26: 21 | KH26: 21 | KI26: 157 | KJ26: 126 | KK26: 21 | KL26: 21 | KM26: 21 | KN26: 21 | KO26: 90
A27: 2017thru2021 | B27: 160 | C27: 1600000US0601228 | D27: Alpine Village CDP | E27: 4 | F27: 06 | G27: 01228 | H27: 75 | I27: 70 | J27: 4 | K27: 0 | L27: 0 | M27: 0 | N27: 0 | O27: 0 | P27: 0 | Q27: 0 | R27: 4 | S27: 4 | T27: 0 | U27: 0 | V27: 0 | W27: 0 | X27: 0 | Y27: 0 | Z27: 0 | AA27: 0 | AB27: 0 | AC27: 0 | AD27: 0 | AE27: 0 | AF27: 0 | AG27: 0 | AH27: 0 | AI27: 0 | AJ27: 0 | AK27: 0 | AL27: 0 | AM27: 0 | AN27: 0 | AO27: 0 | AP27: 0 | AQ27: 0 | AR27: 0 | AS27: 0 | AT27: 65 | AU27: 0 | AV27: 0 | AW27: 0 | AX27: 0 | AY27: 0 | AZ27: 0 | BA27: 0 | BB27: 4 | BC27: 4 | BD27: 0 | BE27: 0 | BF27: 0 | BG27: 0 | BH27: 0 | BI27: 15 | BJ27: 15 | BK27: 0 | BL27: 0 | BM27: 0 | BN27: 0 | BO27: 0 | BP27: 0 | BQ27: 0 | BR27: 0 | BS27: 0 | BT27: 0 | BU27: 0 | BV27: 0 | BW27: 40 | BX27: 40 | BY27: 0 | BZ27: 0 | CA27: 0 | CB27: 0 | CC27: 0 | CD27: 4 | CE27: 4 | CF27: 4 | CG27: 0 | CH27: 0 | CI27: 0 | CJ27: 4 | CK27: 0 | CL27: 0 | CM27: 0 | CN27: 0 | CO27: 0 | CP27: 0 | CQ27: 0 | CR27: 0 | CS27: 0 | CT27: 0 | CU27: 0 | CV27: 0 | CW27: 0 | CX27: 0 | CY27: 0 | CZ27: 0 | DA27: 0 | DB27: 0 | DC27: 0 | DD27: 0 | DE27: 0 | DF27: 0 | DG27: 0 | DH27: 0 | DI27: 0 | DJ27: 0 | DK27: 0 | DL27: 0 | DM27: 0 | DN27: 0 | DO27: 4 | DP27: 4 | DQ27: 4 | DR27: 0 | DS27: 0 | DT27: 0 | DU27: 0 | DV27: 0 | DW27: 0 | DX27: 0 | DY27: 0 | DZ27: 0 | EA27: 0 | EB27: 0 | EC27: 0 | ED27: 0 | EE27: 0 | EF27: 0 | EG27: 0 | EH27: 0 | EI27: 0 | EJ27: 0 | EK27: 4 | EL27: 4 | EM27: 0 | EN27: 0 | EO27: 0 | EP27: 0 | EQ27: 0 | ER27: 0 | ES27: 0 | ET27: 0 | EU27: 0 | EV27: 0 | EW27: 0 | EX27: 0 | EY27: 29 | EZ27: 26 | FA27: 2 | FB27: 13 | FC27: 13 | FD27: 13 | FE27: 13 | FF27: 13 | FG27: 13 | FH27: 13 | FI27: 2 | FJ27: 2 | FK27: 13 | FL27: 13 | FM27: 13 | FN27: 13 | FO27: 13 | FP27: 13 | FQ27: 13 | FR27: 13 | FS27: 13 | FT27: 13 | FU27: 13 | FV27: 13 | FW27: 13 | FX27: 13 | FY27: 13 | FZ27: 13 | GA27: 13 | GB27: 13 | GC27: 13 | GD27: 13 | GE27: 13 | GF27: 13 | GG27: 13 | GH27: 13 | GI27: 13 | GJ27: 13 | GK27: 31 | GL27: 13 | GM27: 13 | GN27: 13 | GO27: 13 | GP27: 13 | GQ27: 13 | GR27: 13 | GS27: 15 | GT27: 15 | GU27: 13 | GV27: 13 | GW27: 13 | GX27: 13 | GY27: 13 | GZ27: 21 | HA27: 21 | HB27: 13 | HC27: 13 | HD27: 13 | HE27: 13 | HF27: 13 | HG27: 13 | HH27: 13 | HI27: 13 | HJ27: 13 | HK27: 13 | HL27: 13 | HM27: 13 | HN27: 25 | HO27: 25 | HP27: 13 | HQ27: 13 | HR27: 13 | HS27: 13 | HT27: 13 | HU27: 8 | HV27: 3 | HW27: 3 | HX27: 13 | HY27: 13 | HZ27: 13 | IA27: 3 | IB27: 13 | IC27: 13 | ID27: 13 | IE27: 13 | IF27: 13 | IG27: 13 | IH27: 13 | II27: 13 | IJ27: 13 | IK27: 13 | IL27: 13 | IM27: 13 | IN27: 13 | IO27: 13 | IP27: 13 | IQ27: 13 | IR27: 13 | IS27: 13 | IT27: 13 | IU27: 13 | IV27: 13 | IW27: 13 | IX27: 13 | IY27: 13 | IZ27: 13 | JA27: 13 | JB27: 13 | JC27: 13 | JD27: 13 | JE27: 13 | JF27: 4 | JG27: 13 | JH27: 13 | JI27: 13 | JJ27: 13 | JK27: 13 | JL27: 13 | JM27: 13 | JN27: 13 | JO27: 13 | JP27: 13 | JQ27: 13 | JR27: 13 | JS27: 13 | JT27: 13 | JU27: 13 | JV27: 13 | JW27: 13 | JX27: 13 | JY27: 13 | JZ27: 13 | KA27: 13 | KB27: 6 | KC27: 6 | KD27: 13 | KE27: 13 | KF27: 13 | KG27: 13 | KH27: 13 | KI27: 13 | KJ27: 13 | KK27: 13 | KL27: 13 | KM27: 13 | KN27: 13 | KO27: 13
A28: 2017thru2021 | B28: 160 | C28: 1600000US0601276 | D28: Alta CDP | E28: 35 | F28: 06 | G28: 01276 | H28: 275 | I28: 255 | J28: 20 | K28: 10 | L28: 10 | M28: 0 | N28: 0 | O28: 0 | P28: 0 | Q28: 0 | R28: 10 | S28: 10 | T28: 0 | U28: 0 | V28: 0 | W28: 0 | X28: 0 | Y28: 0 | Z28: 0 | AA28: 0 | AB28: 0 | AC28: 0 | AD28: 0 | AE28: 0 | AF28: 0 | AG28: 0 | AH28: 0 | AI28: 0 | AJ28: 0 | AK28: 0 | AL28: 0 | AM28: 0 | AN28: 0 | AO28: 0 | AP28: 0 | AQ28: 0 | AR28: 0 | AS28: 0 | AT28: 230 | AU28: 0 | AV28: 0 | AW28: 0 | AX28: 0 | AY28: 0 | AZ28: 0 | BA28: 0 | BB28: 4 | BC28: 4 | BD28: 0 | BE28: 0 | BF28: 0 | BG28: 0 | BH28: 0 | BI28: 40 | BJ28: 40 | BK28: 0 | BL28: 0 | BM28: 0 | BN28: 0 | BO28: 0 | BP28: 10 | BQ28: 10 | BR28: 0 | BS28: 0 | BT28: 0 | BU28: 0 | BV28: 0 | BW28: 180 | BX28: 170 | BY28: 0 | BZ28: 0 | CA28: 0 | CB28: 0 | CC28: 10 | CD28: 20 | CE28: 0 | CF28: 0 | CG28: 0 | CH28: 0 | CI28: 0 | CJ28: 0 | CK28: 0 | CL28: 0 | CM28: 0 | CN28: 0 | CO28: 0 | CP28: 0 | CQ28: 0 | CR28: 0 | CS28: 0 | CT28: 0 | CU28: 0 | CV28: 0 | CW28: 0 | CX28: 0 | CY28: 0 | CZ28: 0 | DA28: 0 | DB28: 0 | DC28: 0 | DD28: 0 | DE28: 0 | DF28: 0 | DG28: 0 | DH28: 0 | DI28: 0 | DJ28: 0 | DK28: 0 | DL28: 0 | DM28: 0 | DN28: 0 | DO28: 20 | DP28: 4 | DQ28: 4 | DR28: 0 | DS28: 0 | DT28: 0 | DU28: 0 | DV28: 0 | DW28: 0 | DX28: 0 | DY28: 0 | DZ28: 0 | EA28: 0 | EB28: 0 | EC28: 0 | ED28: 15 | EE28: 15 | EF28: 0 | EG28: 0 | EH28: 0 | EI28: 0 | EJ28: 0 | EK28: 0 | EL28: 0 | EM28: 0 | EN28: 0 | EO28: 0 | EP28: 0 | EQ28: 0 | ER28: 4 | ES28: 4 | ET28: 0 | EU28: 0 | EV28: 0 | EW28: 0 | EX28: 0 | EY28: 80 | EZ28: 82 | FA28: 14 | FB28: 11 | FC28: 11 | FD28: 13 | FE28: 13 | FF28: 13 | FG28: 13 | FH28: 13 | FI28: 12 | FJ28: 12 | FK28: 13 | FL28: 13 | FM28: 13 | FN28: 13 | FO28: 13 | FP28: 13 | FQ28: 13 | FR28: 13 | FS28: 13 | FT28: 13 | FU28: 13 | FV28: 13 | FW28: 13 | FX28: 13 | FY28: 13 | FZ28: 13 | GA28: 13 | GB28: 13 | GC28: 13 | GD28: 13 | GE28: 13 | GF28: 13 | GG28: 13 | GH28: 13 | GI28: 13 | GJ28: 13 | GK28: 82 | GL28: 13 | GM28: 13 | GN28: 13 | GO28: 13 | GP28: 13 | GQ28: 13 | GR28: 13 | GS28: 13 | GT28: 13 | GU28: 13 | GV28: 13 | GW28: 13 | GX28: 13 | GY28: 13 | GZ28: 38 | HA28: 38 | HB28: 13 | HC28: 13 | HD28: 13 | HE28: 13 | HF28: 13 | HG28: 12 | HH28: 12 | HI28: 13 | HJ28: 13 | HK28: 13 | HL28: 13 | HM28: 13 | HN28: 75 | HO28: 74 | HP28: 13 | HQ28: 13 | HR28: 13 | HS28: 13 | HT28: 15 | HU28: 18 | HV28: 13 | HW28: 13 | HX28: 13 | HY28: 13 | HZ28: 13 | IA28: 13 | IB28: 13 | IC28: 13 | ID28: 13 | IE28: 13 | IF28: 13 | IG28: 13 | IH28: 13 | II28: 13 | IJ28: 13 | IK28: 13 | IL28: 13 | IM28: 13 | IN28: 13 | IO28: 13 | IP28: 13 | IQ28: 13 | IR28: 13 | IS28: 13 | IT28: 13 | IU28: 13 | IV28: 13 | IW28: 13 | IX28: 13 | IY28: 13 | IZ28: 13 | JA28: 13 | JB28: 13 | JC28: 13 | JD28: 13 | JE28: 13 | JF28: 18 | JG28: 13 | JH28: 13 | JI28: 13 | JJ28: 13 | JK28: 13 | JL28: 13 | JM28: 13 | JN28: 13 | JO28: 13 | JP28: 13 | JQ28: 13 | JR28: 13 | JS28: 13 | JT28: 13 | JU28: 19 | JV28: 19 | JW28: 13 | JX28: 13 | JY28: 13 | JZ28: 13 | KA28: 13 | KB28: 13 | KC28: 13 | KD28: 13 | KE28: 13 | KF28: 13 | KG28: 13 | KH28: 13 | KI28: 2 | KJ28: 2 | KK28: 13 | KL28: 13 | KM28: 13 | KN28: 13 | KO28: 13
A29: 2017thru2021 | B29: 160 | C29: 1600000US0601290 | D29: Altadena CDP | E29: 2705 | F29: 06 | G29: 01290 | H29: 14790 | I29: 10910 | J29: 2105 | K29: 480 | L29: 240 | M29: 135 | N29: 30 | O29: 0 | P29: 0 | Q29: 75 | R29: 615 | S29: 150 | T29: 295 | U29: 0 | V29: 0 | W29: 0 | X29: 165 | Y29: 430 | Z29: 120 | AA29: 165 | AB29: 30 | AC29: 0 | AD29: 0 | AE29: 80 | AF29: 255 | AG29: 55 | AH29: 20 | AI29: 0 | AJ29: 0 | AK29: 0 | AL29: 165 | AM29: 325 | AN29: 165 | AO29: 110 | AP29: 0 | AQ29: 10 | AR29: 0 | AS29: 35 | AT29: 8805 | AU29: 225 | AV29: 100 | AW29: 70 | AX29: 0 | AY29: 0 | AZ29: 0 | BA29: 50 | BB29: 250 | BC29: 165 | BD29: 20 | BE29: 20 | BF29: 0 | BG29: 0 | BH29: 50 | BI29: 945 | BJ29: 530 | BK29: 180 | BL29: 40 | BM29: 0 | BN29: 0 | BO29: 195 | BP29: 655 | BQ29: 300 | BR29: 195 | BS29: 40 | BT29: 0 | BU29: 0 | BV29: 100 | BW29: 6735 | BX29: 3925 | BY29: 1005 | BZ29: 615 | CA29: 10 | CB29: 0 | CC29: 830 | CD29: 3875 | CE29: 1185 | CF29: 565 | CG29: 140 | CH29: 165 | CI29: 15 | CJ29: 0 | CK29: 0 | CL29: 235 | CM29: 295 | CN29: 220 | CO29: 4 | CP29: 0 | CQ29: 0 | CR29: 0 | CS29: 70 | CT29: 220 | CU29: 55 | CV29: 35 | CW29: 0 | CX29: 0 | CY29: 0 | CZ29: 130 | DA29: 40 | DB29: 10 | DC29: 0 | DD29: 0 | DE29: 0 | DF29: 0 | DG29: 35 | DH29: 65 | DI29: 30 | DJ29: 0 | DK29: 0 | DL29: 10 | DM29: 0 | DN29: 25 | DO29: 2690 | DP29: 240 | DQ29: 100 | DR29: 25 | DS29: 0 | DT29: 0 | DU29: 0 | DV29: 105 | DW29: 350 | DX29: 125 | DY29: 30 | DZ29: 30 | EA29: 0 | EB29: 0 | EC29: 115 | ED29: 600 | EE29: 220 | EF29: 90 | EG29: 4 | EH29: 0 | EI29: 0 | EJ29: 220 | EK29: 360 | EL29: 80 | EM29: 180 | EN29: 0 | EO29: 0 | EP29: 0 | EQ29: 100 | ER29: 1140 | ES29: 740 | ET29: 135 | EU29: 15 | EV29: 0 | EW29: 0 | EX29: 235 | EY29: 629 | EZ29: 645 | FA29: 397 | FB29: 164 | FC29: 141 | FD29: 78 | FE29: 28 | FF29: 28 | FG29: 28 | FH29: 53 | FI29: 345 | FJ29: 108 | FK29: 313 | FL29: 28 | FM29: 28 | FN29: 28 | FO29: 105 | FP29: 168 | FQ29: 94 | FR29: 109 | FS29: 38 | FT29: 28 | FU29: 28 | FV29: 63 | FW29: 145 | FX29: 47 | FY29: 25 | FZ29: 28 | GA29: 28 | GB29: 28 | GC29: 131 | GD29: 129 | GE29: 89 | GF29: 91 | GG29: 28 | GH29: 14 | GI29: 28 | GJ29: 33 | GK29: 581 | GL29: 112 | GM29: 57 | GN29: 78 | GO29: 28 | GP29: 28 | GQ29: 28 | GR29: 49 | GS29: 84 | GT29: 67 | GU29: 24 | GV29: 32 | GW29: 28 | GX29: 28 | GY29: 50 | GZ29: 209 | HA29: 151 | HB29: 85 | HC29: 36 | HD29: 28 | HE29: 28 | HF29: 90 | HG29: 215 | HH29: 140 | HI29: 102 | HJ29: 53 | HK29: 28 | HL29: 28 | HM29: 79 | HN29: 523 | HO29: 347 | HP29: 304 | HQ29: 168 | HR29: 27 | HS29: 28 | HT29: 189 | HU29: 435 | HV29: 270 | HW29: 200 | HX29: 97 | HY29: 110 | HZ29: 28 | IA29: 28 | IB29: 28 | IC29: 109 | ID29: 138 | IE29: 133 | IF29: 14 | IG29: 28 | IH29: 28 | II29: 28 | IJ29: 55 | IK29: 117 | IL29: 42 | IM29: 35 | IN29: 28 | IO29: 28 | IP29: 28 | IQ29: 102 | IR29: 48 | IS29: 14 | IT29: 28 | IU29: 28 | IV29: 28 | IW29: 28 | IX29: 46 | IY29: 60 | IZ29: 36 | JA29: 28 | JB29: 28 | JC29: 14 | JD29: 28 | JE29: 45 | JF29: 421 | JG29: 167 | JH29: 129 | JI29: 32 | JJ29: 28 | JK29: 28 | JL29: 28 | JM29: 160 | JN29: 154 | JO29: 79 | JP29: 36 | JQ29: 51 | JR29: 28 | JS29: 28 | JT29: 82 | JU29: 209 | JV29: 105 | JW29: 59 | JX29: 20 | JY29: 28 | JZ29: 28 | KA29: 136 | KB29: 163 | KC29: 61 | KD29: 128 | KE29: 28 | KF29: 28 | KG29: 28 | KH29: 68 | KI29: 232 | KJ29: 196 | KK29: 119 | KL29: 20 | KM29: 28 | KN29: 28 | KO29: 113
A30: 2017thru2021 | B30: 160 | C30: 1600000US0601358 | D30: Alta Sierra CDP (Kern County) | E30: 0 | F30: 06 | G30: 01358 | H30: 0 | I30: 0 | J30: 0 | K30: 0 | L30: 0 | M30: 0 | N30: 0 | O30: 0 | P30: 0 | Q30: 0 | R30: 0 | S30: 0 | T30: 0 | U30: 0 | V30: 0 | W30: 0 | X30: 0 | Y30: 0 | Z30: 0 | AA30: 0 | AB30: 0 | AC30: 0 | AD30: 0 | AE30: 0 | AF30: 0 | AG30: 0 | AH30: 0 | AI30: 0 | AJ30: 0 | AK30: 0 | AL30: 0 | AM30: 0 | AN30: 0 | AO30: 0 | AP30: 0 | AQ30: 0 | AR30: 0 | AS30: 0 | AT30: 0 | AU30: 0 | AV30: 0 | AW30: 0 | AX30: 0 | AY30: 0 | AZ30: 0 | BA30: 0 | BB30: 0 | BC30: 0 | BD30: 0 | BE30: 0 | BF30: 0 | BG30: 0 | BH30: 0 | BI30: 0 | BJ30: 0 | BK30: 0 | BL30: 0 | BM30: 0 | BN30: 0 | BO30: 0 | BP30: 0 | BQ30: 0 | BR30: 0 | BS30: 0 | BT30: 0 | BU30: 0 | BV30: 0 | BW30: 0 | BX30: 0 | BY30: 0 | BZ30: 0 | CA30: 0 | CB30: 0 | CC30: 0 | CD30: 0 | CE30: 0 | CF30: 0 | CG30: 0 | CH30: 0 | CI30: 0 | CJ30: 0 | CK30: 0 | CL30: 0 | CM30: 0 | CN30: 0 | CO30: 0 | CP30: 0 | CQ30: 0 | CR30: 0 | CS30: 0 | CT30: 0 | CU30: 0 | CV30: 0 | CW30: 0 | CX30: 0 | CY30: 0 | CZ30: 0 | DA30: 0 | DB30: 0 | DC30: 0 | DD30: 0 | DE30: 0 | DF30: 0 | DG30: 0 | DH30: 0 | DI30: 0 | DJ30: 0 | DK30: 0 | DL30: 0 | DM30: 0 | DN30: 0 | DO30: 0 | DP30: 0 | DQ30: 0 | DR30: 0 | DS30: 0 | DT30: 0 | DU30: 0 | DV30: 0 | DW30: 0 | DX30: 0 | DY30: 0 | DZ30: 0 | EA30: 0 | EB30: 0 | EC30: 0 | ED30: 0 | EE30: 0 | EF30: 0 | EG30: 0 | EH30: 0 | EI30: 0 | EJ30: 0 | EK30: 0 | EL30: 0 | EM30: 0 | EN30: 0 | EO30: 0 | EP30: 0 | EQ30: 0 | ER30: 0 | ES30: 0 | ET30: 0 | EU30: 0 | EV30: 0 | EW30: 0 | EX30: 0 | EY30: 0 | EZ30: 0 | FA30: 0 | FB30: 13 | FC30: 13 | FD30: 13 | FE30: 13 | FF30: 13 | FG30: 13 | FH30: 13 | FI30: 13 | FJ30: 13 | FK30: 13 | FL30: 13 | FM30: 13 | FN30: 13 | FO30: 13 | FP30: 0 | FQ30: 0 | FR30: 13 | FS30: 13 | FT30: 13 | FU30: 13 | FV30: 13 | FW30: 13 | FX30: 13 | FY30: 13 | FZ30: 13 | GA30: 13 | GB30: 13 | GC30: 13 | GD30: 13 | GE30: 13 | GF30: 13 | GG30: 13 | GH30: 13 | GI30: 13 | GJ30: 13 | GK30: 13 | GL30: 13 | GM30: 13 | GN30: 13 | GO30: 13 | GP30: 13 | GQ30: 13 | GR30: 13 | GS30: 13 | GT30: 13 | GU30: 13 | GV30: 13 | GW30: 13 | GX30: 13 | GY30: 13 | GZ30: 13 | HA30: 13 | HB30: 13 | HC30: 13 | HD30: 13 | HE30: 13 | HF30: 13 | HG30: 13 | HH30: 13 | HI30: 13 | HJ30: 13 | HK30: 13 | HL30: 13 | HM30: 13 | HN30: 13 | HO30: 13 | HP30: 13 | HQ30: 13 | HR30: 13 | HS30: 13 | HT30: 13 | HU30: 0 | HV30: 0 | HW30: 0 | HX30: 0 | HY30: 13 | HZ30: 13 | IA30: 13 | IB30: 13 | IC30: 13 | ID30: 13 | IE30: 13 | IF30: 13 | IG30: 13 | IH30: 13 | II30: 13 | IJ30: 13 | IK30: 13 | IL30: 13 | IM30: 13 | IN30: 13 | IO30: 13 | IP30: 13 | IQ30: 13 | IR30: 13 | IS30: 13 | IT30: 13 | IU30: 13 | IV30: 13 | IW30: 13 | IX30: 13 | IY30: 13 | IZ30: 13 | JA30: 13 | JB30: 13 | JC30: 13 | JD30: 13 | JE30: 13 | JF30: 13 | JG30: 13 | JH30: 13 | JI30: 13 | JJ30: 13 | JK30: 13 | JL30: 13 | JM30: 13 | JN30: 13 | JO30: 13 | JP30: 13 | JQ30: 13 | JR30: 13 | JS30: 13 | JT30: 13 | JU30: 13 | JV30: 13 | JW30: 13 | JX30: 13 | JY30: 13 | JZ30: 13 | KA30: 13 | KB30: 13 | KC30: 13 | KD30: 13 | KE30: 13 | KF30: 13 | KG30: 13 | KH30: 13 | KI30: 13 | KJ30: 13 | KK30: 13 | KL30: 13 | KM30: 13 | KN30: 13 | KO30: 13
A31: 2017thru2021 | B31: 160 | C31: 1600000US0601360 | D31: Alta Sierra CDP (Nevada County) | E31: 355 | F31: 06 | G31: 01360 | H31: 2815 | I31: 2615 | J31: 335 | K31: 120 | L31: 120 | M31: 0 | N31: 0 | O31: 0 | P31: 0 | Q31: 0 | R31: 150 | S31: 135 | T31: 0 | U31: 0 | V31: 0 | W31: 0 | X31: 0 | Y31: 60 | Z31: 60 | AA31: 0 | AB31: 0 | AC31: 0 | AD31: 0 | AE31: 0 | AF31: 0 | AG31: 0 | AH31: 0 | AI31: 0 | AJ31: 0 | AK31: 0 | AL31: 0 | AM31: 0 | AN31: 0 | AO31: 0 | AP31: 0 | AQ31: 0 | AR31: 0 | AS31: 0 | AT31: 2280 | AU31: 40 | AV31: 40 | AW31: 0 | AX31: 0 | AY31: 0 | AZ31: 0 | BA31: 0 | BB31: 90 | BC31: 65 | BD31: 0 | BE31: 0 | BF31: 0 | BG31: 0 | BH31: 25 | BI31: 210 | BJ31: 210 | BK31: 0 | BL31: 0 | BM31: 0 | BN31: 0 | BO31: 0 | BP31: 185 | BQ31: 175 | BR31: 0 | BS31: 0 | BT31: 0 | BU31: 0 | BV31: 10 | BW31: 1760 | BX31: 1590 | BY31: 20 | BZ31: 15 | CA31: 0 | CB31: 0 | CC31: 65 | CD31: 200 | CE31: 70 | CF31: 10 | CG31: 10 | CH31: 0 | CI31: 0 | CJ31: 0 | CK31: 0 | CL31: 0 | CM31: 50 | CN31: 50 | CO31: 0 | CP31: 0 | CQ31: 0 | CR31: 0 | CS31: 0 | CT31: 4 | CU31: 4 | CV31: 0 | CW31: 0 | CX31: 0 | CY31: 0 | CZ31: 0 | DA31: 0 | DB31: 0 | DC31: 0 | DD31: 0 | DE31: 0 | DF31: 0 | DG31: 0 | DH31: 0 | DI31: 0 | DJ31: 0 | DK31: 0 | DL31: 0 | DM31: 0 | DN31: 0 | DO31: 130 | DP31: 0 | DQ31: 0 | DR31: 0 | DS31: 0 | DT31: 0 | DU31: 0 | DV31: 0 | DW31: 0 | DX31: 0 | DY31: 0 | DZ31: 0 | EA31: 0 | EB31: 0 | EC31: 0 | ED31: 20 | EE31: 10 | EF31: 0 | EG31: 0 | EH31: 0 | EI31: 0 | EJ31: 10 | EK31: 0 | EL31: 0 | EM31: 0 | EN31: 0 | EO31: 0 | EP31: 0 | EQ31: 0 | ER31: 110 | ES31: 110 | ET31: 0 | EU31: 0 | EV31: 0 | EW31: 0 | EX31: 0 | EY31: 246 | EZ31: 251 | FA31: 164 | FB31: 91 | FC31: 91 | FD31: 19 | FE31: 19 | FF31: 19 | FG31: 19 | FH31: 19 | FI31: 119 | FJ31: 115 | FK31: 19 | FL31: 19 | FM31: 19 | FN31: 19 | FO31: 19 | FP31: 63 | FQ31: 63 | FR31: 19 | FS31: 19 | FT31: 19 | FU31: 19 | FV31: 19 | FW31: 19 | FX31: 19 | FY31: 19 | FZ31: 19 | GA31: 19 | GB31: 19 | GC31: 19 | GD31: 19 | GE31: 19 | GF31: 19 | GG31: 19 | GH31: 19 | GI31: 19 | GJ31: 19 | GK31: 245 | GL31: 40 | GM31: 40 | GN31: 19 | GO31: 19 | GP31: 19 | GQ31: 19 | GR31: 19 | GS31: 64 | GT31: 58 | GU31: 19 | GV31: 19 | GW31: 19 | GX31: 19 | GY31: 31 | GZ31: 107 | HA31: 107 | HB31: 19 | HC31: 19 | HD31: 19 | HE31: 19 | HF31: 19 | HG31: 95 | HH31: 94 | HI31: 19 | HJ31: 19 | HK31: 19 | HL31: 19 | HM31: 17 | HN31: 274 | HO31: 252 | HP31: 26 | HQ31: 25 | HR31: 19 | HS31: 19 | HT31: 71 | HU31: 93 | HV31: 56 | HW31: 33 | HX31: 33 | HY31: 19 | HZ31: 19 | IA31: 19 | IB31: 19 | IC31: 19 | ID31: 45 | IE31: 45 | IF31: 19 | IG31: 19 | IH31: 19 | II31: 19 | IJ31: 19 | IK31: 19 | IL31: 19 | IM31: 19 | IN31: 19 | IO31: 19 | IP31: 19 | IQ31: 19 | IR31: 19 | IS31: 19 | IT31: 19 | IU31: 19 | IV31: 19 | IW31: 19 | IX31: 19 | IY31: 19 | IZ31: 19 | JA31: 19 | JB31: 19 | JC31: 19 | JD31: 19 | JE31: 19 | JF31: 75 | JG31: 19 | JH31: 19 | JI31: 19 | JJ31: 19 | JK31: 19 | JL31: 19 | JM31: 19 | JN31: 19 | JO31: 19 | JP31: 19 | JQ31: 19 | JR31: 19 | JS31: 19 | JT31: 19 | JU31: 25 | JV31: 20 | JW31: 19 | JX31: 19 | JY31: 19 | JZ31: 19 | KA31: 17 | KB31: 19 | KC31: 19 | KD31: 19 | KE31: 19 | KF31: 19 | KG31: 19 | KH31: 19 | KI31: 71 | KJ31: 71 | KK31: 19 | KL31: 19 | KM31: 19 | KN31: 19 | KO31: 19
A32: 2017thru2021 | B32: 160 | C32: 1600000US0601416 | D32: Alto CDP | E32: 45 | F32: 06 | G32: 01416 | H32: 355 | I32: 155 | J32: 0 | K32: 0 | L32: 0 | M32: 0 | N32: 0 | O32: 0 | P32: 0 | Q32: 0 | R32: 0 | S32: 0 | T32: 0 | U32: 0 | V32: 0 | W32: 0 | X32: 0 | Y32: 0 | Z32: 0 | AA32: 0 | AB32: 0 | AC32: 0 | AD32: 0 | AE32: 0 | AF32: 0 | AG32: 0 | AH32: 0 | AI32: 0 | AJ32: 0 | AK32: 0 | AL32: 0 | AM32: 0 | AN32: 0 | AO32: 0 | AP32: 0 | AQ32: 0 | AR32: 0 | AS32: 0 | AT32: 155 | AU32: 0 | AV32: 0 | AW32: 0 | AX32: 0 | AY32: 0 | AZ32: 0 | BA32: 0 | BB32: 0 | BC32: 0 | BD32: 0 | BE32: 0 | BF32: 0 | BG32: 0 | BH32: 0 | BI32: 25 | BJ32: 25 | BK32: 0 | BL32: 0 | BM32: 0 | BN32: 0 | BO32: 0 | BP32: 0 | BQ32: 0 | BR32: 0 | BS32: 0 | BT32: 0 | BU32: 0 | BV32: 0 | BW32: 130 | BX32: 130 | BY32: 0 | BZ32: 0 | CA32: 0 | CB32: 0 | CC32: 0 | CD32: 200 | CE32: 30 | CF32: 0 | CG32: 0 | CH32: 0 | CI32: 0 | CJ32: 0 | CK32: 0 | CL32: 0 | CM32: 30 | CN32: 30 | CO32: 0 | CP32: 0 | CQ32: 0 | CR32: 0 | CS32: 0 | CT32: 0 | CU32: 0 | CV32: 0 | CW32: 0 | CX32: 0 | CY32: 0 | CZ32: 0 | DA32: 0 | DB32: 0 | DC32: 0 | DD32: 0 | DE32: 0 | DF32: 0 | DG32: 0 | DH32: 0 | DI32: 0 | DJ32: 0 | DK32: 0 | DL32: 0 | DM32: 0 | DN32: 0 | DO32: 175 | DP32: 0 | DQ32: 0 | DR32: 0 | DS32: 0 | DT32: 0 | DU32: 0 | DV32: 0 | DW32: 0 | DX32: 0 | DY32: 0 | DZ32: 0 | EA32: 0 | EB32: 0 | EC32: 0 | ED32: 45 | EE32: 45 | EF32: 0 | EG32: 0 | EH32: 0 | EI32: 0 | EJ32: 0 | EK32: 45 | EL32: 45 | EM32: 0 | EN32: 0 | EO32: 0 | EP32: 0 | EQ32: 0 | ER32: 85 | ES32: 85 | ET32: 0 | EU32: 0 | EV32: 0 | EW32: 0 | EX32: 0 | EY32: 108 | EZ32: 78 | FA32: 13 | FB32: 13 | FC32: 13 | FD32: 13 | FE32: 13 | FF32: 13 | FG32: 13 | FH32: 13 | FI32: 13 | FJ32: 13 | FK32: 13 | FL32: 13 | FM32: 13 | FN32: 13 | FO32: 13 | FP32: 13 | FQ32: 13 | FR32: 13 | FS32: 13 | FT32: 13 | FU32: 13 | FV32: 13 | FW32: 13 | FX32: 13 | FY32: 13 | FZ32: 13 | GA32: 13 | GB32: 13 | GC32: 13 | GD32: 13 | GE32: 13 | GF32: 13 | GG32: 13 | GH32: 13 | GI32: 13 | GJ32: 13 | GK32: 78 | GL32: 13 | GM32: 13 | GN32: 13 | GO32: 13 | GP32: 13 | GQ32: 13 | GR32: 13 | GS32: 13 | GT32: 13 | GU32: 13 | GV32: 13 | GW32: 13 | GX32: 13 | GY32: 13 | GZ32: 29 | HA32: 29 | HB32: 13 | HC32: 13 | HD32: 13 | HE32: 13 | HF32: 13 | HG32: 13 | HH32: 13 | HI32: 13 | HJ32: 13 | HK32: 13 | HL32: 13 | HM32: 13 | HN32: 82 | HO32: 82 | HP32: 13 | HQ32: 13 | HR32: 13 | HS32: 13 | HT32: 13 | HU32: 109 | HV32: 43 | HW32: 13 | HX32: 13 | HY32: 13 | HZ32: 13 | IA32: 13 | IB32: 13 | IC32: 13 | ID32: 43 | IE32: 43 | IF32: 13 | IG32: 13 | IH32: 13 | II32: 13 | IJ32: 13 | IK32: 13 | IL32: 13 | IM32: 13 | IN32: 13 | IO32: 13 | IP32: 13 | IQ32: 13 | IR32: 13 | IS32: 13 | IT32: 13 | IU32: 13 | IV32: 13 | IW32: 13 | IX32: 13 | IY32: 13 | IZ32: 13 | JA32: 13 | JB32: 13 | JC32: 13 | JD32: 13 | JE32: 13 | JF32: 110 | JG32: 13 | JH32: 13 | JI32: 13 | JJ32: 13 | JK32: 13 | JL32: 13 | JM32: 13 | JN32: 13 | JO32: 13 | JP32: 13 | JQ32: 13 | JR32: 13 | JS32: 13 | JT32: 13 | JU32: 73 | JV32: 73 | JW32: 13 | JX32: 13 | JY32: 13 | JZ32: 13 | KA32: 13 | KB32: 50 | KC32: 50 | KD32: 13 | KE32: 13 | KF32: 13 | KG32: 13 | KH32: 13 | KI32: 86 | KJ32: 86 | KK32: 13 | KL32: 13 | KM32: 13 | KN32: 13 | KO32: 13
A33: 2017thru2021 | B33: 160 | C33: 1600000US0601444 | D33: Alturas | E33: 115 | F33: 06 | G33: 01444 | H33: 1160 | I33: 785 | J33: 85 | K33: 45 | L33: 45 | M33: 0 | N33: 0 | O33: 0 | P33: 0 | Q33: 0 | R33: 15 | S33: 15 | T33: 0 | U33: 0 | V33: 0 | W33: 0 | X33: 0 | Y33: 0 | Z33: 0 | AA33: 0 | AB33: 0 | AC33: 0 | AD33: 0 | AE33: 0 | AF33: 20 | AG33: 0 | AH33: 0 | AI33: 0 | AJ33: 0 | AK33: 0 | AL33: 20 | AM33: 0 | AN33: 0 | AO33: 0 | AP33: 0 | AQ33: 0 | AR33: 0 | AS33: 0 | AT33: 700 | AU33: 60 | AV33: 50 | AW33: 0 | AX33: 0 | AY33: 0 | AZ33: 0 | BA33: 15 | BB33: 10 | BC33: 10 | BD33: 0 | BE33: 0 | BF33: 0 | BG33: 0 | BH33: 0 | BI33: 170 | BJ33: 130 | BK33: 0 | BL33: 0 | BM33: 20 | BN33: 0 | BO33: 20 | BP33: 190 | BQ33: 90 | BR33: 0 | BS33: 0 | BT33: 0 | BU33: 0 | BV33: 100 | BW33: 270 | BX33: 245 | BY33: 0 | BZ33: 0 | CA33: 15 | CB33: 0 | CC33: 0 | CD33: 375 | CE33: 60 | CF33: 45 | CG33: 45 | CH33: 0 | CI33: 0 | CJ33: 0 | CK33: 0 | CL33: 0 | CM33: 10 | CN33: 10 | CO33: 0 | CP33: 0 | CQ33: 0 | CR33: 0 | CS33: 0 | CT33: 10 | CU33: 0 | CV33: 0 | CW33: 0 | CX33: 0 | CY33: 0 | CZ33: 10 | DA33: 0 | DB33: 0 | DC33: 0 | DD33: 0 | DE33: 0 | DF33: 0 | DG33: 0 | DH33: 0 | DI33: 0 | DJ33: 0 | DK33: 0 | DL33: 0 | DM33: 0 | DN33: 0 | DO33: 315 | DP33: 55 | DQ33: 25 | DR33: 15 | DS33: 0 | DT33: 0 | DU33: 0 | DV33: 0 | DW33: 90 | DX33: 75 | DY33: 20 | DZ33: 0 | EA33: 0 | EB33: 0 | EC33: 0 | ED33: 30 | EE33: 30 | EF33: 0 | EG33: 0 | EH33: 0 | EI33: 0 | EJ33: 0 | EK33: 50 | EL33: 50 | EM33: 0 | EN33: 0 | EO33: 0 | EP33: 0 | EQ33: 0 | ER33: 85 | ES33: 85 | ET33: 0 | EU33: 0 | EV33: 0 | EW33: 0 | EX33: 0 | EY33: 143 | EZ33: 147 | FA33: 58 | FB33: 49 | FC33: 49 | FD33: 13 | FE33: 13 | FF33: 13 | FG33: 13 | FH33: 13 | FI33: 23 | FJ33: 23 | FK33: 13 | FL33: 13 | FM33: 13 | FN33: 13 | FO33: 13 | FP33: 13 | FQ33: 13 | FR33: 13 | FS33: 13 | FT33: 13 | FU33: 13 | FV33: 13 | FW33: 32 | FX33: 13 | FY33: 13 | FZ33: 13 | GA33: 13 | GB33: 13 | GC33: 32 | GD33: 13 | GE33: 13 | GF33: 13 | GG33: 13 | GH33: 13 | GI33: 13 | GJ33: 13 | GK33: 146 | GL33: 54 | GM33: 48 | GN33: 13 | GO33: 13 | GP33: 13 | GQ33: 13 | GR33: 25 | GS33: 15 | GT33: 15 | GU33: 13 | GV33: 13 | GW33: 13 | GX33: 13 | GY33: 13 | GZ33: 115 | HA33: 108 | HB33: 13 | HC33: 13 | HD33: 35 | HE33: 13 | HF33: 36 | HG33: 98 | HH33: 51 | HI33: 13 | HJ33: 13 | HK33: 13 | HL33: 13 | HM33: 87 | HN33: 89 | HO33: 81 | HP33: 13 | HQ33: 13 | HR33: 35 | HS33: 13 | HT33: 13 | HU33: 121 | HV33: 40 | HW33: 33 | HX33: 33 | HY33: 13 | HZ33: 13 | IA33: 13 | IB33: 13 | IC33: 13 | ID33: 14 | IE33: 14 | IF33: 13 | IG33: 13 | IH33: 13 | II33: 13 | IJ33: 13 | IK33: 15 | IL33: 13 | IM33: 13 | IN33: 13 | IO33: 13 | IP33: 13 | IQ33: 15 | IR33: 13 | IS33: 13 | IT33: 13 | IU33: 13 | IV33: 13 | IW33: 13 | IX33: 13 | IY33: 13 | IZ33: 13 | JA33: 13 | JB33: 13 | JC33: 13 | JD33: 13 | JE33: 13 | JF33: 106 | JG33: 37 | JH33: 20 | JI33: 32 | JJ33: 13 | JK33: 13 | JL33: 13 | JM33: 13 | JN33: 62 | JO33: 59 | JP33: 19 | JQ33: 13 | JR33: 13 | JS33: 13 | JT33: 13 | JU33: 27 | JV33: 27 | JW33: 13 | JX33: 13 | JY33: 13 | JZ33: 13 | KA33: 13 | KB33: 38 | KC33: 38 | KD33: 13 | KE33: 13 | KF33: 13 | KG33: 13 | KH33: 13 | KI33: 66 | KJ33: 66 | KK33: 13 | KL33: 13 | KM33: 13 | KN33: 13 | KO33: 13
A34: 2017thru2021 | B34: 160 | C34: 1600000US0601458 | D34: Alum Rock CDP | E34: 745 | F34: 06 | G34: 01458 | H34: 2890 | I34: 2130 | J34: 610 | K34: 220 | L34: 45 | M34: 0 | N34: 95 | O34: 0 | P34: 0 | Q34: 75 | R34: 150 | S34: 10 | T34: 0 | U34: 35 | V34: 0 | W34: 0 | X34: 110 | Y34: 80 | Z34: 0 | AA34: 0 | AB34: 45 | AC34: 0 | AD34: 0 | AE34: 35 | AF34: 15 | AG34: 0 | AH34: 0 | AI34: 0 | AJ34: 0 | AK34: 0 | AL34: 15 | AM34: 145 | AN34: 20 | AO34: 0 | AP34: 20 | AQ34: 0 | AR34: 0 | AS34: 105 | AT34: 1520 | AU34: 125 | AV34: 45 | AW34: 0 | AX34: 0 | AY34: 0 | AZ34: 0 | BA34: 80 | BB34: 110 | BC34: 25 | BD34: 0 | BE34: 10 | BF34: 0 | BG34: 0 | BH34: 70 | BI34: 435 | BJ34: 35 | BK34: 0 | BL34: 55 | BM34: 0 | BN34: 0 | BO34: 350 | BP34: 170 | BQ34: 30 | BR34: 0 | BS34: 4 | BT34: 0 | BU34: 0 | BV34: 125 | BW34: 680 | BX34: 120 | BY34: 0 | BZ34: 195 | CA34: 0 | CB34: 0 | CC34: 355 | CD34: 760 | CE34: 445 | CF34: 225 | CG34: 0 | CH34: 0 | CI34: 45 | CJ34: 15 | CK34: 0 | CL34: 165 | CM34: 90 | CN34: 40 | CO34: 0 | CP34: 0 | CQ34: 0 | CR34: 0 | CS34: 50 | CT34: 65 | CU34: 0 | CV34: 0 | CW34: 15 | CX34: 0 | CY34: 0 | CZ34: 50 | DA34: 20 | DB34: 0 | DC34: 0 | DD34: 0 | DE34: 0 | DF34: 0 | DG34: 20 | DH34: 40 | DI34: 0 | DJ34: 0 | DK34: 0 | DL34: 0 | DM34: 0 | DN34: 40 | DO34: 315 | DP34: 45 | DQ34: 0 | DR34: 0 | DS34: 0 | DT34: 0 | DU34: 0 | DV34: 45 | DW34: 20 | DX34: 0 | DY34: 0 | DZ34: 10 | EA34: 0 | EB34: 0 | EC34: 10 | ED34: 135 | EE34: 10 | EF34: 20 | EG34: 0 | EH34: 0 | EI34: 0 | EJ34: 105 | EK34: 50 | EL34: 0 | EM34: 0 | EN34: 0 | EO34: 0 | EP34: 0 | EQ34: 50 | ER34: 65 | ES34: 0 | ET34: 0 | EU34: 20 | EV34: 0 | EW34: 0 | EX34: 45 | EY34: 314 | EZ34: 287 | FA34: 135 | FB34: 92 | FC34: 43 | FD34: 21 | FE34: 66 | FF34: 21 | FG34: 21 | FH34: 69 | FI34: 69 | FJ34: 17 | FK34: 21 | FL34: 32 | FM34: 21 | FN34: 21 | FO34: 64 | FP34: 61 | FQ34: 21 | FR34: 21 | FS34: 55 | FT34: 21 | FU34: 21 | FV34: 37 | FW34: 24 | FX34: 21 | FY34: 21 | FZ34: 21 | GA34: 21 | GB34: 21 | GC34: 24 | GD34: 87 | GE34: 30 | GF34: 21 | GG34: 34 | GH34: 21 | GI34: 21 | GJ34: 80 | GK34: 275 | GL34: 71 | GM34: 39 | GN34: 21 | GO34: 21 | GP34: 21 | GQ34: 21 | GR34: 61 | GS34: 67 | GT34: 29 | GU34: 21 | GV34: 22 | GW34: 21 | GX34: 21 | GY34: 63 | GZ34: 216 | HA34: 36 | HB34: 21 | HC34: 47 | HD34: 21 | HE34: 21 | HF34: 214 | HG34: 76 | HH34: 24 | HI34: 21 | HJ34: 11 | HK34: 21 | HL34: 21 | HM34: 76 | HN34: 186 | HO34: 54 | HP34: 21 | HQ34: 113 | HR34: 21 | HS34: 21 | HT34: 131 | HU34: 174 | HV34: 155 | HW34: 106 | HX34: 21 | HY34: 21 | HZ34: 52 | IA34: 26 | IB34: 21 | IC34: 86 | ID34: 80 | IE34: 63 | IF34: 21 | IG34: 21 | IH34: 21 | II34: 21 | IJ34: 47 | IK34: 64 | IL34: 21 | IM34: 21 | IN34: 20 | IO34: 21 | IP34: 21 | IQ34: 60 | IR34: 35 | IS34: 21 | IT34: 21 | IU34: 21 | IV34: 21 | IW34: 21 | IX34: 35 | IY34: 31 | IZ34: 21 | JA34: 21 | JB34: 21 | JC34: 21 | JD34: 21 | JE34: 31 | JF34: 110 | JG34: 47 | JH34: 21 | JI34: 21 | JJ34: 21 | JK34: 21 | JL34: 21 | JM34: 47 | JN34: 25 | JO34: 21 | JP34: 21 | JQ34: 22 | JR34: 21 | JS34: 21 | JT34: 13 | JU34: 87 | JV34: 13 | JW34: 35 | JX34: 21 | JY34: 21 | JZ34: 21 | KA34: 81 | KB34: 55 | KC34: 21 | KD34: 21 | KE34: 21 | KF34: 21 | KG34: 21 | KH34: 55 | KI34: 54 | KJ34: 21 | KK34: 21 | KL34: 22 | KM34: 21 | KN34: 21 | KO34: 52
A35: 2017thru2021 | B35: 160 | C35: 1600000US0601514 | D35: Amador City | E35: 20 | F35: 06 | G35: 01514 | H35: 80 | I35: 30 | J35: 10 | K35: 0 | L35: 0 | M35: 0 | N35: 0 | O35: 0 | P35: 0 | Q35: 0 | R35: 4 | S35: 4 | T35: 0 | U35: 0 | V35: 0 | W35: 0 | X35: 0 | Y35: 4 | Z35: 4 | AA35: 0 | AB35: 0 | AC35: 0 | AD35: 0 | AE35: 0 | AF35: 0 | AG35: 0 | AH35: 0 | AI35: 0 | AJ35: 0 | AK35: 0 | AL35: 0 | AM35: 0 | AN35: 0 | AO35: 0 | AP35: 0 | AQ35: 0 | AR35: 0 | AS35: 0 | AT35: 25 | AU35: 4 | AV35: 4 | AW35: 0 | AX35: 0 | AY35: 0 | AZ35: 0 | BA35: 0 | BB35: 0 | BC35: 0 | BD35: 0 | BE35: 0 | BF35: 0 | BG35: 0 | BH35: 0 | BI35: 4 | BJ35: 4 | BK35: 0 | BL35: 0 | BM35: 0 | BN35: 0 | BO35: 0 | BP35: 4 | BQ35: 4 | BR35: 0 | BS35: 0 | BT35: 0 | BU35: 0 | BV35: 0 | BW35: 15 | BX35: 4 | BY35: 0 | BZ35: 0 | CA35: 0 | CB35: 0 | CC35: 10 | CD35: 50 | CE35: 0 | CF35: 0 | CG35: 0 | CH35: 0 | CI35: 0 | CJ35: 0 | CK35: 0 | CL35: 0 | CM35: 0 | CN35: 0 | CO35: 0 | CP35: 0 | CQ35: 0 | CR35: 0 | CS35: 0 | CT35: 0 | CU35: 0 | CV35: 0 | CW35: 0 | CX35: 0 | CY35: 0 | CZ35: 0 | DA35: 0 | DB35: 0 | DC35: 0 | DD35: 0 | DE35: 0 | DF35: 0 | DG35: 0 | DH35: 0 | DI35: 0 | DJ35: 0 | DK35: 0 | DL35: 0 | DM35: 0 | DN35: 0 | DO35: 50 | DP35: 10 | DQ35: 10 | DR35: 0 | DS35: 0 | DT35: 0 | DU35: 0 | DV35: 0 | DW35: 4 | DX35: 4 | DY35: 0 | DZ35: 0 | EA35: 0 | EB35: 0 | EC35: 0 | ED35: 10 | EE35: 10 | EF35: 0 | EG35: 0 | EH35: 0 | EI35: 0 | EJ35: 0 | EK35: 0 | EL35: 0 | EM35: 0 | EN35: 0 | EO35: 0 | EP35: 0 | EQ35: 0 | ER35: 25 | ES35: 20 | ET35: 0 | EU35: 4 | EV35: 0 | EW35: 0 | EX35: 0 | EY35: 42 | EZ35: 23 | FA35: 14 | FB35: 13 | FC35: 13 | FD35: 13 | FE35: 13 | FF35: 13 | FG35: 13 | FH35: 13 | FI35: 10 | FJ35: 10 | FK35: 13 | FL35: 13 | FM35: 13 | FN35: 13 | FO35: 13 | FP35: 2 | FQ35: 5 | FR35: 13 | FS35: 13 | FT35: 13 | FU35: 13 | FV35: 13 | FW35: 13 | FX35: 13 | FY35: 13 | FZ35: 13 | GA35: 13 | GB35: 13 | GC35: 13 | GD35: 13 | GE35: 13 | GF35: 13 | GG35: 13 | GH35: 13 | GI35: 13 | GJ35: 13 | GK35: 17 | GL35: 10 | GM35: 10 | GN35: 13 | GO35: 13 | GP35: 13 | GQ35: 13 | GR35: 13 | GS35: 13 | GT35: 13 | GU35: 13 | GV35: 13 | GW35: 13 | GX35: 13 | GY35: 13 | GZ35: 4 | HA35: 4 | HB35: 13 | HC35: 13 | HD35: 13 | HE35: 13 | HF35: 13 | HG35: 4 | HH35: 4 | HI35: 13 | HJ35: 13 | HK35: 13 | HL35: 13 | HM35: 13 | HN35: 16 | HO35: 5 | HP35: 13 | HQ35: 13 | HR35: 13 | HS35: 13 | HT35: 15 | HU35: 31 | HV35: 13 | HW35: 13 | HX35: 13 | HY35: 13 | HZ35: 13 | IA35: 13 | IB35: 13 | IC35: 13 | ID35: 13 | IE35: 13 | IF35: 13 | IG35: 13 | IH35: 13 | II35: 13 | IJ35: 13 | IK35: 13 | IL35: 13 | IM35: 13 | IN35: 13 | IO35: 13 | IP35: 13 | IQ35: 13 | IR35: 13 | IS35: 13 | IT35: 13 | IU35: 13 | IV35: 13 | IW35: 13 | IX35: 13 | IY35: 13 | IZ35: 13 | JA35: 13 | JB35: 13 | JC35: 13 | JD35: 13 | JE35: 13 | JF35: 31 | JG35: 15 | JH35: 15 | JI35: 13 | JJ35: 13 | JK35: 13 | JL35: 13 | JM35: 13 | JN35: 9 | JO35: 9 | JP35: 13 | JQ35: 13 | JR35: 13 | JS35: 13 | JT35: 13 | JU35: 11 | JV35: 11 | JW35: 13 | JX35: 13 | JY35: 13 | JZ35: 13 | KA35: 13 | KB35: 13 | KC35: 13 | KD35: 13 | KE35: 13 | KF35: 13 | KG35: 13 | KH35: 13 | KI35: 24 | KJ35: 22 | KK35: 13 | KL35: 3 | KM35: 13 | KN35: 13 | KO35: 13
A36: 2017thru2021 | B36: 160 | C36: 1600000US0601518 | D36: Amador Pines CDP | E36: 100 | F36: 06 | G36: 01518 | H36: 480 | I36: 435 | J36: 65 | K36: 10 | L36: 10 | M36: 0 | N36: 0 | O36: 0 | P36: 0 | Q36: 0 | R36: 20 | S36: 20 | T36: 0 | U36: 0 | V36: 0 | W36: 0 | X36: 0 | Y36: 20 | Z36: 10 | AA36: 0 | AB36: 0 | AC36: 0 | AD36: 0 | AE36: 10 | AF36: 0 | AG36: 0 | AH36: 0 | AI36: 0 | AJ36: 0 | AK36: 0 | AL36: 0 | AM36: 20 | AN36: 20 | AO36: 0 | AP36: 0 | AQ36: 0 | AR36: 0 | AS36: 0 | AT36: 370 | AU36: 10 | AV36: 10 | AW36: 0 | AX36: 0 | AY36: 0 | AZ36: 0 | BA36: 0 | BB36: 25 | BC36: 25 | BD36: 0 | BE36: 0 | BF36: 0 | BG36: 0 | BH36: 0 | BI36: 65 | BJ36: 65 | BK36: 0 | BL36: 0 | BM36: 0 | BN36: 0 | BO36: 0 | BP36: 4 | BQ36: 4 | BR36: 0 | BS36: 0 | BT36: 0 | BU36: 0 | BV36: 0 | BW36: 260 | BX36: 225 | BY36: 0 | BZ36: 0 | CA36: 0 | CB36: 0 | CC36: 35 | CD36: 45 | CE36: 0 | CF36: 0 | CG36: 0 | CH36: 0 | CI36: 0 | CJ36: 0 | CK36: 0 | CL36: 0 | CM36: 0 | CN36: 0 | CO36: 0 | CP36: 0 | CQ36: 0 | CR36: 0 | CS36: 0 | CT36: 0 | CU36: 0 | CV36: 0 | CW36: 0 | CX36: 0 | CY36: 0 | CZ36: 0 | DA36: 0 | DB36: 0 | DC36: 0 | DD36: 0 | DE36: 0 | DF36: 0 | DG36: 0 | DH36: 0 | DI36: 0 | DJ36: 0 | DK36: 0 | DL36: 0 | DM36: 0 | DN36: 0 | DO36: 45 | DP36: 0 | DQ36: 0 | DR36: 0 | DS36: 0 | DT36: 0 | DU36: 0 | DV36: 0 | DW36: 0 | DX36: 0 | DY36: 0 | DZ36: 0 | EA36: 0 | EB36: 0 | EC36: 0 | ED36: 35 | EE36: 35 | EF36: 0 | EG36: 0 | EH36: 0 | EI36: 0 | EJ36: 0 | EK36: 0 | EL36: 0 | EM36: 0 | EN36: 0 | EO36: 0 | EP36: 0 | EQ36: 0 | ER36: 10 | ES36: 0 | ET36: 0 | EU36: 0 | EV36: 0 | EW36: 0 | EX36: 10 | EY36: 111 | EZ36: 101 | FA36: 48 | FB36: 15 | FC36: 15 | FD36: 13 | FE36: 13 | FF36: 13 | FG36: 13 | FH36: 13 | FI36: 23 | FJ36: 23 | FK36: 13 | FL36: 13 | FM36: 13 | FN36: 13 | FO36: 13 | FP36: 24 | FQ36: 13 | FR36: 13 | FS36: 13 | FT36: 13 | FU36: 13 | FV36: 15 | FW36: 13 | FX36: 13 | FY36: 13 | FZ36: 13 | GA36: 13 | GB36: 13 | GC36: 13 | GD36: 36 | GE36: 36 | GF36: 13 | GG36: 13 | GH36: 13 | GI36: 13 | GJ36: 13 | GK36: 93 | GL36: 18 | GM36: 18 | GN36: 13 | GO36: 13 | GP36: 13 | GQ36: 13 | GR36: 13 | GS36: 23 | GT36: 23 | GU36: 13 | GV36: 13 | GW36: 13 | GX36: 13 | GY36: 13 | GZ36: 39 | HA36: 39 | HB36: 13 | HC36: 13 | HD36: 13 | HE36: 13 | HF36: 13 | HG36: 18 | HH36: 18 | HI36: 13 | HJ36: 13 | HK36: 13 | HL36: 13 | HM36: 13 | HN36: 91 | HO36: 94 | HP36: 13 | HQ36: 13 | HR36: 13 | HS36: 13 | HT36: 39 | HU36: 42 | HV36: 13 | HW36: 13 | HX36: 13 | HY36: 13 | HZ36: 13 | IA36: 13 | IB36: 13 | IC36: 13 | ID36: 13 | IE36: 13 | IF36: 13 | IG36: 13 | IH36: 13 | II36: 13 | IJ36: 13 | IK36: 13 | IL36: 13 | IM36: 13 | IN36: 13 | IO36: 13 | IP36: 13 | IQ36: 13 | IR36: 13 | IS36: 13 | IT36: 13 | IU36: 13 | IV36: 13 | IW36: 13 | IX36: 13 | IY36: 13 | IZ36: 13 | JA36: 13 | JB36: 13 | JC36: 13 | JD36: 13 | JE36: 13 | JF36: 42 | JG36: 13 | JH36: 13 | JI36: 13 | JJ36: 13 | JK36: 13 | JL36: 13 | JM36: 13 | JN36: 13 | JO36: 13 | JP36: 13 | JQ36: 13 | JR36: 13 | JS36: 13 | JT36: 13 | JU36: 40 | JV36: 40 | JW36: 13 | JX36: 13 | JY36: 13 | JZ36: 13 | KA36: 13 | KB36: 13 | KC36: 13 | KD36: 13 | KE36: 13 | KF36: 13 | KG36: 13 | KH36: 13 | KI36: 20 | KJ36: 13 | KK36: 13 | KL36: 13 | KM36: 13 | KN36: 13 | KO36: 20
A37: 2017thru2021 | B37: 160 | C37: 1600000US0601640 | D37: American Canyon | E37: 800 | F37: 06 | G37: 01640 | H37: 5540 | I37: 4370 | J37: 705 | K37: 220 | L37: 75 | M37: 30 | N37: 20 | O37: 0 | P37: 0 | Q37: 45 | R37: 120 | S37: 50 | T37: 0 | U37: 45 | V37: 0 | W37: 0 | X37: 15 | Y37: 190 | Z37: 10 | AA37: 15 | AB37: 85 | AC37: 0 | AD37: 0 | AE37: 75 | AF37: 30 | AG37: 15 | AH37: 0 | AI37: 0 | AJ37: 0 | AK37: 0 | AL37: 15 | AM37: 145 | AN37: 10 | AO37: 20 | AP37: 65 | AQ37: 0 | AR37: 0 | AS37: 40 | AT37: 3665 | AU37: 135 | AV37: 50 | AW37: 0 | AX37: 85 | AY37: 0 | AZ37: 0 | BA37: 0 | BB37: 235 | BC37: 55 | BD37: 0 | BE37: 80 | BF37: 0 | BG37: 0 | BH37: 105 | BI37: 435 | BJ37: 155 | BK37: 35 | BL37: 70 | BM37: 0 | BN37: 0 | BO37: 160 | BP37: 470 | BQ37: 165 | BR37: 20 | BS37: 135 | BT37: 25 | BU37: 0 | BV37: 115 | BW37: 2385 | BX37: 750 | BY37: 200 | BZ37: 805 | CA37: 4 | CB37: 35 | CC37: 480 | CD37: 1170 | CE37: 445 | CF37: 165 | CG37: 40 | CH37: 30 | CI37: 0 | CJ37: 0 | CK37: 0 | CL37: 80 | CM37: 180 | CN37: 20 | CO37: 20 | CP37: 50 | CQ37: 0 | CR37: 0 | CS37: 90 | CT37: 65 | CU37: 30 | CV37: 0 | CW37: 10 | CX37: 0 | CY37: 0 | CZ37: 25 | DA37: 10 | DB37: 10 | DC37: 0 | DD37: 0 | DE37: 0 | DF37: 0 | DG37: 0 | DH37: 20 | DI37: 4 | DJ37: 0 | DK37: 10 | DL37: 4 | DM37: 0 | DN37: 0 | DO37: 725 | DP37: 65 | DQ37: 15 | DR37: 0 | DS37: 20 | DT37: 0 | DU37: 0 | DV37: 15 | DW37: 85 | DX37: 40 | DY37: 0 | DZ37: 35 | EA37: 0 | EB37: 0 | EC37: 0 | ED37: 95 | EE37: 10 | EF37: 30 | EG37: 15 | EH37: 0 | EI37: 0 | EJ37: 30 | EK37: 175 | EL37: 30 | EM37: 0 | EN37: 45 | EO37: 0 | EP37: 0 | EQ37: 35 | ER37: 305 | ES37: 70 | ET37: 10 | EU37: 140 | EV37: 0 | EW37: 0 | EX37: 80 | EY37: 231 | EZ37: 233 | FA37: 162 | FB37: 86 | FC37: 42 | FD37: 34 | FE37: 30 | FF37: 25 | FG37: 25 | FH37: 42 | FI37: 63 | FJ37: 51 | FK37: 25 | FL37: 33 | FM37: 25 | FN37: 25 | FO37: 18 | FP37: 91 | FQ37: 13 | FR37: 24 | FS37: 74 | FT37: 25 | FU37: 25 | FV37: 41 | FW37: 27 | FX37: 21 | FY37: 25 | FZ37: 25 | GA37: 25 | GB37: 25 | GC37: 19 | GD37: 58 | GE37: 15 | GF37: 22 | GG37: 46 | GH37: 25 | GI37: 25 | GJ37: 27 | GK37: 222 | GL37: 91 | GM37: 29 | GN37: 25 | GO37: 88 | GP37: 25 | GQ37: 25 | GR37: 25 | GS37: 75 | GT37: 28 | GU37: 25 | GV37: 45 | GW37: 25 | GX37: 25 | GY37: 59 | GZ37: 115 | HA37: 59 | HB37: 40 | HC37: 42 | HD37: 25 | HE37: 25 | HF37: 90 | HG37: 113 | HH37: 68 | HI37: 24 | HJ37: 60 | HK37: 37 | HL37: 25 | HM37: 77 | HN37: 215 | HO37: 112 | HP37: 90 | HQ37: 125 | HR37: 16 | HS37: 38 | HT37: 127 | HU37: 184 | HV37: 114 | HW37: 78 | HX37: 38 | HY37: 33 | HZ37: 25 | IA37: 25 | IB37: 25 | IC37: 78 | ID37: 71 | IE37: 21 | IF37: 33 | IG37: 42 | IH37: 25 | II37: 25 | IJ37: 52 | IK37: 37 | IL37: 34 | IM37: 25 | IN37: 16 | IO37: 25 | IP37: 25 | IQ37: 23 | IR37: 18 | IS37: 18 | IT37: 25 | IU37: 25 | IV37: 25 | IW37: 25 | IX37: 25 | IY37: 21 | IZ37: 19 | JA37: 25 | JB37: 16 | JC37: 5 | JD37: 25 | JE37: 25 | JF37: 165 | JG37: 55 | JH37: 28 | JI37: 25 | JJ37: 31 | JK37: 25 | JL37: 25 | JM37: 24 | JN37: 62 | JO37: 40 | JP37: 25 | JQ37: 45 | JR37: 25 | JS37: 25 | JT37: 25 | JU37: 47 | JV37: 14 | JW37: 38 | JX37: 18 | JY37: 25 | JZ37: 25 | KA37: 24 | KB37: 88 | KC37: 23 | KD37: 25 | KE37: 31 | KF37: 25 | KG37: 25 | KH37: 40 | KI37: 118 | KJ37: 41 | KK37: 17 | KL37: 80 | KM37: 25 | KN37: 25 | KO37: 65
A38: 2017thru2021 | B38: 160 | C38: 1600000US0601651 | D38: Amesti CDP | E38: 215 | F38: 06 | G38: 01651 | H38: 845 | I38: 680 | J38: 185 | K38: 70 | L38: 10 | M38: 0 | N38: 4 | O38: 0 | P38: 0 | Q38: 45 | R38: 30 | S38: 30 | T38: 0 | U38: 0 | V38: 0 | W38: 0 | X38: 0 | Y38: 4 | Z38: 4 | AA38: 0 | AB38: 0 | AC38: 0 | AD38: 0 | AE38: 0 | AF38: 55 | AG38: 15 | AH38: 0 | AI38: 0 | AJ38: 0 | AK38: 0 | AL38: 40 | AM38: 25 | AN38: 10 | AO38: 0 | AP38: 0 | AQ38: 0 | AR38: 0 | AS38: 15 | AT38: 495 | AU38: 4 | AV38: 4 | AW38: 0 | AX38: 0 | AY38: 0 | AZ38: 0 | BA38: 0 | BB38: 65 | BC38: 15 | BD38: 0 | BE38: 0 | BF38: 0 | BG38: 0 | BH38: 45 | BI38: 155 | BJ38: 55 | BK38: 0 | BL38: 4 | BM38: 0 | BN38: 0 | BO38: 90 | BP38: 60 | BQ38: 30 | BR38: 0 | BS38: 0 | BT38: 0 | BU38: 0 | BV38: 30 | BW38: 210 | BX38: 140 | BY38: 0 | BZ38: 4 | CA38: 0 | CB38: 0 | CC38: 65 | CD38: 165 | CE38: 100 | CF38: 30 | CG38: 0 | CH38: 0 | CI38: 0 | CJ38: 0 | CK38: 0 | CL38: 30 | CM38: 70 | CN38: 20 | CO38: 0 | CP38: 0 | CQ38: 0 | CR38: 0 | CS38: 50 | CT38: 0 | CU38: 0 | CV38: 0 | CW38: 0 | CX38: 0 | CY38: 0 | CZ38: 0 | DA38: 0 | DB38: 0 | DC38: 0 | DD38: 0 | DE38: 0 | DF38: 0 | DG38: 0 | DH38: 0 | DI38: 0 | DJ38: 0 | DK38: 0 | DL38: 0 | DM38: 0 | DN38: 0 | DO38: 65 | DP38: 20 | DQ38: 10 | DR38: 0 | DS38: 0 | DT38: 0 | DU38: 0 | DV38: 10 | DW38: 0 | DX38: 0 | DY38: 0 | DZ38: 0 | EA38: 0 | EB38: 0 | EC38: 0 | ED38: 30 | EE38: 0 | EF38: 0 | EG38: 0 | EH38: 4 | EI38: 0 | EJ38: 25 | EK38: 10 | EL38: 10 | EM38: 0 | EN38: 0 | EO38: 0 | EP38: 0 | EQ38: 0 | ER38: 4 | ES38: 4 | ET38: 0 | EU38: 0 | EV38: 0 | EW38: 0 | EX38: 0 | EY38: 86 | EZ38: 93 | FA38: 86 | FB38: 50 | FC38: 19 | FD38: 13 | FE38: 12 | FF38: 13 | FG38: 13 | FH38: 45 | FI38: 26 | FJ38: 26 | FK38: 13 | FL38: 13 | FM38: 13 | FN38: 13 | FO38: 13 | FP38: 13 | FQ38: 13 | FR38: 13 | FS38: 13 | FT38: 13 | FU38: 13 | FV38: 13 | FW38: 54 | FX38: 29 | FY38: 13 | FZ38: 13 | GA38: 13 | GB38: 13 | GC38: 47 | GD38: 30 | GE38: 15 | GF38: 13 | GG38: 13 | GH38: 13 | GI38: 13 | GJ38: 27 | GK38: 96 | GL38: 12 | GM38: 12 | GN38: 13 | GO38: 13 | GP38: 13 | GQ38: 13 | GR38: 13 | GS38: 47 | GT38: 15 | GU38: 13 | GV38: 13 | GW38: 13 | GX38: 13 | GY38: 45 | GZ38: 83 | HA38: 41 | HB38: 13 | HC38: 9 | HD38: 13 | HE38: 13 | HF38: 68 | HG38: 27 | HH38: 22 | HI38: 13 | HJ38: 13 | HK38: 13 | HL38: 13 | HM38: 29 | HN38: 61 | HO38: 47 | HP38: 13 | HQ38: 1 | HR38: 13 | HS38: 13 | HT38: 42 | HU38: 81 | HV38: 76 | HW38: 33 | HX38: 13 | HY38: 13 | HZ38: 13 | IA38: 13 | IB38: 13 | IC38: 33 | ID38: 71 | IE38: 27 | IF38: 13 | IG38: 13 | IH38: 13 | II38: 13 | IJ38: 63 | IK38: 13 | IL38: 13 | IM38: 13 | IN38: 13 | IO38: 13 | IP38: 13 | IQ38: 13 | IR38: 13 | IS38: 13 | IT38: 13 | IU38: 13 | IV38: 13 | IW38: 13 | IX38: 13 | IY38: 13 | IZ38: 13 | JA38: 13 | JB38: 13 | JC38: 13 | JD38: 13 | JE38: 13 | JF38: 38 | JG38: 20 | JH38: 12 | JI38: 13 | JJ38: 13 | JK38: 13 | JL38: 13 | JM38: 17 | JN38: 13 | JO38: 13 | JP38: 13 | JQ38: 13 | JR38: 13 | JS38: 13 | JT38: 13 | JU38: 27 | JV38: 13 | JW38: 13 | JX38: 13 | JY38: 5 | JZ38: 13 | KA38: 29 | KB38: 15 | KC38: 15 | KD38: 13 | KE38: 13 | KF38: 13 | KG38: 13 | KH38: 13 | KI38: 5 | KJ38: 5 | KK38: 13 | KL38: 13 | KM38: 13 | KN38: 13 | KO38: 13
A39: 2017thru2021 | B39: 160 | C39: 1600000US0602000 | D39: Anaheim | E39: 18310 | F39: 06 | G39: 02000 | H39: 103570 | I39: 48150 | J39: 9685 | K39: 2550 | L39: 1300 | M39: 60 | N39: 485 | O39: 0 | P39: 0 | Q39: 700 | R39: 2075 | S39: 615 | T39: 30 | U39: 545 | V39: 0 | W39: 0 | X39: 840 | Y39: 2445 | Z39: 515 | AA39: 15 | AB39: 480 | AC39: 0 | AD39: 0 | AE39: 1425 | AF39: 930 | AG39: 235 | AH39: 0 | AI39: 165 | AJ39: 0 | AK39: 0 | AL39: 515 | AM39: 1680 | AN39: 195 | AO39: 0 | AP39: 485 | AQ39: 0 | AR39: 0 | AS39: 950 | AT39: 38470 | AU39: 1445 | AV39: 770 | AW39: 45 | AX39: 280 | AY39: 0 | AZ39: 0 | BA39: 345 | BB39: 2705 | BC39: 1290 | BD39: 40 | BE39: 420 | BF39: 0 | BG39: 20 | BH39: 855 | BI39: 6560 | BJ39: 2640 | BK39: 295 | BL39: 1065 | BM39: 0 | BN39: 0 | BO39: 2450 | BP39: 5300 | BQ39: 1845 | BR39: 195 | BS39: 1430 | BT39: 10 | BU39: 30 | BV39: 1570 | BW39: 22455 | BX39: 10670 | BY39: 340 | BZ39: 5560 | CA39: 4 | CB39: 35 | CC39: 5130 | CD39: 55420 | CE39: 27305 | CF39: 12795 | CG39: 3005 | CH39: 485 | CI39: 1735 | CJ39: 10 | CK39: 70 | CL39: 7285 | CM39: 7000 | CN39: 1455 | CO39: 190 | CP39: 575 | CQ39: 0 | CR39: 20 | CS39: 4435 | CT39: 4385 | CU39: 645 | CV39: 95 | CW39: 505 | CX39: 0 | CY39: 25 | CZ39: 3060 | DA39: 1175 | DB39: 95 | DC39: 25 | DD39: 365 | DE39: 25 | DF39: 15 | DG39: 575 | DH39: 1950 | DI39: 290 | DJ39: 10 | DK39: 265 | DL39: 0 | DM39: 0 | DN39: 1335 | DO39: 28115 | DP39: 3460 | DQ39: 810 | DR39: 185 | DS39: 1120 | DT39: 0 | DU39: 15 | DV39: 1310 | DW39: 3820 | DX39: 985 | DY39: 155 | DZ39: 365 | EA39: 4 | EB39: 50 | EC39: 2255 | ED39: 8625 | EE39: 1880 | EF39: 365 | EG39: 1190 | EH39: 4 | EI39: 20 | EJ39: 4965 | EK39: 4540 | EL39: 1485 | EM39: 325 | EN39: 425 | EO39: 4 | EP39: 80 | EQ39: 2050 | ER39: 7670 | ES39: 3325 | ET39: 480 | EU39: 1325 | EV39: 0 | EW39: 25 | EX39: 2210 | EY39: 1475 | EZ39: 1436 | FA39: 794 | FB39: 450 | FC39: 277 | FD39: 60 | FE39: 156 | FF39: 31 | FG39: 31 | FH39: 206 | FI39: 346 | FJ39: 144 | FK39: 29 | FL39: 194 | FM39: 31 | FN39: 31 | FO39: 215 | FP39: 394 | FQ39: 180 | FR39: 20 | FS39: 195 | FT39: 31 | FU39: 31 | FV39: 293 | FW39: 239 | FX39: 116 | FY39: 31 | FZ39: 76 | GA39: 31 | GB39: 31 | GC39: 202 | GD39: 350 | GE39: 90 | GF39: 31 | GG39: 137 | GH39: 31 | GI39: 31 | GJ39: 288 | GK39: 1484 | GL39: 253 | GM39: 186 | GN39: 36 | GO39: 99 | GP39: 31 | GQ39: 31 | GR39: 132 | GS39: 359 | GT39: 251 | GU39: 38 | GV39: 122 | GW39: 31 | GX39: 35 | GY39: 202 | GZ39: 514 | HA39: 327 | HB39: 149 | HC39: 197 | HD39: 31 | HE39: 31 | HF39: 320 | HG39: 599 | HH39: 303 | HI39: 162 | HJ39: 270 | HK39: 16 | HL39: 39 | HM39: 339 | HN39: 1154 | HO39: 820 | HP39: 134 | HQ39: 451 | HR39: 15 | HS39: 48 | HT39: 719 | HU39: 1595 | HV39: 1313 | HW39: 927 | HX39: 433 | HY39: 148 | HZ39: 328 | IA39: 17 | IB39: 94 | IC39: 727 | ID39: 782 | IE39: 377 | IF39: 106 | IG39: 162 | IH39: 31 | II39: 35 | IJ39: 598 | IK39: 515 | IL39: 171 | IM39: 52 | IN39: 209 | IO39: 31 | IP39: 44 | IQ39: 443 | IR39: 336 | IS39: 75 | IT39: 38 | IU39: 250 | IV39: 36 | IW39: 27 | IX39: 156 | IY39: 466 | IZ39: 131 | JA39: 13 | JB39: 204 | JC39: 31 | JD39: 31 | JE39: 391 | JF39: 1286 | JG39: 536 | JH39: 279 | JI39: 110 | JJ39: 280 | JK39: 31 | JL39: 25 | JM39: 347 | JN39: 470 | JO39: 221 | JP39: 112 | JQ39: 129 | JR39: 9 | JS39: 82 | JT39: 339 | JU39: 687 | JV39: 289 | JW39: 149 | JX39: 250 | JY39: 3 | JZ39: 40 | KA39: 517 | KB39: 585 | KC39: 311 | KD39: 183 | KE39: 132 | KF39: 4 | KG39: 85 | KH39: 366 | KI39: 706 | KJ39: 471 | KK39: 198 | KL39: 346 | KM39: 31 | KN39: 31 | KO39: 364
A40: 2017thru2021 | B40: 160 | C40: 1600000US0602028 | D40: Anchor Bay CDP | E40: 0 | F40: 06 | G40: 02028 | H40: 205 | I40: 95 | J40: 0 | K40: 0 | L40: 0 | M40: 0 | N40: 0 | O40: 0 | P40: 0 | Q40: 0 | R40: 0 | S40: 0 | T40: 0 | U40: 0 | V40: 0 | W40: 0 | X40: 0 | Y40: 0 | Z40: 0 | AA40: 0 | AB40: 0 | AC40: 0 | AD40: 0 | AE40: 0 | AF40: 0 | AG40: 0 | AH40: 0 | AI40: 0 | AJ40: 0 | AK40: 0 | AL40: 0 | AM40: 0 | AN40: 0 | AO40: 0 | AP40: 0 | AQ40: 0 | AR40: 0 | AS40: 0 | AT40: 95 | AU40: 0 | AV40: 0 | AW40: 0 | AX40: 0 | AY40: 0 | AZ40: 0 | BA40: 0 | BB40: 0 | BC40: 0 | BD40: 0 | BE40: 0 | BF40: 0 | BG40: 0 | BH40: 0 | BI40: 0 | BJ40: 0 | BK40: 0 | BL40: 0 | BM40: 0 | BN40: 0 | BO40: 0 | BP40: 0 | BQ40: 0 | BR40: 0 | BS40: 0 | BT40: 0 | BU40: 0 | BV40: 0 | BW40: 95 | BX40: 95 | BY40: 0 | BZ40: 0 | CA40: 0 | CB40: 0 | CC40: 0 | CD40: 110 | CE40: 0 | CF40: 0 | CG40: 0 | CH40: 0 | CI40: 0 | CJ40: 0 | CK40: 0 | CL40: 0 | CM40: 0 | CN40: 0 | CO40: 0 | CP40: 0 | CQ40: 0 | CR40: 0 | CS40: 0 | CT40: 0 | CU40: 0 | CV40: 0 | CW40: 0 | CX40: 0 | CY40: 0 | CZ40: 0 | DA40: 0 | DB40: 0 | DC40: 0 | DD40: 0 | DE40: 0 | DF40: 0 | DG40: 0 | DH40: 0 | DI40: 0 | DJ40: 0 | DK40: 0 | DL40: 0 | DM40: 0 | DN40: 0 | DO40: 110 | DP40: 0 | DQ40: 0 | DR40: 0 | DS40: 0 | DT40: 0 | DU40: 0 | DV40: 0 | DW40: 0 | DX40: 0 | DY40: 0 | DZ40: 0 | EA40: 0 | EB40: 0 | EC40: 0 | ED40: 0 | EE40: 0 | EF40: 0 | EG40: 0 | EH40: 0 | EI40: 0 | EJ40: 0 | EK40: 0 | EL40: 0 | EM40: 0 | EN40: 0 | EO40: 0 | EP40: 0 | EQ40: 0 | ER40: 110 | ES40: 110 | ET40: 0 | EU40: 0 | EV40: 0 | EW40: 0 | EX40: 0 | EY40: 134 | EZ40: 62 | FA40: 13 | FB40: 13 | FC40: 13 | FD40: 13 | FE40: 13 | FF40: 13 | FG40: 13 | FH40: 13 | FI40: 13 | FJ40: 13 | FK40: 13 | FL40: 13 | FM40: 13 | FN40: 13 | FO40: 13 | FP40: 13 | FQ40: 13 | FR40: 13 | FS40: 13 | FT40: 13 | FU40: 13 | FV40: 13 | FW40: 13 | FX40: 13 | FY40: 13 | FZ40: 13 | GA40: 13 | GB40: 13 | GC40: 13 | GD40: 13 | GE40: 13 | GF40: 13 | GG40: 13 | GH40: 13 | GI40: 13 | GJ40: 13 | GK40: 62 | GL40: 13 | GM40: 13 | GN40: 13 | GO40: 13 | GP40: 13 | GQ40: 13 | GR40: 13 | GS40: 13 | GT40: 13 | GU40: 13 | GV40: 13 | GW40: 13 | GX40: 13 | GY40: 13 | GZ40: 13 | HA40: 13 | HB40: 13 | HC40: 13 | HD40: 13 | HE40: 13 | HF40: 13 | HG40: 13 | HH40: 13 | HI40: 13 | HJ40: 13 | HK40: 13 | HL40: 13 | HM40: 13 | HN40: 62 | HO40: 62 | HP40: 13 | HQ40: 13 | HR40: 13 | HS40: 13 | HT40: 13 | HU40: 119 | HV40: 13 | HW40: 13 | HX40: 13 | HY40: 13 | HZ40: 13 | IA40: 13 | IB40: 13 | IC40: 13 | ID40: 13 | IE40: 13 | IF40: 13 | IG40: 13 | IH40: 13 | II40: 13 | IJ40: 13 | IK40: 13 | IL40: 13 | IM40: 13 | IN40: 13 | IO40: 13 | IP40: 13 | IQ40: 13 | IR40: 13 | IS40: 13 | IT40: 13 | IU40: 13 | IV40: 13 | IW40: 13 | IX40: 13 | IY40: 13 | IZ40: 13 | JA40: 13 | JB40: 13 | JC40: 13 | JD40: 13 | JE40: 13 | JF40: 119 | JG40: 13 | JH40: 13 | JI40: 13 | JJ40: 13 | JK40: 13 | JL40: 13 | JM40: 13 | JN40: 13 | JO40: 13 | JP40: 13 | JQ40: 13 | JR40: 13 | JS40: 13 | JT40: 13 | JU40: 13 | JV40: 13 | JW40: 13 | JX40: 13 | JY40: 13 | JZ40: 13 | KA40: 13 | KB40: 13 | KC40: 13 | KD40: 13 | KE40: 13 | KF40: 13 | KG40: 13 | KH40: 13 | KI40: 119 | KJ40: 119 | KK40: 13 | KL40: 13 | KM40: 13 | KN40: 13 | KO40: 13
A41: 2017thru2021 | B41: 160 | C41: 1600000US0602042 | D41: Anderson | E41: 705 | F41: 06 | G41: 02042 | H41: 4575 | I41: 2245 | J41: 395 | K41: 210 | L41: 110 | M41: 0 | N41: 30 | O41: 4 | P41: 0 | Q41: 60 | R41: 75 | S41: 55 | T41: 0 | U41: 20 | V41: 0 | W41: 0 | X41: 0 | Y41: 40 | Z41: 40 | AA41: 0 | AB41: 0 | AC41: 0 | AD41: 0 | AE41: 0 | AF41: 10 | AG41: 10 | AH41: 0 | AI41: 0 | AJ41: 0 | AK41: 0 | AL41: 0 | AM41: 60 | AN41: 35 | AO41: 20 | AP41: 0 | AQ41: 0 | AR41: 0 | AS41: 0 | AT41: 1850 | AU41: 100 | AV41: 45 | AW41: 0 | AX41: 0 | AY41: 0 | AZ41: 0 | BA41: 55 | BB41: 140 | BC41: 120 | BD41: 0 | BE41: 0 | BF41: 0 | BG41: 0 | BH41: 0 | BI41: 335 | BJ41: 270 | BK41: 0 | BL41: 4 | BM41: 15 | BN41: 0 | BO41: 30 | BP41: 180 | BQ41: 145 | BR41: 0 | BS41: 0 | BT41: 0 | BU41: 0 | BV41: 35 | BW41: 1095 | BX41: 925 | BY41: 0 | BZ41: 0 | CA41: 20 | CB41: 0 | CC41: 140 | CD41: 2335 | CE41: 650 | CF41: 385 | CG41: 350 | CH41: 0 | CI41: 0 | CJ41: 15 | CK41: 0 | CL41: 20 | CM41: 135 | CN41: 125 | CO41: 0 | CP41: 0 | CQ41: 4 | CR41: 0 | CS41: 0 | CT41: 65 | CU41: 20 | CV41: 0 | CW41: 0 | CX41: 0 | CY41: 0 | CZ41: 45 | DA41: 30 | DB41: 30 | DC41: 0 | DD41: 0 | DE41: 0 | DF41: 0 | DG41: 0 | DH41: 35 | DI41: 0 | DJ41: 0 | DK41: 0 | DL41: 0 | DM41: 0 | DN41: 35 | DO41: 1685 | DP41: 470 | DQ41: 395 | DR41: 0 | DS41: 20 | DT41: 4 | DU41: 4 | DV41: 25 | DW41: 390 | DX41: 320 | DY41: 0 | DZ41: 0 | EA41: 10 | EB41: 0 | EC41: 50 | ED41: 310 | EE41: 280 | EF41: 0 | EG41: 0 | EH41: 0 | EI41: 0 | EJ41: 35 | EK41: 230 | EL41: 210 | EM41: 0 | EN41: 0 | EO41: 20 | EP41: 0 | EQ41: 0 | ER41: 280 | ES41: 175 | ET41: 0 | EU41: 0 | EV41: 25 | EW41: 0 | EX41: 30 | EY41: 257 | EZ41: 225 | FA41: 135 | FB41: 103 | FC41: 64 | FD41: 21 | FE41: 33 | FF41: 19 | FG41: 21 | FH41: 84 | FI41: 58 | FJ41: 43 | FK41: 21 | FL41: 30 | FM41: 21 | FN41: 21 | FO41: 21 | FP41: 34 | FQ41: 34 | FR41: 21 | FS41: 21 | FT41: 21 | FU41: 21 | FV41: 21 | FW41: 15 | FX41: 15 | FY41: 21 | FZ41: 21 | GA41: 21 | GB41: 21 | GC41: 21 | GD41: 55 | GE41: 43 | GF41: 33 | GG41: 21 | GH41: 21 | GI41: 21 | GJ41: 21 | GK41: 219 | GL41: 83 | GM41: 36 | GN41: 21 | GO41: 21 | GP41: 21 | GQ41: 21 | GR41: 72 | GS41: 65 | GT41: 61 | GU41: 21 | GV41: 21 | GW41: 21 | GX41: 21 | GY41: 21 | GZ41: 115 | HA41: 104 | HB41: 21 | HC41: 10 | HD41: 22 | HE41: 21 | HF41: 38 | HG41: 80 | HH41: 63 | HI41: 21 | HJ41: 21 | HK41: 21 | HL41: 21 | HM41: 51 | HN41: 183 | HO41: 161 | HP41: 21 | HQ41: 21 | HR41: 33 | HS41: 21 | HT41: 80 | HU41: 323 | HV41: 198 | HW41: 180 | HX41: 178 | HY41: 21 | HZ41: 21 | IA41: 26 | IB41: 21 | IC41: 24 | ID41: 62 | IE41: 61 | IF41: 21 | IG41: 21 | IH41: 16 | II41: 21 | IJ41: 21 | IK41: 47 | IL41: 29 | IM41: 21 | IN41: 21 | IO41: 21 | IP41: 21 | IQ41: 47 | IR41: 28 | IS41: 28 | IT41: 21 | IU41: 21 | IV41: 21 | IW41: 21 | IX41: 21 | IY41: 42 | IZ41: 21 | JA41: 21 | JB41: 21 | JC41: 21 | JD41: 21 | JE41: 42 | JF41: 278 | JG41: 217 | JH41: 214 | JI41: 21 | JJ41: 21 | JK41: 12 | JL41: 9 | JM41: 35 | JN41: 120 | JO41: 112 | JP41: 21 | JQ41: 21 | JR41: 19 | JS41: 21 | JT41: 50 | JU41: 147 | JV41: 141 | JW41: 21 | JX41: 21 | JY41: 21 | JZ41: 21 | KA41: 42 | KB41: 103 | KC41: 99 | KD41: 21 | KE41: 21 | KF41: 35 | KG41: 21 | KH41: 21 | KI41: 121 | KJ41: 78 | KK41: 21 | KL41: 21 | KM41: 29 | KN41: 21 | KO41: 37
A42: 2017thru2021 | B42: 160 | C42: 1600000US0602112 | D42: Angels | E42: 440 | F42: 06 | G42: 02112 | H42: 1595 | I42: 1210 | J42: 315 | K42: 165 | L42: 120 | M42: 0 | N42: 0 | O42: 45 | P42: 0 | Q42: 0 | R42: 80 | S42: 45 | T42: 0 | U42: 0 | V42: 0 | W42: 0 | X42: 30 | Y42: 50 | Z42: 50 | AA42: 0 | AB42: 0 | AC42: 0 | AD42: 0 | AE42: 0 | AF42: 0 | AG42: 0 | AH42: 0 | AI42: 0 | AJ42: 0 | AK42: 0 | AL42: 0 | AM42: 15 | AN42: 15 | AO42: 0 | AP42: 0 | AQ42: 0 | AR42: 0 | AS42: 0 | AT42: 895 | AU42: 0 | AV42: 0 | AW42: 0 | AX42: 0 | AY42: 0 | AZ42: 0 | BA42: 0 | BB42: 95 | BC42: 95 | BD42: 0 | BE42: 0 | BF42: 0 | BG42: 0 | BH42: 0 | BI42: 210 | BJ42: 170 | BK42: 0 | BL42: 0 | BM42: 0 | BN42: 0 | BO42: 40 | BP42: 30 | BQ42: 30 | BR42: 0 | BS42: 0 | BT42: 0 | BU42: 0 | BV42: 0 | BW42: 560 | BX42: 520 | BY42: 0 | BZ42: 4 | CA42: 4 | CB42: 0 | CC42: 10 | CD42: 385 | CE42: 125 | CF42: 15 | CG42: 15 | CH42: 0 | CI42: 0 | CJ42: 0 | CK42: 0 | CL42: 0 | CM42: 105 | CN42: 105 | CO42: 0 | CP42: 0 | CQ42: 0 | CR42: 0 | CS42: 0 | CT42: 10 | CU42: 10 | CV42: 0 | CW42: 0 | CX42: 0 | CY42: 0 | CZ42: 0 | DA42: 0 | DB42: 0 | DC42: 0 | DD42: 0 | DE42: 0 | DF42: 0 | DG42: 0 | DH42: 0 | DI42: 0 | DJ42: 0 | DK42: 0 | DL42: 0 | DM42: 0 | DN42: 0 | DO42: 260 | DP42: 10 | DQ42: 10 | DR42: 0 | DS42: 0 | DT42: 0 | DU42: 0 | DV42: 0 | DW42: 45 | DX42: 45 | DY42: 0 | DZ42: 0 | EA42: 0 | EB42: 0 | EC42: 0 | ED42: 125 | EE42: 115 | EF42: 0 | EG42: 0 | EH42: 10 | EI42: 0 | EJ42: 0 | EK42: 0 | EL42: 0 | EM42: 0 | EN42: 0 | EO42: 0 | EP42: 0 | EQ42: 0 | ER42: 80 | ES42: 25 | ET42: 0 | EU42: 0 | EV42: 0 | EW42: 0 | EX42: 20 | EY42: 215 | EZ42: 256 | FA42: 157 | FB42: 118 | FC42: 96 | FD42: 13 | FE42: 13 | FF42: 67 | FG42: 13 | FH42: 13 | FI42: 59 | FJ42: 40 | FK42: 13 | FL42: 13 | FM42: 13 | FN42: 13 | FO42: 48 | FP42: 67 | FQ42: 67 | FR42: 13 | FS42: 13 | FT42: 13 | FU42: 13 | FV42: 13 | FW42: 13 | FX42: 13 | FY42: 13 | FZ42: 13 | GA42: 13 | GB42: 13 | GC42: 13 | GD42: 28 | GE42: 28 | GF42: 13 | GG42: 13 | GH42: 13 | GI42: 13 | GJ42: 13 | GK42: 216 | GL42: 13 | GM42: 13 | GN42: 13 | GO42: 13 | GP42: 13 | GQ42: 13 | GR42: 13 | GS42: 79 | GT42: 79 | GU42: 13 | GV42: 13 | GW42: 13 | GX42: 13 | GY42: 13 | GZ42: 155 | HA42: 137 | HB42: 13 | HC42: 13 | HD42: 13 | HE42: 13 | HF42: 63 | HG42: 27 | HH42: 27 | HI42: 13 | HJ42: 13 | HK42: 13 | HL42: 13 | HM42: 13 | HN42: 142 | HO42: 141 | HP42: 13 | HQ42: 5 | HR42: 7 | HS42: 13 | HT42: 15 | HU42: 138 | HV42: 96 | HW42: 24 | HX42: 24 | HY42: 13 | HZ42: 13 | IA42: 13 | IB42: 13 | IC42: 13 | ID42: 97 | IE42: 97 | IF42: 13 | IG42: 13 | IH42: 13 | II42: 13 | IJ42: 13 | IK42: 15 | IL42: 15 | IM42: 13 | IN42: 13 | IO42: 13 | IP42: 13 | IQ42: 13 | IR42: 13 | IS42: 13 | IT42: 13 | IU42: 13 | IV42: 13 | IW42: 13 | IX42: 13 | IY42: 13 | IZ42: 13 | JA42: 13 | JB42: 13 | JC42: 13 | JD42: 13 | JE42: 13 | JF42: 119 | JG42: 19 | JH42: 19 | JI42: 13 | JJ42: 13 | JK42: 13 | JL42: 13 | JM42: 13 | JN42: 60 | JO42: 60 | JP42: 13 | JQ42: 13 | JR42: 13 | JS42: 13 | JT42: 13 | JU42: 101 | JV42: 100 | JW42: 13 | JX42: 13 | JY42: 25 | JZ42: 13 | KA42: 13 | KB42: 13 | KC42: 13 | KD42: 13 | KE42: 13 | KF42: 13 | KG42: 13 | KH42: 13 | KI42: 63 | KJ42: 28 | KK42: 13 | KL42: 13 | KM42: 13 | KN42: 13 | KO42: 34
A43: 2017thru2021 | B43: 160 | C43: 1600000US0602168 | D43: Angwin CDP | E43: 130 | F43: 06 | G43: 02168 | H43: 785 | I43: 460 | J43: 95 | K43: 15 | L43: 15 | M43: 0 | N43: 4 | O43: 0 | P43: 0 | Q43: 0 | R43: 15 | S43: 15 | T43: 0 | U43: 0 | V43: 0 | W43: 0 | X43: 0 | Y43: 10 | Z43: 4 | AA43: 0 | AB43: 0 | AC43: 0 | AD43: 0 | AE43: 4 | AF43: 4 | AG43: 4 | AH43: 0 | AI43: 0 | AJ43: 0 | AK43: 0 | AL43: 0 | AM43: 45 | AN43: 4 | AO43: 0 | AP43: 0 | AQ43: 0 | AR43: 0 | AS43: 0 | AT43: 365 | AU43: 10 | AV43: 10 | AW43: 0 | AX43: 0 | AY43: 0 | AZ43: 0 | BA43: 4 | BB43: 15 | BC43: 10 | BD43: 0 | BE43: 4 | BF43: 0 | BG43: 0 | BH43: 0 | BI43: 60 | BJ43: 45 | BK43: 15 | BL43: 0 | BM43: 0 | BN43: 0 | BO43: 0 | BP43: 20 | BQ43: 15 | BR43: 0 | BS43: 0 | BT43: 0 | BU43: 0 | BV43: 4 | BW43: 265 | BX43: 215 | BY43: 0 | BZ43: 4 | CA43: 0 | CB43: 0 | CC43: 25 | CD43: 325 | CE43: 90 | CF43: 40 | CG43: 15 | CH43: 30 | CI43: 0 | CJ43: 0 | CK43: 0 | CL43: 0 | CM43: 45 | CN43: 4 | CO43: 0 | CP43: 4 | CQ43: 0 | CR43: 0 | CS43: 30 | CT43: 0 | CU43: 0 | CV43: 0 | CW43: 0 | CX43: 0 | CY43: 0 | CZ43: 0 | DA43: 4 | DB43: 4 | DC43: 0 | DD43: 0 | DE43: 0 | DF43: 0 | DG43: 0 | DH43: 0 | DI43: 0 | DJ43: 0 | DK43: 0 | DL43: 0 | DM43: 0 | DN43: 0 | DO43: 235 | DP43: 0 | DQ43: 0 | DR43: 0 | DS43: 0 | DT43: 0 | DU43: 0 | DV43: 0 | DW43: 40 | DX43: 25 | DY43: 0 | DZ43: 0 | EA43: 0 | EB43: 0 | EC43: 10 | ED43: 35 | EE43: 25 | EF43: 0 | EG43: 4 | EH43: 0 | EI43: 0 | EJ43: 4 | EK43: 30 | EL43: 30 | EM43: 0 | EN43: 0 | EO43: 0 | EP43: 0 | EQ43: 0 | ER43: 130 | ES43: 80 | ET43: 0 | EU43: 45 | EV43: 0 | EW43: 0 | EX43: 0 | EY43: 132 | EZ43: 114 | FA43: 66 | FB43: 21 | FC43: 22 | FD43: 13 | FE43: 3 | FF43: 13 | FG43: 13 | FH43: 13 | FI43: 16 | FJ43: 16 | FK43: 13 | FL43: 13 | FM43: 13 | FN43: 13 | FO43: 13 | FP43: 13 | FQ43: 9 | FR43: 13 | FS43: 13 | FT43: 13 | FU43: 13 | FV43: 9 | FW43: 10 | FX43: 10 | FY43: 13 | FZ43: 13 | GA43: 13 | GB43: 13 | GC43: 13 | GD43: 59 | GE43: 3 | GF43: 13 | GG43: 13 | GH43: 13 | GI43: 13 | GJ43: 13 | GK43: 95 | GL43: 14 | GM43: 13 | GN43: 13 | GO43: 13 | GP43: 13 | GQ43: 13 | GR43: 3 | GS43: 13 | GT43: 10 | GU43: 13 | GV43: 5 | GW43: 13 | GX43: 13 | GY43: 13 | GZ43: 40 | HA43: 37 | HB43: 25 | HC43: 13 | HD43: 13 | HE43: 13 | HF43: 13 | HG43: 20 | HH43: 17 | HI43: 13 | HJ43: 13 | HK43: 13 | HL43: 13 | HM43: 6 | HN43: 82 | HO43: 75 | HP43: 13 | HQ43: 7 | HR43: 13 | HS43: 13 | HT43: 21 | HU43: 92 | HV43: 59 | HW43: 44 | HX43: 18 | HY43: 43 | HZ43: 13 | IA43: 13 | IB43: 13 | IC43: 13 | ID43: 38 | IE43: 6 | IF43: 13 | IG43: 15 | IH43: 13 | II43: 13 | IJ43: 36 | IK43: 13 | IL43: 13 | IM43: 13 | IN43: 13 | IO43: 13 | IP43: 13 | IQ43: 13 | IR43: 12 | IS43: 12 | IT43: 13 | IU43: 13 | IV43: 13 | IW43: 13 | IX43: 13 | IY43: 13 | IZ43: 13 | JA43: 13 | JB43: 13 | JC43: 13 | JD43: 13 | JE43: 13 | JF43: 75 | JG43: 13 | JH43: 13 | JI43: 13 | JJ43: 13 | JK43: 13 | JL43: 13 | JM43: 13 | JN43: 44 | JO43: 37 | JP43: 13 | JQ43: 13 | JR43: 13 | JS43: 13 | JT43: 21 | JU43: 26 | JV43: 22 | JW43: 13 | JX43: 14 | JY43: 13 | JZ43: 13 | KA43: 10 | KB43: 22 | KC43: 22 | KD43: 13 | KE43: 13 | KF43: 13 | KG43: 13 | KH43: 13 | KI43: 58 | KJ43: 53 | KK43: 13 | KL43: 34 | KM43: 13 | KN43: 13 | KO43: 13
A44: 2017thru2021 | B44: 160 | C44: 1600000US0602210 | D44: Antelope CDP | E44: 2480 | F44: 06 | G44: 02210 | H44: 15090 | I44: 10300 | J44: 1375 | K44: 455 | L44: 255 | M44: 40 | N44: 40 | O44: 0 | P44: 0 | Q44: 105 | R44: 560 | S44: 360 | T44: 15 | U44: 165 | V44: 0 | W44: 0 | X44: 20 | Y44: 205 | Z44: 135 | AA44: 25 | AB44: 4 | AC44: 0 | AD44: 0 | AE44: 25 | AF44: 70 | AG44: 30 | AH44: 0 | AI44: 40 | AJ44: 0 | AK44: 0 | AL44: 0 | AM44: 90 | AN44: 30 | AO44: 0 | AP44: 50 | AQ44: 0 | AR44: 0 | AS44: 10 | AT44: 8920 | AU44: 180 | AV44: 115 | AW44: 0 | AX44: 45 | AY44: 0 | AZ44: 0 | BA44: 20 | BB44: 315 | BC44: 150 | BD44: 4 | BE44: 10 | BF44: 10 | BG44: 0 | BH44: 140 | BI44: 1470 | BJ44: 955 | BK44: 60 | BL44: 145 | BM44: 0 | BN44: 10 | BO44: 255 | BP44: 935 | BQ44: 695 | BR44: 60 | BS44: 110 | BT44: 0 | BU44: 0 | BV44: 70 | BW44: 6020 | BX44: 3630 | BY44: 555 | BZ44: 575 | CA44: 35 | CB44: 55 | CC44: 955 | CD44: 4790 | CE44: 1275 | CF44: 365 | CG44: 190 | CH44: 125 | CI44: 40 | CJ44: 0 | CK44: 0 | CL44: 0 | CM44: 405 | CN44: 280 | CO44: 0 | CP44: 4 | CQ44: 0 | CR44: 0 | CS44: 120 | CT44: 280 | CU44: 95 | CV44: 95 | CW44: 0 | CX44: 0 | CY44: 0 | CZ44: 55 | DA44: 55 | DB44: 30 | DC44: 0 | DD44: 0 | DE44: 0 | DF44: 0 | DG44: 25 | DH44: 175 | DI44: 100 | DJ44: 0 | DK44: 15 | DL44: 0 | DM44: 0 | DN44: 60 | DO44: 3515 | DP44: 315 | DQ44: 165 | DR44: 0 | DS44: 90 | DT44: 0 | DU44: 0 | DV44: 60 | DW44: 270 | DX44: 160 | DY44: 0 | DZ44: 60 | EA44: 0 | EB44: 0 | EC44: 50 | ED44: 1105 | EE44: 655 | EF44: 255 | EG44: 90 | EH44: 0 | EI44: 0 | EJ44: 70 | EK44: 435 | EL44: 185 | EM44: 25 | EN44: 70 | EO44: 0 | EP44: 0 | EQ44: 90 | ER44: 1385 | ES44: 865 | ET44: 110 | EU44: 100 | EV44: 0 | EW44: 0 | EX44: 220 | EY44: 628 | EZ44: 587 | FA44: 370 | FB44: 189 | FC44: 128 | FD44: 42 | FE44: 40 | FF44: 28 | FG44: 28 | FH44: 112 | FI44: 293 | FJ44: 225 | FK44: 23 | FL44: 190 | FM44: 28 | FN44: 28 | FO44: 24 | FP44: 104 | FQ44: 93 | FR44: 27 | FS44: 7 | FT44: 28 | FU44: 28 | FV44: 26 | FW44: 55 | FX44: 36 | FY44: 28 | FZ44: 41 | GA44: 28 | GB44: 28 | GC44: 28 | GD44: 40 | GE44: 28 | GF44: 28 | GG44: 34 | GH44: 28 | GI44: 28 | GJ44: 16 | GK44: 562 | GL44: 98 | GM44: 89 | GN44: 28 | GO44: 32 | GP44: 28 | GQ44: 28 | GR44: 34 | GS44: 205 | GT44: 75 | GU44: 5 | GV44: 23 | GW44: 18 | GX44: 28 | GY44: 179 | GZ44: 283 | HA44: 259 | HB44: 50 | HC44: 70 | HD44: 28 | HE44: 19 | HF44: 124 | HG44: 193 | HH44: 174 | HI44: 54 | HJ44: 56 | HK44: 28 | HL44: 28 | HM44: 47 | HN44: 533 | HO44: 405 | HP44: 194 | HQ44: 145 | HR44: 44 | HS44: 61 | HT44: 340 | HU44: 512 | HV44: 348 | HW44: 160 | HX44: 111 | HY44: 102 | HZ44: 29 | IA44: 28 | IB44: 28 | IC44: 28 | ID44: 282 | IE44: 270 | IF44: 28 | IG44: 6 | IH44: 28 | II44: 28 | IJ44: 107 | IK44: 169 | IL44: 83 | IM44: 87 | IN44: 28 | IO44: 28 | IP44: 28 | IQ44: 86 | IR44: 58 | IS44: 48 | IT44: 28 | IU44: 28 | IV44: 28 | IW44: 28 | IX44: 40 | IY44: 118 | IZ44: 77 | JA44: 28 | JB44: 26 | JC44: 28 | JD44: 28 | JE44: 98 | JF44: 497 | JG44: 178 | JH44: 144 | JI44: 28 | JJ44: 92 | JK44: 28 | JL44: 28 | JM44: 60 | JN44: 125 | JO44: 97 | JP44: 28 | JQ44: 90 | JR44: 28 | JS44: 28 | JT44: 59 | JU44: 374 | JV44: 317 | JW44: 196 | JX44: 86 | JY44: 28 | JZ44: 28 | KA44: 64 | KB44: 139 | KC44: 106 | KD44: 32 | KE44: 59 | KF44: 28 | KG44: 28 | KH44: 73 | KI44: 281 | KJ44: 239 | KK44: 81 | KL44: 90 | KM44: 28 | KN44: 28 | KO44: 119
A45: 2017thru2021 | B45: 160 | C45: 1600000US0602252 | D45: Antioch | E45: 5240 | F45: 06 | G45: 02252 | H45: 35740 | I45: 22110 | J45: 3315 | K45: 1300 | L45: 605 | M45: 185 | N45: 145 | O45: 0 | P45: 0 | Q45: 245 | R45: 985 | S45: 315 | T45: 75 | U45: 270 | V45: 0 | W45: 0 | X45: 325 | Y45: 540 | Z45: 125 | AA45: 125 | AB45: 130 | AC45: 0 | AD45: 0 | AE45: 135 | AF45: 110 | AG45: 45 | AH45: 15 | AI45: 0 | AJ45: 0 | AK45: 0 | AL45: 45 | AM45: 385 | AN45: 130 | AO45: 20 | AP45: 65 | AQ45: 0 | AR45: 0 | AS45: 175 | AT45: 18795 | AU45: 600 | AV45: 315 | AW45: 0 | AX45: 100 | AY45: 0 | AZ45: 0 | BA45: 185 | BB45: 1690 | BC45: 920 | BD45: 230 | BE45: 100 | BF45: 0 | BG45: 0 | BH45: 370 | BI45: 4450 | BJ45: 1755 | BK45: 500 | BL45: 625 | BM45: 0 | BN45: 0 | BO45: 1405 | BP45: 2580 | BQ45: 935 | BR45: 330 | BS45: 355 | BT45: 0 | BU45: 20 | BV45: 730 | BW45: 9475 | BX45: 3635 | BY45: 1655 | BZ45: 1440 | CA45: 4 | CB45: 30 | CC45: 2325 | CD45: 13630 | CE45: 5700 | CF45: 3510 | CG45: 735 | CH45: 1280 | CI45: 230 | CJ45: 0 | CK45: 0 | CL45: 1030 | CM45: 1460 | CN45: 315 | CO45: 455 | CP45: 145 | CQ45: 0 | CR45: 0 | CS45: 420 | CT45: 275 | CU45: 80 | CV45: 120 | CW45: 0 | CX45: 15 | CY45: 0 | CZ45: 60 | DA45: 165 | DB45: 10 | DC45: 20 | DD45: 35 | DE45: 0 | DF45: 15 | DG45: 60 | DH45: 295 | DI45: 80 | DJ45: 0 | DK45: 15 | DL45: 0 | DM45: 0 | DN45: 150 | DO45: 7930 | DP45: 860 | DQ45: 265 | DR45: 270 | DS45: 85 | DT45: 0 | DU45: 0 | DV45: 230 | DW45: 1490 | DX45: 495 | DY45: 220 | DZ45: 20 | EA45: 0 | EB45: 50 | EC45: 550 | ED45: 1925 | EE45: 360 | EF45: 255 | EG45: 145 | EH45: 35 | EI45: 0 | EJ45: 940 | EK45: 1180 | EL45: 265 | EM45: 245 | EN45: 110 | EO45: 0 | EP45: 25 | EQ45: 395 | ER45: 2470 | ES45: 865 | ET45: 635 | EU45: 390 | EV45: 20 | EW45: 90 | EX45: 370 | EY45: 858 | EZ45: 908 | FA45: 490 | FB45: 287 | FC45: 174 | FD45: 118 | FE45: 94 | FF45: 31 | FG45: 31 | FH45: 98 | FI45: 253 | FJ45: 166 | FK45: 84 | FL45: 128 | FM45: 31 | FN45: 31 | FO45: 133 | FP45: 155 | FQ45: 84 | FR45: 96 | FS45: 73 | FT45: 31 | FU45: 31 | FV45: 76 | FW45: 72 | FX45: 45 | FY45: 22 | FZ45: 31 | GA45: 31 | GB45: 31 | GC45: 46 | GD45: 201 | GE45: 155 | GF45: 35 | GG45: 50 | GH45: 31 | GI45: 31 | GJ45: 106 | GK45: 920 | GL45: 160 | GM45: 120 | GN45: 31 | GO45: 95 | GP45: 31 | GQ45: 31 | GR45: 82 | GS45: 440 | GT45: 329 | GU45: 207 | GV45: 56 | GW45: 31 | GX45: 31 | GY45: 148 | GZ45: 632 | HA45: 301 | HB45: 215 | HC45: 226 | HD45: 31 | HE45: 31 | HF45: 468 | HG45: 427 | HH45: 252 | HI45: 156 | HJ45: 210 | HK45: 31 | HL45: 36 | HM45: 186 | HN45: 699 | HO45: 500 | HP45: 254 | HQ45: 288 | HR45: 18 | HS45: 48 | HT45: 412 | HU45: 787 | HV45: 581 | HW45: 468 | HX45: 212 | HY45: 301 | HZ45: 116 | IA45: 31 | IB45: 31 | IC45: 271 | ID45: 312 | IE45: 143 | IF45: 203 | IG45: 111 | IH45: 31 | II45: 31 | IJ45: 178 | IK45: 210 | IL45: 84 | IM45: 180 | IN45: 31 | IO45: 23 | IP45: 31 | IQ45: 53 | IR45: 99 | IS45: 20 | IT45: 41 | IU45: 45 | IV45: 31 | IW45: 36 | IX45: 52 | IY45: 176 | IZ45: 72 | JA45: 31 | JB45: 32 | JC45: 31 | JD45: 31 | JE45: 159 | JF45: 817 | JG45: 227 | JH45: 151 | JI45: 150 | JJ45: 63 | JK45: 31 | JL45: 31 | JM45: 118 | JN45: 330 | JO45: 194 | JP45: 135 | JQ45: 26 | JR45: 31 | JS45: 80 | JT45: 257 | JU45: 427 | JV45: 137 | JW45: 146 | JX45: 87 | JY45: 55 | JZ45: 31 | KA45: 287 | KB45: 314 | KC45: 142 | KD45: 185 | KE45: 81 | KF45: 31 | KG45: 39 | KH45: 181 | KI45: 543 | KJ45: 330 | KK45: 287 | KL45: 208 | KM45: 33 | KN45: 84 | KO45: 128
